Workbook

Sheet Step I and Step II
C1: Tekst
C2: Komórki do wypełnienia przez Wnioskodawców
C3: Komórki do obliczeń pośrednich (nie należy modyfikować)
C4: Komórki zawierające wyniki (nie należy modyfikować)
B8: Krok I: Obliczenie maksymalnej wielkości dofinansowania ze środków publicznych | E8: Rok | F8: 2016 | G8: 2017 | H8: 2018 | I8: 2019 | J8: 2020 | K8: 2021 | L8: 2022 | M8: 2023 | N8: 2024 | O8: 2025
C12: Obliczenie Kosztów Kwalifikowalnych wg GBER | E12: NPV | F12: 2.85%
C13: Koszty kwalifikowane wg GBER | D13: PLN | E13: =NPV($F$12,G13:M13)+F13 -> 9,698,258.60 | F13: =+F14+F15 -> 3,000,000.00 | G13: =+G14+G15 -> 3,000,000.00 | H13: =+H14+H15 -> 4,000,000.00 | I13: =+I14+I15 -> 0.00 | J13: =+J14+J15 -> 0.00 | K13: 0.00 | L13: 0.00 | M13: 0.00 | N13: 0.00 | O13: 0.00 | AU13: 0.0 | AV13: 0.0 | AW13: 0.0 | AX13: 0.0 | AY13: 0.0 | AZ13: 0.0 | BA13: 0.0 | BB13: 0.0 | BC13: 0.0 | BD13: 0.0 | BE13: 0.0 | BF13: 0.0 | BG13: 0.0 | BH13: 0.0 | BI13: 0.0 | BJ13: 0.0 | BK13: 0.0 | BL13: 0.0 | BM13: 0.0 | BN13: 0.0 | BO13: 0.0 | BP13: 0.0 | BQ13: 0.0 | BR13: 0.0 | BS13: 0.0 | BT13: 0.0 | BU13: 0.0 | BV13: 0.0 | BW13: 0.0 | BX13: 0.0 | BY13: 0.0 | BZ13: 0.0 | CA13: 0.0 | CB13: 0.0 | CC13: 0.0 | CD13: 0.0 | CE13: 0.0 | CF13: 0.0 | CG13: 0.0 | CH13: 0.0 | CI13: 0.0 | CJ13: 0.0 | CK13: 0.0 | CL13: 0.0 | CM13: 0.0 | CN13: 0.0 | CO13: 0.0 | CP13: 0.0 | CQ13: 0.0 | CR13: 0.0 | CS13: 0.0 | CT13: 0.0 | CU13: 0.0 | CV13: 0.0 | CW13: 0.0 | CX13: 0.0 | CY13: 0.0 | CZ13: 0.0 | DA13: 0.0 | DB13: 0.0 | DC13: 0.0 | DD13: 0.0 | DE13: 0.0 | DF13: 0.0 | DG13: 0.0 | DH13: 0.0 | DI13: 0.0 | DJ13: 0.0 | DK13: 0.0 | DL13: 0.0 | DM13: 0.0 | DN13: 0.0 | DO13: 0.0 | DP13: 0.0 | DQ13: 0.0 | DR13: 0.0 | DS13: 0.0 | DT13: 0.0 | DU13: 0.0 | DV13: 0.0 | DW13: 0.0 | DX13: 0.0 | DY13: 0.0 | DZ13: 0.0 | EA13: 0.0 | EB13: 0.0 | EC13: 0.0 | ED13: 0.0 | EE13: 0.0 | EF13: 0.0 | EG13: 0.0 | EH13: 0.0 | EI13: 0.0 | EJ13: 0.0 | EK13: 0.0 | EL13: 0.0 | EM13: 0.0 | EN13: 0.0 | EO13: 0.0 | EP13: 0.0 | EQ13: 0.0 | ER13: 0.0 | ES13: 0.0 | ET13: 0.0 | EU13: 0.0 | EV13: 0.0 | EW13: 0.0 | EX13: 0.0 | EY13: 0.0 | EZ13: 0.0 | FA13: 0.0 | FB13: 0.0 | FC13: 0.0 | FD13: 0.0 | FE13: 0.0 | FF13: 0.0 | FG13: 0.0 | FH13: 0.0 | FI13: 0.0 | FJ13: 0.0 | FK13: 0.0 | FL13: 0.0 | FM13: 0.0 | FN13: 0.0 | FO13: 0.0 | FP13: 0.0 | FQ13: 0.0 | FR13: 0.0 | FS13: 0.0 | FT13: 0.0 | FU13: 0.0 | FV13: 0.0 | FW13: 0.0 | FX13: 0.0 | FY13: 0.0 | FZ13: 0.0 | GA13: 0.0 | GB13: 0.0 | GC13: 0.0 | GD13: 0.0 | GE13: 0.0 | GF13: 0.0 | GG13: 0.0 | GH13: 0.0 | GI13: 0.0 | GJ13: 0.0 | GK13: 0.0 | GL13: 0.0 | GM13: 0.0 | GN13: 0.0 | GO13: 0.0 | GP13: 0.0 | GQ13: 0.0 | GR13: 0.0 | GS13: 0.0 | GT13: 0.0 | GU13: 0.0 | GV13: 0.0 | GW13: 0.0 | GX13: 0.0 | GY13: 0.0 | GZ13: 0.0 | HA13: 0.0 | HB13: 0.0 | HC13: 0.0 | HD13: 0.0 | HE13: 0.0 | HF13: 0.0 | HG13: 0.0 | HH13: 0.0 | HI13: 0.0 | HJ13: 0.0 | HK13: 0.0 | HL13: 0.0 | HM13: 0.0 | HN13: 0.0 | HO13: 0.0 | HP13: 0.0 | HQ13: 0.0 | HR13: 0.0 | HS13: 0.0 | HT13: 0.0 | HU13: 0.0 | HV13: 0.0 | HW13: 0.0 | HX13: 0.0 | HY13: 0.0 | HZ13: 0.0 | IA13: 0.0 | IB13: 0.0 | IC13: 0.0 | ID13: 0.0 | IE13: 0.0 | IF13: 0.0 | IG13: 0.0 | IH13: 0.0 | II13: 0.0 | IJ13: 0.0 | IK13: 0.0 | IL13: 0.0 | IM13: 0.0 | IN13: 0.0 | IO13: 0.0 | IP13: 0.0 | IQ13: 0.0 | IR13: 0.0 | IS13: 0.0 | IT13: 0.0 | IU13: 0.0 | IV13: 0.0 | IW13: 0.0 | IX13: 0.0 | IY13: 0.0 | IZ13: 0.0 | JA13: 0.0 | JB13: 0.0 | JC13: 0.0 | JD13: 0.0 | JE13: 0.0 | JF13: 0.0 | JG13: 0.0 | JH13: 0.0 | JI13: 0.0 | JJ13: 0.0 | JK13: 0.0 | JL13: 0.0 | JM13: 0.0 | JN13: 0.0 | JO13: 0.0 | JP13: 0.0 | JQ13: 0.0 | JR13: 0.0 | JS13: 0.0 | JT13: 0.0 | JU13: 0.0 | JV13: 0.0 | JW13: 0.0 | JX13: 0.0 | JY13: 0.0 | JZ13: 0.0 | KA13: 0.0 | KB13: 0.0 | KC13: 0.0 | KD13: 0.0 | KE13: 0.0 | KF13: 0.0 | KG13: 0.0 | KH13: 0.0 | KI13: 0.0 | KJ13: 0.0 | KK13: 0.0 | KL13: 0.0 | KM13: 0.0 | KN13: 0.0 | KO13: 0.0 | KP13: 0.0 | KQ13: 0.0 | KR13: 0.0 | KS13: 0.0 | KT13: 0.0 | KU13: 0.0 | KV13: 0.0 | KW13: 0.0 | KX13: 0.0 | KY13: 0.0 | KZ13: 0.0 | LA13: 0.0 | LB13: 0.0 | LC13: 0.0 | LD13: 0.0 | LE13: 0.0 | LF13: 0.0 | LG13: 0.0 | LH13: 0.0 | LI13: 0.0 | LJ13: 0.0 | LK13: 0.0 | LL13: 0.0 | LM13: 0.0 | LN13: 0.0 | LO13: 0.0 | LP13: 0.0 | LQ13: 0.0 | LR13: 0.0 | LS13: 0.0 | LT13: 0.0 | LU13: 0.0 | LV13: 0.0 | LW13: 0.0 | LX13: 0.0 | LY13: 0.0 | LZ13: 0.0 | MA13: 0.0 | MB13: 0.0 | MC13: 0.0 | MD13: 0.0 | ME13: 0.0 | MF13: 0.0 | MG13: 0.0 | MH13: 0.0 | MI13: 0.0 | MJ13: 0.0 | MK13: 0.0 | ML13: 0.0 | MM13: 0.0 | MN13: 0.0 | MO13: 0.0 | MP13: 0.0 | MQ13: 0.0 | MR13: 0.0 | MS13: 0.0 | MT13: 0.0 | MU13: 0.0 | MV13: 0.0 | MW13: 0.0 | MX13: 0.0 | MY13: 0.0 | MZ13: 0.0 | NA13: 0.0 | NB13: 0.0 | NC13: 0.0 | ND13: 0.0 | NE13: 0.0 | NF13: 0.0 | NG13: 0.0 | NH13: 0.0 | NI13: 0.0 | NJ13: 0.0 | NK13: 0.0 | NL13: 0.0 | NM13: 0.0 | NN13: 0.0 | NO13: 0.0 | NP13: 0.0 | NQ13: 0.0 | NR13: 0.0 | NS13: 0.0 | NT13: 0.0 | NU13: 0.0 | NV13: 0.0 | NW13: 0.0 | NX13: 0.0 | NY13: 0.0 | NZ13: 0.0 | OA13: 0.0 | OB13: 0.0 | OC13: 0.0 | OD13: 0.0 | OE13: 0.0 | OF13: 0.0 | OG13: 0.0 | OH13: 0.0 | OI13: 0.0 | OJ13: 0.0 | OK13: 0.0 | OL13: 0.0 | OM13: 0.0 | ON13: 0.0 | OO13: 0.0 | OP13: 0.0 | OQ13: 0.0 | OR13: 0.0 | OS13: 0.0 | OT13: 0.0 | OU13: 0.0 | OV13: 0.0 | OW13: 0.0 | OX13: 0.0 | OY13: 0.0 | OZ13: 0.0 | PA13: 0.0 | PB13: 0.0 | PC13: 0.0 | PD13: 0.0 | PE13: 0.0 | PF13: 0.0 | PG13: 0.0 | PH13: 0.0 | PI13: 0.0 | PJ13: 0.0 | PK13: 0.0 | PL13: 0.0 | PM13: 0.0 | PN13: 0.0 | PO13: 0.0 | PP13: 0.0 | PQ13: 0.0 | PR13: 0.0 | PS13: 0.0 | PT13: 0.0 | PU13: 0.0 | PV13: 0.0 | PW13: 0.0 | PX13: 0.0 | PY13: 0.0 | PZ13: 0.0 | QA13: 0.0 | QB13: 0.0 | QC13: 0.0 | QD13: 0.0 | QE13: 0.0 | QF13: 0.0 | QG13: 0.0 | QH13: 0.0 | QI13: 0.0 | QJ13: 0.0 | QK13: 0.0 | QL13: 0.0 | QM13: 0.0 | QN13: 0.0 | QO13: 0.0 | QP13: 0.0 | QQ13: 0.0 | QR13: 0.0 | QS13: 0.0 | QT13: 0.0 | QU13: 0.0 | QV13: 0.0 | QW13: 0.0 | QX13: 0.0 | QY13: 0.0 | QZ13: 0.0 | RA13: 0.0 | RB13: 0.0 | RC13: 0.0 | RD13: 0.0 | RE13: 0.0 | RF13: 0.0 | RG13: 0.0 | RH13: 0.0 | RI13: 0.0 | RJ13: 0.0 | RK13: 0.0 | RL13: 0.0 | RM13: 0.0 | RN13: 0.0 | RO13: 0.0 | RP13: 0.0 | RQ13: 0.0 | RR13: 0.0 | RS13: 0.0 | RT13: 0.0 | RU13: 0.0 | RV13: 0.0 | RW13: 0.0 | RX13: 0.0 | RY13: 0.0 | RZ13: 0.0 | SA13: 0.0 | SB13: 0.0 | SC13: 0.0 | SD13: 0.0 | SE13: 0.0 | SF13: 0.0 | SG13: 0.0 | SH13: 0.0 | SI13: 0.0 | SJ13: 0.0 | SK13: 0.0 | SL13: 0.0 | SM13: 0.0 | SN13: 0.0 | SO13: 0.0 | SP13: 0.0 | SQ13: 0.0 | SR13: 0.0 | SS13: 0.0 | ST13: 0.0 | SU13: 0.0 | SV13: 0.0 | SW13: 0.0 | SX13: 0.0 | SY13: 0.0 | SZ13: 0.0 | TA13: 0.0 | TB13: 0.0 | TC13: 0.0 | TD13: 0.0 | TE13: 0.0 | TF13: 0.0 | TG13: 0.0 | TH13: 0.0 | TI13: 0.0 | TJ13: 0.0 | TK13: 0.0 | TL13: 0.0 | TM13: 0.0 | TN13: 0.0 | TO13: 0.0 | TP13: 0.0 | TQ13: 0.0 | TR13: 0.0 | TS13: 0.0 | TT13: 0.0 | TU13: 0.0 | TV13: 0.0 | TW13: 0.0 | TX13: 0.0 | TY13: 0.0 | TZ13: 0.0 | UA13: 0.0 | UB13: 0.0 | UC13: 0.0 | UD13: 0.0 | UE13: 0.0 | UF13: 0.0 | UG13: 0.0 | UH13: 0.0 | UI13: 0.0 | UJ13: 0.0 | UK13: 0.0 | UL13: 0.0 | UM13: 0.0 | UN13: 0.0 | UO13: 0.0 | UP13: 0.0 | UQ13: 0.0 | UR13: 0.0 | US13: 0.0 | UT13: 0.0 | UU13: 0.0 | UV13: 0.0 | UW13: 0.0 | UX13: 0.0 | UY13: 0.0 | UZ13: 0.0 | VA13: 0.0 | VB13: 0.0 | VC13: 0.0 | VD13: 0.0 | VE13: 0.0 | VF13: 0.0 | VG13: 0.0 | VH13: 0.0 | VI13: 0.0 | VJ13: 0.0 | VK13: 0.0 | VL13: 0.0 | VM13: 0.0 | VN13: 0.0 | VO13: 0.0 | VP13: 0.0 | VQ13: 0.0 | VR13: 0.0 | VS13: 0.0 | VT13: 0.0 | VU13: 0.0 | VV13: 0.0 | VW13: 0.0 | VX13: 0.0 | VY13: 0.0 | VZ13: 0.0 | WA13: 0.0 | WB13: 0.0 | WC13: 0.0 | WD13: 0.0 | WE13: 0.0 | WF13: 0.0 | WG13: 0.0 | WH13: 0.0 | WI13: 0.0 | WJ13: 0.0 | WK13: 0.0 | WL13: 0.0 | WM13: 0.0 | WN13: 0.0 | WO13: 0.0 | WP13: 0.0 | WQ13: 0.0 | WR13: 0.0 | WS13: 0.0 | WT13: 0.0 | WU13: 0.0 | WV13: 0.0 | WW13: 0.0 | WX13: 0.0 | WY13: 0.0 | WZ13: 0.0 | XA13: 0.0 | XB13: 0.0 | XC13: 0.0 | XD13: 0.0 | XE13: 0.0 | XF13: 0.0 | XG13: 0.0 | XH13: 0.0 | XI13: 0.0 | XJ13: 0.0 | XK13: 0.0 | XL13: 0.0 | XM13: 0.0 | XN13: 0.0 | XO13: 0.0 | XP13: 0.0 | XQ13: 0.0 | XR13: 0.0 | XS13: 0.0 | XT13: 0.0 | XU13: 0.0 | XV13: 0.0 | XW13: 0.0 | XX13: 0.0 | XY13: 0.0 | XZ13: 0.0 | YA13: 0.0 | YB13: 0.0 | YC13: 0.0 | YD13: 0.0 | YE13: 0.0 | YF13: 0.0 | YG13: 0.0 | YH13: 0.0 | YI13: 0.0 | YJ13: 0.0 | YK13: 0.0 | YL13: 0.0 | YM13: 0.0 | YN13: 0.0 | YO13: 0.0 | YP13: 0.0 | YQ13: 0.0 | YR13: 0.0 | YS13: 0.0 | YT13: 0.0 | YU13: 0.0 | YV13: 0.0 | YW13: 0.0 | YX13: 0.0 | YY13: 0.0 | YZ13: 0.0 | ZA13: 0.0 | ZB13: 0.0 | ZC13: 0.0 | ZD13: 0.0 | ZE13: 0.0 | ZF13: 0.0 | ZG13: 0.0 | ZH13: 0.0 | ZI13: 0.0 | ZJ13: 0.0 | ZK13: 0.0 | ZL13: 0.0 | ZM13: 0.0 | ZN13: 0.0 | ZO13: 0.0 | ZP13: 0.0 | ZQ13: 0.0 | ZR13: 0.0 | ZS13: 0.0 | ZT13: 0.0 | ZU13: 0.0 | ZV13: 0.0 | ZW13: 0.0 | ZX13: 0.0 | ZY13: 0.0 | ZZ13: 0.0 | AAA13: 0.0 | AAB13: 0.0 | AAC13: 0.0 | AAD13: 0.0 | AAE13: 0.0 | AAF13: 0.0 | AAG13: 0.0 | AAH13: 0.0 | AAI13: 0.0 | AAJ13: 0.0 | AAK13: 0.0 | AAL13: 0.0 | AAM13: 0.0 | AAN13: 0.0 | AAO13: 0.0 | AAP13: 0.0 | AAQ13: 0.0 | AAR13: 0.0 | AAS13: 0.0 | AAT13: 0.0 | AAU13: 0.0 | AAV13: 0.0 | AAW13: 0.0 | AAX13: 0.0 | AAY13: 0.0 | AAZ13: 0.0 | ABA13: 0.0 | ABB13: 0.0 | ABC13: 0.0 | ABD13: 0.0 | ABE13: 0.0 | ABF13: 0.0 | ABG13: 0.0 | ABH13: 0.0 | ABI13: 0.0 | ABJ13: 0.0 | ABK13: 0.0 | ABL13: 0.0 | ABM13: 0.0 | ABN13: 0.0 | ABO13: 0.0 | ABP13: 0.0 | ABQ13: 0.0 | ABR13: 0.0 | ABS13: 0.0 | ABT13: 0.0 | ABU13: 0.0 | ABV13: 0.0 | ABW13: 0.0 | ABX13: 0.0 | ABY13: 0.0 | ABZ13: 0.0 | ACA13: 0.0 | ACB13: 0.0 | ACC13: 0.0 | ACD13: 0.0 | ACE13: 0.0 | ACF13: 0.0 | ACG13: 0.0 | ACH13: 0.0 | ACI13: 0.0 | ACJ13: 0.0 | ACK13: 0.0 | ACL13: 0.0 | ACM13: 0.0 | ACN13: 0.0 | ACO13: 0.0 | ACP13: 0.0 | ACQ13: 0.0 | ACR13: 0.0 | ACS13: 0.0 | ACT13: 0.0 | ACU13: 0.0 | ACV13: 0.0 | ACW13: 0.0 | ACX13: 0.0 | ACY13: 0.0 | ACZ13: 0.0 | ADA13: 0.0 | ADB13: 0.0 | ADC13: 0.0 | ADD13: 0.0 | ADE13: 0.0 | ADF13: 0.0 | ADG13: 0.0 | ADH13: 0.0 | ADI13: 0.0 | ADJ13: 0.0 | ADK13: 0.0 | ADL13: 0.0 | ADM13: 0.0 | ADN13: 0.0 | ADO13: 0.0 | ADP13: 0.0 | ADQ13: 0.0 | ADR13: 0.0 | ADS13: 0.0 | ADT13: 0.0 | ADU13: 0.0 | ADV13: 0.0 | ADW13: 0.0 | ADX13: 0.0 | ADY13: 0.0 | ADZ13: 0.0 | AEA13: 0.0 | AEB13: 0.0 | AEC13: 0.0 | AED13: 0.0 | AEE13: 0.0 | AEF13: 0.0 | AEG13: 0.0 | AEH13: 0.0 | AEI13: 0.0 | AEJ13: 0.0 | AEK13: 0.0 | AEL13: 0.0 | AEM13: 0.0 | AEN13: 0.0 | AEO13: 0.0 | AEP13: 0.0 | AEQ13: 0.0 | AER13: 0.0 | AES13: 0.0 | AET13: 0.0 | AEU13: 0.0 | AEV13: 0.0 | AEW13: 0.0 | AEX13: 0.0 | AEY13: 0.0 | AEZ13: 0.0 | AFA13: 0.0 | AFB13: 0.0 | AFC13: 0.0 | AFD13: 0.0 | AFE13: 0.0 | AFF13: 0.0 | AFG13: 0.0 | AFH13: 0.0 | AFI13: 0.0 | AFJ13: 0.0 | AFK13: 0.0 | AFL13: 0.0 | AFM13: 0.0 | AFN13: 0.0 | AFO13: 0.0 | AFP13: 0.0 | AFQ13: 0.0 | AFR13: 0.0 | AFS13: 0.0 | AFT13: 0.0 | AFU13: 0.0 | AFV13: 0.0 | AFW13: 0.0 | AFX13: 0.0 | AFY13: 0.0 | AFZ13: 0.0 | AGA13: 0.0 | AGB13: 0.0 | AGC13: 0.0 | AGD13: 0.0 | AGE13: 0.0 | AGF13: 0.0 | AGG13: 0.0 | AGH13: 0.0 | AGI13: 0.0 | AGJ13: 0.0 | AGK13: 0.0 | AGL13: 0.0 | AGM13: 0.0 | AGN13: 0.0 | AGO13: 0.0 | AGP13: 0.0 | AGQ13: 0.0 | AGR13: 0.0 | AGS13: 0.0 | AGT13: 0.0 | AGU13: 0.0 | AGV13: 0.0 | AGW13: 0.0 | AGX13: 0.0 | AGY13: 0.0 | AGZ13: 0.0 | AHA13: 0.0 | AHB13: 0.0 | AHC13: 0.0 | AHD13: 0.0 | AHE13: 0.0 | AHF13: 0.0 | AHG13: 0.0 | AHH13: 0.0 | AHI13: 0.0 | AHJ13: 0.0 | AHK13: 0.0 | AHL13: 0.0 | AHM13: 0.0 | AHN13: 0.0 | AHO13: 0.0 | AHP13: 0.0 | AHQ13: 0.0 | AHR13: 0.0 | AHS13: 0.0 | AHT13: 0.0 | AHU13: 0.0 | AHV13: 0.0 | AHW13: 0.0 | AHX13: 0.0 | AHY13: 0.0 | AHZ13: 0.0 | AIA13: 0.0 | AIB13: 0.0 | AIC13: 0.0 | AID13: 0.0 | AIE13: 0.0 | AIF13: 0.0 | AIG13: 0.0 | AIH13: 0.0 | AII13: 0.0 | AIJ13: 0.0 | AIK13: 0.0 | AIL13: 0.0 | AIM13: 0.0 | AIN13: 0.0 | AIO13: 0.0 | AIP13: 0.0 | AIQ13: 0.0 | AIR13: 0.0 | AIS13: 0.0 | AIT13: 0.0 | AIU13: 0.0 | AIV13: 0.0 | AIW13: 0.0 | AIX13: 0.0 | AIY13: 0.0 | AIZ13: 0.0 | AJA13: 0.0 | AJB13: 0.0 | AJC13: 0.0 | AJD13: 0.0 | AJE13: 0.0 | AJF13: 0.0 | AJG13: 0.0 | AJH13: 0.0 | AJI13: 0.0 | AJJ13: 0.0 | AJK13: 0.0 | AJL13: 0.0 | AJM13: 0.0 | AJN13: 0.0 | AJO13: 0.0 | AJP13: 0.0 | AJQ13: 0.0 | AJR13: 0.0 | AJS13: 0.0 | AJT13: 0.0 | AJU13: 0.0 | AJV13: 0.0 | AJW13: 0.0 | AJX13: 0.0 | AJY13: 0.0 | AJZ13: 0.0 | AKA13: 0.0 | AKB13: 0.0 | AKC13: 0.0 | AKD13: 0.0 | AKE13: 0.0 | AKF13: 0.0 | AKG13: 0.0 | AKH13: 0.0 | AKI13: 0.0 | AKJ13: 0.0 | AKK13: 0.0 | AKL13: 0.0 | AKM13: 0.0 | AKN13: 0.0 | AKO13: 0.0 | AKP13: 0.0 | AKQ13: 0.0 | AKR13: 0.0 | AKS13: 0.0 | AKT13: 0.0 | AKU13: 0.0 | AKV13: 0.0 | AKW13: 0.0 | AKX13: 0.0 | AKY13: 0.0 | AKZ13: 0.0 | ALA13: 0.0 | ALB13: 0.0 | ALC13: 0.0 | ALD13: 0.0 | ALE13: 0.0 | ALF13: 0.0 | ALG13: 0.0 | ALH13: 0.0 | ALI13: 0.0 | ALJ13: 0.0 | ALK13: 0.0 | ALL13: 0.0 | ALM13: 0.0 | ALN13: 0.0 | ALO13: 0.0 | ALP13: 0.0 | ALQ13: 0.0 | ALR13: 0.0 | ALS13: 0.0 | ALT13: 0.0 | ALU13: 0.0 | ALV13: 0.0 | ALW13: 0.0 | ALX13: 0.0 | ALY13: 0.0 | ALZ13: 0.0 | AMA13: 0.0 | AMB13: 0.0 | AMC13: 0.0 | AMD13: 0.0 | AME13: 0.0 | AMF13: 0.0 | AMG13: 0.0 | AMH13: 0.0 | AMI13: 0.0 | AMJ13: 0.0 | AMK13: 0.0 | AML13: 0.0 | AMM13: 0.0 | AMN13: 0.0 | AMO13: 0.0 | AMP13: 0.0 | AMQ13: 0.0 | AMR13: 0.0 | AMS13: 0.0 | AMT13: 0.0 | AMU13: 0.0 | AMV13: 0.0 | AMW13: 0.0 | AMX13: 0.0 | AMY13: 0.0 | AMZ13: 0.0 | ANA13: 0.0 | ANB13: 0.0 | ANC13: 0.0 | AND13: 0.0 | ANE13: 0.0 | ANF13: 0.0 | ANG13: 0.0 | ANH13: 0.0 | ANI13: 0.0 | ANJ13: 0.0 | ANK13: 0.0 | ANL13: 0.0 | ANM13: 0.0 | ANN13: 0.0 | ANO13: 0.0 | ANP13: 0.0 | ANQ13: 0.0 | ANR13: 0.0 | ANS13: 0.0 | ANT13: 0.0 | ANU13: 0.0 | ANV13: 0.0 | ANW13: 0.0 | ANX13: 0.0 | ANY13: 0.0 | ANZ13: 0.0 | AOA13: 0.0 | AOB13: 0.0 | AOC13: 0.0 | AOD13: 0.0 | AOE13: 0.0 | AOF13: 0.0 | AOG13: 0.0 | AOH13: 0.0 | AOI13: 0.0 | AOJ13: 0.0 | AOK13: 0.0 | AOL13: 0.0 | AOM13: 0.0 | AON13: 0.0 | AOO13: 0.0 | AOP13: 0.0 | AOQ13: 0.0 | AOR13: 0.0 | AOS13: 0.0 | AOT13: 0.0 | AOU13: 0.0 | AOV13: 0.0 | AOW13: 0.0 | AOX13: 0.0 | AOY13: 0.0 | AOZ13: 0.0 | APA13: 0.0 | APB13: 0.0 | APC13: 0.0 | APD13: 0.0 | APE13: 0.0 | APF13: 0.0 | APG13: 0.0 | APH13: 0.0 | API13: 0.0 | APJ13: 0.0 | APK13: 0.0 | APL13: 0.0 | APM13: 0.0 | APN13: 0.0 | APO13: 0.0 | APP13: 0.0 | APQ13: 0.0 | APR13: 0.0 | APS13: 0.0 | APT13: 0.0 | APU13: 0.0 | APV13: 0.0 | APW13: 0.0 | APX13: 0.0 | APY13: 0.0 | APZ13: 0.0 | AQA13: 0.0 | AQB13: 0.0 | AQC13: 0.0 | AQD13: 0.0 | AQE13: 0.0 | AQF13: 0.0 | AQG13: 0.0 | AQH13: 0.0 | AQI13: 0.0 | AQJ13: 0.0 | AQK13: 0.0 | AQL13: 0.0 | AQM13: 0.0 | AQN13: 0.0 | AQO13: 0.0 | AQP13: 0.0 | AQQ13: 0.0 | AQR13: 0.0 | AQS13: 0.0 | AQT13: 0.0 | AQU13: 0.0 | AQV13: 0.0 | AQW13: 0.0 | AQX13: 0.0 | AQY13: 0.0 | AQZ13: 0.0 | ARA13: 0.0 | ARB13: 0.0 | ARC13: 0.0 | ARD13: 0.0 | ARE13: 0.0 | ARF13: 0.0 | ARG13: 0.0 | ARH13: 0.0 | ARI13: 0.0 | ARJ13: 0.0 | ARK13: 0.0 | ARL13: 0.0 | ARM13: 0.0 | ARN13: 0.0 | ARO13: 0.0 | ARP13: 0.0 | ARQ13: 0.0 | ARR13: 0.0 | ARS13: 0.0 | ART13: 0.0 | ARU13: 0.0 | ARV13: 0.0 | ARW13: 0.0 | ARX13: 0.0 | ARY13: 0.0 | ARZ13: 0.0 | ASA13: 0.0 | ASB13: 0.0 | ASC13: 0.0 | ASD13: 0.0 | ASE13: 0.0 | ASF13: 0.0 | ASG13: 0.0 | ASH13: 0.0 | ASI13: 0.0 | ASJ13: 0.0 | ASK13: 0.0 | ASL13: 0.0 | ASM13: 0.0 | ASN13: 0.0 | ASO13: 0.0 | ASP13: 0.0 | ASQ13: 0.0 | ASR13: 0.0 | ASS13: 0.0 | AST13: 0.0 | ASU13: 0.0 | ASV13: 0.0 | ASW13: 0.0 | ASX13: 0.0 | ASY13: 0.0 | ASZ13: 0.0 | ATA13: 0.0 | ATB13: 0.0 | ATC13: 0.0 | ATD13: 0.0 | ATE13: 0.0 | ATF13: 0.0 | ATG13: 0.0 | ATH13: 0.0 | ATI13: 0.0 | ATJ13: 0.0 | ATK13: 0.0 | ATL13: 0.0 | ATM13: 0.0 | ATN13: 0.0 | ATO13: 0.0 | ATP13: 0.0 | ATQ13: 0.0 | ATR13: 0.0 | ATS13: 0.0 | ATT13: 0.0 | ATU13: 0.0 | ATV13: 0.0 | ATW13: 0.0 | ATX13: 0.0 | ATY13: 0.0 | ATZ13: 0.0 | AUA13: 0.0 | AUB13: 0.0 | AUC13: 0.0 | AUD13: 0.0 | AUE13: 0.0 | AUF13: 0.0 | AUG13: 0.0 | AUH13: 0.0 | AUI13: 0.0 | AUJ13: 0.0 | AUK13: 0.0 | AUL13: 0.0 | AUM13: 0.0 | AUN13: 0.0 | AUO13: 0.0 | AUP13: 0.0 | AUQ13: 0.0 | AUR13: 0.0 | AUS13: 0.0 | AUT13: 0.0 | AUU13: 0.0 | AUV13: 0.0 | AUW13: 0.0 | AUX13: 0.0 | AUY13: 0.0 | AUZ13: 0.0 | AVA13: 0.0 | AVB13: 0.0 | AVC13: 0.0 | AVD13: 0.0 | AVE13: 0.0 | AVF13: 0.0 | AVG13: 0.0 | AVH13: 0.0 | AVI13: 0.0 | AVJ13: 0.0 | AVK13: 0.0 | AVL13: 0.0 | AVM13: 0.0 | AVN13: 0.0 | AVO13: 0.0 | AVP13: 0.0 | AVQ13: 0.0 | AVR13: 0.0 | AVS13: 0.0 | AVT13: 0.0 | AVU13: 0.0 | AVV13: 0.0 | AVW13: 0.0 | AVX13: 0.0 | AVY13: 0.0 | AVZ13: 0.0 | AWA13: 0.0 | AWB13: 0.0 | AWC13: 0.0 | AWD13: 0.0 | AWE13: 0.0 | AWF13: 0.0 | AWG13: 0.0 | AWH13: 0.0 | AWI13: 0.0 | AWJ13: 0.0 | AWK13: 0.0 | AWL13: 0.0 | AWM13: 0.0 | AWN13: 0.0 | AWO13: 0.0 | AWP13: 0.0 | AWQ13: 0.0 | AWR13: 0.0 | AWS13: 0.0 | AWT13: 0.0 | AWU13: 0.0 | AWV13: 0.0 | AWW13: 0.0 | AWX13: 0.0 | AWY13: 0.0 | AWZ13: 0.0 | AXA13: 0.0 | AXB13: 0.0 | AXC13: 0.0 | AXD13: 0.0 | AXE13: 0.0 | AXF13: 0.0 | AXG13: 0.0 | AXH13: 0.0 | AXI13: 0.0 | AXJ13: 0.0 | AXK13: 0.0 | AXL13: 0.0 | AXM13: 0.0 | AXN13: 0.0 | AXO13: 0.0 | AXP13: 0.0 | AXQ13: 0.0 | AXR13: 0.0 | AXS13: 0.0 | AXT13: 0.0 | AXU13: 0.0 | AXV13: 0.0 | AXW13: 0.0 | AXX13: 0.0 | AXY13: 0.0 | AXZ13: 0.0 | AYA13: 0.0 | AYB13: 0.0 | AYC13: 0.0 | AYD13: 0.0 | AYE13: 0.0 | AYF13: 0.0 | AYG13: 0.0 | AYH13: 0.0 | AYI13: 0.0 | AYJ13: 0.0 | AYK13: 0.0 | AYL13: 0.0 | AYM13: 0.0 | AYN13: 0.0 | AYO13: 0.0 | AYP13: 0.0 | AYQ13: 0.0 | AYR13: 0.0 | AYS13: 0.0 | AYT13: 0.0 | AYU13: 0.0 | AYV13: 0.0 | AYW13: 0.0 | AYX13: 0.0 | AYY13: 0.0 | AYZ13: 0.0 | AZA13: 0.0 | AZB13: 0.0 | AZC13: 0.0 | AZD13: 0.0 | AZE13: 0.0 | AZF13: 0.0 | AZG13: 0.0 | AZH13: 0.0 | AZI13: 0.0 | AZJ13: 0.0 | AZK13: 0.0 | AZL13: 0.0 | AZM13: 0.0 | AZN13: 0.0 | AZO13: 0.0 | AZP13: 0.0 | AZQ13: 0.0 | AZR13: 0.0 | AZS13: 0.0 | AZT13: 0.0 | AZU13: 0.0 | AZV13: 0.0 | AZW13: 0.0 | AZX13: 0.0 | AZY13: 0.0 | AZZ13: 0.0 | BAA13: 0.0 | BAB13: 0.0 | BAC13: 0.0 | BAD13: 0.0 | BAE13: 0.0 | BAF13: 0.0 | BAG13: 0.0 | BAH13: 0.0 | BAI13: 0.0 | BAJ13: 0.0 | BAK13: 0.0 | BAL13: 0.0 | BAM13: 0.0 | BAN13: 0.0 | BAO13: 0.0 | BAP13: 0.0 | BAQ13: 0.0 | BAR13: 0.0 | BAS13: 0.0 | BAT13: 0.0 | BAU13: 0.0 | BAV13: 0.0 | BAW13: 0.0 | BAX13: 0.0 | BAY13: 0.0 | BAZ13: 0.0 | BBA13: 0.0 | BBB13: 0.0 | BBC13: 0.0 | BBD13: 0.0 | BBE13: 0.0 | BBF13: 0.0 | BBG13: 0.0 | BBH13: 0.0 | BBI13: 0.0 | BBJ13: 0.0 | BBK13: 0.0 | BBL13: 0.0 | BBM13: 0.0 | BBN13: 0.0 | BBO13: 0.0 | BBP13: 0.0 | BBQ13: 0.0 | BBR13: 0.0 | BBS13: 0.0 | BBT13: 0.0 | BBU13: 0.0 | BBV13: 0.0 | BBW13: 0.0 | BBX13: 0.0 | BBY13: 0.0 | BBZ13: 0.0 | BCA13: 0.0 | BCB13: 0.0 | BCC13: 0.0 | BCD13: 0.0 | BCE13: 0.0 | BCF13: 0.0 | BCG13: 0.0 | BCH13: 0.0 | BCI13: 0.0 | BCJ13: 0.0 | BCK13: 0.0 | BCL13: 0.0 | BCM13: 0.0 | BCN13: 0.0 | BCO13: 0.0 | BCP13: 0.0 | BCQ13: 0.0 | BCR13: 0.0 | BCS13: 0.0 | BCT13: 0.0 | BCU13: 0.0 | BCV13: 0.0 | BCW13: 0.0 | BCX13: 0.0 | BCY13: 0.0 | BCZ13: 0.0 | BDA13: 0.0 | BDB13: 0.0 | BDC13: 0.0 | BDD13: 0.0 | BDE13: 0.0 | BDF13: 0.0 | BDG13: 0.0 | BDH13: 0.0 | BDI13: 0.0 | BDJ13: 0.0 | BDK13: 0.0 | BDL13: 0.0 | BDM13: 0.0 | BDN13: 0.0 | BDO13: 0.0 | BDP13: 0.0 | BDQ13: 0.0 | BDR13: 0.0 | BDS13: 0.0 | BDT13: 0.0 | BDU13: 0.0 | BDV13: 0.0 | BDW13: 0.0 | BDX13: 0.0 | BDY13: 0.0 | BDZ13: 0.0 | BEA13: 0.0 | BEB13: 0.0 | BEC13: 0.0 | BED13: 0.0 | BEE13: 0.0 | BEF13: 0.0 | BEG13: 0.0 | BEH13: 0.0 | BEI13: 0.0 | BEJ13: 0.0 | BEK13: 0.0 | BEL13: 0.0 | BEM13: 0.0 | BEN13: 0.0 | BEO13: 0.0 | BEP13: 0.0 | BEQ13: 0.0 | BER13: 0.0 | BES13: 0.0 | BET13: 0.0 | BEU13: 0.0 | BEV13: 0.0 | BEW13: 0.0 | BEX13: 0.0 | BEY13: 0.0 | BEZ13: 0.0 | BFA13: 0.0 | BFB13: 0.0 | BFC13: 0.0 | BFD13: 0.0 | BFE13: 0.0 | BFF13: 0.0 | BFG13: 0.0 | BFH13: 0.0 | BFI13: 0.0 | BFJ13: 0.0 | BFK13: 0.0 | BFL13: 0.0 | BFM13: 0.0 | BFN13: 0.0 | BFO13: 0.0 | BFP13: 0.0 | BFQ13: 0.0 | BFR13: 0.0 | BFS13: 0.0 | BFT13: 0.0 | BFU13: 0.0 | BFV13: 0.0 | BFW13: 0.0 | BFX13: 0.0 | BFY13: 0.0 | BFZ13: 0.0 | BGA13: 0.0 | BGB13: 0.0 | BGC13: 0.0 | BGD13: 0.0 | BGE13: 0.0 | BGF13: 0.0 | BGG13: 0.0 | BGH13: 0.0 | BGI13: 0.0 | BGJ13: 0.0 | BGK13: 0.0 | BGL13: 0.0 | BGM13: 0.0 | BGN13: 0.0 | BGO13: 0.0 | BGP13: 0.0 | BGQ13: 0.0 | BGR13: 0.0 | BGS13: 0.0 | BGT13: 0.0 | BGU13: 0.0 | BGV13: 0.0 | BGW13: 0.0 | BGX13: 0.0 | BGY13: 0.0 | BGZ13: 0.0 | BHA13: 0.0 | BHB13: 0.0 | BHC13: 0.0 | BHD13: 0.0 | BHE13: 0.0 | BHF13: 0.0 | BHG13: 0.0 | BHH13: 0.0 | BHI13: 0.0 | BHJ13: 0.0 | BHK13: 0.0 | BHL13: 0.0 | BHM13: 0.0 | BHN13: 0.0 | BHO13: 0.0 | BHP13: 0.0 | BHQ13: 0.0 | BHR13: 0.0 | BHS13: 0.0 | BHT13: 0.0 | BHU13: 0.0 | BHV13: 0.0 | BHW13: 0.0 | BHX13: 0.0 | BHY13: 0.0 | BHZ13: 0.0 | BIA13: 0.0 | BIB13: 0.0 | BIC13: 0.0 | BID13: 0.0 | BIE13: 0.0 | BIF13: 0.0 | BIG13: 0.0 | BIH13: 0.0 | BII13: 0.0 | BIJ13: 0.0 | BIK13: 0.0 | BIL13: 0.0 | BIM13: 0.0 | BIN13: 0.0 | BIO13: 0.0 | BIP13: 0.0 | BIQ13: 0.0 | BIR13: 0.0 | BIS13: 0.0 | BIT13: 0.0 | BIU13: 0.0 | BIV13: 0.0 | BIW13: 0.0 | BIX13: 0.0 | BIY13: 0.0 | BIZ13: 0.0 | BJA13: 0.0 | BJB13: 0.0 | BJC13: 0.0 | BJD13: 0.0 | BJE13: 0.0 | BJF13: 0.0 | BJG13: 0.0 | BJH13: 0.0 | BJI13: 0.0 | BJJ13: 0.0 | BJK13: 0.0 | BJL13: 0.0 | BJM13: 0.0 | BJN13: 0.0 | BJO13: 0.0 | BJP13: 0.0 | BJQ13: 0.0 | BJR13: 0.0 | BJS13: 0.0 | BJT13: 0.0 | BJU13: 0.0 | BJV13: 0.0 | BJW13: 0.0 | BJX13: 0.0 | BJY13: 0.0 | BJZ13: 0.0 | BKA13: 0.0 | BKB13: 0.0 | BKC13: 0.0 | BKD13: 0.0 | BKE13: 0.0 | BKF13: 0.0 | BKG13: 0.0 | BKH13: 0.0 | BKI13: 0.0 | BKJ13: 0.0 | BKK13: 0.0 | BKL13: 0.0 | BKM13: 0.0 | BKN13: 0.0 | BKO13: 0.0 | BKP13: 0.0 | BKQ13: 0.0 | BKR13: 0.0 | BKS13: 0.0 | BKT13: 0.0 | BKU13: 0.0 | BKV13: 0.0 | BKW13: 0.0 | BKX13: 0.0 | BKY13: 0.0 | BKZ13: 0.0 | BLA13: 0.0 | BLB13: 0.0 | BLC13: 0.0 | BLD13: 0.0 | BLE13: 0.0 | BLF13: 0.0 | BLG13: 0.0 | BLH13: 0.0 | BLI13: 0.0 | BLJ13: 0.0 | BLK13: 0.0 | BLL13: 0.0 | BLM13: 0.0 | BLN13: 0.0 | BLO13: 0.0 | BLP13: 0.0 | BLQ13: 0.0 | BLR13: 0.0 | BLS13: 0.0 | BLT13: 0.0 | BLU13: 0.0 | BLV13: 0.0 | BLW13: 0.0 | BLX13: 0.0 | BLY13: 0.0 | BLZ13: 0.0 | BMA13: 0.0 | BMB13: 0.0 | BMC13: 0.0 | BMD13: 0.0 | BME13: 0.0 | BMF13: 0.0 | BMG13: 0.0 | BMH13: 0.0 | BMI13: 0.0 | BMJ13: 0.0 | BMK13: 0.0 | BML13: 0.0 | BMM13: 0.0 | BMN13: 0.0 | BMO13: 0.0 | BMP13: 0.0 | BMQ13: 0.0 | BMR13: 0.0 | BMS13: 0.0 | BMT13: 0.0 | BMU13: 0.0 | BMV13: 0.0 | BMW13: 0.0 | BMX13: 0.0 | BMY13: 0.0 | BMZ13: 0.0 | BNA13: 0.0 | BNB13: 0.0 | BNC13: 0.0 | BND13: 0.0 | BNE13: 0.0 | BNF13: 0.0 | BNG13: 0.0 | BNH13: 0.0 | BNI13: 0.0 | BNJ13: 0.0 | BNK13: 0.0 | BNL13: 0.0 | BNM13: 0.0 | BNN13: 0.0 | BNO13: 0.0 | BNP13: 0.0 | BNQ13: 0.0 | BNR13: 0.0 | BNS13: 0.0 | BNT13: 0.0 | BNU13: 0.0 | BNV13: 0.0 | BNW13: 0.0 | BNX13: 0.0 | BNY13: 0.0 | BNZ13: 0.0 | BOA13: 0.0 | BOB13: 0.0 | BOC13: 0.0 | BOD13: 0.0 | BOE13: 0.0 | BOF13: 0.0 | BOG13: 0.0 | BOH13: 0.0 | BOI13: 0.0 | BOJ13: 0.0 | BOK13: 0.0 | BOL13: 0.0 | BOM13: 0.0 | BON13: 0.0 | BOO13: 0.0 | BOP13: 0.0 | BOQ13: 0.0 | BOR13: 0.0 | BOS13: 0.0 | BOT13: 0.0 | BOU13: 0.0 | BOV13: 0.0 | BOW13: 0.0 | BOX13: 0.0 | BOY13: 0.0 | BOZ13: 0.0 | BPA13: 0.0 | BPB13: 0.0 | BPC13: 0.0 | BPD13: 0.0 | BPE13: 0.0 | BPF13: 0.0 | BPG13: 0.0 | BPH13: 0.0 | BPI13: 0.0 | BPJ13: 0.0 | BPK13: 0.0 | BPL13: 0.0 | BPM13: 0.0 | BPN13: 0.0 | BPO13: 0.0 | BPP13: 0.0 | BPQ13: 0.0 | BPR13: 0.0 | BPS13: 0.0 | BPT13: 0.0 | BPU13: 0.0 | BPV13: 0.0 | BPW13: 0.0 | BPX13: 0.0 | BPY13: 0.0 | BPZ13: 0.0 | BQA13: 0.0 | BQB13: 0.0 | BQC13: 0.0 | BQD13: 0.0 | BQE13: 0.0 | BQF13: 0.0 | BQG13: 0.0 | BQH13: 0.0 | BQI13: 0.0 | BQJ13: 0.0 | BQK13: 0.0 | BQL13: 0.0 | BQM13: 0.0 | BQN13: 0.0 | BQO13: 0.0 | BQP13: 0.0 | BQQ13: 0.0 | BQR13: 0.0 | BQS13: 0.0 | BQT13: 0.0 | BQU13: 0.0 | BQV13: 0.0 | BQW13: 0.0 | BQX13: 0.0 | BQY13: 0.0 | BQZ13: 0.0 | BRA13: 0.0 | BRB13: 0.0 | BRC13: 0.0 | BRD13: 0.0 | BRE13: 0.0 | BRF13: 0.0 | BRG13: 0.0 | BRH13: 0.0 | BRI13: 0.0 | BRJ13: 0.0 | BRK13: 0.0 | BRL13: 0.0 | BRM13: 0.0 | BRN13: 0.0 | BRO13: 0.0 | BRP13: 0.0 | BRQ13: 0.0 | BRR13: 0.0 | BRS13: 0.0 | BRT13: 0.0 | BRU13: 0.0 | BRV13: 0.0 | BRW13: 0.0 | BRX13: 0.0 | BRY13: 0.0 | BRZ13: 0.0 | BSA13: 0.0 | BSB13: 0.0 | BSC13: 0.0 | BSD13: 0.0 | BSE13: 0.0 | BSF13: 0.0 | BSG13: 0.0 | BSH13: 0.0 | BSI13: 0.0 | BSJ13: 0.0 | BSK13: 0.0 | BSL13: 0.0 | BSM13: 0.0 | BSN13: 0.0 | BSO13: 0.0 | BSP13: 0.0 | BSQ13: 0.0 | BSR13: 0.0 | BSS13: 0.0 | BST13: 0.0 | BSU13: 0.0 | BSV13: 0.0 | BSW13: 0.0 | BSX13: 0.0 | BSY13: 0.0 | BSZ13: 0.0 | BTA13: 0.0 | BTB13: 0.0 | BTC13: 0.0 | BTD13: 0.0 | BTE13: 0.0 | BTF13: 0.0 | BTG13: 0.0 | BTH13: 0.0 | BTI13: 0.0 | BTJ13: 0.0 | BTK13: 0.0 | BTL13: 0.0 | BTM13: 0.0 | BTN13: 0.0 | BTO13: 0.0 | BTP13: 0.0 | BTQ13: 0.0 | BTR13: 0.0 | BTS13: 0.0 | BTT13: 0.0 | BTU13: 0.0 | BTV13: 0.0 | BTW13: 0.0 | BTX13: 0.0 | BTY13: 0.0 | BTZ13: 0.0 | BUA13: 0.0 | BUB13: 0.0 | BUC13: 0.0 | BUD13: 0.0 | BUE13: 0.0 | BUF13: 0.0 | BUG13: 0.0 | BUH13: 0.0 | BUI13: 0.0 | BUJ13: 0.0 | BUK13: 0.0 | BUL13: 0.0 | BUM13: 0.0 | BUN13: 0.0 | BUO13: 0.0 | BUP13: 0.0 | BUQ13: 0.0 | BUR13: 0.0 | BUS13: 0.0 | BUT13: 0.0 | BUU13: 0.0 | BUV13: 0.0 | BUW13: 0.0 | BUX13: 0.0 | BUY13: 0.0 | BUZ13: 0.0 | BVA13: 0.0 | BVB13: 0.0 | BVC13: 0.0 | BVD13: 0.0 | BVE13: 0.0 | BVF13: 0.0 | BVG13: 0.0 | BVH13: 0.0 | BVI13: 0.0 | BVJ13: 0.0 | BVK13: 0.0 | BVL13: 0.0 | BVM13: 0.0 | BVN13: 0.0 | BVO13: 0.0 | BVP13: 0.0 | BVQ13: 0.0 | BVR13: 0.0 | BVS13: 0.0 | BVT13: 0.0 | BVU13: 0.0 | BVV13: 0.0 | BVW13: 0.0 | BVX13: 0.0 | BVY13: 0.0 | BVZ13: 0.0 | BWA13: 0.0 | BWB13: 0.0 | BWC13: 0.0 | BWD13: 0.0 | BWE13: 0.0 | BWF13: 0.0 | BWG13: 0.0 | BWH13: 0.0 | BWI13: 0.0 | BWJ13: 0.0 | BWK13: 0.0 | BWL13: 0.0 | BWM13: 0.0 | BWN13: 0.0 | BWO13: 0.0 | BWP13: 0.0 | BWQ13: 0.0 | BWR13: 0.0 | BWS13: 0.0 | BWT13: 0.0 | BWU13: 0.0 | BWV13: 0.0 | BWW13: 0.0 | BWX13: 0.0 | BWY13: 0.0 | BWZ13: 0.0 | BXA13: 0.0 | BXB13: 0.0 | BXC13: 0.0 | BXD13: 0.0 | BXE13: 0.0 | BXF13: 0.0 | BXG13: 0.0 | BXH13: 0.0 | BXI13: 0.0 | BXJ13: 0.0 | BXK13: 0.0 | BXL13: 0.0 | BXM13: 0.0 | BXN13: 0.0 | BXO13: 0.0 | BXP13: 0.0 | BXQ13: 0.0 | BXR13: 0.0 | BXS13: 0.0 | BXT13: 0.0 | BXU13: 0.0 | BXV13: 0.0 | BXW13: 0.0 | BXX13: 0.0 | BXY13: 0.0 | BXZ13: 0.0 | BYA13: 0.0 | BYB13: 0.0 | BYC13: 0.0 | BYD13: 0.0 | BYE13: 0.0 | BYF13: 0.0 | BYG13: 0.0 | BYH13: 0.0 | BYI13: 0.0 | BYJ13: 0.0 | BYK13: 0.0 | BYL13: 0.0 | BYM13: 0.0 | BYN13: 0.0 | BYO13: 0.0 | BYP13: 0.0 | BYQ13: 0.0 | BYR13: 0.0 | BYS13: 0.0 | BYT13: 0.0 | BYU13: 0.0 | BYV13: 0.0 | BYW13: 0.0 | BYX13: 0.0 | BYY13: 0.0 | BYZ13: 0.0 | BZA13: 0.0 | BZB13: 0.0 | BZC13: 0.0 | BZD13: 0.0 | BZE13: 0.0 | BZF13: 0.0 | BZG13: 0.0 | BZH13: 0.0 | BZI13: 0.0 | BZJ13: 0.0 | BZK13: 0.0 | BZL13: 0.0 | BZM13: 0.0 | BZN13: 0.0 | BZO13: 0.0 | BZP13: 0.0 | BZQ13: 0.0 | BZR13: 0.0 | BZS13: 0.0 | BZT13: 0.0 | BZU13: 0.0 | BZV13: 0.0 | BZW13: 0.0 | BZX13: 0.0 | BZY13: 0.0 | BZZ13: 0.0 | CAA13: 0.0 | CAB13: 0.0 | CAC13: 0.0 | CAD13: 0.0 | CAE13: 0.0 | CAF13: 0.0 | CAG13: 0.0 | CAH13: 0.0 | CAI13: 0.0 | CAJ13: 0.0 | CAK13: 0.0 | CAL13: 0.0 | CAM13: 0.0 | CAN13: 0.0 | CAO13: 0.0 | CAP13: 0.0 | CAQ13: 0.0 | CAR13: 0.0 | CAS13: 0.0 | CAT13: 0.0 | CAU13: 0.0 | CAV13: 0.0 | CAW13: 0.0 | CAX13: 0.0 | CAY13: 0.0 | CAZ13: 0.0 | CBA13: 0.0 | CBB13: 0.0 | CBC13: 0.0 | CBD13: 0.0 | CBE13: 0.0 | CBF13: 0.0 | CBG13: 0.0 | CBH13: 0.0 | CBI13: 0.0 | CBJ13: 0.0 | CBK13: 0.0 | CBL13: 0.0 | CBM13: 0.0 | CBN13: 0.0 | CBO13: 0.0 | CBP13: 0.0 | CBQ13: 0.0 | CBR13: 0.0 | CBS13: 0.0 | CBT13: 0.0 | CBU13: 0.0 | CBV13: 0.0 | CBW13: 0.0 | CBX13: 0.0 | CBY13: 0.0 | CBZ13: 0.0 | CCA13: 0.0 | CCB13: 0.0 | CCC13: 0.0 | CCD13: 0.0 | CCE13: 0.0 | CCF13: 0.0 | CCG13: 0.0 | CCH13: 0.0 | CCI13: 0.0 | CCJ13: 0.0 | CCK13: 0.0 | CCL13: 0.0 | CCM13: 0.0 | CCN13: 0.0 | CCO13: 0.0 | CCP13: 0.0 | CCQ13: 0.0 | CCR13: 0.0 | CCS13: 0.0 | CCT13: 0.0 | CCU13: 0.0 | CCV13: 0.0 | CCW13: 0.0 | CCX13: 0.0 | CCY13: 0.0 | CCZ13: 0.0 | CDA13: 0.0 | CDB13: 0.0 | CDC13: 0.0 | CDD13: 0.0 | CDE13: 0.0 | CDF13: 0.0 | CDG13: 0.0 | CDH13: 0.0 | CDI13: 0.0 | CDJ13: 0.0 | CDK13: 0.0 | CDL13: 0.0 | CDM13: 0.0 | CDN13: 0.0 | CDO13: 0.0 | CDP13: 0.0 | CDQ13: 0.0 | CDR13: 0.0 | CDS13: 0.0 | CDT13: 0.0 | CDU13: 0.0 | CDV13: 0.0 | CDW13: 0.0 | CDX13: 0.0 | CDY13: 0.0 | CDZ13: 0.0 | CEA13: 0.0 | CEB13: 0.0 | CEC13: 0.0 | CED13: 0.0 | CEE13: 0.0 | CEF13: 0.0 | CEG13: 0.0 | CEH13: 0.0 | CEI13: 0.0 | CEJ13: 0.0 | CEK13: 0.0 | CEL13: 0.0 | CEM13: 0.0 | CEN13: 0.0 | CEO13: 0.0 | CEP13: 0.0 | CEQ13: 0.0 | CER13: 0.0 | CES13: 0.0 | CET13: 0.0 | CEU13: 0.0 | CEV13: 0.0 | CEW13: 0.0 | CEX13: 0.0 | CEY13: 0.0 | CEZ13: 0.0 | CFA13: 0.0 | CFB13: 0.0 | CFC13: 0.0 | CFD13: 0.0 | CFE13: 0.0 | CFF13: 0.0 | CFG13: 0.0 | CFH13: 0.0 | CFI13: 0.0 | CFJ13: 0.0 | CFK13: 0.0 | CFL13: 0.0 | CFM13: 0.0 | CFN13: 0.0 | CFO13: 0.0 | CFP13: 0.0 | CFQ13: 0.0 | CFR13: 0.0 | CFS13: 0.0 | CFT13: 0.0 | CFU13: 0.0 | CFV13: 0.0 | CFW13: 0.0 | CFX13: 0.0 | CFY13: 0.0 | CFZ13: 0.0 | CGA13: 0.0 | CGB13: 0.0 | CGC13: 0.0 | CGD13: 0.0 | CGE13: 0.0 | CGF13: 0.0 | CGG13: 0.0 | CGH13: 0.0 | CGI13: 0.0 | CGJ13: 0.0 | CGK13: 0.0 | CGL13: 0.0 | CGM13: 0.0 | CGN13: 0.0 | CGO13: 0.0 | CGP13: 0.0 | CGQ13: 0.0 | CGR13: 0.0 | CGS13: 0.0 | CGT13: 0.0 | CGU13: 0.0 | CGV13: 0.0 | CGW13: 0.0 | CGX13: 0.0 | CGY13: 0.0 | CGZ13: 0.0 | CHA13: 0.0 | CHB13: 0.0 | CHC13: 0.0 | CHD13: 0.0 | CHE13: 0.0 | CHF13: 0.0 | CHG13: 0.0 | CHH13: 0.0 | CHI13: 0.0 | CHJ13: 0.0 | CHK13: 0.0 | CHL13: 0.0 | CHM13: 0.0 | CHN13: 0.0 | CHO13: 0.0 | CHP13: 0.0 | CHQ13: 0.0 | CHR13: 0.0 | CHS13: 0.0 | CHT13: 0.0 | CHU13: 0.0 | CHV13: 0.0 | CHW13: 0.0 | CHX13: 0.0 | CHY13: 0.0 | CHZ13: 0.0 | CIA13: 0.0 | CIB13: 0.0 | CIC13: 0.0 | CID13: 0.0 | CIE13: 0.0 | CIF13: 0.0 | CIG13: 0.0 | CIH13: 0.0 | CII13: 0.0 | CIJ13: 0.0 | CIK13: 0.0 | CIL13: 0.0 | CIM13: 0.0 | CIN13: 0.0 | CIO13: 0.0 | CIP13: 0.0 | CIQ13: 0.0 | CIR13: 0.0 | CIS13: 0.0 | CIT13: 0.0 | CIU13: 0.0 | CIV13: 0.0 | CIW13: 0.0 | CIX13: 0.0 | CIY13: 0.0 | CIZ13: 0.0 | CJA13: 0.0 | CJB13: 0.0 | CJC13: 0.0 | CJD13: 0.0 | CJE13: 0.0 | CJF13: 0.0 | CJG13: 0.0 | CJH13: 0.0 | CJI13: 0.0 | CJJ13: 0.0 | CJK13: 0.0 | CJL13: 0.0 | CJM13: 0.0 | CJN13: 0.0 | CJO13: 0.0 | CJP13: 0.0 | CJQ13: 0.0 | CJR13: 0.0 | CJS13: 0.0 | CJT13: 0.0 | CJU13: 0.0 | CJV13: 0.0 | CJW13: 0.0 | CJX13: 0.0 | CJY13: 0.0 | CJZ13: 0.0 | CKA13: 0.0 | CKB13: 0.0 | CKC13: 0.0 | CKD13: 0.0 | CKE13: 0.0 | CKF13: 0.0 | CKG13: 0.0 | CKH13: 0.0 | CKI13: 0.0 | CKJ13: 0.0 | CKK13: 0.0 | CKL13: 0.0 | CKM13: 0.0 | CKN13: 0.0 | CKO13: 0.0 | CKP13: 0.0 | CKQ13: 0.0 | CKR13: 0.0 | CKS13: 0.0 | CKT13: 0.0 | CKU13: 0.0 | CKV13: 0.0 | CKW13: 0.0 | CKX13: 0.0 | CKY13: 0.0 | CKZ13: 0.0 | CLA13: 0.0 | CLB13: 0.0 | CLC13: 0.0 | CLD13: 0.0 | CLE13: 0.0 | CLF13: 0.0 | CLG13: 0.0 | CLH13: 0.0 | CLI13: 0.0 | CLJ13: 0.0 | CLK13: 0.0 | CLL13: 0.0 | CLM13: 0.0 | CLN13: 0.0 | CLO13: 0.0 | CLP13: 0.0 | CLQ13: 0.0 | CLR13: 0.0 | CLS13: 0.0 | CLT13: 0.0 | CLU13: 0.0 | CLV13: 0.0 | CLW13: 0.0 | CLX13: 0.0 | CLY13: 0.0 | CLZ13: 0.0 | CMA13: 0.0 | CMB13: 0.0 | CMC13: 0.0 | CMD13: 0.0 | CME13: 0.0 | CMF13: 0.0 | CMG13: 0.0 | CMH13: 0.0 | CMI13: 0.0 | CMJ13: 0.0 | CMK13: 0.0 | CML13: 0.0 | CMM13: 0.0 | CMN13: 0.0 | CMO13: 0.0 | CMP13: 0.0 | CMQ13: 0.0 | CMR13: 0.0 | CMS13: 0.0 | CMT13: 0.0 | CMU13: 0.0 | CMV13: 0.0 | CMW13: 0.0 | CMX13: 0.0 | CMY13: 0.0 | CMZ13: 0.0 | CNA13: 0.0 | CNB13: 0.0 | CNC13: 0.0 | CND13: 0.0 | CNE13: 0.0 | CNF13: 0.0 | CNG13: 0.0 | CNH13: 0.0 | CNI13: 0.0 | CNJ13: 0.0 | CNK13: 0.0 | CNL13: 0.0 | CNM13: 0.0 | CNN13: 0.0 | CNO13: 0.0 | CNP13: 0.0 | CNQ13: 0.0 | CNR13: 0.0 | CNS13: 0.0 | CNT13: 0.0 | CNU13: 0.0 | CNV13: 0.0 | CNW13: 0.0 | CNX13: 0.0 | CNY13: 0.0 | CNZ13: 0.0 | COA13: 0.0 | COB13: 0.0 | COC13: 0.0 | COD13: 0.0 | COE13: 0.0 | COF13: 0.0 | COG13: 0.0 | COH13: 0.0 | COI13: 0.0 | COJ13: 0.0 | COK13: 0.0 | COL13: 0.0 | COM13: 0.0 | CON13: 0.0 | COO13: 0.0 | COP13: 0.0 | COQ13: 0.0 | COR13: 0.0 | COS13: 0.0 | COT13: 0.0 | COU13: 0.0 | COV13: 0.0 | COW13: 0.0 | COX13: 0.0 | COY13: 0.0 | COZ13: 0.0 | CPA13: 0.0 | CPB13: 0.0 | CPC13: 0.0 | CPD13: 0.0 | CPE13: 0.0 | CPF13: 0.0 | CPG13: 0.0 | CPH13: 0.0 | CPI13: 0.0 | CPJ13: 0.0 | CPK13: 0.0 | CPL13: 0.0 | CPM13: 0.0 | CPN13: 0.0 | CPO13: 0.0 | CPP13: 0.0 | CPQ13: 0.0 | CPR13: 0.0 | CPS13: 0.0 | CPT13: 0.0 | CPU13: 0.0 | CPV13: 0.0 | CPW13: 0.0 | CPX13: 0.0 | CPY13: 0.0 | CPZ13: 0.0 | CQA13: 0.0 | CQB13: 0.0 | CQC13: 0.0 | CQD13: 0.0 | CQE13: 0.0 | CQF13: 0.0 | CQG13: 0.0 | CQH13: 0.0 | CQI13: 0.0 | CQJ13: 0.0 | CQK13: 0.0 | CQL13: 0.0 | CQM13: 0.0 | CQN13: 0.0 | CQO13: 0.0 | CQP13: 0.0 | CQQ13: 0.0 | CQR13: 0.0 | CQS13: 0.0 | CQT13: 0.0 | CQU13: 0.0 | CQV13: 0.0 | CQW13: 0.0 | CQX13: 0.0 | CQY13: 0.0 | CQZ13: 0.0 | CRA13: 0.0 | CRB13: 0.0 | CRC13: 0.0 | CRD13: 0.0 | CRE13: 0.0 | CRF13: 0.0 | CRG13: 0.0 | CRH13: 0.0 | CRI13: 0.0 | CRJ13: 0.0 | CRK13: 0.0 | CRL13: 0.0 | CRM13: 0.0 | CRN13: 0.0 | CRO13: 0.0 | CRP13: 0.0 | CRQ13: 0.0 | CRR13: 0.0 | CRS13: 0.0 | CRT13: 0.0 | CRU13: 0.0 | CRV13: 0.0 | CRW13: 0.0 | CRX13: 0.0 | CRY13: 0.0 | CRZ13: 0.0 | CSA13: 0.0 | CSB13: 0.0 | CSC13: 0.0 | CSD13: 0.0 | CSE13: 0.0 | CSF13: 0.0 | CSG13: 0.0 | CSH13: 0.0 | CSI13: 0.0 | CSJ13: 0.0 | CSK13: 0.0 | CSL13: 0.0 | CSM13: 0.0 | CSN13: 0.0 | CSO13: 0.0 | CSP13: 0.0 | CSQ13: 0.0 | CSR13: 0.0 | CSS13: 0.0 | CST13: 0.0 | CSU13: 0.0 | CSV13: 0.0 | CSW13: 0.0 | CSX13: 0.0 | CSY13: 0.0 | CSZ13: 0.0 | CTA13: 0.0 | CTB13: 0.0 | CTC13: 0.0 | CTD13: 0.0 | CTE13: 0.0 | CTF13: 0.0 | CTG13: 0.0 | CTH13: 0.0 | CTI13: 0.0 | CTJ13: 0.0 | CTK13: 0.0 | CTL13: 0.0 | CTM13: 0.0 | CTN13: 0.0 | CTO13: 0.0 | CTP13: 0.0 | CTQ13: 0.0 | CTR13: 0.0 | CTS13: 0.0 | CTT13: 0.0 | CTU13: 0.0 | CTV13: 0.0 | CTW13: 0.0 | CTX13: 0.0 | CTY13: 0.0 | CTZ13: 0.0 | CUA13: 0.0 | CUB13: 0.0 | CUC13: 0.0 | CUD13: 0.0 | CUE13: 0.0 | CUF13: 0.0 | CUG13: 0.0 | CUH13: 0.0 | CUI13: 0.0 | CUJ13: 0.0 | CUK13: 0.0 | CUL13: 0.0 | CUM13: 0.0 | CUN13: 0.0 | CUO13: 0.0 | CUP13: 0.0 | CUQ13: 0.0 | CUR13: 0.0 | CUS13: 0.0 | CUT13: 0.0 | CUU13: 0.0 | CUV13: 0.0 | CUW13: 0.0 | CUX13: 0.0 | CUY13: 0.0 | CUZ13: 0.0 | CVA13: 0.0 | CVB13: 0.0 | CVC13: 0.0 | CVD13: 0.0 | CVE13: 0.0 | CVF13: 0.0 | CVG13: 0.0 | CVH13: 0.0 | CVI13: 0.0 | CVJ13: 0.0 | CVK13: 0.0 | CVL13: 0.0 | CVM13: 0.0 | CVN13: 0.0 | CVO13: 0.0 | CVP13: 0.0 | CVQ13: 0.0 | CVR13: 0.0 | CVS13: 0.0 | CVT13: 0.0 | CVU13: 0.0 | CVV13: 0.0 | CVW13: 0.0 | CVX13: 0.0 | CVY13: 0.0 | CVZ13: 0.0 | CWA13: 0.0 | CWB13: 0.0 | CWC13: 0.0 | CWD13: 0.0 | CWE13: 0.0 | CWF13: 0.0 | CWG13: 0.0 | CWH13: 0.0 | CWI13: 0.0 | CWJ13: 0.0 | CWK13: 0.0 | CWL13: 0.0 | CWM13: 0.0 | CWN13: 0.0 | CWO13: 0.0 | CWP13: 0.0 | CWQ13: 0.0 | CWR13: 0.0 | CWS13: 0.0 | CWT13: 0.0 | CWU13: 0.0 | CWV13: 0.0 | CWW13: 0.0 | CWX13: 0.0 | CWY13: 0.0 | CWZ13: 0.0 | CXA13: 0.0 | CXB13: 0.0 | CXC13: 0.0 | CXD13: 0.0 | CXE13: 0.0 | CXF13: 0.0 | CXG13: 0.0 | CXH13: 0.0 | CXI13: 0.0 | CXJ13: 0.0 | CXK13: 0.0 | CXL13: 0.0 | CXM13: 0.0 | CXN13: 0.0 | CXO13: 0.0 | CXP13: 0.0 | CXQ13: 0.0 | CXR13: 0.0 | CXS13: 0.0 | CXT13: 0.0 | CXU13: 0.0 | CXV13: 0.0 | CXW13: 0.0 | CXX13: 0.0 | CXY13: 0.0 | CXZ13: 0.0 | CYA13: 0.0 | CYB13: 0.0 | CYC13: 0.0 | CYD13: 0.0 | CYE13: 0.0 | CYF13: 0.0 | CYG13: 0.0 | CYH13: 0.0 | CYI13: 0.0 | CYJ13: 0.0 | CYK13: 0.0 | CYL13: 0.0 | CYM13: 0.0 | CYN13: 0.0 | CYO13: 0.0 | CYP13: 0.0 | CYQ13: 0.0 | CYR13: 0.0 | CYS13: 0.0 | CYT13: 0.0 | CYU13: 0.0 | CYV13: 0.0 | CYW13: 0.0 | CYX13: 0.0 | CYY13: 0.0 | CYZ13: 0.0 | CZA13: 0.0 | CZB13: 0.0 | CZC13: 0.0 | CZD13: 0.0 | CZE13: 0.0 | CZF13: 0.0 | CZG13: 0.0 | CZH13: 0.0 | CZI13: 0.0 | CZJ13: 0.0 | CZK13: 0.0 | CZL13: 0.0 | CZM13: 0.0 | CZN13: 0.0 | CZO13: 0.0 | CZP13: 0.0 | CZQ13: 0.0 | CZR13: 0.0 | CZS13: 0.0 | CZT13: 0.0 | CZU13: 0.0 | CZV13: 0.0 | CZW13: 0.0 | CZX13: 0.0 | CZY13: 0.0 | CZZ13: 0.0 | DAA13: 0.0 | DAB13: 0.0 | DAC13: 0.0 | DAD13: 0.0 | DAE13: 0.0 | DAF13: 0.0 | DAG13: 0.0 | DAH13: 0.0 | DAI13: 0.0 | DAJ13: 0.0 | DAK13: 0.0 | DAL13: 0.0 | DAM13: 0.0 | DAN13: 0.0 | DAO13: 0.0 | DAP13: 0.0 | DAQ13: 0.0 | DAR13: 0.0 | DAS13: 0.0 | DAT13: 0.0 | DAU13: 0.0 | DAV13: 0.0 | DAW13: 0.0 | DAX13: 0.0 | DAY13: 0.0 | DAZ13: 0.0 | DBA13: 0.0 | DBB13: 0.0 | DBC13: 0.0 | DBD13: 0.0 | DBE13: 0.0 | DBF13: 0.0 | DBG13: 0.0 | DBH13: 0.0 | DBI13: 0.0 | DBJ13: 0.0 | DBK13: 0.0 | DBL13: 0.0 | DBM13: 0.0 | DBN13: 0.0 | DBO13: 0.0 | DBP13: 0.0 | DBQ13: 0.0 | DBR13: 0.0 | DBS13: 0.0 | DBT13: 0.0 | DBU13: 0.0 | DBV13: 0.0 | DBW13: 0.0 | DBX13: 0.0 | DBY13: 0.0 | DBZ13: 0.0 | DCA13: 0.0 | DCB13: 0.0 | DCC13: 0.0 | DCD13: 0.0 | DCE13: 0.0 | DCF13: 0.0 | DCG13: 0.0 | DCH13: 0.0 | DCI13: 0.0 | DCJ13: 0.0 | DCK13: 0.0 | DCL13: 0.0 | DCM13: 0.0 | DCN13: 0.0 | DCO13: 0.0 | DCP13: 0.0 | DCQ13: 0.0 | DCR13: 0.0 | DCS13: 0.0 | DCT13: 0.0 | DCU13: 0.0 | DCV13: 0.0 | DCW13: 0.0 | DCX13: 0.0 | DCY13: 0.0 | DCZ13: 0.0 | DDA13: 0.0 | DDB13: 0.0 | DDC13: 0.0 | DDD13: 0.0 | DDE13: 0.0 | DDF13: 0.0 | DDG13: 0.0 | DDH13: 0.0 | DDI13: 0.0 | DDJ13: 0.0 | DDK13: 0.0 | DDL13: 0.0 | DDM13: 0.0 | DDN13: 0.0 | DDO13: 0.0 | DDP13: 0.0 | DDQ13: 0.0 | DDR13: 0.0 | DDS13: 0.0 | DDT13: 0.0 | DDU13: 0.0 | DDV13: 0.0 | DDW13: 0.0 | DDX13: 0.0 | DDY13: 0.0 | DDZ13: 0.0 | DEA13: 0.0 | DEB13: 0.0 | DEC13: 0.0 | DED13: 0.0 | DEE13: 0.0 | DEF13: 0.0 | DEG13: 0.0 | DEH13: 0.0 | DEI13: 0.0 | DEJ13: 0.0 | DEK13: 0.0 | DEL13: 0.0 | DEM13: 0.0 | DEN13: 0.0 | DEO13: 0.0 | DEP13: 0.0 | DEQ13: 0.0 | DER13: 0.0 | DES13: 0.0 | DET13: 0.0 | DEU13: 0.0 | DEV13: 0.0 | DEW13: 0.0 | DEX13: 0.0 | DEY13: 0.0 | DEZ13: 0.0 | DFA13: 0.0 | DFB13: 0.0 | DFC13: 0.0 | DFD13: 0.0 | DFE13: 0.0 | DFF13: 0.0 | DFG13: 0.0 | DFH13: 0.0 | DFI13: 0.0 | DFJ13: 0.0 | DFK13: 0.0 | DFL13: 0.0 | DFM13: 0.0 | DFN13: 0.0 | DFO13: 0.0 | DFP13: 0.0 | DFQ13: 0.0 | DFR13: 0.0 | DFS13: 0.0 | DFT13: 0.0 | DFU13: 0.0 | DFV13: 0.0 | DFW13: 0.0 | DFX13: 0.0 | DFY13: 0.0 | DFZ13: 0.0 | DGA13: 0.0 | DGB13: 0.0 | DGC13: 0.0 | DGD13: 0.0 | DGE13: 0.0 | DGF13: 0.0 | DGG13: 0.0 | DGH13: 0.0 | DGI13: 0.0 | DGJ13: 0.0 | DGK13: 0.0 | DGL13: 0.0 | DGM13: 0.0 | DGN13: 0.0 | DGO13: 0.0 | DGP13: 0.0 | DGQ13: 0.0 | DGR13: 0.0 | DGS13: 0.0 | DGT13: 0.0 | DGU13: 0.0 | DGV13: 0.0 | DGW13: 0.0 | DGX13: 0.0 | DGY13: 0.0 | DGZ13: 0.0 | DHA13: 0.0 | DHB13: 0.0 | DHC13: 0.0 | DHD13: 0.0 | DHE13: 0.0 | DHF13: 0.0 | DHG13: 0.0 | DHH13: 0.0 | DHI13: 0.0 | DHJ13: 0.0 | DHK13: 0.0 | DHL13: 0.0 | DHM13: 0.0 | DHN13: 0.0 | DHO13: 0.0 | DHP13: 0.0 | DHQ13: 0.0 | DHR13: 0.0 | DHS13: 0.0 | DHT13: 0.0 | DHU13: 0.0 | DHV13: 0.0 | DHW13: 0.0 | DHX13: 0.0 | DHY13: 0.0 | DHZ13: 0.0 | DIA13: 0.0 | DIB13: 0.0 | DIC13: 0.0 | DID13: 0.0 | DIE13: 0.0 | DIF13: 0.0 | DIG13: 0.0 | DIH13: 0.0 | DII13: 0.0 | DIJ13: 0.0 | DIK13: 0.0 | DIL13: 0.0 | DIM13: 0.0 | DIN13: 0.0 | DIO13: 0.0 | DIP13: 0.0 | DIQ13: 0.0 | DIR13: 0.0 | DIS13: 0.0 | DIT13: 0.0 | DIU13: 0.0 | DIV13: 0.0 | DIW13: 0.0 | DIX13: 0.0 | DIY13: 0.0 | DIZ13: 0.0 | DJA13: 0.0 | DJB13: 0.0 | DJC13: 0.0 | DJD13: 0.0 | DJE13: 0.0 | DJF13: 0.0 | DJG13: 0.0 | DJH13: 0.0 | DJI13: 0.0 | DJJ13: 0.0 | DJK13: 0.0 | DJL13: 0.0 | DJM13: 0.0 | DJN13: 0.0 | DJO13: 0.0 | DJP13: 0.0 | DJQ13: 0.0 | DJR13: 0.0 | DJS13: 0.0 | DJT13: 0.0 | DJU13: 0.0 | DJV13: 0.0 | DJW13: 0.0 | DJX13: 0.0 | DJY13: 0.0 | DJZ13: 0.0 | DKA13: 0.0 | DKB13: 0.0 | DKC13: 0.0 | DKD13: 0.0 | DKE13: 0.0 | DKF13: 0.0 | DKG13: 0.0 | DKH13: 0.0 | DKI13: 0.0 | DKJ13: 0.0 | DKK13: 0.0 | DKL13: 0.0 | DKM13: 0.0 | DKN13: 0.0 | DKO13: 0.0 | DKP13: 0.0 | DKQ13: 0.0 | DKR13: 0.0 | DKS13: 0.0 | DKT13: 0.0 | DKU13: 0.0 | DKV13: 0.0 | DKW13: 0.0 | DKX13: 0.0 | DKY13: 0.0 | DKZ13: 0.0 | DLA13: 0.0 | DLB13: 0.0 | DLC13: 0.0 | DLD13: 0.0 | DLE13: 0.0 | DLF13: 0.0 | DLG13: 0.0 | DLH13: 0.0 | DLI13: 0.0 | DLJ13: 0.0 | DLK13: 0.0 | DLL13: 0.0 | DLM13: 0.0 | DLN13: 0.0 | DLO13: 0.0 | DLP13: 0.0 | DLQ13: 0.0 | DLR13: 0.0 | DLS13: 0.0 | DLT13: 0.0 | DLU13: 0.0 | DLV13: 0.0 | DLW13: 0.0 | DLX13: 0.0 | DLY13: 0.0 | DLZ13: 0.0 | DMA13: 0.0 | DMB13: 0.0 | DMC13: 0.0 | DMD13: 0.0 | DME13: 0.0 | DMF13: 0.0 | DMG13: 0.0 | DMH13: 0.0 | DMI13: 0.0 | DMJ13: 0.0 | DMK13: 0.0 | DML13: 0.0 | DMM13: 0.0 | DMN13: 0.0 | DMO13: 0.0 | DMP13: 0.0 | DMQ13: 0.0 | DMR13: 0.0 | DMS13: 0.0 | DMT13: 0.0 | DMU13: 0.0 | DMV13: 0.0 | DMW13: 0.0 | DMX13: 0.0 | DMY13: 0.0 | DMZ13: 0.0 | DNA13: 0.0 | DNB13: 0.0 | DNC13: 0.0 | DND13: 0.0 | DNE13: 0.0 | DNF13: 0.0 | DNG13: 0.0 | DNH13: 0.0 | DNI13: 0.0 | DNJ13: 0.0 | DNK13: 0.0 | DNL13: 0.0 | DNM13: 0.0 | DNN13: 0.0 | DNO13: 0.0 | DNP13: 0.0 | DNQ13: 0.0 | DNR13: 0.0 | DNS13: 0.0 | DNT13: 0.0 | DNU13: 0.0 | DNV13: 0.0 | DNW13: 0.0 | DNX13: 0.0 | DNY13: 0.0 | DNZ13: 0.0 | DOA13: 0.0 | DOB13: 0.0 | DOC13: 0.0 | DOD13: 0.0 | DOE13: 0.0 | DOF13: 0.0 | DOG13: 0.0 | DOH13: 0.0 | DOI13: 0.0 | DOJ13: 0.0 | DOK13: 0.0 | DOL13: 0.0 | DOM13: 0.0 | DON13: 0.0 | DOO13: 0.0 | DOP13: 0.0 | DOQ13: 0.0 | DOR13: 0.0 | DOS13: 0.0 | DOT13: 0.0 | DOU13: 0.0 | DOV13: 0.0 | DOW13: 0.0 | DOX13: 0.0 | DOY13: 0.0 | DOZ13: 0.0 | DPA13: 0.0 | DPB13: 0.0 | DPC13: 0.0 | DPD13: 0.0 | DPE13: 0.0 | DPF13: 0.0 | DPG13: 0.0 | DPH13: 0.0 | DPI13: 0.0 | DPJ13: 0.0 | DPK13: 0.0 | DPL13: 0.0 | DPM13: 0.0 | DPN13: 0.0 | DPO13: 0.0 | DPP13: 0.0 | DPQ13: 0.0 | DPR13: 0.0 | DPS13: 0.0 | DPT13: 0.0 | DPU13: 0.0 | DPV13: 0.0 | DPW13: 0.0 | DPX13: 0.0 | DPY13: 0.0 | DPZ13: 0.0 | DQA13: 0.0 | DQB13: 0.0 | DQC13: 0.0 | DQD13: 0.0 | DQE13: 0.0 | DQF13: 0.0 | DQG13: 0.0 | DQH13: 0.0 | DQI13: 0.0 | DQJ13: 0.0 | DQK13: 0.0 | DQL13: 0.0 | DQM13: 0.0 | DQN13: 0.0 | DQO13: 0.0 | DQP13: 0.0 | DQQ13: 0.0 | DQR13: 0.0 | DQS13: 0.0 | DQT13: 0.0 | DQU13: 0.0 | DQV13: 0.0 | DQW13: 0.0 | DQX13: 0.0 | DQY13: 0.0 | DQZ13: 0.0 | DRA13: 0.0 | DRB13: 0.0 | DRC13: 0.0 | DRD13: 0.0 | DRE13: 0.0 | DRF13: 0.0 | DRG13: 0.0 | DRH13: 0.0 | DRI13: 0.0 | DRJ13: 0.0 | DRK13: 0.0 | DRL13: 0.0 | DRM13: 0.0 | DRN13: 0.0 | DRO13: 0.0 | DRP13: 0.0 | DRQ13: 0.0 | DRR13: 0.0 | DRS13: 0.0 | DRT13: 0.0 | DRU13: 0.0 | DRV13: 0.0 | DRW13: 0.0 | DRX13: 0.0 | DRY13: 0.0 | DRZ13: 0.0 | DSA13: 0.0 | DSB13: 0.0 | DSC13: 0.0 | DSD13: 0.0 | DSE13: 0.0 | DSF13: 0.0 | DSG13: 0.0 | DSH13: 0.0 | DSI13: 0.0 | DSJ13: 0.0 | DSK13: 0.0 | DSL13: 0.0 | DSM13: 0.0 | DSN13: 0.0 | DSO13: 0.0 | DSP13: 0.0 | DSQ13: 0.0 | DSR13: 0.0 | DSS13: 0.0 | DST13: 0.0 | DSU13: 0.0 | DSV13: 0.0 | DSW13: 0.0 | DSX13: 0.0 | DSY13: 0.0 | DSZ13: 0.0 | DTA13: 0.0 | DTB13: 0.0 | DTC13: 0.0 | DTD13: 0.0 | DTE13: 0.0 | DTF13: 0.0 | DTG13: 0.0 | DTH13: 0.0 | DTI13: 0.0 | DTJ13: 0.0 | DTK13: 0.0 | DTL13: 0.0 | DTM13: 0.0 | DTN13: 0.0 | DTO13: 0.0 | DTP13: 0.0 | DTQ13: 0.0 | DTR13: 0.0 | DTS13: 0.0 | DTT13: 0.0 | DTU13: 0.0 | DTV13: 0.0 | DTW13: 0.0 | DTX13: 0.0 | DTY13: 0.0 | DTZ13: 0.0 | DUA13: 0.0 | DUB13: 0.0 | DUC13: 0.0 | DUD13: 0.0 | DUE13: 0.0 | DUF13: 0.0 | DUG13: 0.0 | DUH13: 0.0 | DUI13: 0.0 | DUJ13: 0.0 | DUK13: 0.0 | DUL13: 0.0 | DUM13: 0.0 | DUN13: 0.0 | DUO13: 0.0 | DUP13: 0.0 | DUQ13: 0.0 | DUR13: 0.0 | DUS13: 0.0 | DUT13: 0.0 | DUU13: 0.0 | DUV13: 0.0 | DUW13: 0.0 | DUX13: 0.0 | DUY13: 0.0 | DUZ13: 0.0 | DVA13: 0.0 | DVB13: 0.0 | DVC13: 0.0 | DVD13: 0.0 | DVE13: 0.0 | DVF13: 0.0 | DVG13: 0.0 | DVH13: 0.0 | DVI13: 0.0 | DVJ13: 0.0 | DVK13: 0.0 | DVL13: 0.0 | DVM13: 0.0 | DVN13: 0.0 | DVO13: 0.0 | DVP13: 0.0 | DVQ13: 0.0 | DVR13: 0.0 | DVS13: 0.0 | DVT13: 0.0 | DVU13: 0.0 | DVV13: 0.0 | DVW13: 0.0 | DVX13: 0.0 | DVY13: 0.0 | DVZ13: 0.0 | DWA13: 0.0 | DWB13: 0.0 | DWC13: 0.0 | DWD13: 0.0 | DWE13: 0.0 | DWF13: 0.0 | DWG13: 0.0 | DWH13: 0.0 | DWI13: 0.0 | DWJ13: 0.0 | DWK13: 0.0 | DWL13: 0.0 | DWM13: 0.0 | DWN13: 0.0 | DWO13: 0.0 | DWP13: 0.0 | DWQ13: 0.0 | DWR13: 0.0 | DWS13: 0.0 | DWT13: 0.0 | DWU13: 0.0 | DWV13: 0.0 | DWW13: 0.0 | DWX13: 0.0 | DWY13: 0.0 | DWZ13: 0.0 | DXA13: 0.0 | DXB13: 0.0 | DXC13: 0.0 | DXD13: 0.0 | DXE13: 0.0 | DXF13: 0.0 | DXG13: 0.0 | DXH13: 0.0 | DXI13: 0.0 | DXJ13: 0.0 | DXK13: 0.0 | DXL13: 0.0 | DXM13: 0.0 | DXN13: 0.0 | DXO13: 0.0 | DXP13: 0.0 | DXQ13: 0.0 | DXR13: 0.0 | DXS13: 0.0 | DXT13: 0.0 | DXU13: 0.0 | DXV13: 0.0 | DXW13: 0.0 | DXX13: 0.0 | DXY13: 0.0 | DXZ13: 0.0 | DYA13: 0.0 | DYB13: 0.0 | DYC13: 0.0 | DYD13: 0.0 | DYE13: 0.0 | DYF13: 0.0 | DYG13: 0.0 | DYH13: 0.0 | DYI13: 0.0 | DYJ13: 0.0 | DYK13: 0.0 | DYL13: 0.0 | DYM13: 0.0 | DYN13: 0.0 | DYO13: 0.0 | DYP13: 0.0 | DYQ13: 0.0 | DYR13: 0.0 | DYS13: 0.0 | DYT13: 0.0 | DYU13: 0.0 | DYV13: 0.0 | DYW13: 0.0 | DYX13: 0.0 | DYY13: 0.0 | DYZ13: 0.0 | DZA13: 0.0 | DZB13: 0.0 | DZC13: 0.0 | DZD13: 0.0 | DZE13: 0.0 | DZF13: 0.0 | DZG13: 0.0 | DZH13: 0.0 | DZI13: 0.0 | DZJ13: 0.0 | DZK13: 0.0 | DZL13: 0.0 | DZM13: 0.0 | DZN13: 0.0 | DZO13: 0.0 | DZP13: 0.0 | DZQ13: 0.0 | DZR13: 0.0 | DZS13: 0.0 | DZT13: 0.0 | DZU13: 0.0 | DZV13: 0.0 | DZW13: 0.0 | DZX13: 0.0 | DZY13: 0.0 | DZZ13: 0.0 | EAA13: 0.0 | EAB13: 0.0 | EAC13: 0.0 | EAD13: 0.0 | EAE13: 0.0 | EAF13: 0.0 | EAG13: 0.0 | EAH13: 0.0 | EAI13: 0.0 | EAJ13: 0.0 | EAK13: 0.0 | EAL13: 0.0 | EAM13: 0.0 | EAN13: 0.0 | EAO13: 0.0 | EAP13: 0.0 | EAQ13: 0.0 | EAR13: 0.0 | EAS13: 0.0 | EAT13: 0.0 | EAU13: 0.0 | EAV13: 0.0 | EAW13: 0.0 | EAX13: 0.0 | EAY13: 0.0 | EAZ13: 0.0 | EBA13: 0.0 | EBB13: 0.0 | EBC13: 0.0 | EBD13: 0.0 | EBE13: 0.0 | EBF13: 0.0 | EBG13: 0.0 | EBH13: 0.0 | EBI13: 0.0 | EBJ13: 0.0 | EBK13: 0.0 | EBL13: 0.0 | EBM13: 0.0 | EBN13: 0.0 | EBO13: 0.0 | EBP13: 0.0 | EBQ13: 0.0 | EBR13: 0.0 | EBS13: 0.0 | EBT13: 0.0 | EBU13: 0.0 | EBV13: 0.0 | EBW13: 0.0 | EBX13: 0.0 | EBY13: 0.0 | EBZ13: 0.0 | ECA13: 0.0 | ECB13: 0.0 | ECC13: 0.0 | ECD13: 0.0 | ECE13: 0.0 | ECF13: 0.0 | ECG13: 0.0 | ECH13: 0.0 | ECI13: 0.0 | ECJ13: 0.0 | ECK13: 0.0 | ECL13: 0.0 | ECM13: 0.0 | ECN13: 0.0 | ECO13: 0.0 | ECP13: 0.0 | ECQ13: 0.0 | ECR13: 0.0 | ECS13: 0.0 | ECT13: 0.0 | ECU13: 0.0 | ECV13: 0.0 | ECW13: 0.0 | ECX13: 0.0 | ECY13: 0.0 | ECZ13: 0.0 | EDA13: 0.0 | EDB13: 0.0 | EDC13: 0.0 | EDD13: 0.0 | EDE13: 0.0 | EDF13: 0.0 | EDG13: 0.0 | EDH13: 0.0 | EDI13: 0.0 | EDJ13: 0.0 | EDK13: 0.0 | EDL13: 0.0 | EDM13: 0.0 | EDN13: 0.0 | EDO13: 0.0 | EDP13: 0.0 | EDQ13: 0.0 | EDR13: 0.0 | EDS13: 0.0 | EDT13: 0.0 | EDU13: 0.0 | EDV13: 0.0 | EDW13: 0.0 | EDX13: 0.0 | EDY13: 0.0 | EDZ13: 0.0 | EEA13: 0.0 | EEB13: 0.0 | EEC13: 0.0 | EED13: 0.0 | EEE13: 0.0 | EEF13: 0.0 | EEG13: 0.0 | EEH13: 0.0 | EEI13: 0.0 | EEJ13: 0.0 | EEK13: 0.0 | EEL13: 0.0 | EEM13: 0.0 | EEN13: 0.0 | EEO13: 0.0 | EEP13: 0.0 | EEQ13: 0.0 | EER13: 0.0 | EES13: 0.0 | EET13: 0.0 | EEU13: 0.0 | EEV13: 0.0 | EEW13: 0.0 | EEX13: 0.0 | EEY13: 0.0 | EEZ13: 0.0 | EFA13: 0.0 | EFB13: 0.0 | EFC13: 0.0 | EFD13: 0.0 | EFE13: 0.0 | EFF13: 0.0 | EFG13: 0.0 | EFH13: 0.0 | EFI13: 0.0 | EFJ13: 0.0 | EFK13: 0.0 | EFL13: 0.0 | EFM13: 0.0 | EFN13: 0.0 | EFO13: 0.0 | EFP13: 0.0 | EFQ13: 0.0 | EFR13: 0.0 | EFS13: 0.0 | EFT13: 0.0 | EFU13: 0.0 | EFV13: 0.0 | EFW13: 0.0 | EFX13: 0.0 | EFY13: 0.0 | EFZ13: 0.0 | EGA13: 0.0 | EGB13: 0.0 | EGC13: 0.0 | EGD13: 0.0 | EGE13: 0.0 | EGF13: 0.0 | EGG13: 0.0 | EGH13: 0.0 | EGI13: 0.0 | EGJ13: 0.0 | EGK13: 0.0 | EGL13: 0.0 | EGM13: 0.0 | EGN13: 0.0 | EGO13: 0.0 | EGP13: 0.0 | EGQ13: 0.0 | EGR13: 0.0 | EGS13: 0.0 | EGT13: 0.0 | EGU13: 0.0 | EGV13: 0.0 | EGW13: 0.0 | EGX13: 0.0 | EGY13: 0.0 | EGZ13: 0.0 | EHA13: 0.0 | EHB13: 0.0 | EHC13: 0.0 | EHD13: 0.0 | EHE13: 0.0 | EHF13: 0.0 | EHG13: 0.0 | EHH13: 0.0 | EHI13: 0.0 | EHJ13: 0.0 | EHK13: 0.0 | EHL13: 0.0 | EHM13: 0.0 | EHN13: 0.0 | EHO13: 0.0 | EHP13: 0.0 | EHQ13: 0.0 | EHR13: 0.0 | EHS13: 0.0 | EHT13: 0.0 | EHU13: 0.0 | EHV13: 0.0 | EHW13: 0.0 | EHX13: 0.0 | EHY13: 0.0 | EHZ13: 0.0 | EIA13: 0.0 | EIB13: 0.0 | EIC13: 0.0 | EID13: 0.0 | EIE13: 0.0 | EIF13: 0.0 | EIG13: 0.0 | EIH13: 0.0 | EII13: 0.0 | EIJ13: 0.0 | EIK13: 0.0 | EIL13: 0.0 | EIM13: 0.0 | EIN13: 0.0 | EIO13: 0.0 | EIP13: 0.0 | EIQ13: 0.0 | EIR13: 0.0 | EIS13: 0.0 | EIT13: 0.0 | EIU13: 0.0 | EIV13: 0.0 | EIW13: 0.0 | EIX13: 0.0 | EIY13: 0.0 | EIZ13: 0.0 | EJA13: 0.0 | EJB13: 0.0 | EJC13: 0.0 | EJD13: 0.0 | EJE13: 0.0 | EJF13: 0.0 | EJG13: 0.0 | EJH13: 0.0 | EJI13: 0.0 | EJJ13: 0.0 | EJK13: 0.0 | EJL13: 0.0 | EJM13: 0.0 | EJN13: 0.0 | EJO13: 0.0 | EJP13: 0.0 | EJQ13: 0.0 | EJR13: 0.0 | EJS13: 0.0 | EJT13: 0.0 | EJU13: 0.0 | EJV13: 0.0 | EJW13: 0.0 | EJX13: 0.0 | EJY13: 0.0 | EJZ13: 0.0 | EKA13: 0.0 | EKB13: 0.0 | EKC13: 0.0 | EKD13: 0.0 | EKE13: 0.0 | EKF13: 0.0 | EKG13: 0.0 | EKH13: 0.0 | EKI13: 0.0 | EKJ13: 0.0 | EKK13: 0.0 | EKL13: 0.0 | EKM13: 0.0 | EKN13: 0.0 | EKO13: 0.0 | EKP13: 0.0 | EKQ13: 0.0 | EKR13: 0.0 | EKS13: 0.0 | EKT13: 0.0 | EKU13: 0.0 | EKV13: 0.0 | EKW13: 0.0 | EKX13: 0.0 | EKY13: 0.0 | EKZ13: 0.0 | ELA13: 0.0 | ELB13: 0.0 | ELC13: 0.0 | ELD13: 0.0 | ELE13: 0.0 | ELF13: 0.0 | ELG13: 0.0 | ELH13: 0.0 | ELI13: 0.0 | ELJ13: 0.0 | ELK13: 0.0 | ELL13: 0.0 | ELM13: 0.0 | ELN13: 0.0 | ELO13: 0.0 | ELP13: 0.0 | ELQ13: 0.0 | ELR13: 0.0 | ELS13: 0.0 | ELT13: 0.0 | ELU13: 0.0 | ELV13: 0.0 | ELW13: 0.0 | ELX13: 0.0 | ELY13: 0.0 | ELZ13: 0.0 | EMA13: 0.0 | EMB13: 0.0 | EMC13: 0.0 | EMD13: 0.0 | EME13: 0.0 | EMF13: 0.0 | EMG13: 0.0 | EMH13: 0.0 | EMI13: 0.0 | EMJ13: 0.0 | EMK13: 0.0 | EML13: 0.0 | EMM13: 0.0 | EMN13: 0.0 | EMO13: 0.0 | EMP13: 0.0 | EMQ13: 0.0 | EMR13: 0.0 | EMS13: 0.0 | EMT13: 0.0 | EMU13: 0.0 | EMV13: 0.0 | EMW13: 0.0 | EMX13: 0.0 | EMY13: 0.0 | EMZ13: 0.0 | ENA13: 0.0 | ENB13: 0.0 | ENC13: 0.0 | END13: 0.0 | ENE13: 0.0 | ENF13: 0.0 | ENG13: 0.0 | ENH13: 0.0 | ENI13: 0.0 | ENJ13: 0.0 | ENK13: 0.0 | ENL13: 0.0 | ENM13: 0.0 | ENN13: 0.0 | ENO13: 0.0 | ENP13: 0.0 | ENQ13: 0.0 | ENR13: 0.0 | ENS13: 0.0 | ENT13: 0.0 | ENU13: 0.0 | ENV13: 0.0 | ENW13: 0.0 | ENX13: 0.0 | ENY13: 0.0 | ENZ13: 0.0 | EOA13: 0.0 | EOB13: 0.0 | EOC13: 0.0 | EOD13: 0.0 | EOE13: 0.0 | EOF13: 0.0 | EOG13: 0.0 | EOH13: 0.0 | EOI13: 0.0 | EOJ13: 0.0 | EOK13: 0.0 | EOL13: 0.0 | EOM13: 0.0 | EON13: 0.0 | EOO13: 0.0 | EOP13: 0.0 | EOQ13: 0.0 | EOR13: 0.0 | EOS13: 0.0 | EOT13: 0.0 | EOU13: 0.0 | EOV13: 0.0 | EOW13: 0.0 | EOX13: 0.0 | EOY13: 0.0 | EOZ13: 0.0 | EPA13: 0.0 | EPB13: 0.0 | EPC13: 0.0 | EPD13: 0.0 | EPE13: 0.0 | EPF13: 0.0 | EPG13: 0.0 | EPH13: 0.0 | EPI13: 0.0 | EPJ13: 0.0 | EPK13: 0.0 | EPL13: 0.0 | EPM13: 0.0 | EPN13: 0.0 | EPO13: 0.0 | EPP13: 0.0 | EPQ13: 0.0 | EPR13: 0.0 | EPS13: 0.0 | EPT13: 0.0 | EPU13: 0.0 | EPV13: 0.0 | EPW13: 0.0 | EPX13: 0.0 | EPY13: 0.0 | EPZ13: 0.0 | EQA13: 0.0 | EQB13: 0.0 | EQC13: 0.0 | EQD13: 0.0 | EQE13: 0.0 | EQF13: 0.0 | EQG13: 0.0 | EQH13: 0.0 | EQI13: 0.0 | EQJ13: 0.0 | EQK13: 0.0 | EQL13: 0.0 | EQM13: 0.0 | EQN13: 0.0 | EQO13: 0.0 | EQP13: 0.0 | EQQ13: 0.0 | EQR13: 0.0 | EQS13: 0.0 | EQT13: 0.0 | EQU13: 0.0 | EQV13: 0.0 | EQW13: 0.0 | EQX13: 0.0 | EQY13: 0.0 | EQZ13: 0.0 | ERA13: 0.0 | ERB13: 0.0 | ERC13: 0.0 | ERD13: 0.0 | ERE13: 0.0 | ERF13: 0.0 | ERG13: 0.0 | ERH13: 0.0 | ERI13: 0.0 | ERJ13: 0.0 | ERK13: 0.0 | ERL13: 0.0 | ERM13: 0.0 | ERN13: 0.0 | ERO13: 0.0 | ERP13: 0.0 | ERQ13: 0.0 | ERR13: 0.0 | ERS13: 0.0 | ERT13: 0.0 | ERU13: 0.0 | ERV13: 0.0 | ERW13: 0.0 | ERX13: 0.0 | ERY13: 0.0 | ERZ13: 0.0 | ESA13: 0.0 | ESB13: 0.0 | ESC13: 0.0 | ESD13: 0.0 | ESE13: 0.0 | ESF13: 0.0 | ESG13: 0.0 | ESH13: 0.0 | ESI13: 0.0 | ESJ13: 0.0 | ESK13: 0.0 | ESL13: 0.0 | ESM13: 0.0 | ESN13: 0.0 | ESO13: 0.0 | ESP13: 0.0 | ESQ13: 0.0 | ESR13: 0.0 | ESS13: 0.0 | EST13: 0.0 | ESU13: 0.0 | ESV13: 0.0 | ESW13: 0.0 | ESX13: 0.0 | ESY13: 0.0 | ESZ13: 0.0 | ETA13: 0.0 | ETB13: 0.0 | ETC13: 0.0 | ETD13: 0.0 | ETE13: 0.0 | ETF13: 0.0 | ETG13: 0.0 | ETH13: 0.0 | ETI13: 0.0 | ETJ13: 0.0 | ETK13: 0.0 | ETL13: 0.0 | ETM13: 0.0 | ETN13: 0.0 | ETO13: 0.0 | ETP13: 0.0 | ETQ13: 0.0 | ETR13: 0.0 | ETS13: 0.0 | ETT13: 0.0 | ETU13: 0.0 | ETV13: 0.0 | ETW13: 0.0 | ETX13: 0.0 | ETY13: 0.0 | ETZ13: 0.0 | EUA13: 0.0 | EUB13: 0.0 | EUC13: 0.0 | EUD13: 0.0 | EUE13: 0.0 | EUF13: 0.0 | EUG13: 0.0 | EUH13: 0.0 | EUI13: 0.0 | EUJ13: 0.0 | EUK13: 0.0 | EUL13: 0.0 | EUM13: 0.0 | EUN13: 0.0 | EUO13: 0.0 | EUP13: 0.0 | EUQ13: 0.0 | EUR13: 0.0 | EUS13: 0.0 | EUT13: 0.0 | EUU13: 0.0 | EUV13: 0.0 | EUW13: 0.0 | EUX13: 0.0 | EUY13: 0.0 | EUZ13: 0.0 | EVA13: 0.0 | EVB13: 0.0 | EVC13: 0.0 | EVD13: 0.0 | EVE13: 0.0 | EVF13: 0.0 | EVG13: 0.0 | EVH13: 0.0 | EVI13: 0.0 | EVJ13: 0.0 | EVK13: 0.0 | EVL13: 0.0 | EVM13: 0.0 | EVN13: 0.0 | EVO13: 0.0 | EVP13: 0.0 | EVQ13: 0.0 | EVR13: 0.0 | EVS13: 0.0 | EVT13: 0.0 | EVU13: 0.0 | EVV13: 0.0 | EVW13: 0.0 | EVX13: 0.0 | EVY13: 0.0 | EVZ13: 0.0 | EWA13: 0.0 | EWB13: 0.0 | EWC13: 0.0 | EWD13: 0.0 | EWE13: 0.0 | EWF13: 0.0 | EWG13: 0.0 | EWH13: 0.0 | EWI13: 0.0 | EWJ13: 0.0 | EWK13: 0.0 | EWL13: 0.0 | EWM13: 0.0 | EWN13: 0.0 | EWO13: 0.0 | EWP13: 0.0 | EWQ13: 0.0 | EWR13: 0.0 | EWS13: 0.0 | EWT13: 0.0 | EWU13: 0.0 | EWV13: 0.0 | EWW13: 0.0 | EWX13: 0.0 | EWY13: 0.0 | EWZ13: 0.0 | EXA13: 0.0 | EXB13: 0.0 | EXC13: 0.0 | EXD13: 0.0 | EXE13: 0.0 | EXF13: 0.0 | EXG13: 0.0 | EXH13: 0.0 | EXI13: 0.0 | EXJ13: 0.0 | EXK13: 0.0 | EXL13: 0.0 | EXM13: 0.0 | EXN13: 0.0 | EXO13: 0.0 | EXP13: 0.0 | EXQ13: 0.0 | EXR13: 0.0 | EXS13: 0.0 | EXT13: 0.0 | EXU13: 0.0 | EXV13: 0.0 | EXW13: 0.0 | EXX13: 0.0 | EXY13: 0.0 | EXZ13: 0.0 | EYA13: 0.0 | EYB13: 0.0 | EYC13: 0.0 | EYD13: 0.0 | EYE13: 0.0 | EYF13: 0.0 | EYG13: 0.0 | EYH13: 0.0 | EYI13: 0.0 | EYJ13: 0.0 | EYK13: 0.0 | EYL13: 0.0 | EYM13: 0.0 | EYN13: 0.0 | EYO13: 0.0 | EYP13: 0.0 | EYQ13: 0.0 | EYR13: 0.0 | EYS13: 0.0 | EYT13: 0.0 | EYU13: 0.0 | EYV13: 0.0 | EYW13: 0.0 | EYX13: 0.0 | EYY13: 0.0 | EYZ13: 0.0 | EZA13: 0.0 | EZB13: 0.0 | EZC13: 0.0 | EZD13: 0.0 | EZE13: 0.0 | EZF13: 0.0 | EZG13: 0.0 | EZH13: 0.0 | EZI13: 0.0 | EZJ13: 0.0 | EZK13: 0.0 | EZL13: 0.0 | EZM13: 0.0 | EZN13: 0.0 | EZO13: 0.0 | EZP13: 0.0 | EZQ13: 0.0 | EZR13: 0.0 | EZS13: 0.0 | EZT13: 0.0 | EZU13: 0.0 | EZV13: 0.0 | EZW13: 0.0 | EZX13: 0.0 | EZY13: 0.0 | EZZ13: 0.0 | FAA13: 0.0 | FAB13: 0.0 | FAC13: 0.0 | FAD13: 0.0 | FAE13: 0.0 | FAF13: 0.0 | FAG13: 0.0 | FAH13: 0.0 | FAI13: 0.0 | FAJ13: 0.0 | FAK13: 0.0 | FAL13: 0.0 | FAM13: 0.0 | FAN13: 0.0 | FAO13: 0.0 | FAP13: 0.0 | FAQ13: 0.0 | FAR13: 0.0 | FAS13: 0.0 | FAT13: 0.0 | FAU13: 0.0 | FAV13: 0.0 | FAW13: 0.0 | FAX13: 0.0 | FAY13: 0.0 | FAZ13: 0.0 | FBA13: 0.0 | FBB13: 0.0 | FBC13: 0.0 | FBD13: 0.0 | FBE13: 0.0 | FBF13: 0.0 | FBG13: 0.0 | FBH13: 0.0 | FBI13: 0.0 | FBJ13: 0.0 | FBK13: 0.0 | FBL13: 0.0 | FBM13: 0.0 | FBN13: 0.0 | FBO13: 0.0 | FBP13: 0.0 | FBQ13: 0.0 | FBR13: 0.0 | FBS13: 0.0 | FBT13: 0.0 | FBU13: 0.0 | FBV13: 0.0 | FBW13: 0.0 | FBX13: 0.0 | FBY13: 0.0 | FBZ13: 0.0 | FCA13: 0.0 | FCB13: 0.0 | FCC13: 0.0 | FCD13: 0.0 | FCE13: 0.0 | FCF13: 0.0 | FCG13: 0.0 | FCH13: 0.0 | FCI13: 0.0 | FCJ13: 0.0 | FCK13: 0.0 | FCL13: 0.0 | FCM13: 0.0 | FCN13: 0.0 | FCO13: 0.0 | FCP13: 0.0 | FCQ13: 0.0 | FCR13: 0.0 | FCS13: 0.0 | FCT13: 0.0 | FCU13: 0.0 | FCV13: 0.0 | FCW13: 0.0 | FCX13: 0.0 | FCY13: 0.0 | FCZ13: 0.0 | FDA13: 0.0 | FDB13: 0.0 | FDC13: 0.0 | FDD13: 0.0 | FDE13: 0.0 | FDF13: 0.0 | FDG13: 0.0 | FDH13: 0.0 | FDI13: 0.0 | FDJ13: 0.0 | FDK13: 0.0 | FDL13: 0.0 | FDM13: 0.0 | FDN13: 0.0 | FDO13: 0.0 | FDP13: 0.0 | FDQ13: 0.0 | FDR13: 0.0 | FDS13: 0.0 | FDT13: 0.0 | FDU13: 0.0 | FDV13: 0.0 | FDW13: 0.0 | FDX13: 0.0 | FDY13: 0.0 | FDZ13: 0.0 | FEA13: 0.0 | FEB13: 0.0 | FEC13: 0.0 | FED13: 0.0 | FEE13: 0.0 | FEF13: 0.0 | FEG13: 0.0 | FEH13: 0.0 | FEI13: 0.0 | FEJ13: 0.0 | FEK13: 0.0 | FEL13: 0.0 | FEM13: 0.0 | FEN13: 0.0 | FEO13: 0.0 | FEP13: 0.0 | FEQ13: 0.0 | FER13: 0.0 | FES13: 0.0 | FET13: 0.0 | FEU13: 0.0 | FEV13: 0.0 | FEW13: 0.0 | FEX13: 0.0 | FEY13: 0.0 | FEZ13: 0.0 | FFA13: 0.0 | FFB13: 0.0 | FFC13: 0.0 | FFD13: 0.0 | FFE13: 0.0 | FFF13: 0.0 | FFG13: 0.0 | FFH13: 0.0 | FFI13: 0.0 | FFJ13: 0.0 | FFK13: 0.0 | FFL13: 0.0 | FFM13: 0.0 | FFN13: 0.0 | FFO13: 0.0 | FFP13: 0.0 | FFQ13: 0.0 | FFR13: 0.0 | FFS13: 0.0 | FFT13: 0.0 | FFU13: 0.0 | FFV13: 0.0 | FFW13: 0.0 | FFX13: 0.0 | FFY13: 0.0 | FFZ13: 0.0 | FGA13: 0.0 | FGB13: 0.0 | FGC13: 0.0 | FGD13: 0.0 | FGE13: 0.0 | FGF13: 0.0 | FGG13: 0.0 | FGH13: 0.0 | FGI13: 0.0 | FGJ13: 0.0 | FGK13: 0.0 | FGL13: 0.0 | FGM13: 0.0 | FGN13: 0.0 | FGO13: 0.0 | FGP13: 0.0 | FGQ13: 0.0 | FGR13: 0.0 | FGS13: 0.0 | FGT13: 0.0 | FGU13: 0.0 | FGV13: 0.0 | FGW13: 0.0 | FGX13: 0.0 | FGY13: 0.0 | FGZ13: 0.0 | FHA13: 0.0 | FHB13: 0.0 | FHC13: 0.0 | FHD13: 0.0 | FHE13: 0.0 | FHF13: 0.0 | FHG13: 0.0 | FHH13: 0.0 | FHI13: 0.0 | FHJ13: 0.0 | FHK13: 0.0 | FHL13: 0.0 | FHM13: 0.0 | FHN13: 0.0 | FHO13: 0.0 | FHP13: 0.0 | FHQ13: 0.0 | FHR13: 0.0 | FHS13: 0.0 | FHT13: 0.0 | FHU13: 0.0 | FHV13: 0.0 | FHW13: 0.0 | FHX13: 0.0 | FHY13: 0.0 | FHZ13: 0.0 | FIA13: 0.0 | FIB13: 0.0 | FIC13: 0.0 | FID13: 0.0 | FIE13: 0.0 | FIF13: 0.0 | FIG13: 0.0 | FIH13: 0.0 | FII13: 0.0 | FIJ13: 0.0 | FIK13: 0.0 | FIL13: 0.0 | FIM13: 0.0 | FIN13: 0.0 | FIO13: 0.0 | FIP13: 0.0 | FIQ13: 0.0 | FIR13: 0.0 | FIS13: 0.0 | FIT13: 0.0 | FIU13: 0.0 | FIV13: 0.0 | FIW13: 0.0 | FIX13: 0.0 | FIY13: 0.0 | FIZ13: 0.0 | FJA13: 0.0 | FJB13: 0.0 | FJC13: 0.0 | FJD13: 0.0 | FJE13: 0.0 | FJF13: 0.0 | FJG13: 0.0 | FJH13: 0.0 | FJI13: 0.0 | FJJ13: 0.0 | FJK13: 0.0 | FJL13: 0.0 | FJM13: 0.0 | FJN13: 0.0 | FJO13: 0.0 | FJP13: 0.0 | FJQ13: 0.0 | FJR13: 0.0 | FJS13: 0.0 | FJT13: 0.0 | FJU13: 0.0 | FJV13: 0.0 | FJW13: 0.0 | FJX13: 0.0 | FJY13: 0.0 | FJZ13: 0.0 | FKA13: 0.0 | FKB13: 0.0 | FKC13: 0.0 | FKD13: 0.0 | FKE13: 0.0 | FKF13: 0.0 | FKG13: 0.0 | FKH13: 0.0 | FKI13: 0.0 | FKJ13: 0.0 | FKK13: 0.0 | FKL13: 0.0 | FKM13: 0.0 | FKN13: 0.0 | FKO13: 0.0 | FKP13: 0.0 | FKQ13: 0.0 | FKR13: 0.0 | FKS13: 0.0 | FKT13: 0.0 | FKU13: 0.0 | FKV13: 0.0 | FKW13: 0.0 | FKX13: 0.0 | FKY13: 0.0 | FKZ13: 0.0 | FLA13: 0.0 | FLB13: 0.0 | FLC13: 0.0 | FLD13: 0.0 | FLE13: 0.0 | FLF13: 0.0 | FLG13: 0.0 | FLH13: 0.0 | FLI13: 0.0 | FLJ13: 0.0 | FLK13: 0.0 | FLL13: 0.0 | FLM13: 0.0 | FLN13: 0.0 | FLO13: 0.0 | FLP13: 0.0 | FLQ13: 0.0 | FLR13: 0.0 | FLS13: 0.0 | FLT13: 0.0 | FLU13: 0.0 | FLV13: 0.0 | FLW13: 0.0 | FLX13: 0.0 | FLY13: 0.0 | FLZ13: 0.0 | FMA13: 0.0 | FMB13: 0.0 | FMC13: 0.0 | FMD13: 0.0 | FME13: 0.0 | FMF13: 0.0 | FMG13: 0.0 | FMH13: 0.0 | FMI13: 0.0 | FMJ13: 0.0 | FMK13: 0.0 | FML13: 0.0 | FMM13: 0.0 | FMN13: 0.0 | FMO13: 0.0 | FMP13: 0.0 | FMQ13: 0.0 | FMR13: 0.0 | FMS13: 0.0 | FMT13: 0.0 | FMU13: 0.0 | FMV13: 0.0 | FMW13: 0.0 | FMX13: 0.0 | FMY13: 0.0 | FMZ13: 0.0 | FNA13: 0.0 | FNB13: 0.0 | FNC13: 0.0 | FND13: 0.0 | FNE13: 0.0 | FNF13: 0.0 | FNG13: 0.0 | FNH13: 0.0 | FNI13: 0.0 | FNJ13: 0.0 | FNK13: 0.0 | FNL13: 0.0 | FNM13: 0.0 | FNN13: 0.0 | FNO13: 0.0 | FNP13: 0.0 | FNQ13: 0.0 | FNR13: 0.0 | FNS13: 0.0 | FNT13: 0.0 | FNU13: 0.0 | FNV13: 0.0 | FNW13: 0.0 | FNX13: 0.0 | FNY13: 0.0 | FNZ13: 0.0 | FOA13: 0.0 | FOB13: 0.0 | FOC13: 0.0 | FOD13: 0.0 | FOE13: 0.0 | FOF13: 0.0 | FOG13: 0.0 | FOH13: 0.0 | FOI13: 0.0 | FOJ13: 0.0 | FOK13: 0.0 | FOL13: 0.0 | FOM13: 0.0 | FON13: 0.0 | FOO13: 0.0 | FOP13: 0.0 | FOQ13: 0.0 | FOR13: 0.0 | FOS13: 0.0 | FOT13: 0.0 | FOU13: 0.0 | FOV13: 0.0 | FOW13: 0.0 | FOX13: 0.0 | FOY13: 0.0 | FOZ13: 0.0 | FPA13: 0.0 | FPB13: 0.0 | FPC13: 0.0 | FPD13: 0.0 | FPE13: 0.0 | FPF13: 0.0 | FPG13: 0.0 | FPH13: 0.0 | FPI13: 0.0 | FPJ13: 0.0 | FPK13: 0.0 | FPL13: 0.0 | FPM13: 0.0 | FPN13: 0.0 | FPO13: 0.0 | FPP13: 0.0 | FPQ13: 0.0 | FPR13: 0.0 | FPS13: 0.0 | FPT13: 0.0 | FPU13: 0.0 | FPV13: 0.0 | FPW13: 0.0 | FPX13: 0.0 | FPY13: 0.0 | FPZ13: 0.0 | FQA13: 0.0 | FQB13: 0.0 | FQC13: 0.0 | FQD13: 0.0 | FQE13: 0.0 | FQF13: 0.0 | FQG13: 0.0 | FQH13: 0.0 | FQI13: 0.0 | FQJ13: 0.0 | FQK13: 0.0 | FQL13: 0.0 | FQM13: 0.0 | FQN13: 0.0 | FQO13: 0.0 | FQP13: 0.0 | FQQ13: 0.0 | FQR13: 0.0 | FQS13: 0.0 | FQT13: 0.0 | FQU13: 0.0 | FQV13: 0.0 | FQW13: 0.0 | FQX13: 0.0 | FQY13: 0.0 | FQZ13: 0.0 | FRA13: 0.0 | FRB13: 0.0 | FRC13: 0.0 | FRD13: 0.0 | FRE13: 0.0 | FRF13: 0.0 | FRG13: 0.0 | FRH13: 0.0 | FRI13: 0.0 | FRJ13: 0.0 | FRK13: 0.0 | FRL13: 0.0 | FRM13: 0.0 | FRN13: 0.0 | FRO13: 0.0 | FRP13: 0.0 | FRQ13: 0.0 | FRR13: 0.0 | FRS13: 0.0 | FRT13: 0.0 | FRU13: 0.0 | FRV13: 0.0 | FRW13: 0.0 | FRX13: 0.0 | FRY13: 0.0 | FRZ13: 0.0 | FSA13: 0.0 | FSB13: 0.0 | FSC13: 0.0 | FSD13: 0.0 | FSE13: 0.0 | FSF13: 0.0 | FSG13: 0.0 | FSH13: 0.0 | FSI13: 0.0 | FSJ13: 0.0 | FSK13: 0.0 | FSL13: 0.0 | FSM13: 0.0 | FSN13: 0.0 | FSO13: 0.0 | FSP13: 0.0 | FSQ13: 0.0 | FSR13: 0.0 | FSS13: 0.0 | FST13: 0.0 | FSU13: 0.0 | FSV13: 0.0 | FSW13: 0.0 | FSX13: 0.0 | FSY13: 0.0 | FSZ13: 0.0 | FTA13: 0.0 | FTB13: 0.0 | FTC13: 0.0 | FTD13: 0.0 | FTE13: 0.0 | FTF13: 0.0 | FTG13: 0.0 | FTH13: 0.0 | FTI13: 0.0 | FTJ13: 0.0 | FTK13: 0.0 | FTL13: 0.0 | FTM13: 0.0 | FTN13: 0.0 | FTO13: 0.0 | FTP13: 0.0 | FTQ13: 0.0 | FTR13: 0.0 | FTS13: 0.0 | FTT13: 0.0 | FTU13: 0.0 | FTV13: 0.0 | FTW13: 0.0 | FTX13: 0.0 | FTY13: 0.0 | FTZ13: 0.0 | FUA13: 0.0 | FUB13: 0.0 | FUC13: 0.0 | FUD13: 0.0 | FUE13: 0.0 | FUF13: 0.0 | FUG13: 0.0 | FUH13: 0.0 | FUI13: 0.0 | FUJ13: 0.0 | FUK13: 0.0 | FUL13: 0.0 | FUM13: 0.0 | FUN13: 0.0 | FUO13: 0.0 | FUP13: 0.0 | FUQ13: 0.0 | FUR13: 0.0 | FUS13: 0.0 | FUT13: 0.0 | FUU13: 0.0 | FUV13: 0.0 | FUW13: 0.0 | FUX13: 0.0 | FUY13: 0.0 | FUZ13: 0.0 | FVA13: 0.0 | FVB13: 0.0 | FVC13: 0.0 | FVD13: 0.0 | FVE13: 0.0 | FVF13: 0.0 | FVG13: 0.0 | FVH13: 0.0 | FVI13: 0.0 | FVJ13: 0.0 | FVK13: 0.0 | FVL13: 0.0 | FVM13: 0.0 | FVN13: 0.0 | FVO13: 0.0 | FVP13: 0.0 | FVQ13: 0.0 | FVR13: 0.0 | FVS13: 0.0 | FVT13: 0.0 | FVU13: 0.0 | FVV13: 0.0 | FVW13: 0.0 | FVX13: 0.0 | FVY13: 0.0 | FVZ13: 0.0 | FWA13: 0.0 | FWB13: 0.0 | FWC13: 0.0 | FWD13: 0.0 | FWE13: 0.0 | FWF13: 0.0 | FWG13: 0.0 | FWH13: 0.0 | FWI13: 0.0 | FWJ13: 0.0 | FWK13: 0.0 | FWL13: 0.0 | FWM13: 0.0 | FWN13: 0.0 | FWO13: 0.0 | FWP13: 0.0 | FWQ13: 0.0 | FWR13: 0.0 | FWS13: 0.0 | FWT13: 0.0 | FWU13: 0.0 | FWV13: 0.0 | FWW13: 0.0 | FWX13: 0.0 | FWY13: 0.0 | FWZ13: 0.0 | FXA13: 0.0 | FXB13: 0.0 | FXC13: 0.0 | FXD13: 0.0 | FXE13: 0.0 | FXF13: 0.0 | FXG13: 0.0 | FXH13: 0.0 | FXI13: 0.0 | FXJ13: 0.0 | FXK13: 0.0 | FXL13: 0.0 | FXM13: 0.0 | FXN13: 0.0 | FXO13: 0.0 | FXP13: 0.0 | FXQ13: 0.0 | FXR13: 0.0 | FXS13: 0.0 | FXT13: 0.0 | FXU13: 0.0 | FXV13: 0.0 | FXW13: 0.0 | FXX13: 0.0 | FXY13: 0.0 | FXZ13: 0.0 | FYA13: 0.0 | FYB13: 0.0 | FYC13: 0.0 | FYD13: 0.0 | FYE13: 0.0 | FYF13: 0.0 | FYG13: 0.0 | FYH13: 0.0 | FYI13: 0.0 | FYJ13: 0.0 | FYK13: 0.0 | FYL13: 0.0 | FYM13: 0.0 | FYN13: 0.0 | FYO13: 0.0 | FYP13: 0.0 | FYQ13: 0.0 | FYR13: 0.0 | FYS13: 0.0 | FYT13: 0.0 | FYU13: 0.0 | FYV13: 0.0 | FYW13: 0.0 | FYX13: 0.0 | FYY13: 0.0 | FYZ13: 0.0 | FZA13: 0.0 | FZB13: 0.0 | FZC13: 0.0 | FZD13: 0.0 | FZE13: 0.0 | FZF13: 0.0 | FZG13: 0.0 | FZH13: 0.0 | FZI13: 0.0 | FZJ13: 0.0 | FZK13: 0.0 | FZL13: 0.0 | FZM13: 0.0 | FZN13: 0.0 | FZO13: 0.0 | FZP13: 0.0 | FZQ13: 0.0 | FZR13: 0.0 | FZS13: 0.0 | FZT13: 0.0 | FZU13: 0.0 | FZV13: 0.0 | FZW13: 0.0 | FZX13: 0.0 | FZY13: 0.0 | FZZ13: 0.0 | GAA13: 0.0 | GAB13: 0.0 | GAC13: 0.0 | GAD13: 0.0 | GAE13: 0.0 | GAF13: 0.0 | GAG13: 0.0 | GAH13: 0.0 | GAI13: 0.0 | GAJ13: 0.0 | GAK13: 0.0 | GAL13: 0.0 | GAM13: 0.0 | GAN13: 0.0 | GAO13: 0.0 | GAP13: 0.0 | GAQ13: 0.0 | GAR13: 0.0 | GAS13: 0.0 | GAT13: 0.0 | GAU13: 0.0 | GAV13: 0.0 | GAW13: 0.0 | GAX13: 0.0 | GAY13: 0.0 | GAZ13: 0.0 | GBA13: 0.0 | GBB13: 0.0 | GBC13: 0.0 | GBD13: 0.0 | GBE13: 0.0 | GBF13: 0.0 | GBG13: 0.0 | GBH13: 0.0 | GBI13: 0.0 | GBJ13: 0.0 | GBK13: 0.0 | GBL13: 0.0 | GBM13: 0.0 | GBN13: 0.0 | GBO13: 0.0 | GBP13: 0.0 | GBQ13: 0.0 | GBR13: 0.0 | GBS13: 0.0 | GBT13: 0.0 | GBU13: 0.0 | GBV13: 0.0 | GBW13: 0.0 | GBX13: 0.0 | GBY13: 0.0 | GBZ13: 0.0 | GCA13: 0.0 | GCB13: 0.0 | GCC13: 0.0 | GCD13: 0.0 | GCE13: 0.0 | GCF13: 0.0 | GCG13: 0.0 | GCH13: 0.0 | GCI13: 0.0 | GCJ13: 0.0 | GCK13: 0.0 | GCL13: 0.0 | GCM13: 0.0 | GCN13: 0.0 | GCO13: 0.0 | GCP13: 0.0 | GCQ13: 0.0 | GCR13: 0.0 | GCS13: 0.0 | GCT13: 0.0 | GCU13: 0.0 | GCV13: 0.0 | GCW13: 0.0 | GCX13: 0.0 | GCY13: 0.0 | GCZ13: 0.0 | GDA13: 0.0 | GDB13: 0.0 | GDC13: 0.0 | GDD13: 0.0 | GDE13: 0.0 | GDF13: 0.0 | GDG13: 0.0 | GDH13: 0.0 | GDI13: 0.0 | GDJ13: 0.0 | GDK13: 0.0 | GDL13: 0.0 | GDM13: 0.0 | GDN13: 0.0 | GDO13: 0.0 | GDP13: 0.0 | GDQ13: 0.0 | GDR13: 0.0 | GDS13: 0.0 | GDT13: 0.0 | GDU13: 0.0 | GDV13: 0.0 | GDW13: 0.0 | GDX13: 0.0 | GDY13: 0.0 | GDZ13: 0.0 | GEA13: 0.0 | GEB13: 0.0 | GEC13: 0.0 | GED13: 0.0 | GEE13: 0.0 | GEF13: 0.0 | GEG13: 0.0 | GEH13: 0.0 | GEI13: 0.0 | GEJ13: 0.0 | GEK13: 0.0 | GEL13: 0.0 | GEM13: 0.0 | GEN13: 0.0 | GEO13: 0.0 | GEP13: 0.0 | GEQ13: 0.0 | GER13: 0.0 | GES13: 0.0 | GET13: 0.0 | GEU13: 0.0 | GEV13: 0.0 | GEW13: 0.0 | GEX13: 0.0 | GEY13: 0.0 | GEZ13: 0.0 | GFA13: 0.0 | GFB13: 0.0 | GFC13: 0.0 | GFD13: 0.0 | GFE13: 0.0 | GFF13: 0.0 | GFG13: 0.0 | GFH13: 0.0 | GFI13: 0.0 | GFJ13: 0.0 | GFK13: 0.0 | GFL13: 0.0 | GFM13: 0.0 | GFN13: 0.0 | GFO13: 0.0 | GFP13: 0.0 | GFQ13: 0.0 | GFR13: 0.0 | GFS13: 0.0 | GFT13: 0.0 | GFU13: 0.0 | GFV13: 0.0 | GFW13: 0.0 | GFX13: 0.0 | GFY13: 0.0 | GFZ13: 0.0 | GGA13: 0.0 | GGB13: 0.0 | GGC13: 0.0 | GGD13: 0.0 | GGE13: 0.0 | GGF13: 0.0 | GGG13: 0.0 | GGH13: 0.0 | GGI13: 0.0 | GGJ13: 0.0 | GGK13: 0.0 | GGL13: 0.0 | GGM13: 0.0 | GGN13: 0.0 | GGO13: 0.0 | GGP13: 0.0 | GGQ13: 0.0 | GGR13: 0.0 | GGS13: 0.0 | GGT13: 0.0 | GGU13: 0.0 | GGV13: 0.0 | GGW13: 0.0 | GGX13: 0.0 | GGY13: 0.0 | GGZ13: 0.0 | GHA13: 0.0 | GHB13: 0.0 | GHC13: 0.0 | GHD13: 0.0 | GHE13: 0.0 | GHF13: 0.0 | GHG13: 0.0 | GHH13: 0.0 | GHI13: 0.0 | GHJ13: 0.0 | GHK13: 0.0 | GHL13: 0.0 | GHM13: 0.0 | GHN13: 0.0 | GHO13: 0.0 | GHP13: 0.0 | GHQ13: 0.0 | GHR13: 0.0 | GHS13: 0.0 | GHT13: 0.0 | GHU13: 0.0 | GHV13: 0.0 | GHW13: 0.0 | GHX13: 0.0 | GHY13: 0.0 | GHZ13: 0.0 | GIA13: 0.0 | GIB13: 0.0 | GIC13: 0.0 | GID13: 0.0 | GIE13: 0.0 | GIF13: 0.0 | GIG13: 0.0 | GIH13: 0.0 | GII13: 0.0 | GIJ13: 0.0 | GIK13: 0.0 | GIL13: 0.0 | GIM13: 0.0 | GIN13: 0.0 | GIO13: 0.0 | GIP13: 0.0 | GIQ13: 0.0 | GIR13: 0.0 | GIS13: 0.0 | GIT13: 0.0 | GIU13: 0.0 | GIV13: 0.0 | GIW13: 0.0 | GIX13: 0.0 | GIY13: 0.0 | GIZ13: 0.0 | GJA13: 0.0 | GJB13: 0.0 | GJC13: 0.0 | GJD13: 0.0 | GJE13: 0.0 | GJF13: 0.0 | GJG13: 0.0 | GJH13: 0.0 | GJI13: 0.0 | GJJ13: 0.0 | GJK13: 0.0 | GJL13: 0.0 | GJM13: 0.0 | GJN13: 0.0 | GJO13: 0.0 | GJP13: 0.0 | GJQ13: 0.0 | GJR13: 0.0 | GJS13: 0.0 | GJT13: 0.0 | GJU13: 0.0 | GJV13: 0.0 | GJW13: 0.0 | GJX13: 0.0 | GJY13: 0.0 | GJZ13: 0.0 | GKA13: 0.0 | GKB13: 0.0 | GKC13: 0.0 | GKD13: 0.0 | GKE13: 0.0 | GKF13: 0.0 | GKG13: 0.0 | GKH13: 0.0 | GKI13: 0.0 | GKJ13: 0.0 | GKK13: 0.0 | GKL13: 0.0 | GKM13: 0.0 | GKN13: 0.0 | GKO13: 0.0 | GKP13: 0.0 | GKQ13: 0.0 | GKR13: 0.0 | GKS13: 0.0 | GKT13: 0.0 | GKU13: 0.0 | GKV13: 0.0 | GKW13: 0.0 | GKX13: 0.0 | GKY13: 0.0 | GKZ13: 0.0 | GLA13: 0.0 | GLB13: 0.0 | GLC13: 0.0 | GLD13: 0.0 | GLE13: 0.0 | GLF13: 0.0 | GLG13: 0.0 | GLH13: 0.0 | GLI13: 0.0 | GLJ13: 0.0 | GLK13: 0.0 | GLL13: 0.0 | GLM13: 0.0 | GLN13: 0.0 | GLO13: 0.0 | GLP13: 0.0 | GLQ13: 0.0 | GLR13: 0.0 | GLS13: 0.0 | GLT13: 0.0 | GLU13: 0.0 | GLV13: 0.0 | GLW13: 0.0 | GLX13: 0.0 | GLY13: 0.0 | GLZ13: 0.0 | GMA13: 0.0 | GMB13: 0.0 | GMC13: 0.0 | GMD13: 0.0 | GME13: 0.0 | GMF13: 0.0 | GMG13: 0.0 | GMH13: 0.0 | GMI13: 0.0 | GMJ13: 0.0 | GMK13: 0.0 | GML13: 0.0 | GMM13: 0.0 | GMN13: 0.0 | GMO13: 0.0 | GMP13: 0.0 | GMQ13: 0.0 | GMR13: 0.0 | GMS13: 0.0 | GMT13: 0.0 | GMU13: 0.0 | GMV13: 0.0 | GMW13: 0.0 | GMX13: 0.0 | GMY13: 0.0 | GMZ13: 0.0 | GNA13: 0.0 | GNB13: 0.0 | GNC13: 0.0 | GND13: 0.0 | GNE13: 0.0 | GNF13: 0.0 | GNG13: 0.0 | GNH13: 0.0 | GNI13: 0.0 | GNJ13: 0.0 | GNK13: 0.0 | GNL13: 0.0 | GNM13: 0.0 | GNN13: 0.0 | GNO13: 0.0 | GNP13: 0.0 | GNQ13: 0.0 | GNR13: 0.0 | GNS13: 0.0 | GNT13: 0.0 | GNU13: 0.0 | GNV13: 0.0 | GNW13: 0.0 | GNX13: 0.0 | GNY13: 0.0 | GNZ13: 0.0 | GOA13: 0.0 | GOB13: 0.0 | GOC13: 0.0 | GOD13: 0.0 | GOE13: 0.0 | GOF13: 0.0 | GOG13: 0.0 | GOH13: 0.0 | GOI13: 0.0 | GOJ13: 0.0 | GOK13: 0.0 | GOL13: 0.0 | GOM13: 0.0 | GON13: 0.0 | GOO13: 0.0 | GOP13: 0.0 | GOQ13: 0.0 | GOR13: 0.0 | GOS13: 0.0 | GOT13: 0.0 | GOU13: 0.0 | GOV13: 0.0 | GOW13: 0.0 | GOX13: 0.0 | GOY13: 0.0 | GOZ13: 0.0 | GPA13: 0.0 | GPB13: 0.0 | GPC13: 0.0 | GPD13: 0.0 | GPE13: 0.0 | GPF13: 0.0 | GPG13: 0.0 | GPH13: 0.0 | GPI13: 0.0 | GPJ13: 0.0 | GPK13: 0.0 | GPL13: 0.0 | GPM13: 0.0 | GPN13: 0.0 | GPO13: 0.0 | GPP13: 0.0 | GPQ13: 0.0 | GPR13: 0.0 | GPS13: 0.0 | GPT13: 0.0 | GPU13: 0.0 | GPV13: 0.0 | GPW13: 0.0 | GPX13: 0.0 | GPY13: 0.0 | GPZ13: 0.0 | GQA13: 0.0 | GQB13: 0.0 | GQC13: 0.0 | GQD13: 0.0 | GQE13: 0.0 | GQF13: 0.0 | GQG13: 0.0 | GQH13: 0.0 | GQI13: 0.0 | GQJ13: 0.0 | GQK13: 0.0 | GQL13: 0.0 | GQM13: 0.0 | GQN13: 0.0 | GQO13: 0.0 | GQP13: 0.0 | GQQ13: 0.0 | GQR13: 0.0 | GQS13: 0.0 | GQT13: 0.0 | GQU13: 0.0 | GQV13: 0.0 | GQW13: 0.0 | GQX13: 0.0 | GQY13: 0.0 | GQZ13: 0.0 | GRA13: 0.0 | GRB13: 0.0 | GRC13: 0.0 | GRD13: 0.0 | GRE13: 0.0 | GRF13: 0.0 | GRG13: 0.0 | GRH13: 0.0 | GRI13: 0.0 | GRJ13: 0.0 | GRK13: 0.0 | GRL13: 0.0 | GRM13: 0.0 | GRN13: 0.0 | GRO13: 0.0 | GRP13: 0.0 | GRQ13: 0.0 | GRR13: 0.0 | GRS13: 0.0 | GRT13: 0.0 | GRU13: 0.0 | GRV13: 0.0 | GRW13: 0.0 | GRX13: 0.0 | GRY13: 0.0 | GRZ13: 0.0 | GSA13: 0.0 | GSB13: 0.0 | GSC13: 0.0 | GSD13: 0.0 | GSE13: 0.0 | GSF13: 0.0 | GSG13: 0.0 | GSH13: 0.0 | GSI13: 0.0 | GSJ13: 0.0 | GSK13: 0.0 | GSL13: 0.0 | GSM13: 0.0 | GSN13: 0.0 | GSO13: 0.0 | GSP13: 0.0 | GSQ13: 0.0 | GSR13: 0.0 | GSS13: 0.0 | GST13: 0.0 | GSU13: 0.0 | GSV13: 0.0 | GSW13: 0.0 | GSX13: 0.0 | GSY13: 0.0 | GSZ13: 0.0 | GTA13: 0.0 | GTB13: 0.0 | GTC13: 0.0 | GTD13: 0.0 | GTE13: 0.0 | GTF13: 0.0 | GTG13: 0.0 | GTH13: 0.0 | GTI13: 0.0 | GTJ13: 0.0 | GTK13: 0.0 | GTL13: 0.0 | GTM13: 0.0 | GTN13: 0.0 | GTO13: 0.0 | GTP13: 0.0 | GTQ13: 0.0 | GTR13: 0.0 | GTS13: 0.0 | GTT13: 0.0 | GTU13: 0.0 | GTV13: 0.0 | GTW13: 0.0 | GTX13: 0.0 | GTY13: 0.0 | GTZ13: 0.0 | GUA13: 0.0 | GUB13: 0.0 | GUC13: 0.0 | GUD13: 0.0 | GUE13: 0.0 | GUF13: 0.0 | GUG13: 0.0 | GUH13: 0.0 | GUI13: 0.0 | GUJ13: 0.0 | GUK13: 0.0 | GUL13: 0.0 | GUM13: 0.0 | GUN13: 0.0 | GUO13: 0.0 | GUP13: 0.0 | GUQ13: 0.0 | GUR13: 0.0 | GUS13: 0.0 | GUT13: 0.0 | GUU13: 0.0 | GUV13: 0.0 | GUW13: 0.0 | GUX13: 0.0 | GUY13: 0.0 | GUZ13: 0.0 | GVA13: 0.0 | GVB13: 0.0 | GVC13: 0.0 | GVD13: 0.0 | GVE13: 0.0 | GVF13: 0.0 | GVG13: 0.0 | GVH13: 0.0 | GVI13: 0.0 | GVJ13: 0.0 | GVK13: 0.0 | GVL13: 0.0 | GVM13: 0.0 | GVN13: 0.0 | GVO13: 0.0 | GVP13: 0.0 | GVQ13: 0.0 | GVR13: 0.0 | GVS13: 0.0 | GVT13: 0.0 | GVU13: 0.0 | GVV13: 0.0 | GVW13: 0.0 | GVX13: 0.0 | GVY13: 0.0 | GVZ13: 0.0 | GWA13: 0.0 | GWB13: 0.0 | GWC13: 0.0 | GWD13: 0.0 | GWE13: 0.0 | GWF13: 0.0 | GWG13: 0.0 | GWH13: 0.0 | GWI13: 0.0 | GWJ13: 0.0 | GWK13: 0.0 | GWL13: 0.0 | GWM13: 0.0 | GWN13: 0.0 | GWO13: 0.0 | GWP13: 0.0 | GWQ13: 0.0 | GWR13: 0.0 | GWS13: 0.0 | GWT13: 0.0 | GWU13: 0.0 | GWV13: 0.0 | GWW13: 0.0 | GWX13: 0.0 | GWY13: 0.0 | GWZ13: 0.0 | GXA13: 0.0 | GXB13: 0.0 | GXC13: 0.0 | GXD13: 0.0 | GXE13: 0.0 | GXF13: 0.0 | GXG13: 0.0 | GXH13: 0.0 | GXI13: 0.0 | GXJ13: 0.0 | GXK13: 0.0 | GXL13: 0.0 | GXM13: 0.0 | GXN13: 0.0 | GXO13: 0.0 | GXP13: 0.0 | GXQ13: 0.0 | GXR13: 0.0 | GXS13: 0.0 | GXT13: 0.0 | GXU13: 0.0 | GXV13: 0.0 | GXW13: 0.0 | GXX13: 0.0 | GXY13: 0.0 | GXZ13: 0.0 | GYA13: 0.0 | GYB13: 0.0 | GYC13: 0.0 | GYD13: 0.0 | GYE13: 0.0 | GYF13: 0.0 | GYG13: 0.0 | GYH13: 0.0 | GYI13: 0.0 | GYJ13: 0.0 | GYK13: 0.0 | GYL13: 0.0 | GYM13: 0.0 | GYN13: 0.0 | GYO13: 0.0 | GYP13: 0.0 | GYQ13: 0.0 | GYR13: 0.0 | GYS13: 0.0 | GYT13: 0.0 | GYU13: 0.0 | GYV13: 0.0 | GYW13: 0.0 | GYX13: 0.0 | GYY13: 0.0 | GYZ13: 0.0 | GZA13: 0.0 | GZB13: 0.0 | GZC13: 0.0 | GZD13: 0.0 | GZE13: 0.0 | GZF13: 0.0 | GZG13: 0.0 | GZH13: 0.0 | GZI13: 0.0 | GZJ13: 0.0 | GZK13: 0.0 | GZL13: 0.0 | GZM13: 0.0 | GZN13: 0.0 | GZO13: 0.0 | GZP13: 0.0 | GZQ13: 0.0 | GZR13: 0.0 | GZS13: 0.0 | GZT13: 0.0 | GZU13: 0.0 | GZV13: 0.0 | GZW13: 0.0 | GZX13: 0.0 | GZY13: 0.0 | GZZ13: 0.0 | HAA13: 0.0 | HAB13: 0.0 | HAC13: 0.0 | HAD13: 0.0 | HAE13: 0.0 | HAF13: 0.0 | HAG13: 0.0 | HAH13: 0.0 | HAI13: 0.0 | HAJ13: 0.0 | HAK13: 0.0 | HAL13: 0.0 | HAM13: 0.0 | HAN13: 0.0 | HAO13: 0.0 | HAP13: 0.0 | HAQ13: 0.0 | HAR13: 0.0 | HAS13: 0.0 | HAT13: 0.0 | HAU13: 0.0 | HAV13: 0.0 | HAW13: 0.0 | HAX13: 0.0 | HAY13: 0.0 | HAZ13: 0.0 | HBA13: 0.0 | HBB13: 0.0 | HBC13: 0.0 | HBD13: 0.0 | HBE13: 0.0 | HBF13: 0.0 | HBG13: 0.0 | HBH13: 0.0 | HBI13: 0.0 | HBJ13: 0.0 | HBK13: 0.0 | HBL13: 0.0 | HBM13: 0.0 | HBN13: 0.0 | HBO13: 0.0 | HBP13: 0.0 | HBQ13: 0.0 | HBR13: 0.0 | HBS13: 0.0 | HBT13: 0.0 | HBU13: 0.0 | HBV13: 0.0 | HBW13: 0.0 | HBX13: 0.0 | HBY13: 0.0 | HBZ13: 0.0 | HCA13: 0.0 | HCB13: 0.0 | HCC13: 0.0 | HCD13: 0.0 | HCE13: 0.0 | HCF13: 0.0 | HCG13: 0.0 | HCH13: 0.0 | HCI13: 0.0 | HCJ13: 0.0 | HCK13: 0.0 | HCL13: 0.0 | HCM13: 0.0 | HCN13: 0.0 | HCO13: 0.0 | HCP13: 0.0 | HCQ13: 0.0 | HCR13: 0.0 | HCS13: 0.0 | HCT13: 0.0 | HCU13: 0.0 | HCV13: 0.0 | HCW13: 0.0 | HCX13: 0.0 | HCY13: 0.0 | HCZ13: 0.0 | HDA13: 0.0 | HDB13: 0.0 | HDC13: 0.0 | HDD13: 0.0 | HDE13: 0.0 | HDF13: 0.0 | HDG13: 0.0 | HDH13: 0.0 | HDI13: 0.0 | HDJ13: 0.0 | HDK13: 0.0 | HDL13: 0.0 | HDM13: 0.0 | HDN13: 0.0 | HDO13: 0.0 | HDP13: 0.0 | HDQ13: 0.0 | HDR13: 0.0 | HDS13: 0.0 | HDT13: 0.0 | HDU13: 0.0 | HDV13: 0.0 | HDW13: 0.0 | HDX13: 0.0 | HDY13: 0.0 | HDZ13: 0.0 | HEA13: 0.0 | HEB13: 0.0 | HEC13: 0.0 | HED13: 0.0 | HEE13: 0.0 | HEF13: 0.0 | HEG13: 0.0 | HEH13: 0.0 | HEI13: 0.0 | HEJ13: 0.0 | HEK13: 0.0 | HEL13: 0.0 | HEM13: 0.0 | HEN13: 0.0 | HEO13: 0.0 | HEP13: 0.0 | HEQ13: 0.0 | HER13: 0.0 | HES13: 0.0 | HET13: 0.0 | HEU13: 0.0 | HEV13: 0.0 | HEW13: 0.0 | HEX13: 0.0 | HEY13: 0.0 | HEZ13: 0.0 | HFA13: 0.0 | HFB13: 0.0 | HFC13: 0.0 | HFD13: 0.0 | HFE13: 0.0 | HFF13: 0.0 | HFG13: 0.0 | HFH13: 0.0 | HFI13: 0.0 | HFJ13: 0.0 | HFK13: 0.0 | HFL13: 0.0 | HFM13: 0.0 | HFN13: 0.0 | HFO13: 0.0 | HFP13: 0.0 | HFQ13: 0.0 | HFR13: 0.0 | HFS13: 0.0 | HFT13: 0.0 | HFU13: 0.0 | HFV13: 0.0 | HFW13: 0.0 | HFX13: 0.0 | HFY13: 0.0 | HFZ13: 0.0 | HGA13: 0.0 | HGB13: 0.0 | HGC13: 0.0 | HGD13: 0.0 | HGE13: 0.0 | HGF13: 0.0 | HGG13: 0.0 | HGH13: 0.0 | HGI13: 0.0 | HGJ13: 0.0 | HGK13: 0.0 | HGL13: 0.0 | HGM13: 0.0 | HGN13: 0.0 | HGO13: 0.0 | HGP13: 0.0 | HGQ13: 0.0 | HGR13: 0.0 | HGS13: 0.0 | HGT13: 0.0 | HGU13: 0.0 | HGV13: 0.0 | HGW13: 0.0 | HGX13: 0.0 | HGY13: 0.0 | HGZ13: 0.0 | HHA13: 0.0 | HHB13: 0.0 | HHC13: 0.0 | HHD13: 0.0 | HHE13: 0.0 | HHF13: 0.0 | HHG13: 0.0 | HHH13: 0.0 | HHI13: 0.0 | HHJ13: 0.0 | HHK13: 0.0 | HHL13: 0.0 | HHM13: 0.0 | HHN13: 0.0 | HHO13: 0.0 | HHP13: 0.0 | HHQ13: 0.0 | HHR13: 0.0 | HHS13: 0.0 | HHT13: 0.0 | HHU13: 0.0 | HHV13: 0.0 | HHW13: 0.0 | HHX13: 0.0 | HHY13: 0.0 | HHZ13: 0.0 | HIA13: 0.0 | HIB13: 0.0 | HIC13: 0.0 | HID13: 0.0 | HIE13: 0.0 | HIF13: 0.0 | HIG13: 0.0 | HIH13: 0.0 | HII13: 0.0 | HIJ13: 0.0 | HIK13: 0.0 | HIL13: 0.0 | HIM13: 0.0 | HIN13: 0.0 | HIO13: 0.0 | HIP13: 0.0 | HIQ13: 0.0 | HIR13: 0.0 | HIS13: 0.0 | HIT13: 0.0 | HIU13: 0.0 | HIV13: 0.0 | HIW13: 0.0 | HIX13: 0.0 | HIY13: 0.0 | HIZ13: 0.0 | HJA13: 0.0 | HJB13: 0.0 | HJC13: 0.0 | HJD13: 0.0 | HJE13: 0.0 | HJF13: 0.0 | HJG13: 0.0 | HJH13: 0.0 | HJI13: 0.0 | HJJ13: 0.0 | HJK13: 0.0 | HJL13: 0.0 | HJM13: 0.0 | HJN13: 0.0 | HJO13: 0.0 | HJP13: 0.0 | HJQ13: 0.0 | HJR13: 0.0 | HJS13: 0.0 | HJT13: 0.0 | HJU13: 0.0 | HJV13: 0.0 | HJW13: 0.0 | HJX13: 0.0 | HJY13: 0.0 | HJZ13: 0.0 | HKA13: 0.0 | HKB13: 0.0 | HKC13: 0.0 | HKD13: 0.0 | HKE13: 0.0 | HKF13: 0.0 | HKG13: 0.0 | HKH13: 0.0 | HKI13: 0.0 | HKJ13: 0.0 | HKK13: 0.0 | HKL13: 0.0 | HKM13: 0.0 | HKN13: 0.0 | HKO13: 0.0 | HKP13: 0.0 | HKQ13: 0.0 | HKR13: 0.0 | HKS13: 0.0 | HKT13: 0.0 | HKU13: 0.0 | HKV13: 0.0 | HKW13: 0.0 | HKX13: 0.0 | HKY13: 0.0 | HKZ13: 0.0 | HLA13: 0.0 | HLB13: 0.0 | HLC13: 0.0 | HLD13: 0.0 | HLE13: 0.0 | HLF13: 0.0 | HLG13: 0.0 | HLH13: 0.0 | HLI13: 0.0 | HLJ13: 0.0 | HLK13: 0.0 | HLL13: 0.0 | HLM13: 0.0 | HLN13: 0.0 | HLO13: 0.0 | HLP13: 0.0 | HLQ13: 0.0 | HLR13: 0.0 | HLS13: 0.0 | HLT13: 0.0 | HLU13: 0.0 | HLV13: 0.0 | HLW13: 0.0 | HLX13: 0.0 | HLY13: 0.0 | HLZ13: 0.0 | HMA13: 0.0 | HMB13: 0.0 | HMC13: 0.0 | HMD13: 0.0 | HME13: 0.0 | HMF13: 0.0 | HMG13: 0.0 | HMH13: 0.0 | HMI13: 0.0 | HMJ13: 0.0 | HMK13: 0.0 | HML13: 0.0 | HMM13: 0.0 | HMN13: 0.0 | HMO13: 0.0 | HMP13: 0.0 | HMQ13: 0.0 | HMR13: 0.0 | HMS13: 0.0 | HMT13: 0.0 | HMU13: 0.0 | HMV13: 0.0 | HMW13: 0.0 | HMX13: 0.0 | HMY13: 0.0 | HMZ13: 0.0 | HNA13: 0.0 | HNB13: 0.0 | HNC13: 0.0 | HND13: 0.0 | HNE13: 0.0 | HNF13: 0.0 | HNG13: 0.0 | HNH13: 0.0 | HNI13: 0.0 | HNJ13: 0.0 | HNK13: 0.0 | HNL13: 0.0 | HNM13: 0.0 | HNN13: 0.0 | HNO13: 0.0 | HNP13: 0.0 | HNQ13: 0.0 | HNR13: 0.0 | HNS13: 0.0 | HNT13: 0.0 | HNU13: 0.0 | HNV13: 0.0 | HNW13: 0.0 | HNX13: 0.0 | HNY13: 0.0 | HNZ13: 0.0 | HOA13: 0.0 | HOB13: 0.0 | HOC13: 0.0 | HOD13: 0.0 | HOE13: 0.0 | HOF13: 0.0 | HOG13: 0.0 | HOH13: 0.0 | HOI13: 0.0 | HOJ13: 0.0 | HOK13: 0.0 | HOL13: 0.0 | HOM13: 0.0 | HON13: 0.0 | HOO13: 0.0 | HOP13: 0.0 | HOQ13: 0.0 | HOR13: 0.0 | HOS13: 0.0 | HOT13: 0.0 | HOU13: 0.0 | HOV13: 0.0 | HOW13: 0.0 | HOX13: 0.0 | HOY13: 0.0 | HOZ13: 0.0 | HPA13: 0.0 | HPB13: 0.0 | HPC13: 0.0 | HPD13: 0.0 | HPE13: 0.0 | HPF13: 0.0 | HPG13: 0.0 | HPH13: 0.0 | HPI13: 0.0 | HPJ13: 0.0 | HPK13: 0.0 | HPL13: 0.0 | HPM13: 0.0 | HPN13: 0.0 | HPO13: 0.0 | HPP13: 0.0 | HPQ13: 0.0 | HPR13: 0.0 | HPS13: 0.0 | HPT13: 0.0 | HPU13: 0.0 | HPV13: 0.0 | HPW13: 0.0 | HPX13: 0.0 | HPY13: 0.0 | HPZ13: 0.0 | HQA13: 0.0 | HQB13: 0.0 | HQC13: 0.0 | HQD13: 0.0 | HQE13: 0.0 | HQF13: 0.0 | HQG13: 0.0 | HQH13: 0.0 | HQI13: 0.0 | HQJ13: 0.0 | HQK13: 0.0 | HQL13: 0.0 | HQM13: 0.0 | HQN13: 0.0 | HQO13: 0.0 | HQP13: 0.0 | HQQ13: 0.0 | HQR13: 0.0 | HQS13: 0.0 | HQT13: 0.0 | HQU13: 0.0 | HQV13: 0.0 | HQW13: 0.0 | HQX13: 0.0 | HQY13: 0.0 | HQZ13: 0.0 | HRA13: 0.0 | HRB13: 0.0 | HRC13: 0.0 | HRD13: 0.0 | HRE13: 0.0 | HRF13: 0.0 | HRG13: 0.0 | HRH13: 0.0 | HRI13: 0.0 | HRJ13: 0.0 | HRK13: 0.0 | HRL13: 0.0 | HRM13: 0.0 | HRN13: 0.0 | HRO13: 0.0 | HRP13: 0.0 | HRQ13: 0.0 | HRR13: 0.0 | HRS13: 0.0 | HRT13: 0.0 | HRU13: 0.0 | HRV13: 0.0 | HRW13: 0.0 | HRX13: 0.0 | HRY13: 0.0 | HRZ13: 0.0 | HSA13: 0.0 | HSB13: 0.0 | HSC13: 0.0 | HSD13: 0.0 | HSE13: 0.0 | HSF13: 0.0 | HSG13: 0.0 | HSH13: 0.0 | HSI13: 0.0 | HSJ13: 0.0 | HSK13: 0.0 | HSL13: 0.0 | HSM13: 0.0 | HSN13: 0.0 | HSO13: 0.0 | HSP13: 0.0 | HSQ13: 0.0 | HSR13: 0.0 | HSS13: 0.0 | HST13: 0.0 | HSU13: 0.0 | HSV13: 0.0 | HSW13: 0.0 | HSX13: 0.0 | HSY13: 0.0 | HSZ13: 0.0 | HTA13: 0.0 | HTB13: 0.0 | HTC13: 0.0 | HTD13: 0.0 | HTE13: 0.0 | HTF13: 0.0 | HTG13: 0.0 | HTH13: 0.0 | HTI13: 0.0 | HTJ13: 0.0 | HTK13: 0.0 | HTL13: 0.0 | HTM13: 0.0 | HTN13: 0.0 | HTO13: 0.0 | HTP13: 0.0 | HTQ13: 0.0 | HTR13: 0.0 | HTS13: 0.0 | HTT13: 0.0 | HTU13: 0.0 | HTV13: 0.0 | HTW13: 0.0 | HTX13: 0.0 | HTY13: 0.0 | HTZ13: 0.0 | HUA13: 0.0 | HUB13: 0.0 | HUC13: 0.0 | HUD13: 0.0 | HUE13: 0.0 | HUF13: 0.0 | HUG13: 0.0 | HUH13: 0.0 | HUI13: 0.0 | HUJ13: 0.0 | HUK13: 0.0 | HUL13: 0.0 | HUM13: 0.0 | HUN13: 0.0 | HUO13: 0.0 | HUP13: 0.0 | HUQ13: 0.0 | HUR13: 0.0 | HUS13: 0.0 | HUT13: 0.0 | HUU13: 0.0 | HUV13: 0.0 | HUW13: 0.0 | HUX13: 0.0 | HUY13: 0.0 | HUZ13: 0.0 | HVA13: 0.0 | HVB13: 0.0 | HVC13: 0.0 | HVD13: 0.0 | HVE13: 0.0 | HVF13: 0.0 | HVG13: 0.0 | HVH13: 0.0 | HVI13: 0.0 | HVJ13: 0.0 | HVK13: 0.0 | HVL13: 0.0 | HVM13: 0.0 | HVN13: 0.0 | HVO13: 0.0 | HVP13: 0.0 | HVQ13: 0.0 | HVR13: 0.0 | HVS13: 0.0 | HVT13: 0.0 | HVU13: 0.0 | HVV13: 0.0 | HVW13: 0.0 | HVX13: 0.0 | HVY13: 0.0 | HVZ13: 0.0 | HWA13: 0.0 | HWB13: 0.0 | HWC13: 0.0 | HWD13: 0.0 | HWE13: 0.0 | HWF13: 0.0 | HWG13: 0.0 | HWH13: 0.0 | HWI13: 0.0 | HWJ13: 0.0 | HWK13: 0.0 | HWL13: 0.0 | HWM13: 0.0 | HWN13: 0.0 | HWO13: 0.0 | HWP13: 0.0 | HWQ13: 0.0 | HWR13: 0.0 | HWS13: 0.0 | HWT13: 0.0 | HWU13: 0.0 | HWV13: 0.0 | HWW13: 0.0 | HWX13: 0.0 | HWY13: 0.0 | HWZ13: 0.0 | HXA13: 0.0 | HXB13: 0.0 | HXC13: 0.0 | HXD13: 0.0 | HXE13: 0.0 | HXF13: 0.0 | HXG13: 0.0 | HXH13: 0.0 | HXI13: 0.0 | HXJ13: 0.0 | HXK13: 0.0 | HXL13: 0.0 | HXM13: 0.0 | HXN13: 0.0 | HXO13: 0.0 | HXP13: 0.0 | HXQ13: 0.0 | HXR13: 0.0 | HXS13: 0.0 | HXT13: 0.0 | HXU13: 0.0 | HXV13: 0.0 | HXW13: 0.0 | HXX13: 0.0 | HXY13: 0.0 | HXZ13: 0.0 | HYA13: 0.0 | HYB13: 0.0 | HYC13: 0.0 | HYD13: 0.0 | HYE13: 0.0 | HYF13: 0.0 | HYG13: 0.0 | HYH13: 0.0 | HYI13: 0.0 | HYJ13: 0.0 | HYK13: 0.0 | HYL13: 0.0 | HYM13: 0.0 | HYN13: 0.0 | HYO13: 0.0 | HYP13: 0.0 | HYQ13: 0.0 | HYR13: 0.0 | HYS13: 0.0 | HYT13: 0.0 | HYU13: 0.0 | HYV13: 0.0 | HYW13: 0.0 | HYX13: 0.0 | HYY13: 0.0 | HYZ13: 0.0 | HZA13: 0.0 | HZB13: 0.0 | HZC13: 0.0 | HZD13: 0.0 | HZE13: 0.0 | HZF13: 0.0 | HZG13: 0.0 | HZH13: 0.0 | HZI13: 0.0 | HZJ13: 0.0 | HZK13: 0.0 | HZL13: 0.0 | HZM13: 0.0 | HZN13: 0.0 | HZO13: 0.0 | HZP13: 0.0 | HZQ13: 0.0 | HZR13: 0.0 | HZS13: 0.0 | HZT13: 0.0 | HZU13: 0.0 | HZV13: 0.0 | HZW13: 0.0 | HZX13: 0.0 | HZY13: 0.0 | HZZ13: 0.0 | IAA13: 0.0 | IAB13: 0.0 | IAC13: 0.0 | IAD13: 0.0 | IAE13: 0.0 | IAF13: 0.0 | IAG13: 0.0 | IAH13: 0.0 | IAI13: 0.0 | IAJ13: 0.0 | IAK13: 0.0 | IAL13: 0.0 | IAM13: 0.0 | IAN13: 0.0 | IAO13: 0.0 | IAP13: 0.0 | IAQ13: 0.0 | IAR13: 0.0 | IAS13: 0.0 | IAT13: 0.0 | IAU13: 0.0 | IAV13: 0.0 | IAW13: 0.0 | IAX13: 0.0 | IAY13: 0.0 | IAZ13: 0.0 | IBA13: 0.0 | IBB13: 0.0 | IBC13: 0.0 | IBD13: 0.0 | IBE13: 0.0 | IBF13: 0.0 | IBG13: 0.0 | IBH13: 0.0 | IBI13: 0.0 | IBJ13: 0.0 | IBK13: 0.0 | IBL13: 0.0 | IBM13: 0.0 | IBN13: 0.0 | IBO13: 0.0 | IBP13: 0.0 | IBQ13: 0.0 | IBR13: 0.0 | IBS13: 0.0 | IBT13: 0.0 | IBU13: 0.0 | IBV13: 0.0 | IBW13: 0.0 | IBX13: 0.0 | IBY13: 0.0 | IBZ13: 0.0 | ICA13: 0.0 | ICB13: 0.0 | ICC13: 0.0 | ICD13: 0.0 | ICE13: 0.0 | ICF13: 0.0 | ICG13: 0.0 | ICH13: 0.0 | ICI13: 0.0 | ICJ13: 0.0 | ICK13: 0.0 | ICL13: 0.0 | ICM13: 0.0 | ICN13: 0.0 | ICO13: 0.0 | ICP13: 0.0 | ICQ13: 0.0 | ICR13: 0.0 | ICS13: 0.0 | ICT13: 0.0 | ICU13: 0.0 | ICV13: 0.0 | ICW13: 0.0 | ICX13: 0.0 | ICY13: 0.0 | ICZ13: 0.0 | IDA13: 0.0 | IDB13: 0.0 | IDC13: 0.0 | IDD13: 0.0 | IDE13: 0.0 | IDF13: 0.0 | IDG13: 0.0 | IDH13: 0.0 | IDI13: 0.0 | IDJ13: 0.0 | IDK13: 0.0 | IDL13: 0.0 | IDM13: 0.0 | IDN13: 0.0 | IDO13: 0.0 | IDP13: 0.0 | IDQ13: 0.0 | IDR13: 0.0 | IDS13: 0.0 | IDT13: 0.0 | IDU13: 0.0 | IDV13: 0.0 | IDW13: 0.0 | IDX13: 0.0 | IDY13: 0.0 | IDZ13: 0.0 | IEA13: 0.0 | IEB13: 0.0 | IEC13: 0.0 | IED13: 0.0 | IEE13: 0.0 | IEF13: 0.0 | IEG13: 0.0 | IEH13: 0.0 | IEI13: 0.0 | IEJ13: 0.0 | IEK13: 0.0 | IEL13: 0.0 | IEM13: 0.0 | IEN13: 0.0 | IEO13: 0.0 | IEP13: 0.0 | IEQ13: 0.0 | IER13: 0.0 | IES13: 0.0 | IET13: 0.0 | IEU13: 0.0 | IEV13: 0.0 | IEW13: 0.0 | IEX13: 0.0 | IEY13: 0.0 | IEZ13: 0.0 | IFA13: 0.0 | IFB13: 0.0 | IFC13: 0.0 | IFD13: 0.0 | IFE13: 0.0 | IFF13: 0.0 | IFG13: 0.0 | IFH13: 0.0 | IFI13: 0.0 | IFJ13: 0.0 | IFK13: 0.0 | IFL13: 0.0 | IFM13: 0.0 | IFN13: 0.0 | IFO13: 0.0 | IFP13: 0.0 | IFQ13: 0.0 | IFR13: 0.0 | IFS13: 0.0 | IFT13: 0.0 | IFU13: 0.0 | IFV13: 0.0 | IFW13: 0.0 | IFX13: 0.0 | IFY13: 0.0 | IFZ13: 0.0 | IGA13: 0.0 | IGB13: 0.0 | IGC13: 0.0 | IGD13: 0.0 | IGE13: 0.0 | IGF13: 0.0 | IGG13: 0.0 | IGH13: 0.0 | IGI13: 0.0 | IGJ13: 0.0 | IGK13: 0.0 | IGL13: 0.0 | IGM13: 0.0 | IGN13: 0.0 | IGO13: 0.0 | IGP13: 0.0 | IGQ13: 0.0 | IGR13: 0.0 | IGS13: 0.0 | IGT13: 0.0 | IGU13: 0.0 | IGV13: 0.0 | IGW13: 0.0 | IGX13: 0.0 | IGY13: 0.0 | IGZ13: 0.0 | IHA13: 0.0 | IHB13: 0.0 | IHC13: 0.0 | IHD13: 0.0 | IHE13: 0.0 | IHF13: 0.0 | IHG13: 0.0 | IHH13: 0.0 | IHI13: 0.0 | IHJ13: 0.0 | IHK13: 0.0 | IHL13: 0.0 | IHM13: 0.0 | IHN13: 0.0 | IHO13: 0.0 | IHP13: 0.0 | IHQ13: 0.0 | IHR13: 0.0 | IHS13: 0.0 | IHT13: 0.0 | IHU13: 0.0 | IHV13: 0.0 | IHW13: 0.0 | IHX13: 0.0 | IHY13: 0.0 | IHZ13: 0.0 | IIA13: 0.0 | IIB13: 0.0 | IIC13: 0.0 | IID13: 0.0 | IIE13: 0.0 | IIF13: 0.0 | IIG13: 0.0 | IIH13: 0.0 | III13: 0.0 | IIJ13: 0.0 | IIK13: 0.0 | IIL13: 0.0 | IIM13: 0.0 | IIN13: 0.0 | IIO13: 0.0 | IIP13: 0.0 | IIQ13: 0.0 | IIR13: 0.0 | IIS13: 0.0 | IIT13: 0.0 | IIU13: 0.0 | IIV13: 0.0 | IIW13: 0.0 | IIX13: 0.0 | IIY13: 0.0 | IIZ13: 0.0 | IJA13: 0.0 | IJB13: 0.0 | IJC13: 0.0 | IJD13: 0.0 | IJE13: 0.0 | IJF13: 0.0 | IJG13: 0.0 | IJH13: 0.0 | IJI13: 0.0 | IJJ13: 0.0 | IJK13: 0.0 | IJL13: 0.0 | IJM13: 0.0 | IJN13: 0.0 | IJO13: 0.0 | IJP13: 0.0 | IJQ13: 0.0 | IJR13: 0.0 | IJS13: 0.0 | IJT13: 0.0 | IJU13: 0.0 | IJV13: 0.0 | IJW13: 0.0 | IJX13: 0.0 | IJY13: 0.0 | IJZ13: 0.0 | IKA13: 0.0 | IKB13: 0.0 | IKC13: 0.0 | IKD13: 0.0 | IKE13: 0.0 | IKF13: 0.0 | IKG13: 0.0 | IKH13: 0.0 | IKI13: 0.0 | IKJ13: 0.0 | IKK13: 0.0 | IKL13: 0.0 | IKM13: 0.0 | IKN13: 0.0 | IKO13: 0.0 | IKP13: 0.0 | IKQ13: 0.0 | IKR13: 0.0 | IKS13: 0.0 | IKT13: 0.0 | IKU13: 0.0 | IKV13: 0.0 | IKW13: 0.0 | IKX13: 0.0 | IKY13: 0.0 | IKZ13: 0.0 | ILA13: 0.0 | ILB13: 0.0 | ILC13: 0.0 | ILD13: 0.0 | ILE13: 0.0 | ILF13: 0.0 | ILG13: 0.0 | ILH13: 0.0 | ILI13: 0.0 | ILJ13: 0.0 | ILK13: 0.0 | ILL13: 0.0 | ILM13: 0.0 | ILN13: 0.0 | ILO13: 0.0 | ILP13: 0.0 | ILQ13: 0.0 | ILR13: 0.0 | ILS13: 0.0 | ILT13: 0.0 | ILU13: 0.0 | ILV13: 0.0 | ILW13: 0.0 | ILX13: 0.0 | ILY13: 0.0 | ILZ13: 0.0 | IMA13: 0.0 | IMB13: 0.0 | IMC13: 0.0 | IMD13: 0.0 | IME13: 0.0 | IMF13: 0.0 | IMG13: 0.0 | IMH13: 0.0 | IMI13: 0.0 | IMJ13: 0.0 | IMK13: 0.0 | IML13: 0.0 | IMM13: 0.0 | IMN13: 0.0 | IMO13: 0.0 | IMP13: 0.0 | IMQ13: 0.0 | IMR13: 0.0 | IMS13: 0.0 | IMT13: 0.0 | IMU13: 0.0 | IMV13: 0.0 | IMW13: 0.0 | IMX13: 0.0 | IMY13: 0.0 | IMZ13: 0.0 | INA13: 0.0 | INB13: 0.0 | INC13: 0.0 | IND13: 0.0 | INE13: 0.0 | INF13: 0.0 | ING13: 0.0 | INH13: 0.0 | INI13: 0.0 | INJ13: 0.0 | INK13: 0.0 | INL13: 0.0 | INM13: 0.0 | INN13: 0.0 | INO13: 0.0 | INP13: 0.0 | INQ13: 0.0 | INR13: 0.0 | INS13: 0.0 | INT13: 0.0 | INU13: 0.0 | INV13: 0.0 | INW13: 0.0 | INX13: 0.0 | INY13: 0.0 | INZ13: 0.0 | IOA13: 0.0 | IOB13: 0.0 | IOC13: 0.0 | IOD13: 0.0 | IOE13: 0.0 | IOF13: 0.0 | IOG13: 0.0 | IOH13: 0.0 | IOI13: 0.0 | IOJ13: 0.0 | IOK13: 0.0 | IOL13: 0.0 | IOM13: 0.0 | ION13: 0.0 | IOO13: 0.0 | IOP13: 0.0 | IOQ13: 0.0 | IOR13: 0.0 | IOS13: 0.0 | IOT13: 0.0 | IOU13: 0.0 | IOV13: 0.0 | IOW13: 0.0 | IOX13: 0.0 | IOY13: 0.0 | IOZ13: 0.0 | IPA13: 0.0 | IPB13: 0.0 | IPC13: 0.0 | IPD13: 0.0 | IPE13: 0.0 | IPF13: 0.0 | IPG13: 0.0 | IPH13: 0.0 | IPI13: 0.0 | IPJ13: 0.0 | IPK13: 0.0 | IPL13: 0.0 | IPM13: 0.0 | IPN13: 0.0 | IPO13: 0.0 | IPP13: 0.0 | IPQ13: 0.0 | IPR13: 0.0 | IPS13: 0.0 | IPT13: 0.0 | IPU13: 0.0 | IPV13: 0.0 | IPW13: 0.0 | IPX13: 0.0 | IPY13: 0.0 | IPZ13: 0.0 | IQA13: 0.0 | IQB13: 0.0 | IQC13: 0.0 | IQD13: 0.0 | IQE13: 0.0 | IQF13: 0.0 | IQG13: 0.0 | IQH13: 0.0 | IQI13: 0.0 | IQJ13: 0.0 | IQK13: 0.0 | IQL13: 0.0 | IQM13: 0.0 | IQN13: 0.0 | IQO13: 0.0 | IQP13: 0.0 | IQQ13: 0.0 | IQR13: 0.0 | IQS13: 0.0 | IQT13: 0.0 | IQU13: 0.0 | IQV13: 0.0 | IQW13: 0.0 | IQX13: 0.0 | IQY13: 0.0 | IQZ13: 0.0 | IRA13: 0.0 | IRB13: 0.0 | IRC13: 0.0 | IRD13: 0.0 | IRE13: 0.0 | IRF13: 0.0 | IRG13: 0.0 | IRH13: 0.0 | IRI13: 0.0 | IRJ13: 0.0 | IRK13: 0.0 | IRL13: 0.0 | IRM13: 0.0 | IRN13: 0.0 | IRO13: 0.0 | IRP13: 0.0 | IRQ13: 0.0 | IRR13: 0.0 | IRS13: 0.0 | IRT13: 0.0 | IRU13: 0.0 | IRV13: 0.0 | IRW13: 0.0 | IRX13: 0.0 | IRY13: 0.0 | IRZ13: 0.0 | ISA13: 0.0 | ISB13: 0.0 | ISC13: 0.0 | ISD13: 0.0 | ISE13: 0.0 | ISF13: 0.0 | ISG13: 0.0 | ISH13: 0.0 | ISI13: 0.0 | ISJ13: 0.0 | ISK13: 0.0 | ISL13: 0.0 | ISM13: 0.0 | ISN13: 0.0 | ISO13: 0.0 | ISP13: 0.0 | ISQ13: 0.0 | ISR13: 0.0 | ISS13: 0.0 | IST13: 0.0 | ISU13: 0.0 | ISV13: 0.0 | ISW13: 0.0 | ISX13: 0.0 | ISY13: 0.0 | ISZ13: 0.0 | ITA13: 0.0 | ITB13: 0.0 | ITC13: 0.0 | ITD13: 0.0 | ITE13: 0.0 | ITF13: 0.0 | ITG13: 0.0 | ITH13: 0.0 | ITI13: 0.0 | ITJ13: 0.0 | ITK13: 0.0 | ITL13: 0.0 | ITM13: 0.0 | ITN13: 0.0 | ITO13: 0.0 | ITP13: 0.0 | ITQ13: 0.0 | ITR13: 0.0 | ITS13: 0.0 | ITT13: 0.0 | ITU13: 0.0 | ITV13: 0.0 | ITW13: 0.0 | ITX13: 0.0 | ITY13: 0.0 | ITZ13: 0.0 | IUA13: 0.0 | IUB13: 0.0 | IUC13: 0.0 | IUD13: 0.0 | IUE13: 0.0 | IUF13: 0.0 | IUG13: 0.0 | IUH13: 0.0 | IUI13: 0.0 | IUJ13: 0.0 | IUK13: 0.0 | IUL13: 0.0 | IUM13: 0.0 | IUN13: 0.0 | IUO13: 0.0 | IUP13: 0.0 | IUQ13: 0.0 | IUR13: 0.0 | IUS13: 0.0 | IUT13: 0.0 | IUU13: 0.0 | IUV13: 0.0 | IUW13: 0.0 | IUX13: 0.0 | IUY13: 0.0 | IUZ13: 0.0 | IVA13: 0.0 | IVB13: 0.0 | IVC13: 0.0 | IVD13: 0.0 | IVE13: 0.0 | IVF13: 0.0 | IVG13: 0.0 | IVH13: 0.0 | IVI13: 0.0 | IVJ13: 0.0 | IVK13: 0.0 | IVL13: 0.0 | IVM13: 0.0 | IVN13: 0.0 | IVO13: 0.0 | IVP13: 0.0 | IVQ13: 0.0 | IVR13: 0.0 | IVS13: 0.0 | IVT13: 0.0 | IVU13: 0.0 | IVV13: 0.0 | IVW13: 0.0 | IVX13: 0.0 | IVY13: 0.0 | IVZ13: 0.0 | IWA13: 0.0 | IWB13: 0.0 | IWC13: 0.0 | IWD13: 0.0 | IWE13: 0.0 | IWF13: 0.0 | IWG13: 0.0 | IWH13: 0.0 | IWI13: 0.0 | IWJ13: 0.0 | IWK13: 0.0 | IWL13: 0.0 | IWM13: 0.0 | IWN13: 0.0 | IWO13: 0.0 | IWP13: 0.0 | IWQ13: 0.0 | IWR13: 0.0 | IWS13: 0.0 | IWT13: 0.0 | IWU13: 0.0 | IWV13: 0.0 | IWW13: 0.0 | IWX13: 0.0 | IWY13: 0.0 | IWZ13: 0.0 | IXA13: 0.0 | IXB13: 0.0 | IXC13: 0.0 | IXD13: 0.0 | IXE13: 0.0 | IXF13: 0.0 | IXG13: 0.0 | IXH13: 0.0 | IXI13: 0.0 | IXJ13: 0.0 | IXK13: 0.0 | IXL13: 0.0 | IXM13: 0.0 | IXN13: 0.0 | IXO13: 0.0 | IXP13: 0.0 | IXQ13: 0.0 | IXR13: 0.0 | IXS13: 0.0 | IXT13: 0.0 | IXU13: 0.0 | IXV13: 0.0 | IXW13: 0.0 | IXX13: 0.0 | IXY13: 0.0 | IXZ13: 0.0 | IYA13: 0.0 | IYB13: 0.0 | IYC13: 0.0 | IYD13: 0.0 | IYE13: 0.0 | IYF13: 0.0 | IYG13: 0.0 | IYH13: 0.0 | IYI13: 0.0 | IYJ13: 0.0 | IYK13: 0.0 | IYL13: 0.0 | IYM13: 0.0 | IYN13: 0.0 | IYO13: 0.0 | IYP13: 0.0 | IYQ13: 0.0 | IYR13: 0.0 | IYS13: 0.0 | IYT13: 0.0 | IYU13: 0.0 | IYV13: 0.0 | IYW13: 0.0 | IYX13: 0.0 | IYY13: 0.0 | IYZ13: 0.0 | IZA13: 0.0 | IZB13: 0.0 | IZC13: 0.0 | IZD13: 0.0 | IZE13: 0.0 | IZF13: 0.0 | IZG13: 0.0 | IZH13: 0.0 | IZI13: 0.0 | IZJ13: 0.0 | IZK13: 0.0 | IZL13: 0.0 | IZM13: 0.0 | IZN13: 0.0 | IZO13: 0.0 | IZP13: 0.0 | IZQ13: 0.0 | IZR13: 0.0 | IZS13: 0.0 | IZT13: 0.0 | IZU13: 0.0 | IZV13: 0.0 | IZW13: 0.0 | IZX13: 0.0 | IZY13: 0.0 | IZZ13: 0.0 | JAA13: 0.0 | JAB13: 0.0 | JAC13: 0.0 | JAD13: 0.0 | JAE13: 0.0 | JAF13: 0.0 | JAG13: 0.0 | JAH13: 0.0 | JAI13: 0.0 | JAJ13: 0.0 | JAK13: 0.0 | JAL13: 0.0 | JAM13: 0.0 | JAN13: 0.0 | JAO13: 0.0 | JAP13: 0.0 | JAQ13: 0.0 | JAR13: 0.0 | JAS13: 0.0 | JAT13: 0.0 | JAU13: 0.0 | JAV13: 0.0 | JAW13: 0.0 | JAX13: 0.0 | JAY13: 0.0 | JAZ13: 0.0 | JBA13: 0.0 | JBB13: 0.0 | JBC13: 0.0 | JBD13: 0.0 | JBE13: 0.0 | JBF13: 0.0 | JBG13: 0.0 | JBH13: 0.0 | JBI13: 0.0 | JBJ13: 0.0 | JBK13: 0.0 | JBL13: 0.0 | JBM13: 0.0 | JBN13: 0.0 | JBO13: 0.0 | JBP13: 0.0 | JBQ13: 0.0 | JBR13: 0.0 | JBS13: 0.0 | JBT13: 0.0 | JBU13: 0.0 | JBV13: 0.0 | JBW13: 0.0 | JBX13: 0.0 | JBY13: 0.0 | JBZ13: 0.0 | JCA13: 0.0 | JCB13: 0.0 | JCC13: 0.0 | JCD13: 0.0 | JCE13: 0.0 | JCF13: 0.0 | JCG13: 0.0 | JCH13: 0.0 | JCI13: 0.0 | JCJ13: 0.0 | JCK13: 0.0 | JCL13: 0.0 | JCM13: 0.0 | JCN13: 0.0 | JCO13: 0.0 | JCP13: 0.0 | JCQ13: 0.0 | JCR13: 0.0 | JCS13: 0.0 | JCT13: 0.0 | JCU13: 0.0 | JCV13: 0.0 | JCW13: 0.0 | JCX13: 0.0 | JCY13: 0.0 | JCZ13: 0.0 | JDA13: 0.0 | JDB13: 0.0 | JDC13: 0.0 | JDD13: 0.0 | JDE13: 0.0 | JDF13: 0.0 | JDG13: 0.0 | JDH13: 0.0 | JDI13: 0.0 | JDJ13: 0.0 | JDK13: 0.0 | JDL13: 0.0 | JDM13: 0.0 | JDN13: 0.0 | JDO13: 0.0 | JDP13: 0.0 | JDQ13: 0.0 | JDR13: 0.0 | JDS13: 0.0 | JDT13: 0.0 | JDU13: 0.0 | JDV13: 0.0 | JDW13: 0.0 | JDX13: 0.0 | JDY13: 0.0 | JDZ13: 0.0 | JEA13: 0.0 | JEB13: 0.0 | JEC13: 0.0 | JED13: 0.0 | JEE13: 0.0 | JEF13: 0.0 | JEG13: 0.0 | JEH13: 0.0 | JEI13: 0.0 | JEJ13: 0.0 | JEK13: 0.0 | JEL13: 0.0 | JEM13: 0.0 | JEN13: 0.0 | JEO13: 0.0 | JEP13: 0.0 | JEQ13: 0.0 | JER13: 0.0 | JES13: 0.0 | JET13: 0.0 | JEU13: 0.0 | JEV13: 0.0 | JEW13: 0.0 | JEX13: 0.0 | JEY13: 0.0 | JEZ13: 0.0 | JFA13: 0.0 | JFB13: 0.0 | JFC13: 0.0 | JFD13: 0.0 | JFE13: 0.0 | JFF13: 0.0 | JFG13: 0.0 | JFH13: 0.0 | JFI13: 0.0 | JFJ13: 0.0 | JFK13: 0.0 | JFL13: 0.0 | JFM13: 0.0 | JFN13: 0.0 | JFO13: 0.0 | JFP13: 0.0 | JFQ13: 0.0 | JFR13: 0.0 | JFS13: 0.0 | JFT13: 0.0 | JFU13: 0.0 | JFV13: 0.0 | JFW13: 0.0 | JFX13: 0.0 | JFY13: 0.0 | JFZ13: 0.0 | JGA13: 0.0 | JGB13: 0.0 | JGC13: 0.0 | JGD13: 0.0 | JGE13: 0.0 | JGF13: 0.0 | JGG13: 0.0 | JGH13: 0.0 | JGI13: 0.0 | JGJ13: 0.0 | JGK13: 0.0 | JGL13: 0.0 | JGM13: 0.0 | JGN13: 0.0 | JGO13: 0.0 | JGP13: 0.0 | JGQ13: 0.0 | JGR13: 0.0 | JGS13: 0.0 | JGT13: 0.0 | JGU13: 0.0 | JGV13: 0.0 | JGW13: 0.0 | JGX13: 0.0 | JGY13: 0.0 | JGZ13: 0.0 | JHA13: 0.0 | JHB13: 0.0 | JHC13: 0.0 | JHD13: 0.0 | JHE13: 0.0 | JHF13: 0.0 | JHG13: 0.0 | JHH13: 0.0 | JHI13: 0.0 | JHJ13: 0.0 | JHK13: 0.0 | JHL13: 0.0 | JHM13: 0.0 | JHN13: 0.0 | JHO13: 0.0 | JHP13: 0.0 | JHQ13: 0.0 | JHR13: 0.0 | JHS13: 0.0 | JHT13: 0.0 | JHU13: 0.0 | JHV13: 0.0 | JHW13: 0.0 | JHX13: 0.0 | JHY13: 0.0 | JHZ13: 0.0 | JIA13: 0.0 | JIB13: 0.0 | JIC13: 0.0 | JID13: 0.0 | JIE13: 0.0 | JIF13: 0.0 | JIG13: 0.0 | JIH13: 0.0 | JII13: 0.0 | JIJ13: 0.0 | JIK13: 0.0 | JIL13: 0.0 | JIM13: 0.0 | JIN13: 0.0 | JIO13: 0.0 | JIP13: 0.0 | JIQ13: 0.0 | JIR13: 0.0 | JIS13: 0.0 | JIT13: 0.0 | JIU13: 0.0 | JIV13: 0.0 | JIW13: 0.0 | JIX13: 0.0 | JIY13: 0.0 | JIZ13: 0.0 | JJA13: 0.0 | JJB13: 0.0 | JJC13: 0.0 | JJD13: 0.0 | JJE13: 0.0 | JJF13: 0.0 | JJG13: 0.0 | JJH13: 0.0 | JJI13: 0.0 | JJJ13: 0.0 | JJK13: 0.0 | JJL13: 0.0 | JJM13: 0.0 | JJN13: 0.0 | JJO13: 0.0 | JJP13: 0.0 | JJQ13: 0.0 | JJR13: 0.0 | JJS13: 0.0 | JJT13: 0.0 | JJU13: 0.0 | JJV13: 0.0 | JJW13: 0.0 | JJX13: 0.0 | JJY13: 0.0 | JJZ13: 0.0 | JKA13: 0.0 | JKB13: 0.0 | JKC13: 0.0 | JKD13: 0.0 | JKE13: 0.0 | JKF13: 0.0 | JKG13: 0.0 | JKH13: 0.0 | JKI13: 0.0 | JKJ13: 0.0 | JKK13: 0.0 | JKL13: 0.0 | JKM13: 0.0 | JKN13: 0.0 | JKO13: 0.0 | JKP13: 0.0 | JKQ13: 0.0 | JKR13: 0.0 | JKS13: 0.0 | JKT13: 0.0 | JKU13: 0.0 | JKV13: 0.0 | JKW13: 0.0 | JKX13: 0.0 | JKY13: 0.0 | JKZ13: 0.0 | JLA13: 0.0 | JLB13: 0.0 | JLC13: 0.0 | JLD13: 0.0 | JLE13: 0.0 | JLF13: 0.0 | JLG13: 0.0 | JLH13: 0.0 | JLI13: 0.0 | JLJ13: 0.0 | JLK13: 0.0 | JLL13: 0.0 | JLM13: 0.0 | JLN13: 0.0 | JLO13: 0.0 | JLP13: 0.0 | JLQ13: 0.0 | JLR13: 0.0 | JLS13: 0.0 | JLT13: 0.0 | JLU13: 0.0 | JLV13: 0.0 | JLW13: 0.0 | JLX13: 0.0 | JLY13: 0.0 | JLZ13: 0.0 | JMA13: 0.0 | JMB13: 0.0 | JMC13: 0.0 | JMD13: 0.0 | JME13: 0.0 | JMF13: 0.0 | JMG13: 0.0 | JMH13: 0.0 | JMI13: 0.0 | JMJ13: 0.0 | JMK13: 0.0 | JML13: 0.0 | JMM13: 0.0 | JMN13: 0.0 | JMO13: 0.0 | JMP13: 0.0 | JMQ13: 0.0 | JMR13: 0.0 | JMS13: 0.0 | JMT13: 0.0 | JMU13: 0.0 | JMV13: 0.0 | JMW13: 0.0 | JMX13: 0.0 | JMY13: 0.0 | JMZ13: 0.0 | JNA13: 0.0 | JNB13: 0.0 | JNC13: 0.0 | JND13: 0.0 | JNE13: 0.0 | JNF13: 0.0 | JNG13: 0.0 | JNH13: 0.0 | JNI13: 0.0 | JNJ13: 0.0 | JNK13: 0.0 | JNL13: 0.0 | JNM13: 0.0 | JNN13: 0.0 | JNO13: 0.0 | JNP13: 0.0 | JNQ13: 0.0 | JNR13: 0.0 | JNS13: 0.0 | JNT13: 0.0 | JNU13: 0.0 | JNV13: 0.0 | JNW13: 0.0 | JNX13: 0.0 | JNY13: 0.0 | JNZ13: 0.0 | JOA13: 0.0 | JOB13: 0.0 | JOC13: 0.0 | JOD13: 0.0 | JOE13: 0.0 | JOF13: 0.0 | JOG13: 0.0 | JOH13: 0.0 | JOI13: 0.0 | JOJ13: 0.0 | JOK13: 0.0 | JOL13: 0.0 | JOM13: 0.0 | JON13: 0.0 | JOO13: 0.0 | JOP13: 0.0 | JOQ13: 0.0 | JOR13: 0.0 | JOS13: 0.0 | JOT13: 0.0 | JOU13: 0.0 | JOV13: 0.0 | JOW13: 0.0 | JOX13: 0.0 | JOY13: 0.0 | JOZ13: 0.0 | JPA13: 0.0 | JPB13: 0.0 | JPC13: 0.0 | JPD13: 0.0 | JPE13: 0.0 | JPF13: 0.0 | JPG13: 0.0 | JPH13: 0.0 | JPI13: 0.0 | JPJ13: 0.0 | JPK13: 0.0 | JPL13: 0.0 | JPM13: 0.0 | JPN13: 0.0 | JPO13: 0.0 | JPP13: 0.0 | JPQ13: 0.0 | JPR13: 0.0 | JPS13: 0.0 | JPT13: 0.0 | JPU13: 0.0 | JPV13: 0.0 | JPW13: 0.0 | JPX13: 0.0 | JPY13: 0.0 | JPZ13: 0.0 | JQA13: 0.0 | JQB13: 0.0 | JQC13: 0.0 | JQD13: 0.0 | JQE13: 0.0 | JQF13: 0.0 | JQG13: 0.0 | JQH13: 0.0 | JQI13: 0.0 | JQJ13: 0.0 | JQK13: 0.0 | JQL13: 0.0 | JQM13: 0.0 | JQN13: 0.0 | JQO13: 0.0 | JQP13: 0.0 | JQQ13: 0.0 | JQR13: 0.0 | JQS13: 0.0 | JQT13: 0.0 | JQU13: 0.0 | JQV13: 0.0 | JQW13: 0.0 | JQX13: 0.0 | JQY13: 0.0 | JQZ13: 0.0 | JRA13: 0.0 | JRB13: 0.0 | JRC13: 0.0 | JRD13: 0.0 | JRE13: 0.0 | JRF13: 0.0 | JRG13: 0.0 | JRH13: 0.0 | JRI13: 0.0 | JRJ13: 0.0 | JRK13: 0.0 | JRL13: 0.0 | JRM13: 0.0 | JRN13: 0.0 | JRO13: 0.0 | JRP13: 0.0 | JRQ13: 0.0 | JRR13: 0.0 | JRS13: 0.0 | JRT13: 0.0 | JRU13: 0.0 | JRV13: 0.0 | JRW13: 0.0 | JRX13: 0.0 | JRY13: 0.0 | JRZ13: 0.0 | JSA13: 0.0 | JSB13: 0.0 | JSC13: 0.0 | JSD13: 0.0 | JSE13: 0.0 | JSF13: 0.0 | JSG13: 0.0 | JSH13: 0.0 | JSI13: 0.0 | JSJ13: 0.0 | JSK13: 0.0 | JSL13: 0.0 | JSM13: 0.0 | JSN13: 0.0 | JSO13: 0.0 | JSP13: 0.0 | JSQ13: 0.0 | JSR13: 0.0 | JSS13: 0.0 | JST13: 0.0 | JSU13: 0.0 | JSV13: 0.0 | JSW13: 0.0 | JSX13: 0.0 | JSY13: 0.0 | JSZ13: 0.0 | JTA13: 0.0 | JTB13: 0.0 | JTC13: 0.0 | JTD13: 0.0 | JTE13: 0.0 | JTF13: 0.0 | JTG13: 0.0 | JTH13: 0.0 | JTI13: 0.0 | JTJ13: 0.0 | JTK13: 0.0 | JTL13: 0.0 | JTM13: 0.0 | JTN13: 0.0 | JTO13: 0.0 | JTP13: 0.0 | JTQ13: 0.0 | JTR13: 0.0 | JTS13: 0.0 | JTT13: 0.0 | JTU13: 0.0 | JTV13: 0.0 | JTW13: 0.0 | JTX13: 0.0 | JTY13: 0.0 | JTZ13: 0.0 | JUA13: 0.0 | JUB13: 0.0 | JUC13: 0.0 | JUD13: 0.0 | JUE13: 0.0 | JUF13: 0.0 | JUG13: 0.0 | JUH13: 0.0 | JUI13: 0.0 | JUJ13: 0.0 | JUK13: 0.0 | JUL13: 0.0 | JUM13: 0.0 | JUN13: 0.0 | JUO13: 0.0 | JUP13: 0.0 | JUQ13: 0.0 | JUR13: 0.0 | JUS13: 0.0 | JUT13: 0.0 | JUU13: 0.0 | JUV13: 0.0 | JUW13: 0.0 | JUX13: 0.0 | JUY13: 0.0 | JUZ13: 0.0 | JVA13: 0.0 | JVB13: 0.0 | JVC13: 0.0 | JVD13: 0.0 | JVE13: 0.0 | JVF13: 0.0 | JVG13: 0.0 | JVH13: 0.0 | JVI13: 0.0 | JVJ13: 0.0 | JVK13: 0.0 | JVL13: 0.0 | JVM13: 0.0 | JVN13: 0.0 | JVO13: 0.0 | JVP13: 0.0 | JVQ13: 0.0 | JVR13: 0.0 | JVS13: 0.0 | JVT13: 0.0 | JVU13: 0.0 | JVV13: 0.0 | JVW13: 0.0 | JVX13: 0.0 | JVY13: 0.0 | JVZ13: 0.0 | JWA13: 0.0 | JWB13: 0.0 | JWC13: 0.0 | JWD13: 0.0 | JWE13: 0.0 | JWF13: 0.0 | JWG13: 0.0 | JWH13: 0.0 | JWI13: 0.0 | JWJ13: 0.0 | JWK13: 0.0 | JWL13: 0.0 | JWM13: 0.0 | JWN13: 0.0 | JWO13: 0.0 | JWP13: 0.0 | JWQ13: 0.0 | JWR13: 0.0 | JWS13: 0.0 | JWT13: 0.0 | JWU13: 0.0 | JWV13: 0.0 | JWW13: 0.0 | JWX13: 0.0 | JWY13: 0.0 | JWZ13: 0.0 | JXA13: 0.0 | JXB13: 0.0 | JXC13: 0.0 | JXD13: 0.0 | JXE13: 0.0 | JXF13: 0.0 | JXG13: 0.0 | JXH13: 0.0 | JXI13: 0.0 | JXJ13: 0.0 | JXK13: 0.0 | JXL13: 0.0 | JXM13: 0.0 | JXN13: 0.0 | JXO13: 0.0 | JXP13: 0.0 | JXQ13: 0.0 | JXR13: 0.0 | JXS13: 0.0 | JXT13: 0.0 | JXU13: 0.0 | JXV13: 0.0 | JXW13: 0.0 | JXX13: 0.0 | JXY13: 0.0 | JXZ13: 0.0 | JYA13: 0.0 | JYB13: 0.0 | JYC13: 0.0 | JYD13: 0.0 | JYE13: 0.0 | JYF13: 0.0 | JYG13: 0.0 | JYH13: 0.0 | JYI13: 0.0 | JYJ13: 0.0 | JYK13: 0.0 | JYL13: 0.0 | JYM13: 0.0 | JYN13: 0.0 | JYO13: 0.0 | JYP13: 0.0 | JYQ13: 0.0 | JYR13: 0.0 | JYS13: 0.0 | JYT13: 0.0 | JYU13: 0.0 | JYV13: 0.0 | JYW13: 0.0 | JYX13: 0.0 | JYY13: 0.0 | JYZ13: 0.0 | JZA13: 0.0 | JZB13: 0.0 | JZC13: 0.0 | JZD13: 0.0 | JZE13: 0.0 | JZF13: 0.0 | JZG13: 0.0 | JZH13: 0.0 | JZI13: 0.0 | JZJ13: 0.0 | JZK13: 0.0 | JZL13: 0.0 | JZM13: 0.0 | JZN13: 0.0 | JZO13: 0.0 | JZP13: 0.0 | JZQ13: 0.0 | JZR13: 0.0 | JZS13: 0.0 | JZT13: 0.0 | JZU13: 0.0 | JZV13: 0.0 | JZW13: 0.0 | JZX13: 0.0 | JZY13: 0.0 | JZZ13: 0.0 | KAA13: 0.0 | KAB13: 0.0 | KAC13: 0.0 | KAD13: 0.0 | KAE13: 0.0 | KAF13: 0.0 | KAG13: 0.0 | KAH13: 0.0 | KAI13: 0.0 | KAJ13: 0.0 | KAK13: 0.0 | KAL13: 0.0 | KAM13: 0.0 | KAN13: 0.0 | KAO13: 0.0 | KAP13: 0.0 | KAQ13: 0.0 | KAR13: 0.0 | KAS13: 0.0 | KAT13: 0.0 | KAU13: 0.0 | KAV13: 0.0 | KAW13: 0.0 | KAX13: 0.0 | KAY13: 0.0 | KAZ13: 0.0 | KBA13: 0.0 | KBB13: 0.0 | KBC13: 0.0 | KBD13: 0.0 | KBE13: 0.0 | KBF13: 0.0 | KBG13: 0.0 | KBH13: 0.0 | KBI13: 0.0 | KBJ13: 0.0 | KBK13: 0.0 | KBL13: 0.0 | KBM13: 0.0 | KBN13: 0.0 | KBO13: 0.0 | KBP13: 0.0 | KBQ13: 0.0 | KBR13: 0.0 | KBS13: 0.0 | KBT13: 0.0 | KBU13: 0.0 | KBV13: 0.0 | KBW13: 0.0 | KBX13: 0.0 | KBY13: 0.0 | KBZ13: 0.0 | KCA13: 0.0 | KCB13: 0.0 | KCC13: 0.0 | KCD13: 0.0 | KCE13: 0.0 | KCF13: 0.0 | KCG13: 0.0 | KCH13: 0.0 | KCI13: 0.0 | KCJ13: 0.0 | KCK13: 0.0 | KCL13: 0.0 | KCM13: 0.0 | KCN13: 0.0 | KCO13: 0.0 | KCP13: 0.0 | KCQ13: 0.0 | KCR13: 0.0 | KCS13: 0.0 | KCT13: 0.0 | KCU13: 0.0 | KCV13: 0.0 | KCW13: 0.0 | KCX13: 0.0 | KCY13: 0.0 | KCZ13: 0.0 | KDA13: 0.0 | KDB13: 0.0 | KDC13: 0.0 | KDD13: 0.0 | KDE13: 0.0 | KDF13: 0.0 | KDG13: 0.0 | KDH13: 0.0 | KDI13: 0.0 | KDJ13: 0.0 | KDK13: 0.0 | KDL13: 0.0 | KDM13: 0.0 | KDN13: 0.0 | KDO13: 0.0 | KDP13: 0.0 | KDQ13: 0.0 | KDR13: 0.0 | KDS13: 0.0 | KDT13: 0.0 | KDU13: 0.0 | KDV13: 0.0 | KDW13: 0.0 | KDX13: 0.0 | KDY13: 0.0 | KDZ13: 0.0 | KEA13: 0.0 | KEB13: 0.0 | KEC13: 0.0 | KED13: 0.0 | KEE13: 0.0 | KEF13: 0.0 | KEG13: 0.0 | KEH13: 0.0 | KEI13: 0.0 | KEJ13: 0.0 | KEK13: 0.0 | KEL13: 0.0 | KEM13: 0.0 | KEN13: 0.0 | KEO13: 0.0 | KEP13: 0.0 | KEQ13: 0.0 | KER13: 0.0 | KES13: 0.0 | KET13: 0.0 | KEU13: 0.0 | KEV13: 0.0 | KEW13: 0.0 | KEX13: 0.0 | KEY13: 0.0 | KEZ13: 0.0 | KFA13: 0.0 | KFB13: 0.0 | KFC13: 0.0 | KFD13: 0.0 | KFE13: 0.0 | KFF13: 0.0 | KFG13: 0.0 | KFH13: 0.0 | KFI13: 0.0 | KFJ13: 0.0 | KFK13: 0.0 | KFL13: 0.0 | KFM13: 0.0 | KFN13: 0.0 | KFO13: 0.0 | KFP13: 0.0 | KFQ13: 0.0 | KFR13: 0.0 | KFS13: 0.0 | KFT13: 0.0 | KFU13: 0.0 | KFV13: 0.0 | KFW13: 0.0 | KFX13: 0.0 | KFY13: 0.0 | KFZ13: 0.0 | KGA13: 0.0 | KGB13: 0.0 | KGC13: 0.0 | KGD13: 0.0 | KGE13: 0.0 | KGF13: 0.0 | KGG13: 0.0 | KGH13: 0.0 | KGI13: 0.0 | KGJ13: 0.0 | KGK13: 0.0 | KGL13: 0.0 | KGM13: 0.0 | KGN13: 0.0 | KGO13: 0.0 | KGP13: 0.0 | KGQ13: 0.0 | KGR13: 0.0 | KGS13: 0.0 | KGT13: 0.0 | KGU13: 0.0 | KGV13: 0.0 | KGW13: 0.0 | KGX13: 0.0 | KGY13: 0.0 | KGZ13: 0.0 | KHA13: 0.0 | KHB13: 0.0 | KHC13: 0.0 | KHD13: 0.0 | KHE13: 0.0 | KHF13: 0.0 | KHG13: 0.0 | KHH13: 0.0 | KHI13: 0.0 | KHJ13: 0.0 | KHK13: 0.0 | KHL13: 0.0 | KHM13: 0.0 | KHN13: 0.0 | KHO13: 0.0 | KHP13: 0.0 | KHQ13: 0.0 | KHR13: 0.0 | KHS13: 0.0 | KHT13: 0.0 | KHU13: 0.0 | KHV13: 0.0 | KHW13: 0.0 | KHX13: 0.0 | KHY13: 0.0 | KHZ13: 0.0 | KIA13: 0.0 | KIB13: 0.0 | KIC13: 0.0 | KID13: 0.0 | KIE13: 0.0 | KIF13: 0.0 | KIG13: 0.0 | KIH13: 0.0 | KII13: 0.0 | KIJ13: 0.0 | KIK13: 0.0 | KIL13: 0.0 | KIM13: 0.0 | KIN13: 0.0 | KIO13: 0.0 | KIP13: 0.0 | KIQ13: 0.0 | KIR13: 0.0 | KIS13: 0.0 | KIT13: 0.0 | KIU13: 0.0 | KIV13: 0.0 | KIW13: 0.0 | KIX13: 0.0 | KIY13: 0.0 | KIZ13: 0.0 | KJA13: 0.0 | KJB13: 0.0 | KJC13: 0.0 | KJD13: 0.0 | KJE13: 0.0 | KJF13: 0.0 | KJG13: 0.0 | KJH13: 0.0 | KJI13: 0.0 | KJJ13: 0.0 | KJK13: 0.0 | KJL13: 0.0 | KJM13: 0.0 | KJN13: 0.0 | KJO13: 0.0 | KJP13: 0.0 | KJQ13: 0.0 | KJR13: 0.0 | KJS13: 0.0 | KJT13: 0.0 | KJU13: 0.0 | KJV13: 0.0 | KJW13: 0.0 | KJX13: 0.0 | KJY13: 0.0 | KJZ13: 0.0 | KKA13: 0.0 | KKB13: 0.0 | KKC13: 0.0 | KKD13: 0.0 | KKE13: 0.0 | KKF13: 0.0 | KKG13: 0.0 | KKH13: 0.0 | KKI13: 0.0 | KKJ13: 0.0 | KKK13: 0.0 | KKL13: 0.0 | KKM13: 0.0 | KKN13: 0.0 | KKO13: 0.0 | KKP13: 0.0 | KKQ13: 0.0 | KKR13: 0.0 | KKS13: 0.0 | KKT13: 0.0 | KKU13: 0.0 | KKV13: 0.0 | KKW13: 0.0 | KKX13: 0.0 | KKY13: 0.0 | KKZ13: 0.0 | KLA13: 0.0 | KLB13: 0.0 | KLC13: 0.0 | KLD13: 0.0 | KLE13: 0.0 | KLF13: 0.0 | KLG13: 0.0 | KLH13: 0.0 | KLI13: 0.0 | KLJ13: 0.0 | KLK13: 0.0 | KLL13: 0.0 | KLM13: 0.0 | KLN13: 0.0 | KLO13: 0.0 | KLP13: 0.0 | KLQ13: 0.0 | KLR13: 0.0 | KLS13: 0.0 | KLT13: 0.0 | KLU13: 0.0 | KLV13: 0.0 | KLW13: 0.0 | KLX13: 0.0 | KLY13: 0.0 | KLZ13: 0.0 | KMA13: 0.0 | KMB13: 0.0 | KMC13: 0.0 | KMD13: 0.0 | KME13: 0.0 | KMF13: 0.0 | KMG13: 0.0 | KMH13: 0.0 | KMI13: 0.0 | KMJ13: 0.0 | KMK13: 0.0 | KML13: 0.0 | KMM13: 0.0 | KMN13: 0.0 | KMO13: 0.0 | KMP13: 0.0 | KMQ13: 0.0 | KMR13: 0.0 | KMS13: 0.0 | KMT13: 0.0 | KMU13: 0.0 | KMV13: 0.0 | KMW13: 0.0 | KMX13: 0.0 | KMY13: 0.0 | KMZ13: 0.0 | KNA13: 0.0 | KNB13: 0.0 | KNC13: 0.0 | KND13: 0.0 | KNE13: 0.0 | KNF13: 0.0 | KNG13: 0.0 | KNH13: 0.0 | KNI13: 0.0 | KNJ13: 0.0 | KNK13: 0.0 | KNL13: 0.0 | KNM13: 0.0 | KNN13: 0.0 | KNO13: 0.0 | KNP13: 0.0 | KNQ13: 0.0 | KNR13: 0.0 | KNS13: 0.0 | KNT13: 0.0 | KNU13: 0.0 | KNV13: 0.0 | KNW13: 0.0 | KNX13: 0.0 | KNY13: 0.0 | KNZ13: 0.0 | KOA13: 0.0 | KOB13: 0.0 | KOC13: 0.0 | KOD13: 0.0 | KOE13: 0.0 | KOF13: 0.0 | KOG13: 0.0 | KOH13: 0.0 | KOI13: 0.0 | KOJ13: 0.0 | KOK13: 0.0 | KOL13: 0.0 | KOM13: 0.0 | KON13: 0.0 | KOO13: 0.0 | KOP13: 0.0 | KOQ13: 0.0 | KOR13: 0.0 | KOS13: 0.0 | KOT13: 0.0 | KOU13: 0.0 | KOV13: 0.0 | KOW13: 0.0 | KOX13: 0.0 | KOY13: 0.0 | KOZ13: 0.0 | KPA13: 0.0 | KPB13: 0.0 | KPC13: 0.0 | KPD13: 0.0 | KPE13: 0.0 | KPF13: 0.0 | KPG13: 0.0 | KPH13: 0.0 | KPI13: 0.0 | KPJ13: 0.0 | KPK13: 0.0 | KPL13: 0.0 | KPM13: 0.0 | KPN13: 0.0 | KPO13: 0.0 | KPP13: 0.0 | KPQ13: 0.0 | KPR13: 0.0 | KPS13: 0.0 | KPT13: 0.0 | KPU13: 0.0 | KPV13: 0.0 | KPW13: 0.0 | KPX13: 0.0 | KPY13: 0.0 | KPZ13: 0.0 | KQA13: 0.0 | KQB13: 0.0 | KQC13: 0.0 | KQD13: 0.0 | KQE13: 0.0 | KQF13: 0.0 | KQG13: 0.0 | KQH13: 0.0 | KQI13: 0.0 | KQJ13: 0.0 | KQK13: 0.0 | KQL13: 0.0 | KQM13: 0.0 | KQN13: 0.0 | KQO13: 0.0 | KQP13: 0.0 | KQQ13: 0.0 | KQR13: 0.0 | KQS13: 0.0 | KQT13: 0.0 | KQU13: 0.0 | KQV13: 0.0 | KQW13: 0.0 | KQX13: 0.0 | KQY13: 0.0 | KQZ13: 0.0 | KRA13: 0.0 | KRB13: 0.0 | KRC13: 0.0 | KRD13: 0.0 | KRE13: 0.0 | KRF13: 0.0 | KRG13: 0.0 | KRH13: 0.0 | KRI13: 0.0 | KRJ13: 0.0 | KRK13: 0.0 | KRL13: 0.0 | KRM13: 0.0 | KRN13: 0.0 | KRO13: 0.0 | KRP13: 0.0 | KRQ13: 0.0 | KRR13: 0.0 | KRS13: 0.0 | KRT13: 0.0 | KRU13: 0.0 | KRV13: 0.0 | KRW13: 0.0 | KRX13: 0.0 | KRY13: 0.0 | KRZ13: 0.0 | KSA13: 0.0 | KSB13: 0.0 | KSC13: 0.0 | KSD13: 0.0 | KSE13: 0.0 | KSF13: 0.0 | KSG13: 0.0 | KSH13: 0.0 | KSI13: 0.0 | KSJ13: 0.0 | KSK13: 0.0 | KSL13: 0.0 | KSM13: 0.0 | KSN13: 0.0 | KSO13: 0.0 | KSP13: 0.0 | KSQ13: 0.0 | KSR13: 0.0 | KSS13: 0.0 | KST13: 0.0 | KSU13: 0.0 | KSV13: 0.0 | KSW13: 0.0 | KSX13: 0.0 | KSY13: 0.0 | KSZ13: 0.0 | KTA13: 0.0 | KTB13: 0.0 | KTC13: 0.0 | KTD13: 0.0 | KTE13: 0.0 | KTF13: 0.0 | KTG13: 0.0 | KTH13: 0.0 | KTI13: 0.0 | KTJ13: 0.0 | KTK13: 0.0 | KTL13: 0.0 | KTM13: 0.0 | KTN13: 0.0 | KTO13: 0.0 | KTP13: 0.0 | KTQ13: 0.0 | KTR13: 0.0 | KTS13: 0.0 | KTT13: 0.0 | KTU13: 0.0 | KTV13: 0.0 | KTW13: 0.0 | KTX13: 0.0 | KTY13: 0.0 | KTZ13: 0.0 | KUA13: 0.0 | KUB13: 0.0 | KUC13: 0.0 | KUD13: 0.0 | KUE13: 0.0 | KUF13: 0.0 | KUG13: 0.0 | KUH13: 0.0 | KUI13: 0.0 | KUJ13: 0.0 | KUK13: 0.0 | KUL13: 0.0 | KUM13: 0.0 | KUN13: 0.0 | KUO13: 0.0 | KUP13: 0.0 | KUQ13: 0.0 | KUR13: 0.0 | KUS13: 0.0 | KUT13: 0.0 | KUU13: 0.0 | KUV13: 0.0 | KUW13: 0.0 | KUX13: 0.0 | KUY13: 0.0 | KUZ13: 0.0 | KVA13: 0.0 | KVB13: 0.0 | KVC13: 0.0 | KVD13: 0.0 | KVE13: 0.0 | KVF13: 0.0 | KVG13: 0.0 | KVH13: 0.0 | KVI13: 0.0 | KVJ13: 0.0 | KVK13: 0.0 | KVL13: 0.0 | KVM13: 0.0 | KVN13: 0.0 | KVO13: 0.0 | KVP13: 0.0 | KVQ13: 0.0 | KVR13: 0.0 | KVS13: 0.0 | KVT13: 0.0 | KVU13: 0.0 | KVV13: 0.0 | KVW13: 0.0 | KVX13: 0.0 | KVY13: 0.0 | KVZ13: 0.0 | KWA13: 0.0 | KWB13: 0.0 | KWC13: 0.0 | KWD13: 0.0 | KWE13: 0.0 | KWF13: 0.0 | KWG13: 0.0 | KWH13: 0.0 | KWI13: 0.0 | KWJ13: 0.0 | KWK13: 0.0 | KWL13: 0.0 | KWM13: 0.0 | KWN13: 0.0 | KWO13: 0.0 | KWP13: 0.0 | KWQ13: 0.0 | KWR13: 0.0 | KWS13: 0.0 | KWT13: 0.0 | KWU13: 0.0 | KWV13: 0.0 | KWW13: 0.0 | KWX13: 0.0 | KWY13: 0.0 | KWZ13: 0.0 | KXA13: 0.0 | KXB13: 0.0 | KXC13: 0.0 | KXD13: 0.0 | KXE13: 0.0 | KXF13: 0.0 | KXG13: 0.0 | KXH13: 0.0 | KXI13: 0.0 | KXJ13: 0.0 | KXK13: 0.0 | KXL13: 0.0 | KXM13: 0.0 | KXN13: 0.0 | KXO13: 0.0 | KXP13: 0.0 | KXQ13: 0.0 | KXR13: 0.0 | KXS13: 0.0 | KXT13: 0.0 | KXU13: 0.0 | KXV13: 0.0 | KXW13: 0.0 | KXX13: 0.0 | KXY13: 0.0 | KXZ13: 0.0 | KYA13: 0.0 | KYB13: 0.0 | KYC13: 0.0 | KYD13: 0.0 | KYE13: 0.0 | KYF13: 0.0 | KYG13: 0.0 | KYH13: 0.0 | KYI13: 0.0 | KYJ13: 0.0 | KYK13: 0.0 | KYL13: 0.0 | KYM13: 0.0 | KYN13: 0.0 | KYO13: 0.0 | KYP13: 0.0 | KYQ13: 0.0 | KYR13: 0.0 | KYS13: 0.0 | KYT13: 0.0 | KYU13: 0.0 | KYV13: 0.0 | KYW13: 0.0 | KYX13: 0.0 | KYY13: 0.0 | KYZ13: 0.0 | KZA13: 0.0 | KZB13: 0.0 | KZC13: 0.0 | KZD13: 0.0 | KZE13: 0.0 | KZF13: 0.0 | KZG13: 0.0 | KZH13: 0.0 | KZI13: 0.0 | KZJ13: 0.0 | KZK13: 0.0 | KZL13: 0.0 | KZM13: 0.0 | KZN13: 0.0 | KZO13: 0.0 | KZP13: 0.0 | KZQ13: 0.0 | KZR13: 0.0 | KZS13: 0.0 | KZT13: 0.0 | KZU13: 0.0 | KZV13: 0.0 | KZW13: 0.0 | KZX13: 0.0 | KZY13: 0.0 | KZZ13: 0.0 | LAA13: 0.0 | LAB13: 0.0 | LAC13: 0.0 | LAD13: 0.0 | LAE13: 0.0 | LAF13: 0.0 | LAG13: 0.0 | LAH13: 0.0 | LAI13: 0.0 | LAJ13: 0.0 | LAK13: 0.0 | LAL13: 0.0 | LAM13: 0.0 | LAN13: 0.0 | LAO13: 0.0 | LAP13: 0.0 | LAQ13: 0.0 | LAR13: 0.0 | LAS13: 0.0 | LAT13: 0.0 | LAU13: 0.0 | LAV13: 0.0 | LAW13: 0.0 | LAX13: 0.0 | LAY13: 0.0 | LAZ13: 0.0 | LBA13: 0.0 | LBB13: 0.0 | LBC13: 0.0 | LBD13: 0.0 | LBE13: 0.0 | LBF13: 0.0 | LBG13: 0.0 | LBH13: 0.0 | LBI13: 0.0 | LBJ13: 0.0 | LBK13: 0.0 | LBL13: 0.0 | LBM13: 0.0 | LBN13: 0.0 | LBO13: 0.0 | LBP13: 0.0 | LBQ13: 0.0 | LBR13: 0.0 | LBS13: 0.0 | LBT13: 0.0 | LBU13: 0.0 | LBV13: 0.0 | LBW13: 0.0 | LBX13: 0.0 | LBY13: 0.0 | LBZ13: 0.0 | LCA13: 0.0 | LCB13: 0.0 | LCC13: 0.0 | LCD13: 0.0 | LCE13: 0.0 | LCF13: 0.0 | LCG13: 0.0 | LCH13: 0.0 | LCI13: 0.0 | LCJ13: 0.0 | LCK13: 0.0 | LCL13: 0.0 | LCM13: 0.0 | LCN13: 0.0 | LCO13: 0.0 | LCP13: 0.0 | LCQ13: 0.0 | LCR13: 0.0 | LCS13: 0.0 | LCT13: 0.0 | LCU13: 0.0 | LCV13: 0.0 | LCW13: 0.0 | LCX13: 0.0 | LCY13: 0.0 | LCZ13: 0.0 | LDA13: 0.0 | LDB13: 0.0 | LDC13: 0.0 | LDD13: 0.0 | LDE13: 0.0 | LDF13: 0.0 | LDG13: 0.0 | LDH13: 0.0 | LDI13: 0.0 | LDJ13: 0.0 | LDK13: 0.0 | LDL13: 0.0 | LDM13: 0.0 | LDN13: 0.0 | LDO13: 0.0 | LDP13: 0.0 | LDQ13: 0.0 | LDR13: 0.0 | LDS13: 0.0 | LDT13: 0.0 | LDU13: 0.0 | LDV13: 0.0 | LDW13: 0.0 | LDX13: 0.0 | LDY13: 0.0 | LDZ13: 0.0 | LEA13: 0.0 | LEB13: 0.0 | LEC13: 0.0 | LED13: 0.0 | LEE13: 0.0 | LEF13: 0.0 | LEG13: 0.0 | LEH13: 0.0 | LEI13: 0.0 | LEJ13: 0.0 | LEK13: 0.0 | LEL13: 0.0 | LEM13: 0.0 | LEN13: 0.0 | LEO13: 0.0 | LEP13: 0.0 | LEQ13: 0.0 | LER13: 0.0 | LES13: 0.0 | LET13: 0.0 | LEU13: 0.0 | LEV13: 0.0 | LEW13: 0.0 | LEX13: 0.0 | LEY13: 0.0 | LEZ13: 0.0 | LFA13: 0.0 | LFB13: 0.0 | LFC13: 0.0 | LFD13: 0.0 | LFE13: 0.0 | LFF13: 0.0 | LFG13: 0.0 | LFH13: 0.0 | LFI13: 0.0 | LFJ13: 0.0 | LFK13: 0.0 | LFL13: 0.0 | LFM13: 0.0 | LFN13: 0.0 | LFO13: 0.0 | LFP13: 0.0 | LFQ13: 0.0 | LFR13: 0.0 | LFS13: 0.0 | LFT13: 0.0 | LFU13: 0.0 | LFV13: 0.0 | LFW13: 0.0 | LFX13: 0.0 | LFY13: 0.0 | LFZ13: 0.0 | LGA13: 0.0 | LGB13: 0.0 | LGC13: 0.0 | LGD13: 0.0 | LGE13: 0.0 | LGF13: 0.0 | LGG13: 0.0 | LGH13: 0.0 | LGI13: 0.0 | LGJ13: 0.0 | LGK13: 0.0 | LGL13: 0.0 | LGM13: 0.0 | LGN13: 0.0 | LGO13: 0.0 | LGP13: 0.0 | LGQ13: 0.0 | LGR13: 0.0 | LGS13: 0.0 | LGT13: 0.0 | LGU13: 0.0 | LGV13: 0.0 | LGW13: 0.0 | LGX13: 0.0 | LGY13: 0.0 | LGZ13: 0.0 | LHA13: 0.0 | LHB13: 0.0 | LHC13: 0.0 | LHD13: 0.0 | LHE13: 0.0 | LHF13: 0.0 | LHG13: 0.0 | LHH13: 0.0 | LHI13: 0.0 | LHJ13: 0.0 | LHK13: 0.0 | LHL13: 0.0 | LHM13: 0.0 | LHN13: 0.0 | LHO13: 0.0 | LHP13: 0.0 | LHQ13: 0.0 | LHR13: 0.0 | LHS13: 0.0 | LHT13: 0.0 | LHU13: 0.0 | LHV13: 0.0 | LHW13: 0.0 | LHX13: 0.0 | LHY13: 0.0 | LHZ13: 0.0 | LIA13: 0.0 | LIB13: 0.0 | LIC13: 0.0 | LID13: 0.0 | LIE13: 0.0 | LIF13: 0.0 | LIG13: 0.0 | LIH13: 0.0 | LII13: 0.0 | LIJ13: 0.0 | LIK13: 0.0 | LIL13: 0.0 | LIM13: 0.0 | LIN13: 0.0 | LIO13: 0.0 | LIP13: 0.0 | LIQ13: 0.0 | LIR13: 0.0 | LIS13: 0.0 | LIT13: 0.0 | LIU13: 0.0 | LIV13: 0.0 | LIW13: 0.0 | LIX13: 0.0 | LIY13: 0.0 | LIZ13: 0.0 | LJA13: 0.0 | LJB13: 0.0 | LJC13: 0.0 | LJD13: 0.0 | LJE13: 0.0 | LJF13: 0.0 | LJG13: 0.0 | LJH13: 0.0 | LJI13: 0.0 | LJJ13: 0.0 | LJK13: 0.0 | LJL13: 0.0 | LJM13: 0.0 | LJN13: 0.0 | LJO13: 0.0 | LJP13: 0.0 | LJQ13: 0.0 | LJR13: 0.0 | LJS13: 0.0 | LJT13: 0.0 | LJU13: 0.0 | LJV13: 0.0 | LJW13: 0.0 | LJX13: 0.0 | LJY13: 0.0 | LJZ13: 0.0 | LKA13: 0.0 | LKB13: 0.0 | LKC13: 0.0 | LKD13: 0.0 | LKE13: 0.0 | LKF13: 0.0 | LKG13: 0.0 | LKH13: 0.0 | LKI13: 0.0 | LKJ13: 0.0 | LKK13: 0.0 | LKL13: 0.0 | LKM13: 0.0 | LKN13: 0.0 | LKO13: 0.0 | LKP13: 0.0 | LKQ13: 0.0 | LKR13: 0.0 | LKS13: 0.0 | LKT13: 0.0 | LKU13: 0.0 | LKV13: 0.0 | LKW13: 0.0 | LKX13: 0.0 | LKY13: 0.0 | LKZ13: 0.0 | LLA13: 0.0 | LLB13: 0.0 | LLC13: 0.0 | LLD13: 0.0 | LLE13: 0.0 | LLF13: 0.0 | LLG13: 0.0 | LLH13: 0.0 | LLI13: 0.0 | LLJ13: 0.0 | LLK13: 0.0 | LLL13: 0.0 | LLM13: 0.0 | LLN13: 0.0 | LLO13: 0.0 | LLP13: 0.0 | LLQ13: 0.0 | LLR13: 0.0 | LLS13: 0.0 | LLT13: 0.0 | LLU13: 0.0 | LLV13: 0.0 | LLW13: 0.0 | LLX13: 0.0 | LLY13: 0.0 | LLZ13: 0.0 | LMA13: 0.0 | LMB13: 0.0 | LMC13: 0.0 | LMD13: 0.0 | LME13: 0.0 | LMF13: 0.0 | LMG13: 0.0 | LMH13: 0.0 | LMI13: 0.0 | LMJ13: 0.0 | LMK13: 0.0 | LML13: 0.0 | LMM13: 0.0 | LMN13: 0.0 | LMO13: 0.0 | LMP13: 0.0 | LMQ13: 0.0 | LMR13: 0.0 | LMS13: 0.0 | LMT13: 0.0 | LMU13: 0.0 | LMV13: 0.0 | LMW13: 0.0 | LMX13: 0.0 | LMY13: 0.0 | LMZ13: 0.0 | LNA13: 0.0 | LNB13: 0.0 | LNC13: 0.0 | LND13: 0.0 | LNE13: 0.0 | LNF13: 0.0 | LNG13: 0.0 | LNH13: 0.0 | LNI13: 0.0 | LNJ13: 0.0 | LNK13: 0.0 | LNL13: 0.0 | LNM13: 0.0 | LNN13: 0.0 | LNO13: 0.0 | LNP13: 0.0 | LNQ13: 0.0 | LNR13: 0.0 | LNS13: 0.0 | LNT13: 0.0 | LNU13: 0.0 | LNV13: 0.0 | LNW13: 0.0 | LNX13: 0.0 | LNY13: 0.0 | LNZ13: 0.0 | LOA13: 0.0 | LOB13: 0.0 | LOC13: 0.0 | LOD13: 0.0 | LOE13: 0.0 | LOF13: 0.0 | LOG13: 0.0 | LOH13: 0.0 | LOI13: 0.0 | LOJ13: 0.0 | LOK13: 0.0 | LOL13: 0.0 | LOM13: 0.0 | LON13: 0.0 | LOO13: 0.0 | LOP13: 0.0 | LOQ13: 0.0 | LOR13: 0.0 | LOS13: 0.0 | LOT13: 0.0 | LOU13: 0.0 | LOV13: 0.0 | LOW13: 0.0 | LOX13: 0.0 | LOY13: 0.0 | LOZ13: 0.0 | LPA13: 0.0 | LPB13: 0.0 | LPC13: 0.0 | LPD13: 0.0 | LPE13: 0.0 | LPF13: 0.0 | LPG13: 0.0 | LPH13: 0.0 | LPI13: 0.0 | LPJ13: 0.0 | LPK13: 0.0 | LPL13: 0.0 | LPM13: 0.0 | LPN13: 0.0 | LPO13: 0.0 | LPP13: 0.0 | LPQ13: 0.0 | LPR13: 0.0 | LPS13: 0.0 | LPT13: 0.0 | LPU13: 0.0 | LPV13: 0.0 | LPW13: 0.0 | LPX13: 0.0 | LPY13: 0.0 | LPZ13: 0.0 | LQA13: 0.0 | LQB13: 0.0 | LQC13: 0.0 | LQD13: 0.0 | LQE13: 0.0 | LQF13: 0.0 | LQG13: 0.0 | LQH13: 0.0 | LQI13: 0.0 | LQJ13: 0.0 | LQK13: 0.0 | LQL13: 0.0 | LQM13: 0.0 | LQN13: 0.0 | LQO13: 0.0 | LQP13: 0.0 | LQQ13: 0.0 | LQR13: 0.0 | LQS13: 0.0 | LQT13: 0.0 | LQU13: 0.0 | LQV13: 0.0 | LQW13: 0.0 | LQX13: 0.0 | LQY13: 0.0 | LQZ13: 0.0 | LRA13: 0.0 | LRB13: 0.0 | LRC13: 0.0 | LRD13: 0.0 | LRE13: 0.0 | LRF13: 0.0 | LRG13: 0.0 | LRH13: 0.0 | LRI13: 0.0 | LRJ13: 0.0 | LRK13: 0.0 | LRL13: 0.0 | LRM13: 0.0 | LRN13: 0.0 | LRO13: 0.0 | LRP13: 0.0 | LRQ13: 0.0 | LRR13: 0.0 | LRS13: 0.0 | LRT13: 0.0 | LRU13: 0.0 | LRV13: 0.0 | LRW13: 0.0 | LRX13: 0.0 | LRY13: 0.0 | LRZ13: 0.0 | LSA13: 0.0 | LSB13: 0.0 | LSC13: 0.0 | LSD13: 0.0 | LSE13: 0.0 | LSF13: 0.0 | LSG13: 0.0 | LSH13: 0.0 | LSI13: 0.0 | LSJ13: 0.0 | LSK13: 0.0 | LSL13: 0.0 | LSM13: 0.0 | LSN13: 0.0 | LSO13: 0.0 | LSP13: 0.0 | LSQ13: 0.0 | LSR13: 0.0 | LSS13: 0.0 | LST13: 0.0 | LSU13: 0.0 | LSV13: 0.0 | LSW13: 0.0 | LSX13: 0.0 | LSY13: 0.0 | LSZ13: 0.0 | LTA13: 0.0 | LTB13: 0.0 | LTC13: 0.0 | LTD13: 0.0 | LTE13: 0.0 | LTF13: 0.0 | LTG13: 0.0 | LTH13: 0.0 | LTI13: 0.0 | LTJ13: 0.0 | LTK13: 0.0 | LTL13: 0.0 | LTM13: 0.0 | LTN13: 0.0 | LTO13: 0.0 | LTP13: 0.0 | LTQ13: 0.0 | LTR13: 0.0 | LTS13: 0.0 | LTT13: 0.0 | LTU13: 0.0 | LTV13: 0.0 | LTW13: 0.0 | LTX13: 0.0 | LTY13: 0.0 | LTZ13: 0.0 | LUA13: 0.0 | LUB13: 0.0 | LUC13: 0.0 | LUD13: 0.0 | LUE13: 0.0 | LUF13: 0.0 | LUG13: 0.0 | LUH13: 0.0 | LUI13: 0.0 | LUJ13: 0.0 | LUK13: 0.0 | LUL13: 0.0 | LUM13: 0.0 | LUN13: 0.0 | LUO13: 0.0 | LUP13: 0.0 | LUQ13: 0.0 | LUR13: 0.0 | LUS13: 0.0 | LUT13: 0.0 | LUU13: 0.0 | LUV13: 0.0 | LUW13: 0.0 | LUX13: 0.0 | LUY13: 0.0 | LUZ13: 0.0 | LVA13: 0.0 | LVB13: 0.0 | LVC13: 0.0 | LVD13: 0.0 | LVE13: 0.0 | LVF13: 0.0 | LVG13: 0.0 | LVH13: 0.0 | LVI13: 0.0 | LVJ13: 0.0 | LVK13: 0.0 | LVL13: 0.0 | LVM13: 0.0 | LVN13: 0.0 | LVO13: 0.0 | LVP13: 0.0 | LVQ13: 0.0 | LVR13: 0.0 | LVS13: 0.0 | LVT13: 0.0 | LVU13: 0.0 | LVV13: 0.0 | LVW13: 0.0 | LVX13: 0.0 | LVY13: 0.0 | LVZ13: 0.0 | LWA13: 0.0 | LWB13: 0.0 | LWC13: 0.0 | LWD13: 0.0 | LWE13: 0.0 | LWF13: 0.0 | LWG13: 0.0 | LWH13: 0.0 | LWI13: 0.0 | LWJ13: 0.0 | LWK13: 0.0 | LWL13: 0.0 | LWM13: 0.0 | LWN13: 0.0 | LWO13: 0.0 | LWP13: 0.0 | LWQ13: 0.0 | LWR13: 0.0 | LWS13: 0.0 | LWT13: 0.0 | LWU13: 0.0 | LWV13: 0.0 | LWW13: 0.0 | LWX13: 0.0 | LWY13: 0.0 | LWZ13: 0.0 | LXA13: 0.0 | LXB13: 0.0 | LXC13: 0.0 | LXD13: 0.0 | LXE13: 0.0 | LXF13: 0.0 | LXG13: 0.0 | LXH13: 0.0 | LXI13: 0.0 | LXJ13: 0.0 | LXK13: 0.0 | LXL13: 0.0 | LXM13: 0.0 | LXN13: 0.0 | LXO13: 0.0 | LXP13: 0.0 | LXQ13: 0.0 | LXR13: 0.0 | LXS13: 0.0 | LXT13: 0.0 | LXU13: 0.0 | LXV13: 0.0 | LXW13: 0.0 | LXX13: 0.0 | LXY13: 0.0 | LXZ13: 0.0 | LYA13: 0.0 | LYB13: 0.0 | LYC13: 0.0 | LYD13: 0.0 | LYE13: 0.0 | LYF13: 0.0 | LYG13: 0.0 | LYH13: 0.0 | LYI13: 0.0 | LYJ13: 0.0 | LYK13: 0.0 | LYL13: 0.0 | LYM13: 0.0 | LYN13: 0.0 | LYO13: 0.0 | LYP13: 0.0 | LYQ13: 0.0 | LYR13: 0.0 | LYS13: 0.0 | LYT13: 0.0 | LYU13: 0.0 | LYV13: 0.0 | LYW13: 0.0 | LYX13: 0.0 | LYY13: 0.0 | LYZ13: 0.0 | LZA13: 0.0 | LZB13: 0.0 | LZC13: 0.0 | LZD13: 0.0 | LZE13: 0.0 | LZF13: 0.0 | LZG13: 0.0 | LZH13: 0.0 | LZI13: 0.0 | LZJ13: 0.0 | LZK13: 0.0 | LZL13: 0.0 | LZM13: 0.0 | LZN13: 0.0 | LZO13: 0.0 | LZP13: 0.0 | LZQ13: 0.0 | LZR13: 0.0 | LZS13: 0.0 | LZT13: 0.0 | LZU13: 0.0 | LZV13: 0.0 | LZW13: 0.0 | LZX13: 0.0 | LZY13: 0.0 | LZZ13: 0.0 | MAA13: 0.0 | MAB13: 0.0 | MAC13: 0.0 | MAD13: 0.0 | MAE13: 0.0 | MAF13: 0.0 | MAG13: 0.0 | MAH13: 0.0 | MAI13: 0.0 | MAJ13: 0.0 | MAK13: 0.0 | MAL13: 0.0 | MAM13: 0.0 | MAN13: 0.0 | MAO13: 0.0 | MAP13: 0.0 | MAQ13: 0.0 | MAR13: 0.0 | MAS13: 0.0 | MAT13: 0.0 | MAU13: 0.0 | MAV13: 0.0 | MAW13: 0.0 | MAX13: 0.0 | MAY13: 0.0 | MAZ13: 0.0 | MBA13: 0.0 | MBB13: 0.0 | MBC13: 0.0 | MBD13: 0.0 | MBE13: 0.0 | MBF13: 0.0 | MBG13: 0.0 | MBH13: 0.0 | MBI13: 0.0 | MBJ13: 0.0 | MBK13: 0.0 | MBL13: 0.0 | MBM13: 0.0 | MBN13: 0.0 | MBO13: 0.0 | MBP13: 0.0 | MBQ13: 0.0 | MBR13: 0.0 | MBS13: 0.0 | MBT13: 0.0 | MBU13: 0.0 | MBV13: 0.0 | MBW13: 0.0 | MBX13: 0.0 | MBY13: 0.0 | MBZ13: 0.0 | MCA13: 0.0 | MCB13: 0.0 | MCC13: 0.0 | MCD13: 0.0 | MCE13: 0.0 | MCF13: 0.0 | MCG13: 0.0 | MCH13: 0.0 | MCI13: 0.0 | MCJ13: 0.0 | MCK13: 0.0 | MCL13: 0.0 | MCM13: 0.0 | MCN13: 0.0 | MCO13: 0.0 | MCP13: 0.0 | MCQ13: 0.0 | MCR13: 0.0 | MCS13: 0.0 | MCT13: 0.0 | MCU13: 0.0 | MCV13: 0.0 | MCW13: 0.0 | MCX13: 0.0 | MCY13: 0.0 | MCZ13: 0.0 | MDA13: 0.0 | MDB13: 0.0 | MDC13: 0.0 | MDD13: 0.0 | MDE13: 0.0 | MDF13: 0.0 | MDG13: 0.0 | MDH13: 0.0 | MDI13: 0.0 | MDJ13: 0.0 | MDK13: 0.0 | MDL13: 0.0 | MDM13: 0.0 | MDN13: 0.0 | MDO13: 0.0 | MDP13: 0.0 | MDQ13: 0.0 | MDR13: 0.0 | MDS13: 0.0 | MDT13: 0.0 | MDU13: 0.0 | MDV13: 0.0 | MDW13: 0.0 | MDX13: 0.0 | MDY13: 0.0 | MDZ13: 0.0 | MEA13: 0.0 | MEB13: 0.0 | MEC13: 0.0 | MED13: 0.0 | MEE13: 0.0 | MEF13: 0.0 | MEG13: 0.0 | MEH13: 0.0 | MEI13: 0.0 | MEJ13: 0.0 | MEK13: 0.0 | MEL13: 0.0 | MEM13: 0.0 | MEN13: 0.0 | MEO13: 0.0 | MEP13: 0.0 | MEQ13: 0.0 | MER13: 0.0 | MES13: 0.0 | MET13: 0.0 | MEU13: 0.0 | MEV13: 0.0 | MEW13: 0.0 | MEX13: 0.0 | MEY13: 0.0 | MEZ13: 0.0 | MFA13: 0.0 | MFB13: 0.0 | MFC13: 0.0 | MFD13: 0.0 | MFE13: 0.0 | MFF13: 0.0 | MFG13: 0.0 | MFH13: 0.0 | MFI13: 0.0 | MFJ13: 0.0 | MFK13: 0.0 | MFL13: 0.0 | MFM13: 0.0 | MFN13: 0.0 | MFO13: 0.0 | MFP13: 0.0 | MFQ13: 0.0 | MFR13: 0.0 | MFS13: 0.0 | MFT13: 0.0 | MFU13: 0.0 | MFV13: 0.0 | MFW13: 0.0 | MFX13: 0.0 | MFY13: 0.0 | MFZ13: 0.0 | MGA13: 0.0 | MGB13: 0.0 | MGC13: 0.0 | MGD13: 0.0 | MGE13: 0.0 | MGF13: 0.0 | MGG13: 0.0 | MGH13: 0.0 | MGI13: 0.0 | MGJ13: 0.0 | MGK13: 0.0 | MGL13: 0.0 | MGM13: 0.0 | MGN13: 0.0 | MGO13: 0.0 | MGP13: 0.0 | MGQ13: 0.0 | MGR13: 0.0 | MGS13: 0.0 | MGT13: 0.0 | MGU13: 0.0 | MGV13: 0.0 | MGW13: 0.0 | MGX13: 0.0 | MGY13: 0.0 | MGZ13: 0.0 | MHA13: 0.0 | MHB13: 0.0 | MHC13: 0.0 | MHD13: 0.0 | MHE13: 0.0 | MHF13: 0.0 | MHG13: 0.0 | MHH13: 0.0 | MHI13: 0.0 | MHJ13: 0.0 | MHK13: 0.0 | MHL13: 0.0 | MHM13: 0.0 | MHN13: 0.0 | MHO13: 0.0 | MHP13: 0.0 | MHQ13: 0.0 | MHR13: 0.0 | MHS13: 0.0 | MHT13: 0.0 | MHU13: 0.0 | MHV13: 0.0 | MHW13: 0.0 | MHX13: 0.0 | MHY13: 0.0 | MHZ13: 0.0 | MIA13: 0.0 | MIB13: 0.0 | MIC13: 0.0 | MID13: 0.0 | MIE13: 0.0 | MIF13: 0.0 | MIG13: 0.0 | MIH13: 0.0 | MII13: 0.0 | MIJ13: 0.0 | MIK13: 0.0 | MIL13: 0.0 | MIM13: 0.0 | MIN13: 0.0 | MIO13: 0.0 | MIP13: 0.0 | MIQ13: 0.0 | MIR13: 0.0 | MIS13: 0.0 | MIT13: 0.0 | MIU13: 0.0 | MIV13: 0.0 | MIW13: 0.0 | MIX13: 0.0 | MIY13: 0.0 | MIZ13: 0.0 | MJA13: 0.0 | MJB13: 0.0 | MJC13: 0.0 | MJD13: 0.0 | MJE13: 0.0 | MJF13: 0.0 | MJG13: 0.0 | MJH13: 0.0 | MJI13: 0.0 | MJJ13: 0.0 | MJK13: 0.0 | MJL13: 0.0 | MJM13: 0.0 | MJN13: 0.0 | MJO13: 0.0 | MJP13: 0.0 | MJQ13: 0.0 | MJR13: 0.0 | MJS13: 0.0 | MJT13: 0.0 | MJU13: 0.0 | MJV13: 0.0 | MJW13: 0.0 | MJX13: 0.0 | MJY13: 0.0 | MJZ13: 0.0 | MKA13: 0.0 | MKB13: 0.0 | MKC13: 0.0 | MKD13: 0.0 | MKE13: 0.0 | MKF13: 0.0 | MKG13: 0.0 | MKH13: 0.0 | MKI13: 0.0 | MKJ13: 0.0 | MKK13: 0.0 | MKL13: 0.0 | MKM13: 0.0 | MKN13: 0.0 | MKO13: 0.0 | MKP13: 0.0 | MKQ13: 0.0 | MKR13: 0.0 | MKS13: 0.0 | MKT13: 0.0 | MKU13: 0.0 | MKV13: 0.0 | MKW13: 0.0 | MKX13: 0.0 | MKY13: 0.0 | MKZ13: 0.0 | MLA13: 0.0 | MLB13: 0.0 | MLC13: 0.0 | MLD13: 0.0 | MLE13: 0.0 | MLF13: 0.0 | MLG13: 0.0 | MLH13: 0.0 | MLI13: 0.0 | MLJ13: 0.0 | MLK13: 0.0 | MLL13: 0.0 | MLM13: 0.0 | MLN13: 0.0 | MLO13: 0.0 | MLP13: 0.0 | MLQ13: 0.0 | MLR13: 0.0 | MLS13: 0.0 | MLT13: 0.0 | MLU13: 0.0 | MLV13: 0.0 | MLW13: 0.0 | MLX13: 0.0 | MLY13: 0.0 | MLZ13: 0.0 | MMA13: 0.0 | MMB13: 0.0 | MMC13: 0.0 | MMD13: 0.0 | MME13: 0.0 | MMF13: 0.0 | MMG13: 0.0 | MMH13: 0.0 | MMI13: 0.0 | MMJ13: 0.0 | MMK13: 0.0 | MML13: 0.0 | MMM13: 0.0 | MMN13: 0.0 | MMO13: 0.0 | MMP13: 0.0 | MMQ13: 0.0 | MMR13: 0.0 | MMS13: 0.0 | MMT13: 0.0 | MMU13: 0.0 | MMV13: 0.0 | MMW13: 0.0 | MMX13: 0.0 | MMY13: 0.0 | MMZ13: 0.0 | MNA13: 0.0 | MNB13: 0.0 | MNC13: 0.0 | MND13: 0.0 | MNE13: 0.0 | MNF13: 0.0 | MNG13: 0.0 | MNH13: 0.0 | MNI13: 0.0 | MNJ13: 0.0 | MNK13: 0.0 | MNL13: 0.0 | MNM13: 0.0 | MNN13: 0.0 | MNO13: 0.0 | MNP13: 0.0 | MNQ13: 0.0 | MNR13: 0.0 | MNS13: 0.0 | MNT13: 0.0 | MNU13: 0.0 | MNV13: 0.0 | MNW13: 0.0 | MNX13: 0.0 | MNY13: 0.0 | MNZ13: 0.0 | MOA13: 0.0 | MOB13: 0.0 | MOC13: 0.0 | MOD13: 0.0 | MOE13: 0.0 | MOF13: 0.0 | MOG13: 0.0 | MOH13: 0.0 | MOI13: 0.0 | MOJ13: 0.0 | MOK13: 0.0 | MOL13: 0.0 | MOM13: 0.0 | MON13: 0.0 | MOO13: 0.0 | MOP13: 0.0 | MOQ13: 0.0 | MOR13: 0.0 | MOS13: 0.0 | MOT13: 0.0 | MOU13: 0.0 | MOV13: 0.0 | MOW13: 0.0 | MOX13: 0.0 | MOY13: 0.0 | MOZ13: 0.0 | MPA13: 0.0 | MPB13: 0.0 | MPC13: 0.0 | MPD13: 0.0 | MPE13: 0.0 | MPF13: 0.0 | MPG13: 0.0 | MPH13: 0.0 | MPI13: 0.0 | MPJ13: 0.0 | MPK13: 0.0 | MPL13: 0.0 | MPM13: 0.0 | MPN13: 0.0 | MPO13: 0.0 | MPP13: 0.0 | MPQ13: 0.0 | MPR13: 0.0 | MPS13: 0.0 | MPT13: 0.0 | MPU13: 0.0 | MPV13: 0.0 | MPW13: 0.0 | MPX13: 0.0 | MPY13: 0.0 | MPZ13: 0.0 | MQA13: 0.0 | MQB13: 0.0 | MQC13: 0.0 | MQD13: 0.0 | MQE13: 0.0 | MQF13: 0.0 | MQG13: 0.0 | MQH13: 0.0 | MQI13: 0.0 | MQJ13: 0.0 | MQK13: 0.0 | MQL13: 0.0 | MQM13: 0.0 | MQN13: 0.0 | MQO13: 0.0 | MQP13: 0.0 | MQQ13: 0.0 | MQR13: 0.0 | MQS13: 0.0 | MQT13: 0.0 | MQU13: 0.0 | MQV13: 0.0 | MQW13: 0.0 | MQX13: 0.0 | MQY13: 0.0 | MQZ13: 0.0 | MRA13: 0.0 | MRB13: 0.0 | MRC13: 0.0 | MRD13: 0.0 | MRE13: 0.0 | MRF13: 0.0 | MRG13: 0.0 | MRH13: 0.0 | MRI13: 0.0 | MRJ13: 0.0 | MRK13: 0.0 | MRL13: 0.0 | MRM13: 0.0 | MRN13: 0.0 | MRO13: 0.0 | MRP13: 0.0 | MRQ13: 0.0 | MRR13: 0.0 | MRS13: 0.0 | MRT13: 0.0 | MRU13: 0.0 | MRV13: 0.0 | MRW13: 0.0 | MRX13: 0.0 | MRY13: 0.0 | MRZ13: 0.0 | MSA13: 0.0 | MSB13: 0.0 | MSC13: 0.0 | MSD13: 0.0 | MSE13: 0.0 | MSF13: 0.0 | MSG13: 0.0 | MSH13: 0.0 | MSI13: 0.0 | MSJ13: 0.0 | MSK13: 0.0 | MSL13: 0.0 | MSM13: 0.0 | MSN13: 0.0 | MSO13: 0.0 | MSP13: 0.0 | MSQ13: 0.0 | MSR13: 0.0 | MSS13: 0.0 | MST13: 0.0 | MSU13: 0.0 | MSV13: 0.0 | MSW13: 0.0 | MSX13: 0.0 | MSY13: 0.0 | MSZ13: 0.0 | MTA13: 0.0 | MTB13: 0.0 | MTC13: 0.0 | MTD13: 0.0 | MTE13: 0.0 | MTF13: 0.0 | MTG13: 0.0 | MTH13: 0.0 | MTI13: 0.0 | MTJ13: 0.0 | MTK13: 0.0 | MTL13: 0.0 | MTM13: 0.0 | MTN13: 0.0 | MTO13: 0.0 | MTP13: 0.0 | MTQ13: 0.0 | MTR13: 0.0 | MTS13: 0.0 | MTT13: 0.0 | MTU13: 0.0 | MTV13: 0.0 | MTW13: 0.0 | MTX13: 0.0 | MTY13: 0.0 | MTZ13: 0.0 | MUA13: 0.0 | MUB13: 0.0 | MUC13: 0.0 | MUD13: 0.0 | MUE13: 0.0 | MUF13: 0.0 | MUG13: 0.0 | MUH13: 0.0 | MUI13: 0.0 | MUJ13: 0.0 | MUK13: 0.0 | MUL13: 0.0 | MUM13: 0.0 | MUN13: 0.0 | MUO13: 0.0 | MUP13: 0.0 | MUQ13: 0.0 | MUR13: 0.0 | MUS13: 0.0 | MUT13: 0.0 | MUU13: 0.0 | MUV13: 0.0 | MUW13: 0.0 | MUX13: 0.0 | MUY13: 0.0 | MUZ13: 0.0 | MVA13: 0.0 | MVB13: 0.0 | MVC13: 0.0 | MVD13: 0.0 | MVE13: 0.0 | MVF13: 0.0 | MVG13: 0.0 | MVH13: 0.0 | MVI13: 0.0 | MVJ13: 0.0 | MVK13: 0.0 | MVL13: 0.0 | MVM13: 0.0 | MVN13: 0.0 | MVO13: 0.0 | MVP13: 0.0 | MVQ13: 0.0 | MVR13: 0.0 | MVS13: 0.0 | MVT13: 0.0 | MVU13: 0.0 | MVV13: 0.0 | MVW13: 0.0 | MVX13: 0.0 | MVY13: 0.0 | MVZ13: 0.0 | MWA13: 0.0 | MWB13: 0.0 | MWC13: 0.0 | MWD13: 0.0 | MWE13: 0.0 | MWF13: 0.0 | MWG13: 0.0 | MWH13: 0.0 | MWI13: 0.0 | MWJ13: 0.0 | MWK13: 0.0 | MWL13: 0.0 | MWM13: 0.0 | MWN13: 0.0 | MWO13: 0.0 | MWP13: 0.0 | MWQ13: 0.0 | MWR13: 0.0 | MWS13: 0.0 | MWT13: 0.0 | MWU13: 0.0 | MWV13: 0.0 | MWW13: 0.0 | MWX13: 0.0 | MWY13: 0.0 | MWZ13: 0.0 | MXA13: 0.0 | MXB13: 0.0 | MXC13: 0.0 | MXD13: 0.0 | MXE13: 0.0 | MXF13: 0.0 | MXG13: 0.0 | MXH13: 0.0 | MXI13: 0.0 | MXJ13: 0.0 | MXK13: 0.0 | MXL13: 0.0 | MXM13: 0.0 | MXN13: 0.0 | MXO13: 0.0 | MXP13: 0.0 | MXQ13: 0.0 | MXR13: 0.0 | MXS13: 0.0 | MXT13: 0.0 | MXU13: 0.0 | MXV13: 0.0 | MXW13: 0.0 | MXX13: 0.0 | MXY13: 0.0 | MXZ13: 0.0 | MYA13: 0.0 | MYB13: 0.0 | MYC13: 0.0 | MYD13: 0.0 | MYE13: 0.0 | MYF13: 0.0 | MYG13: 0.0 | MYH13: 0.0 | MYI13: 0.0 | MYJ13: 0.0 | MYK13: 0.0 | MYL13: 0.0 | MYM13: 0.0 | MYN13: 0.0 | MYO13: 0.0 | MYP13: 0.0 | MYQ13: 0.0 | MYR13: 0.0 | MYS13: 0.0 | MYT13: 0.0 | MYU13: 0.0 | MYV13: 0.0 | MYW13: 0.0 | MYX13: 0.0 | MYY13: 0.0 | MYZ13: 0.0 | MZA13: 0.0 | MZB13: 0.0 | MZC13: 0.0 | MZD13: 0.0 | MZE13: 0.0 | MZF13: 0.0 | MZG13: 0.0 | MZH13: 0.0 | MZI13: 0.0 | MZJ13: 0.0 | MZK13: 0.0 | MZL13: 0.0 | MZM13: 0.0 | MZN13: 0.0 | MZO13: 0.0 | MZP13: 0.0 | MZQ13: 0.0 | MZR13: 0.0 | MZS13: 0.0 | MZT13: 0.0 | MZU13: 0.0 | MZV13: 0.0 | MZW13: 0.0 | MZX13: 0.0 | MZY13: 0.0 | MZZ13: 0.0 | NAA13: 0.0 | NAB13: 0.0 | NAC13: 0.0 | NAD13: 0.0 | NAE13: 0.0 | NAF13: 0.0 | NAG13: 0.0 | NAH13: 0.0 | NAI13: 0.0 | NAJ13: 0.0 | NAK13: 0.0 | NAL13: 0.0 | NAM13: 0.0 | NAN13: 0.0 | NAO13: 0.0 | NAP13: 0.0 | NAQ13: 0.0 | NAR13: 0.0 | NAS13: 0.0 | NAT13: 0.0 | NAU13: 0.0 | NAV13: 0.0 | NAW13: 0.0 | NAX13: 0.0 | NAY13: 0.0 | NAZ13: 0.0 | NBA13: 0.0 | NBB13: 0.0 | NBC13: 0.0 | NBD13: 0.0 | NBE13: 0.0 | NBF13: 0.0 | NBG13: 0.0 | NBH13: 0.0 | NBI13: 0.0 | NBJ13: 0.0 | NBK13: 0.0 | NBL13: 0.0 | NBM13: 0.0 | NBN13: 0.0 | NBO13: 0.0 | NBP13: 0.0 | NBQ13: 0.0 | NBR13: 0.0 | NBS13: 0.0 | NBT13: 0.0 | NBU13: 0.0 | NBV13: 0.0 | NBW13: 0.0 | NBX13: 0.0 | NBY13: 0.0 | NBZ13: 0.0 | NCA13: 0.0 | NCB13: 0.0 | NCC13: 0.0 | NCD13: 0.0 | NCE13: 0.0 | NCF13: 0.0 | NCG13: 0.0 | NCH13: 0.0 | NCI13: 0.0 | NCJ13: 0.0 | NCK13: 0.0 | NCL13: 0.0 | NCM13: 0.0 | NCN13: 0.0 | NCO13: 0.0 | NCP13: 0.0 | NCQ13: 0.0 | NCR13: 0.0 | NCS13: 0.0 | NCT13: 0.0 | NCU13: 0.0 | NCV13: 0.0 | NCW13: 0.0 | NCX13: 0.0 | NCY13: 0.0 | NCZ13: 0.0 | NDA13: 0.0 | NDB13: 0.0 | NDC13: 0.0 | NDD13: 0.0 | NDE13: 0.0 | NDF13: 0.0 | NDG13: 0.0 | NDH13: 0.0 | NDI13: 0.0 | NDJ13: 0.0 | NDK13: 0.0 | NDL13: 0.0 | NDM13: 0.0 | NDN13: 0.0 | NDO13: 0.0 | NDP13: 0.0 | NDQ13: 0.0 | NDR13: 0.0 | NDS13: 0.0 | NDT13: 0.0 | NDU13: 0.0 | NDV13: 0.0 | NDW13: 0.0 | NDX13: 0.0 | NDY13: 0.0 | NDZ13: 0.0 | NEA13: 0.0 | NEB13: 0.0 | NEC13: 0.0 | NED13: 0.0 | NEE13: 0.0 | NEF13: 0.0 | NEG13: 0.0 | NEH13: 0.0 | NEI13: 0.0 | NEJ13: 0.0 | NEK13: 0.0 | NEL13: 0.0 | NEM13: 0.0 | NEN13: 0.0 | NEO13: 0.0 | NEP13: 0.0 | NEQ13: 0.0 | NER13: 0.0 | NES13: 0.0 | NET13: 0.0 | NEU13: 0.0 | NEV13: 0.0 | NEW13: 0.0 | NEX13: 0.0 | NEY13: 0.0 | NEZ13: 0.0 | NFA13: 0.0 | NFB13: 0.0 | NFC13: 0.0 | NFD13: 0.0 | NFE13: 0.0 | NFF13: 0.0 | NFG13: 0.0 | NFH13: 0.0 | NFI13: 0.0 | NFJ13: 0.0 | NFK13: 0.0 | NFL13: 0.0 | NFM13: 0.0 | NFN13: 0.0 | NFO13: 0.0 | NFP13: 0.0 | NFQ13: 0.0 | NFR13: 0.0 | NFS13: 0.0 | NFT13: 0.0 | NFU13: 0.0 | NFV13: 0.0 | NFW13: 0.0 | NFX13: 0.0 | NFY13: 0.0 | NFZ13: 0.0 | NGA13: 0.0 | NGB13: 0.0 | NGC13: 0.0 | NGD13: 0.0 | NGE13: 0.0 | NGF13: 0.0 | NGG13: 0.0 | NGH13: 0.0 | NGI13: 0.0 | NGJ13: 0.0 | NGK13: 0.0 | NGL13: 0.0 | NGM13: 0.0 | NGN13: 0.0 | NGO13: 0.0 | NGP13: 0.0 | NGQ13: 0.0 | NGR13: 0.0 | NGS13: 0.0 | NGT13: 0.0 | NGU13: 0.0 | NGV13: 0.0 | NGW13: 0.0 | NGX13: 0.0 | NGY13: 0.0 | NGZ13: 0.0 | NHA13: 0.0 | NHB13: 0.0 | NHC13: 0.0 | NHD13: 0.0 | NHE13: 0.0 | NHF13: 0.0 | NHG13: 0.0 | NHH13: 0.0 | NHI13: 0.0 | NHJ13: 0.0 | NHK13: 0.0 | NHL13: 0.0 | NHM13: 0.0 | NHN13: 0.0 | NHO13: 0.0 | NHP13: 0.0 | NHQ13: 0.0 | NHR13: 0.0 | NHS13: 0.0 | NHT13: 0.0 | NHU13: 0.0 | NHV13: 0.0 | NHW13: 0.0 | NHX13: 0.0 | NHY13: 0.0 | NHZ13: 0.0 | NIA13: 0.0 | NIB13: 0.0 | NIC13: 0.0 | NID13: 0.0 | NIE13: 0.0 | NIF13: 0.0 | NIG13: 0.0 | NIH13: 0.0 | NII13: 0.0 | NIJ13: 0.0 | NIK13: 0.0 | NIL13: 0.0 | NIM13: 0.0 | NIN13: 0.0 | NIO13: 0.0 | NIP13: 0.0 | NIQ13: 0.0 | NIR13: 0.0 | NIS13: 0.0 | NIT13: 0.0 | NIU13: 0.0 | NIV13: 0.0 | NIW13: 0.0 | NIX13: 0.0 | NIY13: 0.0 | NIZ13: 0.0 | NJA13: 0.0 | NJB13: 0.0 | NJC13: 0.0 | NJD13: 0.0 | NJE13: 0.0 | NJF13: 0.0 | NJG13: 0.0 | NJH13: 0.0 | NJI13: 0.0 | NJJ13: 0.0 | NJK13: 0.0 | NJL13: 0.0 | NJM13: 0.0 | NJN13: 0.0 | NJO13: 0.0 | NJP13: 0.0 | NJQ13: 0.0 | NJR13: 0.0 | NJS13: 0.0 | NJT13: 0.0 | NJU13: 0.0 | NJV13: 0.0 | NJW13: 0.0 | NJX13: 0.0 | NJY13: 0.0 | NJZ13: 0.0 | NKA13: 0.0 | NKB13: 0.0 | NKC13: 0.0 | NKD13: 0.0 | NKE13: 0.0 | NKF13: 0.0 | NKG13: 0.0 | NKH13: 0.0 | NKI13: 0.0 | NKJ13: 0.0 | NKK13: 0.0 | NKL13: 0.0 | NKM13: 0.0 | NKN13: 0.0 | NKO13: 0.0 | NKP13: 0.0 | NKQ13: 0.0 | NKR13: 0.0 | NKS13: 0.0 | NKT13: 0.0 | NKU13: 0.0 | NKV13: 0.0 | NKW13: 0.0 | NKX13: 0.0 | NKY13: 0.0 | NKZ13: 0.0 | NLA13: 0.0 | NLB13: 0.0 | NLC13: 0.0 | NLD13: 0.0 | NLE13: 0.0 | NLF13: 0.0 | NLG13: 0.0 | NLH13: 0.0 | NLI13: 0.0 | NLJ13: 0.0 | NLK13: 0.0 | NLL13: 0.0 | NLM13: 0.0 | NLN13: 0.0 | NLO13: 0.0 | NLP13: 0.0 | NLQ13: 0.0 | NLR13: 0.0 | NLS13: 0.0 | NLT13: 0.0 | NLU13: 0.0 | NLV13: 0.0 | NLW13: 0.0 | NLX13: 0.0 | NLY13: 0.0 | NLZ13: 0.0 | NMA13: 0.0 | NMB13: 0.0 | NMC13: 0.0 | NMD13: 0.0 | NME13: 0.0 | NMF13: 0.0 | NMG13: 0.0 | NMH13: 0.0 | NMI13: 0.0 | NMJ13: 0.0 | NMK13: 0.0 | NML13: 0.0 | NMM13: 0.0 | NMN13: 0.0 | NMO13: 0.0 | NMP13: 0.0 | NMQ13: 0.0 | NMR13: 0.0 | NMS13: 0.0 | NMT13: 0.0 | NMU13: 0.0 | NMV13: 0.0 | NMW13: 0.0 | NMX13: 0.0 | NMY13: 0.0 | NMZ13: 0.0 | NNA13: 0.0 | NNB13: 0.0 | NNC13: 0.0 | NND13: 0.0 | NNE13: 0.0 | NNF13: 0.0 | NNG13: 0.0 | NNH13: 0.0 | NNI13: 0.0 | NNJ13: 0.0 | NNK13: 0.0 | NNL13: 0.0 | NNM13: 0.0 | NNN13: 0.0 | NNO13: 0.0 | NNP13: 0.0 | NNQ13: 0.0 | NNR13: 0.0 | NNS13: 0.0 | NNT13: 0.0 | NNU13: 0.0 | NNV13: 0.0 | NNW13: 0.0 | NNX13: 0.0 | NNY13: 0.0 | NNZ13: 0.0 | NOA13: 0.0 | NOB13: 0.0 | NOC13: 0.0 | NOD13: 0.0 | NOE13: 0.0 | NOF13: 0.0 | NOG13: 0.0 | NOH13: 0.0 | NOI13: 0.0 | NOJ13: 0.0 | NOK13: 0.0 | NOL13: 0.0 | NOM13: 0.0 | NON13: 0.0 | NOO13: 0.0 | NOP13: 0.0 | NOQ13: 0.0 | NOR13: 0.0 | NOS13: 0.0 | NOT13: 0.0 | NOU13: 0.0 | NOV13: 0.0 | NOW13: 0.0 | NOX13: 0.0 | NOY13: 0.0 | NOZ13: 0.0 | NPA13: 0.0 | NPB13: 0.0 | NPC13: 0.0 | NPD13: 0.0 | NPE13: 0.0 | NPF13: 0.0 | NPG13: 0.0 | NPH13: 0.0 | NPI13: 0.0 | NPJ13: 0.0 | NPK13: 0.0 | NPL13: 0.0 | NPM13: 0.0 | NPN13: 0.0 | NPO13: 0.0 | NPP13: 0.0 | NPQ13: 0.0 | NPR13: 0.0 | NPS13: 0.0 | NPT13: 0.0 | NPU13: 0.0 | NPV13: 0.0 | NPW13: 0.0 | NPX13: 0.0 | NPY13: 0.0 | NPZ13: 0.0 | NQA13: 0.0 | NQB13: 0.0 | NQC13: 0.0 | NQD13: 0.0 | NQE13: 0.0 | NQF13: 0.0 | NQG13: 0.0 | NQH13: 0.0 | NQI13: 0.0 | NQJ13: 0.0 | NQK13: 0.0 | NQL13: 0.0 | NQM13: 0.0 | NQN13: 0.0 | NQO13: 0.0 | NQP13: 0.0 | NQQ13: 0.0 | NQR13: 0.0 | NQS13: 0.0 | NQT13: 0.0 | NQU13: 0.0 | NQV13: 0.0 | NQW13: 0.0 | NQX13: 0.0 | NQY13: 0.0 | NQZ13: 0.0 | NRA13: 0.0 | NRB13: 0.0 | NRC13: 0.0 | NRD13: 0.0 | NRE13: 0.0 | NRF13: 0.0 | NRG13: 0.0 | NRH13: 0.0 | NRI13: 0.0 | NRJ13: 0.0 | NRK13: 0.0 | NRL13: 0.0 | NRM13: 0.0 | NRN13: 0.0 | NRO13: 0.0 | NRP13: 0.0 | NRQ13: 0.0 | NRR13: 0.0 | NRS13: 0.0 | NRT13: 0.0 | NRU13: 0.0 | NRV13: 0.0 | NRW13: 0.0 | NRX13: 0.0 | NRY13: 0.0 | NRZ13: 0.0 | NSA13: 0.0 | NSB13: 0.0 | NSC13: 0.0 | NSD13: 0.0 | NSE13: 0.0 | NSF13: 0.0 | NSG13: 0.0 | NSH13: 0.0 | NSI13: 0.0 | NSJ13: 0.0 | NSK13: 0.0 | NSL13: 0.0 | NSM13: 0.0 | NSN13: 0.0 | NSO13: 0.0 | NSP13: 0.0 | NSQ13: 0.0 | NSR13: 0.0 | NSS13: 0.0 | NST13: 0.0 | NSU13: 0.0 | NSV13: 0.0 | NSW13: 0.0 | NSX13: 0.0 | NSY13: 0.0 | NSZ13: 0.0 | NTA13: 0.0 | NTB13: 0.0 | NTC13: 0.0 | NTD13: 0.0 | NTE13: 0.0 | NTF13: 0.0 | NTG13: 0.0 | NTH13: 0.0 | NTI13: 0.0 | NTJ13: 0.0 | NTK13: 0.0 | NTL13: 0.0 | NTM13: 0.0 | NTN13: 0.0 | NTO13: 0.0 | NTP13: 0.0 | NTQ13: 0.0 | NTR13: 0.0 | NTS13: 0.0 | NTT13: 0.0 | NTU13: 0.0 | NTV13: 0.0 | NTW13: 0.0 | NTX13: 0.0 | NTY13: 0.0 | NTZ13: 0.0 | NUA13: 0.0 | NUB13: 0.0 | NUC13: 0.0 | NUD13: 0.0 | NUE13: 0.0 | NUF13: 0.0 | NUG13: 0.0 | NUH13: 0.0 | NUI13: 0.0 | NUJ13: 0.0 | NUK13: 0.0 | NUL13: 0.0 | NUM13: 0.0 | NUN13: 0.0 | NUO13: 0.0 | NUP13: 0.0 | NUQ13: 0.0 | NUR13: 0.0 | NUS13: 0.0 | NUT13: 0.0 | NUU13: 0.0 | NUV13: 0.0 | NUW13: 0.0 | NUX13: 0.0 | NUY13: 0.0 | NUZ13: 0.0 | NVA13: 0.0 | NVB13: 0.0 | NVC13: 0.0 | NVD13: 0.0 | NVE13: 0.0 | NVF13: 0.0 | NVG13: 0.0 | NVH13: 0.0 | NVI13: 0.0 | NVJ13: 0.0 | NVK13: 0.0 | NVL13: 0.0 | NVM13: 0.0 | NVN13: 0.0 | NVO13: 0.0 | NVP13: 0.0 | NVQ13: 0.0 | NVR13: 0.0 | NVS13: 0.0 | NVT13: 0.0 | NVU13: 0.0 | NVV13: 0.0 | NVW13: 0.0 | NVX13: 0.0 | NVY13: 0.0 | NVZ13: 0.0 | NWA13: 0.0 | NWB13: 0.0 | NWC13: 0.0 | NWD13: 0.0 | NWE13: 0.0 | NWF13: 0.0 | NWG13: 0.0 | NWH13: 0.0 | NWI13: 0.0 | NWJ13: 0.0 | NWK13: 0.0 | NWL13: 0.0 | NWM13: 0.0 | NWN13: 0.0 | NWO13: 0.0 | NWP13: 0.0 | NWQ13: 0.0 | NWR13: 0.0 | NWS13: 0.0 | NWT13: 0.0 | NWU13: 0.0 | NWV13: 0.0 | NWW13: 0.0 | NWX13: 0.0 | NWY13: 0.0 | NWZ13: 0.0 | NXA13: 0.0 | NXB13: 0.0 | NXC13: 0.0 | NXD13: 0.0 | NXE13: 0.0 | NXF13: 0.0 | NXG13: 0.0 | NXH13: 0.0 | NXI13: 0.0 | NXJ13: 0.0 | NXK13: 0.0 | NXL13: 0.0 | NXM13: 0.0 | NXN13: 0.0 | NXO13: 0.0 | NXP13: 0.0 | NXQ13: 0.0 | NXR13: 0.0 | NXS13: 0.0 | NXT13: 0.0 | NXU13: 0.0 | NXV13: 0.0 | NXW13: 0.0 | NXX13: 0.0 | NXY13: 0.0 | NXZ13: 0.0 | NYA13: 0.0 | NYB13: 0.0 | NYC13: 0.0 | NYD13: 0.0 | NYE13: 0.0 | NYF13: 0.0 | NYG13: 0.0 | NYH13: 0.0 | NYI13: 0.0 | NYJ13: 0.0 | NYK13: 0.0 | NYL13: 0.0 | NYM13: 0.0 | NYN13: 0.0 | NYO13: 0.0 | NYP13: 0.0 | NYQ13: 0.0 | NYR13: 0.0 | NYS13: 0.0 | NYT13: 0.0 | NYU13: 0.0 | NYV13: 0.0 | NYW13: 0.0 | NYX13: 0.0 | NYY13: 0.0 | NYZ13: 0.0 | NZA13: 0.0 | NZB13: 0.0 | NZC13: 0.0 | NZD13: 0.0 | NZE13: 0.0 | NZF13: 0.0 | NZG13: 0.0 | NZH13: 0.0 | NZI13: 0.0 | NZJ13: 0.0 | NZK13: 0.0 | NZL13: 0.0 | NZM13: 0.0 | NZN13: 0.0 | NZO13: 0.0 | NZP13: 0.0 | NZQ13: 0.0 | NZR13: 0.0 | NZS13: 0.0 | NZT13: 0.0 | NZU13: 0.0 | NZV13: 0.0 | NZW13: 0.0 | NZX13: 0.0 | NZY13: 0.0 | NZZ13: 0.0 | OAA13: 0.0 | OAB13: 0.0 | OAC13: 0.0 | OAD13: 0.0 | OAE13: 0.0 | OAF13: 0.0 | OAG13: 0.0 | OAH13: 0.0 | OAI13: 0.0 | OAJ13: 0.0 | OAK13: 0.0 | OAL13: 0.0 | OAM13: 0.0 | OAN13: 0.0 | OAO13: 0.0 | OAP13: 0.0 | OAQ13: 0.0 | OAR13: 0.0 | OAS13: 0.0 | OAT13: 0.0 | OAU13: 0.0 | OAV13: 0.0 | OAW13: 0.0 | OAX13: 0.0 | OAY13: 0.0 | OAZ13: 0.0 | OBA13: 0.0 | OBB13: 0.0 | OBC13: 0.0 | OBD13: 0.0 | OBE13: 0.0 | OBF13: 0.0 | OBG13: 0.0 | OBH13: 0.0 | OBI13: 0.0 | OBJ13: 0.0 | OBK13: 0.0 | OBL13: 0.0 | OBM13: 0.0 | OBN13: 0.0 | OBO13: 0.0 | OBP13: 0.0 | OBQ13: 0.0 | OBR13: 0.0 | OBS13: 0.0 | OBT13: 0.0 | OBU13: 0.0 | OBV13: 0.0 | OBW13: 0.0 | OBX13: 0.0 | OBY13: 0.0 | OBZ13: 0.0 | OCA13: 0.0 | OCB13: 0.0 | OCC13: 0.0 | OCD13: 0.0 | OCE13: 0.0 | OCF13: 0.0 | OCG13: 0.0 | OCH13: 0.0 | OCI13: 0.0 | OCJ13: 0.0 | OCK13: 0.0 | OCL13: 0.0 | OCM13: 0.0 | OCN13: 0.0 | OCO13: 0.0 | OCP13: 0.0 | OCQ13: 0.0 | OCR13: 0.0 | OCS13: 0.0 | OCT13: 0.0 | OCU13: 0.0 | OCV13: 0.0 | OCW13: 0.0 | OCX13: 0.0 | OCY13: 0.0 | OCZ13: 0.0 | ODA13: 0.0 | ODB13: 0.0 | ODC13: 0.0 | ODD13: 0.0 | ODE13: 0.0 | ODF13: 0.0 | ODG13: 0.0 | ODH13: 0.0 | ODI13: 0.0 | ODJ13: 0.0 | ODK13: 0.0 | ODL13: 0.0 | ODM13: 0.0 | ODN13: 0.0 | ODO13: 0.0 | ODP13: 0.0 | ODQ13: 0.0 | ODR13: 0.0 | ODS13: 0.0 | ODT13: 0.0 | ODU13: 0.0 | ODV13: 0.0 | ODW13: 0.0 | ODX13: 0.0 | ODY13: 0.0 | ODZ13: 0.0 | OEA13: 0.0 | OEB13: 0.0 | OEC13: 0.0 | OED13: 0.0 | OEE13: 0.0 | OEF13: 0.0 | OEG13: 0.0 | OEH13: 0.0 | OEI13: 0.0 | OEJ13: 0.0 | OEK13: 0.0 | OEL13: 0.0 | OEM13: 0.0 | OEN13: 0.0 | OEO13: 0.0 | OEP13: 0.0 | OEQ13: 0.0 | OER13: 0.0 | OES13: 0.0 | OET13: 0.0 | OEU13: 0.0 | OEV13: 0.0 | OEW13: 0.0 | OEX13: 0.0 | OEY13: 0.0 | OEZ13: 0.0 | OFA13: 0.0 | OFB13: 0.0 | OFC13: 0.0 | OFD13: 0.0 | OFE13: 0.0 | OFF13: 0.0 | OFG13: 0.0 | OFH13: 0.0 | OFI13: 0.0 | OFJ13: 0.0 | OFK13: 0.0 | OFL13: 0.0 | OFM13: 0.0 | OFN13: 0.0 | OFO13: 0.0 | OFP13: 0.0 | OFQ13: 0.0 | OFR13: 0.0 | OFS13: 0.0 | OFT13: 0.0 | OFU13: 0.0 | OFV13: 0.0 | OFW13: 0.0 | OFX13: 0.0 | OFY13: 0.0 | OFZ13: 0.0 | OGA13: 0.0 | OGB13: 0.0 | OGC13: 0.0 | OGD13: 0.0 | OGE13: 0.0 | OGF13: 0.0 | OGG13: 0.0 | OGH13: 0.0 | OGI13: 0.0 | OGJ13: 0.0 | OGK13: 0.0 | OGL13: 0.0 | OGM13: 0.0 | OGN13: 0.0 | OGO13: 0.0 | OGP13: 0.0 | OGQ13: 0.0 | OGR13: 0.0 | OGS13: 0.0 | OGT13: 0.0 | OGU13: 0.0 | OGV13: 0.0 | OGW13: 0.0 | OGX13: 0.0 | OGY13: 0.0 | OGZ13: 0.0 | OHA13: 0.0 | OHB13: 0.0 | OHC13: 0.0 | OHD13: 0.0 | OHE13: 0.0 | OHF13: 0.0 | OHG13: 0.0 | OHH13: 0.0 | OHI13: 0.0 | OHJ13: 0.0 | OHK13: 0.0 | OHL13: 0.0 | OHM13: 0.0 | OHN13: 0.0 | OHO13: 0.0 | OHP13: 0.0 | OHQ13: 0.0 | OHR13: 0.0 | OHS13: 0.0 | OHT13: 0.0 | OHU13: 0.0 | OHV13: 0.0 | OHW13: 0.0 | OHX13: 0.0 | OHY13: 0.0 | OHZ13: 0.0 | OIA13: 0.0 | OIB13: 0.0 | OIC13: 0.0 | OID13: 0.0 | OIE13: 0.0 | OIF13: 0.0 | OIG13: 0.0 | OIH13: 0.0 | OII13: 0.0 | OIJ13: 0.0 | OIK13: 0.0 | OIL13: 0.0 | OIM13: 0.0 | OIN13: 0.0 | OIO13: 0.0 | OIP13: 0.0 | OIQ13: 0.0 | OIR13: 0.0 | OIS13: 0.0 | OIT13: 0.0 | OIU13: 0.0 | OIV13: 0.0 | OIW13: 0.0 | OIX13: 0.0 | OIY13: 0.0 | OIZ13: 0.0 | OJA13: 0.0 | OJB13: 0.0 | OJC13: 0.0 | OJD13: 0.0 | OJE13: 0.0 | OJF13: 0.0 | OJG13: 0.0 | OJH13: 0.0 | OJI13: 0.0 | OJJ13: 0.0 | OJK13: 0.0 | OJL13: 0.0 | OJM13: 0.0 | OJN13: 0.0 | OJO13: 0.0 | OJP13: 0.0 | OJQ13: 0.0 | OJR13: 0.0 | OJS13: 0.0 | OJT13: 0.0 | OJU13: 0.0 | OJV13: 0.0 | OJW13: 0.0 | OJX13: 0.0 | OJY13: 0.0 | OJZ13: 0.0 | OKA13: 0.0 | OKB13: 0.0 | OKC13: 0.0 | OKD13: 0.0 | OKE13: 0.0 | OKF13: 0.0 | OKG13: 0.0 | OKH13: 0.0 | OKI13: 0.0 | OKJ13: 0.0 | OKK13: 0.0 | OKL13: 0.0 | OKM13: 0.0 | OKN13: 0.0 | OKO13: 0.0 | OKP13: 0.0 | OKQ13: 0.0 | OKR13: 0.0 | OKS13: 0.0 | OKT13: 0.0 | OKU13: 0.0 | OKV13: 0.0 | OKW13: 0.0 | OKX13: 0.0 | OKY13: 0.0 | OKZ13: 0.0 | OLA13: 0.0 | OLB13: 0.0 | OLC13: 0.0 | OLD13: 0.0 | OLE13: 0.0 | OLF13: 0.0 | OLG13: 0.0 | OLH13: 0.0 | OLI13: 0.0 | OLJ13: 0.0 | OLK13: 0.0 | OLL13: 0.0 | OLM13: 0.0 | OLN13: 0.0 | OLO13: 0.0 | OLP13: 0.0 | OLQ13: 0.0 | OLR13: 0.0 | OLS13: 0.0 | OLT13: 0.0 | OLU13: 0.0 | OLV13: 0.0 | OLW13: 0.0 | OLX13: 0.0 | OLY13: 0.0 | OLZ13: 0.0 | OMA13: 0.0 | OMB13: 0.0 | OMC13: 0.0 | OMD13: 0.0 | OME13: 0.0 | OMF13: 0.0 | OMG13: 0.0 | OMH13: 0.0 | OMI13: 0.0 | OMJ13: 0.0 | OMK13: 0.0 | OML13: 0.0 | OMM13: 0.0 | OMN13: 0.0 | OMO13: 0.0 | OMP13: 0.0 | OMQ13: 0.0 | OMR13: 0.0 | OMS13: 0.0 | OMT13: 0.0 | OMU13: 0.0 | OMV13: 0.0 | OMW13: 0.0 | OMX13: 0.0 | OMY13: 0.0 | OMZ13: 0.0 | ONA13: 0.0 | ONB13: 0.0 | ONC13: 0.0 | OND13: 0.0 | ONE13: 0.0 | ONF13: 0.0 | ONG13: 0.0 | ONH13: 0.0 | ONI13: 0.0 | ONJ13: 0.0 | ONK13: 0.0 | ONL13: 0.0 | ONM13: 0.0 | ONN13: 0.0 | ONO13: 0.0 | ONP13: 0.0 | ONQ13: 0.0 | ONR13: 0.0 | ONS13: 0.0 | ONT13: 0.0 | ONU13: 0.0 | ONV13: 0.0 | ONW13: 0.0 | ONX13: 0.0 | ONY13: 0.0 | ONZ13: 0.0 | OOA13: 0.0 | OOB13: 0.0 | OOC13: 0.0 | OOD13: 0.0 | OOE13: 0.0 | OOF13: 0.0 | OOG13: 0.0 | OOH13: 0.0 | OOI13: 0.0 | OOJ13: 0.0 | OOK13: 0.0 | OOL13: 0.0 | OOM13: 0.0 | OON13: 0.0 | OOO13: 0.0 | OOP13: 0.0 | OOQ13: 0.0 | OOR13: 0.0 | OOS13: 0.0 | OOT13: 0.0 | OOU13: 0.0 | OOV13: 0.0 | OOW13: 0.0 | OOX13: 0.0 | OOY13: 0.0 | OOZ13: 0.0 | OPA13: 0.0 | OPB13: 0.0 | OPC13: 0.0 | OPD13: 0.0 | OPE13: 0.0 | OPF13: 0.0 | OPG13: 0.0 | OPH13: 0.0 | OPI13: 0.0 | OPJ13: 0.0 | OPK13: 0.0 | OPL13: 0.0 | OPM13: 0.0 | OPN13: 0.0 | OPO13: 0.0 | OPP13: 0.0 | OPQ13: 0.0 | OPR13: 0.0 | OPS13: 0.0 | OPT13: 0.0 | OPU13: 0.0 | OPV13: 0.0 | OPW13: 0.0 | OPX13: 0.0 | OPY13: 0.0 | OPZ13: 0.0 | OQA13: 0.0 | OQB13: 0.0 | OQC13: 0.0 | OQD13: 0.0 | OQE13: 0.0 | OQF13: 0.0 | OQG13: 0.0 | OQH13: 0.0 | OQI13: 0.0 | OQJ13: 0.0 | OQK13: 0.0 | OQL13: 0.0 | OQM13: 0.0 | OQN13: 0.0 | OQO13: 0.0 | OQP13: 0.0 | OQQ13: 0.0 | OQR13: 0.0 | OQS13: 0.0 | OQT13: 0.0 | OQU13: 0.0 | OQV13: 0.0 | OQW13: 0.0 | OQX13: 0.0 | OQY13: 0.0 | OQZ13: 0.0 | ORA13: 0.0 | ORB13: 0.0 | ORC13: 0.0 | ORD13: 0.0 | ORE13: 0.0 | ORF13: 0.0 | ORG13: 0.0 | ORH13: 0.0 | ORI13: 0.0 | ORJ13: 0.0 | ORK13: 0.0 | ORL13: 0.0 | ORM13: 0.0 | ORN13: 0.0 | ORO13: 0.0 | ORP13: 0.0 | ORQ13: 0.0 | ORR13: 0.0 | ORS13: 0.0 | ORT13: 0.0 | ORU13: 0.0 | ORV13: 0.0 | ORW13: 0.0 | ORX13: 0.0 | ORY13: 0.0 | ORZ13: 0.0 | OSA13: 0.0 | OSB13: 0.0 | OSC13: 0.0 | OSD13: 0.0 | OSE13: 0.0 | OSF13: 0.0 | OSG13: 0.0 | OSH13: 0.0 | OSI13: 0.0 | OSJ13: 0.0 | OSK13: 0.0 | OSL13: 0.0 | OSM13: 0.0 | OSN13: 0.0 | OSO13: 0.0 | OSP13: 0.0 | OSQ13: 0.0 | OSR13: 0.0 | OSS13: 0.0 | OST13: 0.0 | OSU13: 0.0 | OSV13: 0.0 | OSW13: 0.0 | OSX13: 0.0 | OSY13: 0.0 | OSZ13: 0.0 | OTA13: 0.0 | OTB13: 0.0 | OTC13: 0.0 | OTD13: 0.0 | OTE13: 0.0 | OTF13: 0.0 | OTG13: 0.0 | OTH13: 0.0 | OTI13: 0.0 | OTJ13: 0.0 | OTK13: 0.0 | OTL13: 0.0 | OTM13: 0.0 | OTN13: 0.0 | OTO13: 0.0 | OTP13: 0.0 | OTQ13: 0.0 | OTR13: 0.0 | OTS13: 0.0 | OTT13: 0.0 | OTU13: 0.0 | OTV13: 0.0 | OTW13: 0.0 | OTX13: 0.0 | OTY13: 0.0 | OTZ13: 0.0 | OUA13: 0.0 | OUB13: 0.0 | OUC13: 0.0 | OUD13: 0.0 | OUE13: 0.0 | OUF13: 0.0 | OUG13: 0.0 | OUH13: 0.0 | OUI13: 0.0 | OUJ13: 0.0 | OUK13: 0.0 | OUL13: 0.0 | OUM13: 0.0 | OUN13: 0.0 | OUO13: 0.0 | OUP13: 0.0 | OUQ13: 0.0 | OUR13: 0.0 | OUS13: 0.0 | OUT13: 0.0 | OUU13: 0.0 | OUV13: 0.0 | OUW13: 0.0 | OUX13: 0.0 | OUY13: 0.0 | OUZ13: 0.0 | OVA13: 0.0 | OVB13: 0.0 | OVC13: 0.0 | OVD13: 0.0 | OVE13: 0.0 | OVF13: 0.0 | OVG13: 0.0 | OVH13: 0.0 | OVI13: 0.0 | OVJ13: 0.0 | OVK13: 0.0 | OVL13: 0.0 | OVM13: 0.0 | OVN13: 0.0 | OVO13: 0.0 | OVP13: 0.0 | OVQ13: 0.0 | OVR13: 0.0 | OVS13: 0.0 | OVT13: 0.0 | OVU13: 0.0 | OVV13: 0.0 | OVW13: 0.0 | OVX13: 0.0 | OVY13: 0.0 | OVZ13: 0.0 | OWA13: 0.0 | OWB13: 0.0 | OWC13: 0.0 | OWD13: 0.0 | OWE13: 0.0 | OWF13: 0.0 | OWG13: 0.0 | OWH13: 0.0 | OWI13: 0.0 | OWJ13: 0.0 | OWK13: 0.0 | OWL13: 0.0 | OWM13: 0.0 | OWN13: 0.0 | OWO13: 0.0 | OWP13: 0.0 | OWQ13: 0.0 | OWR13: 0.0 | OWS13: 0.0 | OWT13: 0.0 | OWU13: 0.0 | OWV13: 0.0 | OWW13: 0.0 | OWX13: 0.0 | OWY13: 0.0 | OWZ13: 0.0 | OXA13: 0.0 | OXB13: 0.0 | OXC13: 0.0 | OXD13: 0.0 | OXE13: 0.0 | OXF13: 0.0 | OXG13: 0.0 | OXH13: 0.0 | OXI13: 0.0 | OXJ13: 0.0 | OXK13: 0.0 | OXL13: 0.0 | OXM13: 0.0 | OXN13: 0.0 | OXO13: 0.0 | OXP13: 0.0 | OXQ13: 0.0 | OXR13: 0.0 | OXS13: 0.0 | OXT13: 0.0 | OXU13: 0.0 | OXV13: 0.0 | OXW13: 0.0 | OXX13: 0.0 | OXY13: 0.0 | OXZ13: 0.0 | OYA13: 0.0 | OYB13: 0.0 | OYC13: 0.0 | OYD13: 0.0 | OYE13: 0.0 | OYF13: 0.0 | OYG13: 0.0 | OYH13: 0.0 | OYI13: 0.0 | OYJ13: 0.0 | OYK13: 0.0 | OYL13: 0.0 | OYM13: 0.0 | OYN13: 0.0 | OYO13: 0.0 | OYP13: 0.0 | OYQ13: 0.0 | OYR13: 0.0 | OYS13: 0.0 | OYT13: 0.0 | OYU13: 0.0 | OYV13: 0.0 | OYW13: 0.0 | OYX13: 0.0 | OYY13: 0.0 | OYZ13: 0.0 | OZA13: 0.0 | OZB13: 0.0 | OZC13: 0.0 | OZD13: 0.0 | OZE13: 0.0 | OZF13: 0.0 | OZG13: 0.0 | OZH13: 0.0 | OZI13: 0.0 | OZJ13: 0.0 | OZK13: 0.0 | OZL13: 0.0 | OZM13: 0.0 | OZN13: 0.0 | OZO13: 0.0 | OZP13: 0.0 | OZQ13: 0.0 | OZR13: 0.0 | OZS13: 0.0 | OZT13: 0.0 | OZU13: 0.0 | OZV13: 0.0 | OZW13: 0.0 | OZX13: 0.0 | OZY13: 0.0 | OZZ13: 0.0 | PAA13: 0.0 | PAB13: 0.0 | PAC13: 0.0 | PAD13: 0.0 | PAE13: 0.0 | PAF13: 0.0 | PAG13: 0.0 | PAH13: 0.0 | PAI13: 0.0 | PAJ13: 0.0 | PAK13: 0.0 | PAL13: 0.0 | PAM13: 0.0 | PAN13: 0.0 | PAO13: 0.0 | PAP13: 0.0 | PAQ13: 0.0 | PAR13: 0.0 | PAS13: 0.0 | PAT13: 0.0 | PAU13: 0.0 | PAV13: 0.0 | PAW13: 0.0 | PAX13: 0.0 | PAY13: 0.0 | PAZ13: 0.0 | PBA13: 0.0 | PBB13: 0.0 | PBC13: 0.0 | PBD13: 0.0 | PBE13: 0.0 | PBF13: 0.0 | PBG13: 0.0 | PBH13: 0.0 | PBI13: 0.0 | PBJ13: 0.0 | PBK13: 0.0 | PBL13: 0.0 | PBM13: 0.0 | PBN13: 0.0 | PBO13: 0.0 | PBP13: 0.0 | PBQ13: 0.0 | PBR13: 0.0 | PBS13: 0.0 | PBT13: 0.0 | PBU13: 0.0 | PBV13: 0.0 | PBW13: 0.0 | PBX13: 0.0 | PBY13: 0.0 | PBZ13: 0.0 | PCA13: 0.0 | PCB13: 0.0 | PCC13: 0.0 | PCD13: 0.0 | PCE13: 0.0 | PCF13: 0.0 | PCG13: 0.0 | PCH13: 0.0 | PCI13: 0.0 | PCJ13: 0.0 | PCK13: 0.0 | PCL13: 0.0 | PCM13: 0.0 | PCN13: 0.0 | PCO13: 0.0 | PCP13: 0.0 | PCQ13: 0.0 | PCR13: 0.0 | PCS13: 0.0 | PCT13: 0.0 | PCU13: 0.0 | PCV13: 0.0 | PCW13: 0.0 | PCX13: 0.0 | PCY13: 0.0 | PCZ13: 0.0 | PDA13: 0.0 | PDB13: 0.0 | PDC13: 0.0 | PDD13: 0.0 | PDE13: 0.0 | PDF13: 0.0 | PDG13: 0.0 | PDH13: 0.0 | PDI13: 0.0 | PDJ13: 0.0 | PDK13: 0.0 | PDL13: 0.0 | PDM13: 0.0 | PDN13: 0.0 | PDO13: 0.0 | PDP13: 0.0 | PDQ13: 0.0 | PDR13: 0.0 | PDS13: 0.0 | PDT13: 0.0 | PDU13: 0.0 | PDV13: 0.0 | PDW13: 0.0 | PDX13: 0.0 | PDY13: 0.0 | PDZ13: 0.0 | PEA13: 0.0 | PEB13: 0.0 | PEC13: 0.0 | PED13: 0.0 | PEE13: 0.0 | PEF13: 0.0 | PEG13: 0.0 | PEH13: 0.0 | PEI13: 0.0 | PEJ13: 0.0 | PEK13: 0.0 | PEL13: 0.0 | PEM13: 0.0 | PEN13: 0.0 | PEO13: 0.0 | PEP13: 0.0 | PEQ13: 0.0 | PER13: 0.0 | PES13: 0.0 | PET13: 0.0 | PEU13: 0.0 | PEV13: 0.0 | PEW13: 0.0 | PEX13: 0.0 | PEY13: 0.0 | PEZ13: 0.0 | PFA13: 0.0 | PFB13: 0.0 | PFC13: 0.0 | PFD13: 0.0 | PFE13: 0.0 | PFF13: 0.0 | PFG13: 0.0 | PFH13: 0.0 | PFI13: 0.0 | PFJ13: 0.0 | PFK13: 0.0 | PFL13: 0.0 | PFM13: 0.0 | PFN13: 0.0 | PFO13: 0.0 | PFP13: 0.0 | PFQ13: 0.0 | PFR13: 0.0 | PFS13: 0.0 | PFT13: 0.0 | PFU13: 0.0 | PFV13: 0.0 | PFW13: 0.0 | PFX13: 0.0 | PFY13: 0.0 | PFZ13: 0.0 | PGA13: 0.0 | PGB13: 0.0 | PGC13: 0.0 | PGD13: 0.0 | PGE13: 0.0 | PGF13: 0.0 | PGG13: 0.0 | PGH13: 0.0 | PGI13: 0.0 | PGJ13: 0.0 | PGK13: 0.0 | PGL13: 0.0 | PGM13: 0.0 | PGN13: 0.0 | PGO13: 0.0 | PGP13: 0.0 | PGQ13: 0.0 | PGR13: 0.0 | PGS13: 0.0 | PGT13: 0.0 | PGU13: 0.0 | PGV13: 0.0 | PGW13: 0.0 | PGX13: 0.0 | PGY13: 0.0 | PGZ13: 0.0 | PHA13: 0.0 | PHB13: 0.0 | PHC13: 0.0 | PHD13: 0.0 | PHE13: 0.0 | PHF13: 0.0 | PHG13: 0.0 | PHH13: 0.0 | PHI13: 0.0 | PHJ13: 0.0 | PHK13: 0.0 | PHL13: 0.0 | PHM13: 0.0 | PHN13: 0.0 | PHO13: 0.0 | PHP13: 0.0 | PHQ13: 0.0 | PHR13: 0.0 | PHS13: 0.0 | PHT13: 0.0 | PHU13: 0.0 | PHV13: 0.0 | PHW13: 0.0 | PHX13: 0.0 | PHY13: 0.0 | PHZ13: 0.0 | PIA13: 0.0 | PIB13: 0.0 | PIC13: 0.0 | PID13: 0.0 | PIE13: 0.0 | PIF13: 0.0 | PIG13: 0.0 | PIH13: 0.0 | PII13: 0.0 | PIJ13: 0.0 | PIK13: 0.0 | PIL13: 0.0 | PIM13: 0.0 | PIN13: 0.0 | PIO13: 0.0 | PIP13: 0.0 | PIQ13: 0.0 | PIR13: 0.0 | PIS13: 0.0 | PIT13: 0.0 | PIU13: 0.0 | PIV13: 0.0 | PIW13: 0.0 | PIX13: 0.0 | PIY13: 0.0 | PIZ13: 0.0 | PJA13: 0.0 | PJB13: 0.0 | PJC13: 0.0 | PJD13: 0.0 | PJE13: 0.0 | PJF13: 0.0 | PJG13: 0.0 | PJH13: 0.0 | PJI13: 0.0 | PJJ13: 0.0 | PJK13: 0.0 | PJL13: 0.0 | PJM13: 0.0 | PJN13: 0.0 | PJO13: 0.0 | PJP13: 0.0 | PJQ13: 0.0 | PJR13: 0.0 | PJS13: 0.0 | PJT13: 0.0 | PJU13: 0.0 | PJV13: 0.0 | PJW13: 0.0 | PJX13: 0.0 | PJY13: 0.0 | PJZ13: 0.0 | PKA13: 0.0 | PKB13: 0.0 | PKC13: 0.0 | PKD13: 0.0 | PKE13: 0.0 | PKF13: 0.0 | PKG13: 0.0 | PKH13: 0.0 | PKI13: 0.0 | PKJ13: 0.0 | PKK13: 0.0 | PKL13: 0.0 | PKM13: 0.0 | PKN13: 0.0 | PKO13: 0.0 | PKP13: 0.0 | PKQ13: 0.0 | PKR13: 0.0 | PKS13: 0.0 | PKT13: 0.0 | PKU13: 0.0 | PKV13: 0.0 | PKW13: 0.0 | PKX13: 0.0 | PKY13: 0.0 | PKZ13: 0.0 | PLA13: 0.0 | PLB13: 0.0 | PLC13: 0.0 | PLD13: 0.0 | PLE13: 0.0 | PLF13: 0.0 | PLG13: 0.0 | PLH13: 0.0 | PLI13: 0.0 | PLJ13: 0.0 | PLK13: 0.0 | PLL13: 0.0 | PLM13: 0.0 | PLN13: 0.0 | PLO13: 0.0 | PLP13: 0.0 | PLQ13: 0.0 | PLR13: 0.0 | PLS13: 0.0 | PLT13: 0.0 | PLU13: 0.0 | PLV13: 0.0 | PLW13: 0.0 | PLX13: 0.0 | PLY13: 0.0 | PLZ13: 0.0 | PMA13: 0.0 | PMB13: 0.0 | PMC13: 0.0 | PMD13: 0.0 | PME13: 0.0 | PMF13: 0.0 | PMG13: 0.0 | PMH13: 0.0 | PMI13: 0.0 | PMJ13: 0.0 | PMK13: 0.0 | PML13: 0.0 | PMM13: 0.0 | PMN13: 0.0 | PMO13: 0.0 | PMP13: 0.0 | PMQ13: 0.0 | PMR13: 0.0 | PMS13: 0.0 | PMT13: 0.0 | PMU13: 0.0 | PMV13: 0.0 | PMW13: 0.0 | PMX13: 0.0 | PMY13: 0.0 | PMZ13: 0.0 | PNA13: 0.0 | PNB13: 0.0 | PNC13: 0.0 | PND13: 0.0 | PNE13: 0.0 | PNF13: 0.0 | PNG13: 0.0 | PNH13: 0.0 | PNI13: 0.0 | PNJ13: 0.0 | PNK13: 0.0 | PNL13: 0.0 | PNM13: 0.0 | PNN13: 0.0 | PNO13: 0.0 | PNP13: 0.0 | PNQ13: 0.0 | PNR13: 0.0 | PNS13: 0.0 | PNT13: 0.0 | PNU13: 0.0 | PNV13: 0.0 | PNW13: 0.0 | PNX13: 0.0 | PNY13: 0.0 | PNZ13: 0.0 | POA13: 0.0 | POB13: 0.0 | POC13: 0.0 | POD13: 0.0 | POE13: 0.0 | POF13: 0.0 | POG13: 0.0 | POH13: 0.0 | POI13: 0.0 | POJ13: 0.0 | POK13: 0.0 | POL13: 0.0 | POM13: 0.0 | PON13: 0.0 | POO13: 0.0 | POP13: 0.0 | POQ13: 0.0 | POR13: 0.0 | POS13: 0.0 | POT13: 0.0 | POU13: 0.0 | POV13: 0.0 | POW13: 0.0 | POX13: 0.0 | POY13: 0.0 | POZ13: 0.0 | PPA13: 0.0 | PPB13: 0.0 | PPC13: 0.0 | PPD13: 0.0 | PPE13: 0.0 | PPF13: 0.0 | PPG13: 0.0 | PPH13: 0.0 | PPI13: 0.0 | PPJ13: 0.0 | PPK13: 0.0 | PPL13: 0.0 | PPM13: 0.0 | PPN13: 0.0 | PPO13: 0.0 | PPP13: 0.0 | PPQ13: 0.0 | PPR13: 0.0 | PPS13: 0.0 | PPT13: 0.0 | PPU13: 0.0 | PPV13: 0.0 | PPW13: 0.0 | PPX13: 0.0 | PPY13: 0.0 | PPZ13: 0.0 | PQA13: 0.0 | PQB13: 0.0 | PQC13: 0.0 | PQD13: 0.0 | PQE13: 0.0 | PQF13: 0.0 | PQG13: 0.0 | PQH13: 0.0 | PQI13: 0.0 | PQJ13: 0.0 | PQK13: 0.0 | PQL13: 0.0 | PQM13: 0.0 | PQN13: 0.0 | PQO13: 0.0 | PQP13: 0.0 | PQQ13: 0.0 | PQR13: 0.0 | PQS13: 0.0 | PQT13: 0.0 | PQU13: 0.0 | PQV13: 0.0 | PQW13: 0.0 | PQX13: 0.0 | PQY13: 0.0 | PQZ13: 0.0 | PRA13: 0.0 | PRB13: 0.0 | PRC13: 0.0 | PRD13: 0.0 | PRE13: 0.0 | PRF13: 0.0 | PRG13: 0.0 | PRH13: 0.0 | PRI13: 0.0 | PRJ13: 0.0 | PRK13: 0.0 | PRL13: 0.0 | PRM13: 0.0 | PRN13: 0.0 | PRO13: 0.0 | PRP13: 0.0 | PRQ13: 0.0 | PRR13: 0.0 | PRS13: 0.0 | PRT13: 0.0 | PRU13: 0.0 | PRV13: 0.0 | PRW13: 0.0 | PRX13: 0.0 | PRY13: 0.0 | PRZ13: 0.0 | PSA13: 0.0 | PSB13: 0.0 | PSC13: 0.0 | PSD13: 0.0 | PSE13: 0.0 | PSF13: 0.0 | PSG13: 0.0 | PSH13: 0.0 | PSI13: 0.0 | PSJ13: 0.0 | PSK13: 0.0 | PSL13: 0.0 | PSM13: 0.0 | PSN13: 0.0 | PSO13: 0.0 | PSP13: 0.0 | PSQ13: 0.0 | PSR13: 0.0 | PSS13: 0.0 | PST13: 0.0 | PSU13: 0.0 | PSV13: 0.0 | PSW13: 0.0 | PSX13: 0.0 | PSY13: 0.0 | PSZ13: 0.0 | PTA13: 0.0 | PTB13: 0.0 | PTC13: 0.0 | PTD13: 0.0 | PTE13: 0.0 | PTF13: 0.0 | PTG13: 0.0 | PTH13: 0.0 | PTI13: 0.0 | PTJ13: 0.0 | PTK13: 0.0 | PTL13: 0.0 | PTM13: 0.0 | PTN13: 0.0 | PTO13: 0.0 | PTP13: 0.0 | PTQ13: 0.0 | PTR13: 0.0 | PTS13: 0.0 | PTT13: 0.0 | PTU13: 0.0 | PTV13: 0.0 | PTW13: 0.0 | PTX13: 0.0 | PTY13: 0.0 | PTZ13: 0.0 | PUA13: 0.0 | PUB13: 0.0 | PUC13: 0.0 | PUD13: 0.0 | PUE13: 0.0 | PUF13: 0.0 | PUG13: 0.0 | PUH13: 0.0 | PUI13: 0.0 | PUJ13: 0.0 | PUK13: 0.0 | PUL13: 0.0 | PUM13: 0.0 | PUN13: 0.0 | PUO13: 0.0 | PUP13: 0.0 | PUQ13: 0.0 | PUR13: 0.0 | PUS13: 0.0 | PUT13: 0.0 | PUU13: 0.0 | PUV13: 0.0 | PUW13: 0.0 | PUX13: 0.0 | PUY13: 0.0 | PUZ13: 0.0 | PVA13: 0.0 | PVB13: 0.0 | PVC13: 0.0 | PVD13: 0.0 | PVE13: 0.0 | PVF13: 0.0 | PVG13: 0.0 | PVH13: 0.0 | PVI13: 0.0 | PVJ13: 0.0 | PVK13: 0.0 | PVL13: 0.0 | PVM13: 0.0 | PVN13: 0.0 | PVO13: 0.0 | PVP13: 0.0 | PVQ13: 0.0 | PVR13: 0.0 | PVS13: 0.0 | PVT13: 0.0 | PVU13: 0.0 | PVV13: 0.0 | PVW13: 0.0 | PVX13: 0.0 | PVY13: 0.0 | PVZ13: 0.0 | PWA13: 0.0 | PWB13: 0.0 | PWC13: 0.0 | PWD13: 0.0 | PWE13: 0.0 | PWF13: 0.0 | PWG13: 0.0 | PWH13: 0.0 | PWI13: 0.0 | PWJ13: 0.0 | PWK13: 0.0 | PWL13: 0.0 | PWM13: 0.0 | PWN13: 0.0 | PWO13: 0.0 | PWP13: 0.0 | PWQ13: 0.0 | PWR13: 0.0 | PWS13: 0.0 | PWT13: 0.0 | PWU13: 0.0 | PWV13: 0.0 | PWW13: 0.0 | PWX13: 0.0 | PWY13: 0.0 | PWZ13: 0.0 | PXA13: 0.0 | PXB13: 0.0 | PXC13: 0.0 | PXD13: 0.0 | PXE13: 0.0 | PXF13: 0.0 | PXG13: 0.0 | PXH13: 0.0 | PXI13: 0.0 | PXJ13: 0.0 | PXK13: 0.0 | PXL13: 0.0 | PXM13: 0.0 | PXN13: 0.0 | PXO13: 0.0 | PXP13: 0.0 | PXQ13: 0.0 | PXR13: 0.0 | PXS13: 0.0 | PXT13: 0.0 | PXU13: 0.0 | PXV13: 0.0 | PXW13: 0.0 | PXX13: 0.0 | PXY13: 0.0 | PXZ13: 0.0 | PYA13: 0.0 | PYB13: 0.0 | PYC13: 0.0 | PYD13: 0.0 | PYE13: 0.0 | PYF13: 0.0 | PYG13: 0.0 | PYH13: 0.0 | PYI13: 0.0 | PYJ13: 0.0 | PYK13: 0.0 | PYL13: 0.0 | PYM13: 0.0 | PYN13: 0.0 | PYO13: 0.0 | PYP13: 0.0 | PYQ13: 0.0 | PYR13: 0.0 | PYS13: 0.0 | PYT13: 0.0 | PYU13: 0.0 | PYV13: 0.0 | PYW13: 0.0 | PYX13: 0.0 | PYY13: 0.0 | PYZ13: 0.0 | PZA13: 0.0 | PZB13: 0.0 | PZC13: 0.0 | PZD13: 0.0 | PZE13: 0.0 | PZF13: 0.0 | PZG13: 0.0 | PZH13: 0.0 | PZI13: 0.0 | PZJ13: 0.0 | PZK13: 0.0 | PZL13: 0.0 | PZM13: 0.0 | PZN13: 0.0 | PZO13: 0.0 | PZP13: 0.0 | PZQ13: 0.0 | PZR13: 0.0 | PZS13: 0.0 | PZT13: 0.0 | PZU13: 0.0 | PZV13: 0.0 | PZW13: 0.0 | PZX13: 0.0 | PZY13: 0.0 | PZZ13: 0.0 | QAA13: 0.0 | QAB13: 0.0 | QAC13: 0.0 | QAD13: 0.0 | QAE13: 0.0 | QAF13: 0.0 | QAG13: 0.0 | QAH13: 0.0 | QAI13: 0.0 | QAJ13: 0.0 | QAK13: 0.0 | QAL13: 0.0 | QAM13: 0.0 | QAN13: 0.0 | QAO13: 0.0 | QAP13: 0.0 | QAQ13: 0.0 | QAR13: 0.0 | QAS13: 0.0 | QAT13: 0.0 | QAU13: 0.0 | QAV13: 0.0 | QAW13: 0.0 | QAX13: 0.0 | QAY13: 0.0 | QAZ13: 0.0 | QBA13: 0.0 | QBB13: 0.0 | QBC13: 0.0 | QBD13: 0.0 | QBE13: 0.0 | QBF13: 0.0 | QBG13: 0.0 | QBH13: 0.0 | QBI13: 0.0 | QBJ13: 0.0 | QBK13: 0.0 | QBL13: 0.0 | QBM13: 0.0 | QBN13: 0.0 | QBO13: 0.0 | QBP13: 0.0 | QBQ13: 0.0 | QBR13: 0.0 | QBS13: 0.0 | QBT13: 0.0 | QBU13: 0.0 | QBV13: 0.0 | QBW13: 0.0 | QBX13: 0.0 | QBY13: 0.0 | QBZ13: 0.0 | QCA13: 0.0 | QCB13: 0.0 | QCC13: 0.0 | QCD13: 0.0 | QCE13: 0.0 | QCF13: 0.0 | QCG13: 0.0 | QCH13: 0.0 | QCI13: 0.0 | QCJ13: 0.0 | QCK13: 0.0 | QCL13: 0.0 | QCM13: 0.0 | QCN13: 0.0 | QCO13: 0.0 | QCP13: 0.0 | QCQ13: 0.0 | QCR13: 0.0 | QCS13: 0.0 | QCT13: 0.0 | QCU13: 0.0 | QCV13: 0.0 | QCW13: 0.0 | QCX13: 0.0 | QCY13: 0.0 | QCZ13: 0.0 | QDA13: 0.0 | QDB13: 0.0 | QDC13: 0.0 | QDD13: 0.0 | QDE13: 0.0 | QDF13: 0.0 | QDG13: 0.0 | QDH13: 0.0 | QDI13: 0.0 | QDJ13: 0.0 | QDK13: 0.0 | QDL13: 0.0 | QDM13: 0.0 | QDN13: 0.0 | QDO13: 0.0 | QDP13: 0.0 | QDQ13: 0.0 | QDR13: 0.0 | QDS13: 0.0 | QDT13: 0.0 | QDU13: 0.0 | QDV13: 0.0 | QDW13: 0.0 | QDX13: 0.0 | QDY13: 0.0 | QDZ13: 0.0 | QEA13: 0.0 | QEB13: 0.0 | QEC13: 0.0 | QED13: 0.0 | QEE13: 0.0 | QEF13: 0.0 | QEG13: 0.0 | QEH13: 0.0 | QEI13: 0.0 | QEJ13: 0.0 | QEK13: 0.0 | QEL13: 0.0 | QEM13: 0.0 | QEN13: 0.0 | QEO13: 0.0 | QEP13: 0.0 | QEQ13: 0.0 | QER13: 0.0 | QES13: 0.0 | QET13: 0.0 | QEU13: 0.0 | QEV13: 0.0 | QEW13: 0.0 | QEX13: 0.0 | QEY13: 0.0 | QEZ13: 0.0 | QFA13: 0.0 | QFB13: 0.0 | QFC13: 0.0 | QFD13: 0.0 | QFE13: 0.0 | QFF13: 0.0 | QFG13: 0.0 | QFH13: 0.0 | QFI13: 0.0 | QFJ13: 0.0 | QFK13: 0.0 | QFL13: 0.0 | QFM13: 0.0 | QFN13: 0.0 | QFO13: 0.0 | QFP13: 0.0 | QFQ13: 0.0 | QFR13: 0.0 | QFS13: 0.0 | QFT13: 0.0 | QFU13: 0.0 | QFV13: 0.0 | QFW13: 0.0 | QFX13: 0.0 | QFY13: 0.0 | QFZ13: 0.0 | QGA13: 0.0 | QGB13: 0.0 | QGC13: 0.0 | QGD13: 0.0 | QGE13: 0.0 | QGF13: 0.0 | QGG13: 0.0 | QGH13: 0.0 | QGI13: 0.0 | QGJ13: 0.0 | QGK13: 0.0 | QGL13: 0.0 | QGM13: 0.0 | QGN13: 0.0 | QGO13: 0.0 | QGP13: 0.0 | QGQ13: 0.0 | QGR13: 0.0 | QGS13: 0.0 | QGT13: 0.0 | QGU13: 0.0 | QGV13: 0.0 | QGW13: 0.0 | QGX13: 0.0 | QGY13: 0.0 | QGZ13: 0.0 | QHA13: 0.0 | QHB13: 0.0 | QHC13: 0.0 | QHD13: 0.0 | QHE13: 0.0 | QHF13: 0.0 | QHG13: 0.0 | QHH13: 0.0 | QHI13: 0.0 | QHJ13: 0.0 | QHK13: 0.0 | QHL13: 0.0 | QHM13: 0.0 | QHN13: 0.0 | QHO13: 0.0 | QHP13: 0.0 | QHQ13: 0.0 | QHR13: 0.0 | QHS13: 0.0 | QHT13: 0.0 | QHU13: 0.0 | QHV13: 0.0 | QHW13: 0.0 | QHX13: 0.0 | QHY13: 0.0 | QHZ13: 0.0 | QIA13: 0.0 | QIB13: 0.0 | QIC13: 0.0 | QID13: 0.0 | QIE13: 0.0 | QIF13: 0.0 | QIG13: 0.0 | QIH13: 0.0 | QII13: 0.0 | QIJ13: 0.0 | QIK13: 0.0 | QIL13: 0.0 | QIM13: 0.0 | QIN13: 0.0 | QIO13: 0.0 | QIP13: 0.0 | QIQ13: 0.0 | QIR13: 0.0 | QIS13: 0.0 | QIT13: 0.0 | QIU13: 0.0 | QIV13: 0.0 | QIW13: 0.0 | QIX13: 0.0 | QIY13: 0.0 | QIZ13: 0.0 | QJA13: 0.0 | QJB13: 0.0 | QJC13: 0.0 | QJD13: 0.0 | QJE13: 0.0 | QJF13: 0.0 | QJG13: 0.0 | QJH13: 0.0 | QJI13: 0.0 | QJJ13: 0.0 | QJK13: 0.0 | QJL13: 0.0 | QJM13: 0.0 | QJN13: 0.0 | QJO13: 0.0 | QJP13: 0.0 | QJQ13: 0.0 | QJR13: 0.0 | QJS13: 0.0 | QJT13: 0.0 | QJU13: 0.0 | QJV13: 0.0 | QJW13: 0.0 | QJX13: 0.0 | QJY13: 0.0 | QJZ13: 0.0 | QKA13: 0.0 | QKB13: 0.0 | QKC13: 0.0 | QKD13: 0.0 | QKE13: 0.0 | QKF13: 0.0 | QKG13: 0.0 | QKH13: 0.0 | QKI13: 0.0 | QKJ13: 0.0 | QKK13: 0.0 | QKL13: 0.0 | QKM13: 0.0 | QKN13: 0.0 | QKO13: 0.0 | QKP13: 0.0 | QKQ13: 0.0 | QKR13: 0.0 | QKS13: 0.0 | QKT13: 0.0 | QKU13: 0.0 | QKV13: 0.0 | QKW13: 0.0 | QKX13: 0.0 | QKY13: 0.0 | QKZ13: 0.0 | QLA13: 0.0 | QLB13: 0.0 | QLC13: 0.0 | QLD13: 0.0 | QLE13: 0.0 | QLF13: 0.0 | QLG13: 0.0 | QLH13: 0.0 | QLI13: 0.0 | QLJ13: 0.0 | QLK13: 0.0 | QLL13: 0.0 | QLM13: 0.0 | QLN13: 0.0 | QLO13: 0.0 | QLP13: 0.0 | QLQ13: 0.0 | QLR13: 0.0 | QLS13: 0.0 | QLT13: 0.0 | QLU13: 0.0 | QLV13: 0.0 | QLW13: 0.0 | QLX13: 0.0 | QLY13: 0.0 | QLZ13: 0.0 | QMA13: 0.0 | QMB13: 0.0 | QMC13: 0.0 | QMD13: 0.0 | QME13: 0.0 | QMF13: 0.0 | QMG13: 0.0 | QMH13: 0.0 | QMI13: 0.0 | QMJ13: 0.0 | QMK13: 0.0 | QML13: 0.0 | QMM13: 0.0 | QMN13: 0.0 | QMO13: 0.0 | QMP13: 0.0 | QMQ13: 0.0 | QMR13: 0.0 | QMS13: 0.0 | QMT13: 0.0 | QMU13: 0.0 | QMV13: 0.0 | QMW13: 0.0 | QMX13: 0.0 | QMY13: 0.0 | QMZ13: 0.0 | QNA13: 0.0 | QNB13: 0.0 | QNC13: 0.0 | QND13: 0.0 | QNE13: 0.0 | QNF13: 0.0 | QNG13: 0.0 | QNH13: 0.0 | QNI13: 0.0 | QNJ13: 0.0 | QNK13: 0.0 | QNL13: 0.0 | QNM13: 0.0 | QNN13: 0.0 | QNO13: 0.0 | QNP13: 0.0 | QNQ13: 0.0 | QNR13: 0.0 | QNS13: 0.0 | QNT13: 0.0 | QNU13: 0.0 | QNV13: 0.0 | QNW13: 0.0 | QNX13: 0.0 | QNY13: 0.0 | QNZ13: 0.0 | QOA13: 0.0 | QOB13: 0.0 | QOC13: 0.0 | QOD13: 0.0 | QOE13: 0.0 | QOF13: 0.0 | QOG13: 0.0 | QOH13: 0.0 | QOI13: 0.0 | QOJ13: 0.0 | QOK13: 0.0 | QOL13: 0.0 | QOM13: 0.0 | QON13: 0.0 | QOO13: 0.0 | QOP13: 0.0 | QOQ13: 0.0 | QOR13: 0.0 | QOS13: 0.0 | QOT13: 0.0 | QOU13: 0.0 | QOV13: 0.0 | QOW13: 0.0 | QOX13: 0.0 | QOY13: 0.0 | QOZ13: 0.0 | QPA13: 0.0 | QPB13: 0.0 | QPC13: 0.0 | QPD13: 0.0 | QPE13: 0.0 | QPF13: 0.0 | QPG13: 0.0 | QPH13: 0.0 | QPI13: 0.0 | QPJ13: 0.0 | QPK13: 0.0 | QPL13: 0.0 | QPM13: 0.0 | QPN13: 0.0 | QPO13: 0.0 | QPP13: 0.0 | QPQ13: 0.0 | QPR13: 0.0 | QPS13: 0.0 | QPT13: 0.0 | QPU13: 0.0 | QPV13: 0.0 | QPW13: 0.0 | QPX13: 0.0 | QPY13: 0.0 | QPZ13: 0.0 | QQA13: 0.0 | QQB13: 0.0 | QQC13: 0.0 | QQD13: 0.0 | QQE13: 0.0 | QQF13: 0.0 | QQG13: 0.0 | QQH13: 0.0 | QQI13: 0.0 | QQJ13: 0.0 | QQK13: 0.0 | QQL13: 0.0 | QQM13: 0.0 | QQN13: 0.0 | QQO13: 0.0 | QQP13: 0.0 | QQQ13: 0.0 | QQR13: 0.0 | QQS13: 0.0 | QQT13: 0.0 | QQU13: 0.0 | QQV13: 0.0 | QQW13: 0.0 | QQX13: 0.0 | QQY13: 0.0 | QQZ13: 0.0 | QRA13: 0.0 | QRB13: 0.0 | QRC13: 0.0 | QRD13: 0.0 | QRE13: 0.0 | QRF13: 0.0 | QRG13: 0.0 | QRH13: 0.0 | QRI13: 0.0 | QRJ13: 0.0 | QRK13: 0.0 | QRL13: 0.0 | QRM13: 0.0 | QRN13: 0.0 | QRO13: 0.0 | QRP13: 0.0 | QRQ13: 0.0 | QRR13: 0.0 | QRS13: 0.0 | QRT13: 0.0 | QRU13: 0.0 | QRV13: 0.0 | QRW13: 0.0 | QRX13: 0.0 | QRY13: 0.0 | QRZ13: 0.0 | QSA13: 0.0 | QSB13: 0.0 | QSC13: 0.0 | QSD13: 0.0 | QSE13: 0.0 | QSF13: 0.0 | QSG13: 0.0 | QSH13: 0.0 | QSI13: 0.0 | QSJ13: 0.0 | QSK13: 0.0 | QSL13: 0.0 | QSM13: 0.0 | QSN13: 0.0 | QSO13: 0.0 | QSP13: 0.0 | QSQ13: 0.0 | QSR13: 0.0 | QSS13: 0.0 | QST13: 0.0 | QSU13: 0.0 | QSV13: 0.0 | QSW13: 0.0 | QSX13: 0.0 | QSY13: 0.0 | QSZ13: 0.0 | QTA13: 0.0 | QTB13: 0.0 | QTC13: 0.0 | QTD13: 0.0 | QTE13: 0.0 | QTF13: 0.0 | QTG13: 0.0 | QTH13: 0.0 | QTI13: 0.0 | QTJ13: 0.0 | QTK13: 0.0 | QTL13: 0.0 | QTM13: 0.0 | QTN13: 0.0 | QTO13: 0.0 | QTP13: 0.0 | QTQ13: 0.0 | QTR13: 0.0 | QTS13: 0.0 | QTT13: 0.0 | QTU13: 0.0 | QTV13: 0.0 | QTW13: 0.0 | QTX13: 0.0 | QTY13: 0.0 | QTZ13: 0.0 | QUA13: 0.0 | QUB13: 0.0 | QUC13: 0.0 | QUD13: 0.0 | QUE13: 0.0 | QUF13: 0.0 | QUG13: 0.0 | QUH13: 0.0 | QUI13: 0.0 | QUJ13: 0.0 | QUK13: 0.0 | QUL13: 0.0 | QUM13: 0.0 | QUN13: 0.0 | QUO13: 0.0 | QUP13: 0.0 | QUQ13: 0.0 | QUR13: 0.0 | QUS13: 0.0 | QUT13: 0.0 | QUU13: 0.0 | QUV13: 0.0 | QUW13: 0.0 | QUX13: 0.0 | QUY13: 0.0 | QUZ13: 0.0 | QVA13: 0.0 | QVB13: 0.0 | QVC13: 0.0 | QVD13: 0.0 | QVE13: 0.0 | QVF13: 0.0 | QVG13: 0.0 | QVH13: 0.0 | QVI13: 0.0 | QVJ13: 0.0 | QVK13: 0.0 | QVL13: 0.0 | QVM13: 0.0 | QVN13: 0.0 | QVO13: 0.0 | QVP13: 0.0 | QVQ13: 0.0 | QVR13: 0.0 | QVS13: 0.0 | QVT13: 0.0 | QVU13: 0.0 | QVV13: 0.0 | QVW13: 0.0 | QVX13: 0.0 | QVY13: 0.0 | QVZ13: 0.0 | QWA13: 0.0 | QWB13: 0.0 | QWC13: 0.0 | QWD13: 0.0 | QWE13: 0.0 | QWF13: 0.0 | QWG13: 0.0 | QWH13: 0.0 | QWI13: 0.0 | QWJ13: 0.0 | QWK13: 0.0 | QWL13: 0.0 | QWM13: 0.0 | QWN13: 0.0 | QWO13: 0.0 | QWP13: 0.0 | QWQ13: 0.0 | QWR13: 0.0 | QWS13: 0.0 | QWT13: 0.0 | QWU13: 0.0 | QWV13: 0.0 | QWW13: 0.0 | QWX13: 0.0 | QWY13: 0.0 | QWZ13: 0.0 | QXA13: 0.0 | QXB13: 0.0 | QXC13: 0.0 | QXD13: 0.0 | QXE13: 0.0 | QXF13: 0.0 | QXG13: 0.0 | QXH13: 0.0 | QXI13: 0.0 | QXJ13: 0.0 | QXK13: 0.0 | QXL13: 0.0 | QXM13: 0.0 | QXN13: 0.0 | QXO13: 0.0 | QXP13: 0.0 | QXQ13: 0.0 | QXR13: 0.0 | QXS13: 0.0 | QXT13: 0.0 | QXU13: 0.0 | QXV13: 0.0 | QXW13: 0.0 | QXX13: 0.0 | QXY13: 0.0 | QXZ13: 0.0 | QYA13: 0.0 | QYB13: 0.0 | QYC13: 0.0 | QYD13: 0.0 | QYE13: 0.0 | QYF13: 0.0 | QYG13: 0.0 | QYH13: 0.0 | QYI13: 0.0 | QYJ13: 0.0 | QYK13: 0.0 | QYL13: 0.0 | QYM13: 0.0 | QYN13: 0.0 | QYO13: 0.0 | QYP13: 0.0 | QYQ13: 0.0 | QYR13: 0.0 | QYS13: 0.0 | QYT13: 0.0 | QYU13: 0.0 | QYV13: 0.0 | QYW13: 0.0 | QYX13: 0.0 | QYY13: 0.0 | QYZ13: 0.0 | QZA13: 0.0 | QZB13: 0.0 | QZC13: 0.0 | QZD13: 0.0 | QZE13: 0.0 | QZF13: 0.0 | QZG13: 0.0 | QZH13: 0.0 | QZI13: 0.0 | QZJ13: 0.0 | QZK13: 0.0 | QZL13: 0.0 | QZM13: 0.0 | QZN13: 0.0 | QZO13: 0.0 | QZP13: 0.0 | QZQ13: 0.0 | QZR13: 0.0 | QZS13: 0.0 | QZT13: 0.0 | QZU13: 0.0 | QZV13: 0.0 | QZW13: 0.0 | QZX13: 0.0 | QZY13: 0.0 | QZZ13: 0.0 | RAA13: 0.0 | RAB13: 0.0 | RAC13: 0.0 | RAD13: 0.0 | RAE13: 0.0 | RAF13: 0.0 | RAG13: 0.0 | RAH13: 0.0 | RAI13: 0.0 | RAJ13: 0.0 | RAK13: 0.0 | RAL13: 0.0 | RAM13: 0.0 | RAN13: 0.0 | RAO13: 0.0 | RAP13: 0.0 | RAQ13: 0.0 | RAR13: 0.0 | RAS13: 0.0 | RAT13: 0.0 | RAU13: 0.0 | RAV13: 0.0 | RAW13: 0.0 | RAX13: 0.0 | RAY13: 0.0 | RAZ13: 0.0 | RBA13: 0.0 | RBB13: 0.0 | RBC13: 0.0 | RBD13: 0.0 | RBE13: 0.0 | RBF13: 0.0 | RBG13: 0.0 | RBH13: 0.0 | RBI13: 0.0 | RBJ13: 0.0 | RBK13: 0.0 | RBL13: 0.0 | RBM13: 0.0 | RBN13: 0.0 | RBO13: 0.0 | RBP13: 0.0 | RBQ13: 0.0 | RBR13: 0.0 | RBS13: 0.0 | RBT13: 0.0 | RBU13: 0.0 | RBV13: 0.0 | RBW13: 0.0 | RBX13: 0.0 | RBY13: 0.0 | RBZ13: 0.0 | RCA13: 0.0 | RCB13: 0.0 | RCC13: 0.0 | RCD13: 0.0 | RCE13: 0.0 | RCF13: 0.0 | RCG13: 0.0 | RCH13: 0.0 | RCI13: 0.0 | RCJ13: 0.0 | RCK13: 0.0 | RCL13: 0.0 | RCM13: 0.0 | RCN13: 0.0 | RCO13: 0.0 | RCP13: 0.0 | RCQ13: 0.0 | RCR13: 0.0 | RCS13: 0.0 | RCT13: 0.0 | RCU13: 0.0 | RCV13: 0.0 | RCW13: 0.0 | RCX13: 0.0 | RCY13: 0.0 | RCZ13: 0.0 | RDA13: 0.0 | RDB13: 0.0 | RDC13: 0.0 | RDD13: 0.0 | RDE13: 0.0 | RDF13: 0.0 | RDG13: 0.0 | RDH13: 0.0 | RDI13: 0.0 | RDJ13: 0.0 | RDK13: 0.0 | RDL13: 0.0 | RDM13: 0.0 | RDN13: 0.0 | RDO13: 0.0 | RDP13: 0.0 | RDQ13: 0.0 | RDR13: 0.0 | RDS13: 0.0 | RDT13: 0.0 | RDU13: 0.0 | RDV13: 0.0 | RDW13: 0.0 | RDX13: 0.0 | RDY13: 0.0 | RDZ13: 0.0 | REA13: 0.0 | REB13: 0.0 | REC13: 0.0 | RED13: 0.0 | REE13: 0.0 | REF13: 0.0 | REG13: 0.0 | REH13: 0.0 | REI13: 0.0 | REJ13: 0.0 | REK13: 0.0 | REL13: 0.0 | REM13: 0.0 | REN13: 0.0 | REO13: 0.0 | REP13: 0.0 | REQ13: 0.0 | RER13: 0.0 | RES13: 0.0 | RET13: 0.0 | REU13: 0.0 | REV13: 0.0 | REW13: 0.0 | REX13: 0.0 | REY13: 0.0 | REZ13: 0.0 | RFA13: 0.0 | RFB13: 0.0 | RFC13: 0.0 | RFD13: 0.0 | RFE13: 0.0 | RFF13: 0.0 | RFG13: 0.0 | RFH13: 0.0 | RFI13: 0.0 | RFJ13: 0.0 | RFK13: 0.0 | RFL13: 0.0 | RFM13: 0.0 | RFN13: 0.0 | RFO13: 0.0 | RFP13: 0.0 | RFQ13: 0.0 | RFR13: 0.0 | RFS13: 0.0 | RFT13: 0.0 | RFU13: 0.0 | RFV13: 0.0 | RFW13: 0.0 | RFX13: 0.0 | RFY13: 0.0 | RFZ13: 0.0 | RGA13: 0.0 | RGB13: 0.0 | RGC13: 0.0 | RGD13: 0.0 | RGE13: 0.0 | RGF13: 0.0 | RGG13: 0.0 | RGH13: 0.0 | RGI13: 0.0 | RGJ13: 0.0 | RGK13: 0.0 | RGL13: 0.0 | RGM13: 0.0 | RGN13: 0.0 | RGO13: 0.0 | RGP13: 0.0 | RGQ13: 0.0 | RGR13: 0.0 | RGS13: 0.0 | RGT13: 0.0 | RGU13: 0.0 | RGV13: 0.0 | RGW13: 0.0 | RGX13: 0.0 | RGY13: 0.0 | RGZ13: 0.0 | RHA13: 0.0 | RHB13: 0.0 | RHC13: 0.0 | RHD13: 0.0 | RHE13: 0.0 | RHF13: 0.0 | RHG13: 0.0 | RHH13: 0.0 | RHI13: 0.0 | RHJ13: 0.0 | RHK13: 0.0 | RHL13: 0.0 | RHM13: 0.0 | RHN13: 0.0 | RHO13: 0.0 | RHP13: 0.0 | RHQ13: 0.0 | RHR13: 0.0 | RHS13: 0.0 | RHT13: 0.0 | RHU13: 0.0 | RHV13: 0.0 | RHW13: 0.0 | RHX13: 0.0 | RHY13: 0.0 | RHZ13: 0.0 | RIA13: 0.0 | RIB13: 0.0 | RIC13: 0.0 | RID13: 0.0 | RIE13: 0.0 | RIF13: 0.0 | RIG13: 0.0 | RIH13: 0.0 | RII13: 0.0 | RIJ13: 0.0 | RIK13: 0.0 | RIL13: 0.0 | RIM13: 0.0 | RIN13: 0.0 | RIO13: 0.0 | RIP13: 0.0 | RIQ13: 0.0 | RIR13: 0.0 | RIS13: 0.0 | RIT13: 0.0 | RIU13: 0.0 | RIV13: 0.0 | RIW13: 0.0 | RIX13: 0.0 | RIY13: 0.0 | RIZ13: 0.0 | RJA13: 0.0 | RJB13: 0.0 | RJC13: 0.0 | RJD13: 0.0 | RJE13: 0.0 | RJF13: 0.0 | RJG13: 0.0 | RJH13: 0.0 | RJI13: 0.0 | RJJ13: 0.0 | RJK13: 0.0 | RJL13: 0.0 | RJM13: 0.0 | RJN13: 0.0 | RJO13: 0.0 | RJP13: 0.0 | RJQ13: 0.0 | RJR13: 0.0 | RJS13: 0.0 | RJT13: 0.0 | RJU13: 0.0 | RJV13: 0.0 | RJW13: 0.0 | RJX13: 0.0 | RJY13: 0.0 | RJZ13: 0.0 | RKA13: 0.0 | RKB13: 0.0 | RKC13: 0.0 | RKD13: 0.0 | RKE13: 0.0 | RKF13: 0.0 | RKG13: 0.0 | RKH13: 0.0 | RKI13: 0.0 | RKJ13: 0.0 | RKK13: 0.0 | RKL13: 0.0 | RKM13: 0.0 | RKN13: 0.0 | RKO13: 0.0 | RKP13: 0.0 | RKQ13: 0.0 | RKR13: 0.0 | RKS13: 0.0 | RKT13: 0.0 | RKU13: 0.0 | RKV13: 0.0 | RKW13: 0.0 | RKX13: 0.0 | RKY13: 0.0 | RKZ13: 0.0 | RLA13: 0.0 | RLB13: 0.0 | RLC13: 0.0 | RLD13: 0.0 | RLE13: 0.0 | RLF13: 0.0 | RLG13: 0.0 | RLH13: 0.0 | RLI13: 0.0 | RLJ13: 0.0 | RLK13: 0.0 | RLL13: 0.0 | RLM13: 0.0 | RLN13: 0.0 | RLO13: 0.0 | RLP13: 0.0 | RLQ13: 0.0 | RLR13: 0.0 | RLS13: 0.0 | RLT13: 0.0 | RLU13: 0.0 | RLV13: 0.0 | RLW13: 0.0 | RLX13: 0.0 | RLY13: 0.0 | RLZ13: 0.0 | RMA13: 0.0 | RMB13: 0.0 | RMC13: 0.0 | RMD13: 0.0 | RME13: 0.0 | RMF13: 0.0 | RMG13: 0.0 | RMH13: 0.0 | RMI13: 0.0 | RMJ13: 0.0 | RMK13: 0.0 | RML13: 0.0 | RMM13: 0.0 | RMN13: 0.0 | RMO13: 0.0 | RMP13: 0.0 | RMQ13: 0.0 | RMR13: 0.0 | RMS13: 0.0 | RMT13: 0.0 | RMU13: 0.0 | RMV13: 0.0 | RMW13: 0.0 | RMX13: 0.0 | RMY13: 0.0 | RMZ13: 0.0 | RNA13: 0.0 | RNB13: 0.0 | RNC13: 0.0 | RND13: 0.0 | RNE13: 0.0 | RNF13: 0.0 | RNG13: 0.0 | RNH13: 0.0 | RNI13: 0.0 | RNJ13: 0.0 | RNK13: 0.0 | RNL13: 0.0 | RNM13: 0.0 | RNN13: 0.0 | RNO13: 0.0 | RNP13: 0.0 | RNQ13: 0.0 | RNR13: 0.0 | RNS13: 0.0 | RNT13: 0.0 | RNU13: 0.0 | RNV13: 0.0 | RNW13: 0.0 | RNX13: 0.0 | RNY13: 0.0 | RNZ13: 0.0 | ROA13: 0.0 | ROB13: 0.0 | ROC13: 0.0 | ROD13: 0.0 | ROE13: 0.0 | ROF13: 0.0 | ROG13: 0.0 | ROH13: 0.0 | ROI13: 0.0 | ROJ13: 0.0 | ROK13: 0.0 | ROL13: 0.0 | ROM13: 0.0 | RON13: 0.0 | ROO13: 0.0 | ROP13: 0.0 | ROQ13: 0.0 | ROR13: 0.0 | ROS13: 0.0 | ROT13: 0.0 | ROU13: 0.0 | ROV13: 0.0 | ROW13: 0.0 | ROX13: 0.0 | ROY13: 0.0 | ROZ13: 0.0 | RPA13: 0.0 | RPB13: 0.0 | RPC13: 0.0 | RPD13: 0.0 | RPE13: 0.0 | RPF13: 0.0 | RPG13: 0.0 | RPH13: 0.0 | RPI13: 0.0 | RPJ13: 0.0 | RPK13: 0.0 | RPL13: 0.0 | RPM13: 0.0 | RPN13: 0.0 | RPO13: 0.0 | RPP13: 0.0 | RPQ13: 0.0 | RPR13: 0.0 | RPS13: 0.0 | RPT13: 0.0 | RPU13: 0.0 | RPV13: 0.0 | RPW13: 0.0 | RPX13: 0.0 | RPY13: 0.0 | RPZ13: 0.0 | RQA13: 0.0 | RQB13: 0.0 | RQC13: 0.0 | RQD13: 0.0 | RQE13: 0.0 | RQF13: 0.0 | RQG13: 0.0 | RQH13: 0.0 | RQI13: 0.0 | RQJ13: 0.0 | RQK13: 0.0 | RQL13: 0.0 | RQM13: 0.0 | RQN13: 0.0 | RQO13: 0.0 | RQP13: 0.0 | RQQ13: 0.0 | RQR13: 0.0 | RQS13: 0.0 | RQT13: 0.0 | RQU13: 0.0 | RQV13: 0.0 | RQW13: 0.0 | RQX13: 0.0 | RQY13: 0.0 | RQZ13: 0.0 | RRA13: 0.0 | RRB13: 0.0 | RRC13: 0.0 | RRD13: 0.0 | RRE13: 0.0 | RRF13: 0.0 | RRG13: 0.0 | RRH13: 0.0 | RRI13: 0.0 | RRJ13: 0.0 | RRK13: 0.0 | RRL13: 0.0 | RRM13: 0.0 | RRN13: 0.0 | RRO13: 0.0 | RRP13: 0.0 | RRQ13: 0.0 | RRR13: 0.0 | RRS13: 0.0 | RRT13: 0.0 | RRU13: 0.0 | RRV13: 0.0 | RRW13: 0.0 | RRX13: 0.0 | RRY13: 0.0 | RRZ13: 0.0 | RSA13: 0.0 | RSB13: 0.0 | RSC13: 0.0 | RSD13: 0.0 | RSE13: 0.0 | RSF13: 0.0 | RSG13: 0.0 | RSH13: 0.0 | RSI13: 0.0 | RSJ13: 0.0 | RSK13: 0.0 | RSL13: 0.0 | RSM13: 0.0 | RSN13: 0.0 | RSO13: 0.0 | RSP13: 0.0 | RSQ13: 0.0 | RSR13: 0.0 | RSS13: 0.0 | RST13: 0.0 | RSU13: 0.0 | RSV13: 0.0 | RSW13: 0.0 | RSX13: 0.0 | RSY13: 0.0 | RSZ13: 0.0 | RTA13: 0.0 | RTB13: 0.0 | RTC13: 0.0 | RTD13: 0.0 | RTE13: 0.0 | RTF13: 0.0 | RTG13: 0.0 | RTH13: 0.0 | RTI13: 0.0 | RTJ13: 0.0 | RTK13: 0.0 | RTL13: 0.0 | RTM13: 0.0 | RTN13: 0.0 | RTO13: 0.0 | RTP13: 0.0 | RTQ13: 0.0 | RTR13: 0.0 | RTS13: 0.0 | RTT13: 0.0 | RTU13: 0.0 | RTV13: 0.0 | RTW13: 0.0 | RTX13: 0.0 | RTY13: 0.0 | RTZ13: 0.0 | RUA13: 0.0 | RUB13: 0.0 | RUC13: 0.0 | RUD13: 0.0 | RUE13: 0.0 | RUF13: 0.0 | RUG13: 0.0 | RUH13: 0.0 | RUI13: 0.0 | RUJ13: 0.0 | RUK13: 0.0 | RUL13: 0.0 | RUM13: 0.0 | RUN13: 0.0 | RUO13: 0.0 | RUP13: 0.0 | RUQ13: 0.0 | RUR13: 0.0 | RUS13: 0.0 | RUT13: 0.0 | RUU13: 0.0 | RUV13: 0.0 | RUW13: 0.0 | RUX13: 0.0 | RUY13: 0.0 | RUZ13: 0.0 | RVA13: 0.0 | RVB13: 0.0 | RVC13: 0.0 | RVD13: 0.0 | RVE13: 0.0 | RVF13: 0.0 | RVG13: 0.0 | RVH13: 0.0 | RVI13: 0.0 | RVJ13: 0.0 | RVK13: 0.0 | RVL13: 0.0 | RVM13: 0.0 | RVN13: 0.0 | RVO13: 0.0 | RVP13: 0.0 | RVQ13: 0.0 | RVR13: 0.0 | RVS13: 0.0 | RVT13: 0.0 | RVU13: 0.0 | RVV13: 0.0 | RVW13: 0.0 | RVX13: 0.0 | RVY13: 0.0 | RVZ13: 0.0 | RWA13: 0.0 | RWB13: 0.0 | RWC13: 0.0 | RWD13: 0.0 | RWE13: 0.0 | RWF13: 0.0 | RWG13: 0.0 | RWH13: 0.0 | RWI13: 0.0 | RWJ13: 0.0 | RWK13: 0.0 | RWL13: 0.0 | RWM13: 0.0 | RWN13: 0.0 | RWO13: 0.0 | RWP13: 0.0 | RWQ13: 0.0 | RWR13: 0.0 | RWS13: 0.0 | RWT13: 0.0 | RWU13: 0.0 | RWV13: 0.0 | RWW13: 0.0 | RWX13: 0.0 | RWY13: 0.0 | RWZ13: 0.0 | RXA13: 0.0 | RXB13: 0.0 | RXC13: 0.0 | RXD13: 0.0 | RXE13: 0.0 | RXF13: 0.0 | RXG13: 0.0 | RXH13: 0.0 | RXI13: 0.0 | RXJ13: 0.0 | RXK13: 0.0 | RXL13: 0.0 | RXM13: 0.0 | RXN13: 0.0 | RXO13: 0.0 | RXP13: 0.0 | RXQ13: 0.0 | RXR13: 0.0 | RXS13: 0.0 | RXT13: 0.0 | RXU13: 0.0 | RXV13: 0.0 | RXW13: 0.0 | RXX13: 0.0 | RXY13: 0.0 | RXZ13: 0.0 | RYA13: 0.0 | RYB13: 0.0 | RYC13: 0.0 | RYD13: 0.0 | RYE13: 0.0 | RYF13: 0.0 | RYG13: 0.0 | RYH13: 0.0 | RYI13: 0.0 | RYJ13: 0.0 | RYK13: 0.0 | RYL13: 0.0 | RYM13: 0.0 | RYN13: 0.0 | RYO13: 0.0 | RYP13: 0.0 | RYQ13: 0.0 | RYR13: 0.0 | RYS13: 0.0 | RYT13: 0.0 | RYU13: 0.0 | RYV13: 0.0 | RYW13: 0.0 | RYX13: 0.0 | RYY13: 0.0 | RYZ13: 0.0 | RZA13: 0.0 | RZB13: 0.0 | RZC13: 0.0 | RZD13: 0.0 | RZE13: 0.0 | RZF13: 0.0 | RZG13: 0.0 | RZH13: 0.0 | RZI13: 0.0 | RZJ13: 0.0 | RZK13: 0.0 | RZL13: 0.0 | RZM13: 0.0 | RZN13: 0.0 | RZO13: 0.0 | RZP13: 0.0 | RZQ13: 0.0 | RZR13: 0.0 | RZS13: 0.0 | RZT13: 0.0 | RZU13: 0.0 | RZV13: 0.0 | RZW13: 0.0 | RZX13: 0.0 | RZY13: 0.0 | RZZ13: 0.0 | SAA13: 0.0 | SAB13: 0.0 | SAC13: 0.0 | SAD13: 0.0 | SAE13: 0.0 | SAF13: 0.0 | SAG13: 0.0 | SAH13: 0.0 | SAI13: 0.0 | SAJ13: 0.0 | SAK13: 0.0 | SAL13: 0.0 | SAM13: 0.0 | SAN13: 0.0 | SAO13: 0.0 | SAP13: 0.0 | SAQ13: 0.0 | SAR13: 0.0 | SAS13: 0.0 | SAT13: 0.0 | SAU13: 0.0 | SAV13: 0.0 | SAW13: 0.0 | SAX13: 0.0 | SAY13: 0.0 | SAZ13: 0.0 | SBA13: 0.0 | SBB13: 0.0 | SBC13: 0.0 | SBD13: 0.0 | SBE13: 0.0 | SBF13: 0.0 | SBG13: 0.0 | SBH13: 0.0 | SBI13: 0.0 | SBJ13: 0.0 | SBK13: 0.0 | SBL13: 0.0 | SBM13: 0.0 | SBN13: 0.0 | SBO13: 0.0 | SBP13: 0.0 | SBQ13: 0.0 | SBR13: 0.0 | SBS13: 0.0 | SBT13: 0.0 | SBU13: 0.0 | SBV13: 0.0 | SBW13: 0.0 | SBX13: 0.0 | SBY13: 0.0 | SBZ13: 0.0 | SCA13: 0.0 | SCB13: 0.0 | SCC13: 0.0 | SCD13: 0.0 | SCE13: 0.0 | SCF13: 0.0 | SCG13: 0.0 | SCH13: 0.0 | SCI13: 0.0 | SCJ13: 0.0 | SCK13: 0.0 | SCL13: 0.0 | SCM13: 0.0 | SCN13: 0.0 | SCO13: 0.0 | SCP13: 0.0 | SCQ13: 0.0 | SCR13: 0.0 | SCS13: 0.0 | SCT13: 0.0 | SCU13: 0.0 | SCV13: 0.0 | SCW13: 0.0 | SCX13: 0.0 | SCY13: 0.0 | SCZ13: 0.0 | SDA13: 0.0 | SDB13: 0.0 | SDC13: 0.0 | SDD13: 0.0 | SDE13: 0.0 | SDF13: 0.0 | SDG13: 0.0 | SDH13: 0.0 | SDI13: 0.0 | SDJ13: 0.0 | SDK13: 0.0 | SDL13: 0.0 | SDM13: 0.0 | SDN13: 0.0 | SDO13: 0.0 | SDP13: 0.0 | SDQ13: 0.0 | SDR13: 0.0 | SDS13: 0.0 | SDT13: 0.0 | SDU13: 0.0 | SDV13: 0.0 | SDW13: 0.0 | SDX13: 0.0 | SDY13: 0.0 | SDZ13: 0.0 | SEA13: 0.0 | SEB13: 0.0 | SEC13: 0.0 | SED13: 0.0 | SEE13: 0.0 | SEF13: 0.0 | SEG13: 0.0 | SEH13: 0.0 | SEI13: 0.0 | SEJ13: 0.0 | SEK13: 0.0 | SEL13: 0.0 | SEM13: 0.0 | SEN13: 0.0 | SEO13: 0.0 | SEP13: 0.0 | SEQ13: 0.0 | SER13: 0.0 | SES13: 0.0 | SET13: 0.0 | SEU13: 0.0 | SEV13: 0.0 | SEW13: 0.0 | SEX13: 0.0 | SEY13: 0.0 | SEZ13: 0.0 | SFA13: 0.0 | SFB13: 0.0 | SFC13: 0.0 | SFD13: 0.0 | SFE13: 0.0 | SFF13: 0.0 | SFG13: 0.0 | SFH13: 0.0 | SFI13: 0.0 | SFJ13: 0.0 | SFK13: 0.0 | SFL13: 0.0 | SFM13: 0.0 | SFN13: 0.0 | SFO13: 0.0 | SFP13: 0.0 | SFQ13: 0.0 | SFR13: 0.0 | SFS13: 0.0 | SFT13: 0.0 | SFU13: 0.0 | SFV13: 0.0 | SFW13: 0.0 | SFX13: 0.0 | SFY13: 0.0 | SFZ13: 0.0 | SGA13: 0.0 | SGB13: 0.0 | SGC13: 0.0 | SGD13: 0.0 | SGE13: 0.0 | SGF13: 0.0 | SGG13: 0.0 | SGH13: 0.0 | SGI13: 0.0 | SGJ13: 0.0 | SGK13: 0.0 | SGL13: 0.0 | SGM13: 0.0 | SGN13: 0.0 | SGO13: 0.0 | SGP13: 0.0 | SGQ13: 0.0 | SGR13: 0.0 | SGS13: 0.0 | SGT13: 0.0 | SGU13: 0.0 | SGV13: 0.0 | SGW13: 0.0 | SGX13: 0.0 | SGY13: 0.0 | SGZ13: 0.0 | SHA13: 0.0 | SHB13: 0.0 | SHC13: 0.0 | SHD13: 0.0 | SHE13: 0.0 | SHF13: 0.0 | SHG13: 0.0 | SHH13: 0.0 | SHI13: 0.0 | SHJ13: 0.0 | SHK13: 0.0 | SHL13: 0.0 | SHM13: 0.0 | SHN13: 0.0 | SHO13: 0.0 | SHP13: 0.0 | SHQ13: 0.0 | SHR13: 0.0 | SHS13: 0.0 | SHT13: 0.0 | SHU13: 0.0 | SHV13: 0.0 | SHW13: 0.0 | SHX13: 0.0 | SHY13: 0.0 | SHZ13: 0.0 | SIA13: 0.0 | SIB13: 0.0 | SIC13: 0.0 | SID13: 0.0 | SIE13: 0.0 | SIF13: 0.0 | SIG13: 0.0 | SIH13: 0.0 | SII13: 0.0 | SIJ13: 0.0 | SIK13: 0.0 | SIL13: 0.0 | SIM13: 0.0 | SIN13: 0.0 | SIO13: 0.0 | SIP13: 0.0 | SIQ13: 0.0 | SIR13: 0.0 | SIS13: 0.0 | SIT13: 0.0 | SIU13: 0.0 | SIV13: 0.0 | SIW13: 0.0 | SIX13: 0.0 | SIY13: 0.0 | SIZ13: 0.0 | SJA13: 0.0 | SJB13: 0.0 | SJC13: 0.0 | SJD13: 0.0 | SJE13: 0.0 | SJF13: 0.0 | SJG13: 0.0 | SJH13: 0.0 | SJI13: 0.0 | SJJ13: 0.0 | SJK13: 0.0 | SJL13: 0.0 | SJM13: 0.0 | SJN13: 0.0 | SJO13: 0.0 | SJP13: 0.0 | SJQ13: 0.0 | SJR13: 0.0 | SJS13: 0.0 | SJT13: 0.0 | SJU13: 0.0 | SJV13: 0.0 | SJW13: 0.0 | SJX13: 0.0 | SJY13: 0.0 | SJZ13: 0.0 | SKA13: 0.0 | SKB13: 0.0 | SKC13: 0.0 | SKD13: 0.0 | SKE13: 0.0 | SKF13: 0.0 | SKG13: 0.0 | SKH13: 0.0 | SKI13: 0.0 | SKJ13: 0.0 | SKK13: 0.0 | SKL13: 0.0 | SKM13: 0.0 | SKN13: 0.0 | SKO13: 0.0 | SKP13: 0.0 | SKQ13: 0.0 | SKR13: 0.0 | SKS13: 0.0 | SKT13: 0.0 | SKU13: 0.0 | SKV13: 0.0 | SKW13: 0.0 | SKX13: 0.0 | SKY13: 0.0 | SKZ13: 0.0 | SLA13: 0.0 | SLB13: 0.0 | SLC13: 0.0 | SLD13: 0.0 | SLE13: 0.0 | SLF13: 0.0 | SLG13: 0.0 | SLH13: 0.0 | SLI13: 0.0 | SLJ13: 0.0 | SLK13: 0.0 | SLL13: 0.0 | SLM13: 0.0 | SLN13: 0.0 | SLO13: 0.0 | SLP13: 0.0 | SLQ13: 0.0 | SLR13: 0.0 | SLS13: 0.0 | SLT13: 0.0 | SLU13: 0.0 | SLV13: 0.0 | SLW13: 0.0 | SLX13: 0.0 | SLY13: 0.0 | SLZ13: 0.0 | SMA13: 0.0 | SMB13: 0.0 | SMC13: 0.0 | SMD13: 0.0 | SME13: 0.0 | SMF13: 0.0 | SMG13: 0.0 | SMH13: 0.0 | SMI13: 0.0 | SMJ13: 0.0 | SMK13: 0.0 | SML13: 0.0 | SMM13: 0.0 | SMN13: 0.0 | SMO13: 0.0 | SMP13: 0.0 | SMQ13: 0.0 | SMR13: 0.0 | SMS13: 0.0 | SMT13: 0.0 | SMU13: 0.0 | SMV13: 0.0 | SMW13: 0.0 | SMX13: 0.0 | SMY13: 0.0 | SMZ13: 0.0 | SNA13: 0.0 | SNB13: 0.0 | SNC13: 0.0 | SND13: 0.0 | SNE13: 0.0 | SNF13: 0.0 | SNG13: 0.0 | SNH13: 0.0 | SNI13: 0.0 | SNJ13: 0.0 | SNK13: 0.0 | SNL13: 0.0 | SNM13: 0.0 | SNN13: 0.0 | SNO13: 0.0 | SNP13: 0.0 | SNQ13: 0.0 | SNR13: 0.0 | SNS13: 0.0 | SNT13: 0.0 | SNU13: 0.0 | SNV13: 0.0 | SNW13: 0.0 | SNX13: 0.0 | SNY13: 0.0 | SNZ13: 0.0 | SOA13: 0.0 | SOB13: 0.0 | SOC13: 0.0 | SOD13: 0.0 | SOE13: 0.0 | SOF13: 0.0 | SOG13: 0.0 | SOH13: 0.0 | SOI13: 0.0 | SOJ13: 0.0 | SOK13: 0.0 | SOL13: 0.0 | SOM13: 0.0 | SON13: 0.0 | SOO13: 0.0 | SOP13: 0.0 | SOQ13: 0.0 | SOR13: 0.0 | SOS13: 0.0 | SOT13: 0.0 | SOU13: 0.0 | SOV13: 0.0 | SOW13: 0.0 | SOX13: 0.0 | SOY13: 0.0 | SOZ13: 0.0 | SPA13: 0.0 | SPB13: 0.0 | SPC13: 0.0 | SPD13: 0.0 | SPE13: 0.0 | SPF13: 0.0 | SPG13: 0.0 | SPH13: 0.0 | SPI13: 0.0 | SPJ13: 0.0 | SPK13: 0.0 | SPL13: 0.0 | SPM13: 0.0 | SPN13: 0.0 | SPO13: 0.0 | SPP13: 0.0 | SPQ13: 0.0 | SPR13: 0.0 | SPS13: 0.0 | SPT13: 0.0 | SPU13: 0.0 | SPV13: 0.0 | SPW13: 0.0 | SPX13: 0.0 | SPY13: 0.0 | SPZ13: 0.0 | SQA13: 0.0 | SQB13: 0.0 | SQC13: 0.0 | SQD13: 0.0 | SQE13: 0.0 | SQF13: 0.0 | SQG13: 0.0 | SQH13: 0.0 | SQI13: 0.0 | SQJ13: 0.0 | SQK13: 0.0 | SQL13: 0.0 | SQM13: 0.0 | SQN13: 0.0 | SQO13: 0.0 | SQP13: 0.0 | SQQ13: 0.0 | SQR13: 0.0 | SQS13: 0.0 | SQT13: 0.0 | SQU13: 0.0 | SQV13: 0.0 | SQW13: 0.0 | SQX13: 0.0 | SQY13: 0.0 | SQZ13: 0.0 | SRA13: 0.0 | SRB13: 0.0 | SRC13: 0.0 | SRD13: 0.0 | SRE13: 0.0 | SRF13: 0.0 | SRG13: 0.0 | SRH13: 0.0 | SRI13: 0.0 | SRJ13: 0.0 | SRK13: 0.0 | SRL13: 0.0 | SRM13: 0.0 | SRN13: 0.0 | SRO13: 0.0 | SRP13: 0.0 | SRQ13: 0.0 | SRR13: 0.0 | SRS13: 0.0 | SRT13: 0.0 | SRU13: 0.0 | SRV13: 0.0 | SRW13: 0.0 | SRX13: 0.0 | SRY13: 0.0 | SRZ13: 0.0 | SSA13: 0.0 | SSB13: 0.0 | SSC13: 0.0 | SSD13: 0.0 | SSE13: 0.0 | SSF13: 0.0 | SSG13: 0.0 | SSH13: 0.0 | SSI13: 0.0 | SSJ13: 0.0 | SSK13: 0.0 | SSL13: 0.0 | SSM13: 0.0 | SSN13: 0.0 | SSO13: 0.0 | SSP13: 0.0 | SSQ13: 0.0 | SSR13: 0.0 | SSS13: 0.0 | SST13: 0.0 | SSU13: 0.0 | SSV13: 0.0 | SSW13: 0.0 | SSX13: 0.0 | SSY13: 0.0 | SSZ13: 0.0 | STA13: 0.0 | STB13: 0.0 | STC13: 0.0 | STD13: 0.0 | STE13: 0.0 | STF13: 0.0 | STG13: 0.0 | STH13: 0.0 | STI13: 0.0 | STJ13: 0.0 | STK13: 0.0 | STL13: 0.0 | STM13: 0.0 | STN13: 0.0 | STO13: 0.0 | STP13: 0.0 | STQ13: 0.0 | STR13: 0.0 | STS13: 0.0 | STT13: 0.0 | STU13: 0.0 | STV13: 0.0 | STW13: 0.0 | STX13: 0.0 | STY13: 0.0 | STZ13: 0.0 | SUA13: 0.0 | SUB13: 0.0 | SUC13: 0.0 | SUD13: 0.0 | SUE13: 0.0 | SUF13: 0.0 | SUG13: 0.0 | SUH13: 0.0 | SUI13: 0.0 | SUJ13: 0.0 | SUK13: 0.0 | SUL13: 0.0 | SUM13: 0.0 | SUN13: 0.0 | SUO13: 0.0 | SUP13: 0.0 | SUQ13: 0.0 | SUR13: 0.0 | SUS13: 0.0 | SUT13: 0.0 | SUU13: 0.0 | SUV13: 0.0 | SUW13: 0.0 | SUX13: 0.0 | SUY13: 0.0 | SUZ13: 0.0 | SVA13: 0.0 | SVB13: 0.0 | SVC13: 0.0 | SVD13: 0.0 | SVE13: 0.0 | SVF13: 0.0 | SVG13: 0.0 | SVH13: 0.0 | SVI13: 0.0 | SVJ13: 0.0 | SVK13: 0.0 | SVL13: 0.0 | SVM13: 0.0 | SVN13: 0.0 | SVO13: 0.0 | SVP13: 0.0 | SVQ13: 0.0 | SVR13: 0.0 | SVS13: 0.0 | SVT13: 0.0 | SVU13: 0.0 | SVV13: 0.0 | SVW13: 0.0 | SVX13: 0.0 | SVY13: 0.0 | SVZ13: 0.0 | SWA13: 0.0 | SWB13: 0.0 | SWC13: 0.0 | SWD13: 0.0 | SWE13: 0.0 | SWF13: 0.0 | SWG13: 0.0 | SWH13: 0.0 | SWI13: 0.0 | SWJ13: 0.0 | SWK13: 0.0 | SWL13: 0.0 | SWM13: 0.0 | SWN13: 0.0 | SWO13: 0.0 | SWP13: 0.0 | SWQ13: 0.0 | SWR13: 0.0 | SWS13: 0.0 | SWT13: 0.0 | SWU13: 0.0 | SWV13: 0.0 | SWW13: 0.0 | SWX13: 0.0 | SWY13: 0.0 | SWZ13: 0.0 | SXA13: 0.0 | SXB13: 0.0 | SXC13: 0.0 | SXD13: 0.0 | SXE13: 0.0 | SXF13: 0.0 | SXG13: 0.0 | SXH13: 0.0 | SXI13: 0.0 | SXJ13: 0.0 | SXK13: 0.0 | SXL13: 0.0 | SXM13: 0.0 | SXN13: 0.0 | SXO13: 0.0 | SXP13: 0.0 | SXQ13: 0.0 | SXR13: 0.0 | SXS13: 0.0 | SXT13: 0.0 | SXU13: 0.0 | SXV13: 0.0 | SXW13: 0.0 | SXX13: 0.0 | SXY13: 0.0 | SXZ13: 0.0 | SYA13: 0.0 | SYB13: 0.0 | SYC13: 0.0 | SYD13: 0.0 | SYE13: 0.0 | SYF13: 0.0 | SYG13: 0.0 | SYH13: 0.0 | SYI13: 0.0 | SYJ13: 0.0 | SYK13: 0.0 | SYL13: 0.0 | SYM13: 0.0 | SYN13: 0.0 | SYO13: 0.0 | SYP13: 0.0 | SYQ13: 0.0 | SYR13: 0.0 | SYS13: 0.0 | SYT13: 0.0 | SYU13: 0.0 | SYV13: 0.0 | SYW13: 0.0 | SYX13: 0.0 | SYY13: 0.0 | SYZ13: 0.0 | SZA13: 0.0 | SZB13: 0.0 | SZC13: 0.0 | SZD13: 0.0 | SZE13: 0.0 | SZF13: 0.0 | SZG13: 0.0 | SZH13: 0.0 | SZI13: 0.0 | SZJ13: 0.0 | SZK13: 0.0 | SZL13: 0.0 | SZM13: 0.0 | SZN13: 0.0 | SZO13: 0.0 | SZP13: 0.0 | SZQ13: 0.0 | SZR13: 0.0 | SZS13: 0.0 | SZT13: 0.0 | SZU13: 0.0 | SZV13: 0.0 | SZW13: 0.0 | SZX13: 0.0 | SZY13: 0.0 | SZZ13: 0.0 | TAA13: 0.0 | TAB13: 0.0 | TAC13: 0.0 | TAD13: 0.0 | TAE13: 0.0 | TAF13: 0.0 | TAG13: 0.0 | TAH13: 0.0 | TAI13: 0.0 | TAJ13: 0.0 | TAK13: 0.0 | TAL13: 0.0 | TAM13: 0.0 | TAN13: 0.0 | TAO13: 0.0 | TAP13: 0.0 | TAQ13: 0.0 | TAR13: 0.0 | TAS13: 0.0 | TAT13: 0.0 | TAU13: 0.0 | TAV13: 0.0 | TAW13: 0.0 | TAX13: 0.0 | TAY13: 0.0 | TAZ13: 0.0 | TBA13: 0.0 | TBB13: 0.0 | TBC13: 0.0 | TBD13: 0.0 | TBE13: 0.0 | TBF13: 0.0 | TBG13: 0.0 | TBH13: 0.0 | TBI13: 0.0 | TBJ13: 0.0 | TBK13: 0.0 | TBL13: 0.0 | TBM13: 0.0 | TBN13: 0.0 | TBO13: 0.0 | TBP13: 0.0 | TBQ13: 0.0 | TBR13: 0.0 | TBS13: 0.0 | TBT13: 0.0 | TBU13: 0.0 | TBV13: 0.0 | TBW13: 0.0 | TBX13: 0.0 | TBY13: 0.0 | TBZ13: 0.0 | TCA13: 0.0 | TCB13: 0.0 | TCC13: 0.0 | TCD13: 0.0 | TCE13: 0.0 | TCF13: 0.0 | TCG13: 0.0 | TCH13: 0.0 | TCI13: 0.0 | TCJ13: 0.0 | TCK13: 0.0 | TCL13: 0.0 | TCM13: 0.0 | TCN13: 0.0 | TCO13: 0.0 | TCP13: 0.0 | TCQ13: 0.0 | TCR13: 0.0 | TCS13: 0.0 | TCT13: 0.0 | TCU13: 0.0 | TCV13: 0.0 | TCW13: 0.0 | TCX13: 0.0 | TCY13: 0.0 | TCZ13: 0.0 | TDA13: 0.0 | TDB13: 0.0 | TDC13: 0.0 | TDD13: 0.0 | TDE13: 0.0 | TDF13: 0.0 | TDG13: 0.0 | TDH13: 0.0 | TDI13: 0.0 | TDJ13: 0.0 | TDK13: 0.0 | TDL13: 0.0 | TDM13: 0.0 | TDN13: 0.0 | TDO13: 0.0 | TDP13: 0.0 | TDQ13: 0.0 | TDR13: 0.0 | TDS13: 0.0 | TDT13: 0.0 | TDU13: 0.0 | TDV13: 0.0 | TDW13: 0.0 | TDX13: 0.0 | TDY13: 0.0 | TDZ13: 0.0 | TEA13: 0.0 | TEB13: 0.0 | TEC13: 0.0 | TED13: 0.0 | TEE13: 0.0 | TEF13: 0.0 | TEG13: 0.0 | TEH13: 0.0 | TEI13: 0.0 | TEJ13: 0.0 | TEK13: 0.0 | TEL13: 0.0 | TEM13: 0.0 | TEN13: 0.0 | TEO13: 0.0 | TEP13: 0.0 | TEQ13: 0.0 | TER13: 0.0 | TES13: 0.0 | TET13: 0.0 | TEU13: 0.0 | TEV13: 0.0 | TEW13: 0.0 | TEX13: 0.0 | TEY13: 0.0 | TEZ13: 0.0 | TFA13: 0.0 | TFB13: 0.0 | TFC13: 0.0 | TFD13: 0.0 | TFE13: 0.0 | TFF13: 0.0 | TFG13: 0.0 | TFH13: 0.0 | TFI13: 0.0 | TFJ13: 0.0 | TFK13: 0.0 | TFL13: 0.0 | TFM13: 0.0 | TFN13: 0.0 | TFO13: 0.0 | TFP13: 0.0 | TFQ13: 0.0 | TFR13: 0.0 | TFS13: 0.0 | TFT13: 0.0 | TFU13: 0.0 | TFV13: 0.0 | TFW13: 0.0 | TFX13: 0.0 | TFY13: 0.0 | TFZ13: 0.0 | TGA13: 0.0 | TGB13: 0.0 | TGC13: 0.0 | TGD13: 0.0 | TGE13: 0.0 | TGF13: 0.0 | TGG13: 0.0 | TGH13: 0.0 | TGI13: 0.0 | TGJ13: 0.0 | TGK13: 0.0 | TGL13: 0.0 | TGM13: 0.0 | TGN13: 0.0 | TGO13: 0.0 | TGP13: 0.0 | TGQ13: 0.0 | TGR13: 0.0 | TGS13: 0.0 | TGT13: 0.0 | TGU13: 0.0 | TGV13: 0.0 | TGW13: 0.0 | TGX13: 0.0 | TGY13: 0.0 | TGZ13: 0.0 | THA13: 0.0 | THB13: 0.0 | THC13: 0.0 | THD13: 0.0 | THE13: 0.0 | THF13: 0.0 | THG13: 0.0 | THH13: 0.0 | THI13: 0.0 | THJ13: 0.0 | THK13: 0.0 | THL13: 0.0 | THM13: 0.0 | THN13: 0.0 | THO13: 0.0 | THP13: 0.0 | THQ13: 0.0 | THR13: 0.0 | THS13: 0.0 | THT13: 0.0 | THU13: 0.0 | THV13: 0.0 | THW13: 0.0 | THX13: 0.0 | THY13: 0.0 | THZ13: 0.0 | TIA13: 0.0 | TIB13: 0.0 | TIC13: 0.0 | TID13: 0.0 | TIE13: 0.0 | TIF13: 0.0 | TIG13: 0.0 | TIH13: 0.0 | TII13: 0.0 | TIJ13: 0.0 | TIK13: 0.0 | TIL13: 0.0 | TIM13: 0.0 | TIN13: 0.0 | TIO13: 0.0 | TIP13: 0.0 | TIQ13: 0.0 | TIR13: 0.0 | TIS13: 0.0 | TIT13: 0.0 | TIU13: 0.0 | TIV13: 0.0 | TIW13: 0.0 | TIX13: 0.0 | TIY13: 0.0 | TIZ13: 0.0 | TJA13: 0.0 | TJB13: 0.0 | TJC13: 0.0 | TJD13: 0.0 | TJE13: 0.0 | TJF13: 0.0 | TJG13: 0.0 | TJH13: 0.0 | TJI13: 0.0 | TJJ13: 0.0 | TJK13: 0.0 | TJL13: 0.0 | TJM13: 0.0 | TJN13: 0.0 | TJO13: 0.0 | TJP13: 0.0 | TJQ13: 0.0 | TJR13: 0.0 | TJS13: 0.0 | TJT13: 0.0 | TJU13: 0.0 | TJV13: 0.0 | TJW13: 0.0 | TJX13: 0.0 | TJY13: 0.0 | TJZ13: 0.0 | TKA13: 0.0 | TKB13: 0.0 | TKC13: 0.0 | TKD13: 0.0 | TKE13: 0.0 | TKF13: 0.0 | TKG13: 0.0 | TKH13: 0.0 | TKI13: 0.0 | TKJ13: 0.0 | TKK13: 0.0 | TKL13: 0.0 | TKM13: 0.0 | TKN13: 0.0 | TKO13: 0.0 | TKP13: 0.0 | TKQ13: 0.0 | TKR13: 0.0 | TKS13: 0.0 | TKT13: 0.0 | TKU13: 0.0 | TKV13: 0.0 | TKW13: 0.0 | TKX13: 0.0 | TKY13: 0.0 | TKZ13: 0.0 | TLA13: 0.0 | TLB13: 0.0 | TLC13: 0.0 | TLD13: 0.0 | TLE13: 0.0 | TLF13: 0.0 | TLG13: 0.0 | TLH13: 0.0 | TLI13: 0.0 | TLJ13: 0.0 | TLK13: 0.0 | TLL13: 0.0 | TLM13: 0.0 | TLN13: 0.0 | TLO13: 0.0 | TLP13: 0.0 | TLQ13: 0.0 | TLR13: 0.0 | TLS13: 0.0 | TLT13: 0.0 | TLU13: 0.0 | TLV13: 0.0 | TLW13: 0.0 | TLX13: 0.0 | TLY13: 0.0 | TLZ13: 0.0 | TMA13: 0.0 | TMB13: 0.0 | TMC13: 0.0 | TMD13: 0.0 | TME13: 0.0 | TMF13: 0.0 | TMG13: 0.0 | TMH13: 0.0 | TMI13: 0.0 | TMJ13: 0.0 | TMK13: 0.0 | TML13: 0.0 | TMM13: 0.0 | TMN13: 0.0 | TMO13: 0.0 | TMP13: 0.0 | TMQ13: 0.0 | TMR13: 0.0 | TMS13: 0.0 | TMT13: 0.0 | TMU13: 0.0 | TMV13: 0.0 | TMW13: 0.0 | TMX13: 0.0 | TMY13: 0.0 | TMZ13: 0.0 | TNA13: 0.0 | TNB13: 0.0 | TNC13: 0.0 | TND13: 0.0 | TNE13: 0.0 | TNF13: 0.0 | TNG13: 0.0 | TNH13: 0.0 | TNI13: 0.0 | TNJ13: 0.0 | TNK13: 0.0 | TNL13: 0.0 | TNM13: 0.0 | TNN13: 0.0 | TNO13: 0.0 | TNP13: 0.0 | TNQ13: 0.0 | TNR13: 0.0 | TNS13: 0.0 | TNT13: 0.0 | TNU13: 0.0 | TNV13: 0.0 | TNW13: 0.0 | TNX13: 0.0 | TNY13: 0.0 | TNZ13: 0.0 | TOA13: 0.0 | TOB13: 0.0 | TOC13: 0.0 | TOD13: 0.0 | TOE13: 0.0 | TOF13: 0.0 | TOG13: 0.0 | TOH13: 0.0 | TOI13: 0.0 | TOJ13: 0.0 | TOK13: 0.0 | TOL13: 0.0 | TOM13: 0.0 | TON13: 0.0 | TOO13: 0.0 | TOP13: 0.0 | TOQ13: 0.0 | TOR13: 0.0 | TOS13: 0.0 | TOT13: 0.0 | TOU13: 0.0 | TOV13: 0.0 | TOW13: 0.0 | TOX13: 0.0 | TOY13: 0.0 | TOZ13: 0.0 | TPA13: 0.0 | TPB13: 0.0 | TPC13: 0.0 | TPD13: 0.0 | TPE13: 0.0 | TPF13: 0.0 | TPG13: 0.0 | TPH13: 0.0 | TPI13: 0.0 | TPJ13: 0.0 | TPK13: 0.0 | TPL13: 0.0 | TPM13: 0.0 | TPN13: 0.0 | TPO13: 0.0 | TPP13: 0.0 | TPQ13: 0.0 | TPR13: 0.0 | TPS13: 0.0 | TPT13: 0.0 | TPU13: 0.0 | TPV13: 0.0 | TPW13: 0.0 | TPX13: 0.0 | TPY13: 0.0 | TPZ13: 0.0 | TQA13: 0.0 | TQB13: 0.0 | TQC13: 0.0 | TQD13: 0.0 | TQE13: 0.0 | TQF13: 0.0 | TQG13: 0.0 | TQH13: 0.0 | TQI13: 0.0 | TQJ13: 0.0 | TQK13: 0.0 | TQL13: 0.0 | TQM13: 0.0 | TQN13: 0.0 | TQO13: 0.0 | TQP13: 0.0 | TQQ13: 0.0 | TQR13: 0.0 | TQS13: 0.0 | TQT13: 0.0 | TQU13: 0.0 | TQV13: 0.0 | TQW13: 0.0 | TQX13: 0.0 | TQY13: 0.0 | TQZ13: 0.0 | TRA13: 0.0 | TRB13: 0.0 | TRC13: 0.0 | TRD13: 0.0 | TRE13: 0.0 | TRF13: 0.0 | TRG13: 0.0 | TRH13: 0.0 | TRI13: 0.0 | TRJ13: 0.0 | TRK13: 0.0 | TRL13: 0.0 | TRM13: 0.0 | TRN13: 0.0 | TRO13: 0.0 | TRP13: 0.0 | TRQ13: 0.0 | TRR13: 0.0 | TRS13: 0.0 | TRT13: 0.0 | TRU13: 0.0 | TRV13: 0.0 | TRW13: 0.0 | TRX13: 0.0 | TRY13: 0.0 | TRZ13: 0.0 | TSA13: 0.0 | TSB13: 0.0 | TSC13: 0.0 | TSD13: 0.0 | TSE13: 0.0 | TSF13: 0.0 | TSG13: 0.0 | TSH13: 0.0 | TSI13: 0.0 | TSJ13: 0.0 | TSK13: 0.0 | TSL13: 0.0 | TSM13: 0.0 | TSN13: 0.0 | TSO13: 0.0 | TSP13: 0.0 | TSQ13: 0.0 | TSR13: 0.0 | TSS13: 0.0 | TST13: 0.0 | TSU13: 0.0 | TSV13: 0.0 | TSW13: 0.0 | TSX13: 0.0 | TSY13: 0.0 | TSZ13: 0.0 | TTA13: 0.0 | TTB13: 0.0 | TTC13: 0.0 | TTD13: 0.0 | TTE13: 0.0 | TTF13: 0.0 | TTG13: 0.0 | TTH13: 0.0 | TTI13: 0.0 | TTJ13: 0.0 | TTK13: 0.0 | TTL13: 0.0 | TTM13: 0.0 | TTN13: 0.0 | TTO13: 0.0 | TTP13: 0.0 | TTQ13: 0.0 | TTR13: 0.0 | TTS13: 0.0 | TTT13: 0.0 | TTU13: 0.0 | TTV13: 0.0 | TTW13: 0.0 | TTX13: 0.0 | TTY13: 0.0 | TTZ13: 0.0 | TUA13: 0.0 | TUB13: 0.0 | TUC13: 0.0 | TUD13: 0.0 | TUE13: 0.0 | TUF13: 0.0 | TUG13: 0.0 | TUH13: 0.0 | TUI13: 0.0 | TUJ13: 0.0 | TUK13: 0.0 | TUL13: 0.0 | TUM13: 0.0 | TUN13: 0.0 | TUO13: 0.0 | TUP13: 0.0 | TUQ13: 0.0 | TUR13: 0.0 | TUS13: 0.0 | TUT13: 0.0 | TUU13: 0.0 | TUV13: 0.0 | TUW13: 0.0 | TUX13: 0.0 | TUY13: 0.0 | TUZ13: 0.0 | TVA13: 0.0 | TVB13: 0.0 | TVC13: 0.0 | TVD13: 0.0 | TVE13: 0.0 | TVF13: 0.0 | TVG13: 0.0 | TVH13: 0.0 | TVI13: 0.0 | TVJ13: 0.0 | TVK13: 0.0 | TVL13: 0.0 | TVM13: 0.0 | TVN13: 0.0 | TVO13: 0.0 | TVP13: 0.0 | TVQ13: 0.0 | TVR13: 0.0 | TVS13: 0.0 | TVT13: 0.0 | TVU13: 0.0 | TVV13: 0.0 | TVW13: 0.0 | TVX13: 0.0 | TVY13: 0.0 | TVZ13: 0.0 | TWA13: 0.0 | TWB13: 0.0 | TWC13: 0.0 | TWD13: 0.0 | TWE13: 0.0 | TWF13: 0.0 | TWG13: 0.0 | TWH13: 0.0 | TWI13: 0.0 | TWJ13: 0.0 | TWK13: 0.0 | TWL13: 0.0 | TWM13: 0.0 | TWN13: 0.0 | TWO13: 0.0 | TWP13: 0.0 | TWQ13: 0.0 | TWR13: 0.0 | TWS13: 0.0 | TWT13: 0.0 | TWU13: 0.0 | TWV13: 0.0 | TWW13: 0.0 | TWX13: 0.0 | TWY13: 0.0 | TWZ13: 0.0 | TXA13: 0.0 | TXB13: 0.0 | TXC13: 0.0 | TXD13: 0.0 | TXE13: 0.0 | TXF13: 0.0 | TXG13: 0.0 | TXH13: 0.0 | TXI13: 0.0 | TXJ13: 0.0 | TXK13: 0.0 | TXL13: 0.0 | TXM13: 0.0 | TXN13: 0.0 | TXO13: 0.0 | TXP13: 0.0 | TXQ13: 0.0 | TXR13: 0.0 | TXS13: 0.0 | TXT13: 0.0 | TXU13: 0.0 | TXV13: 0.0 | TXW13: 0.0 | TXX13: 0.0 | TXY13: 0.0 | TXZ13: 0.0 | TYA13: 0.0 | TYB13: 0.0 | TYC13: 0.0 | TYD13: 0.0 | TYE13: 0.0 | TYF13: 0.0 | TYG13: 0.0 | TYH13: 0.0 | TYI13: 0.0 | TYJ13: 0.0 | TYK13: 0.0 | TYL13: 0.0 | TYM13: 0.0 | TYN13: 0.0 | TYO13: 0.0 | TYP13: 0.0 | TYQ13: 0.0 | TYR13: 0.0 | TYS13: 0.0 | TYT13: 0.0 | TYU13: 0.0 | TYV13: 0.0 | TYW13: 0.0 | TYX13: 0.0 | TYY13: 0.0 | TYZ13: 0.0 | TZA13: 0.0 | TZB13: 0.0 | TZC13: 0.0 | TZD13: 0.0 | TZE13: 0.0 | TZF13: 0.0 | TZG13: 0.0 | TZH13: 0.0 | TZI13: 0.0 | TZJ13: 0.0 | TZK13: 0.0 | TZL13: 0.0 | TZM13: 0.0 | TZN13: 0.0 | TZO13: 0.0 | TZP13: 0.0 | TZQ13: 0.0 | TZR13: 0.0 | TZS13: 0.0 | TZT13: 0.0 | TZU13: 0.0 | TZV13: 0.0 | TZW13: 0.0 | TZX13: 0.0 | TZY13: 0.0 | TZZ13: 0.0 | UAA13: 0.0 | UAB13: 0.0 | UAC13: 0.0 | UAD13: 0.0 | UAE13: 0.0 | UAF13: 0.0 | UAG13: 0.0 | UAH13: 0.0 | UAI13: 0.0 | UAJ13: 0.0 | UAK13: 0.0 | UAL13: 0.0 | UAM13: 0.0 | UAN13: 0.0 | UAO13: 0.0 | UAP13: 0.0 | UAQ13: 0.0 | UAR13: 0.0 | UAS13: 0.0 | UAT13: 0.0 | UAU13: 0.0 | UAV13: 0.0 | UAW13: 0.0 | UAX13: 0.0 | UAY13: 0.0 | UAZ13: 0.0 | UBA13: 0.0 | UBB13: 0.0 | UBC13: 0.0 | UBD13: 0.0 | UBE13: 0.0 | UBF13: 0.0 | UBG13: 0.0 | UBH13: 0.0 | UBI13: 0.0 | UBJ13: 0.0 | UBK13: 0.0 | UBL13: 0.0 | UBM13: 0.0 | UBN13: 0.0 | UBO13: 0.0 | UBP13: 0.0 | UBQ13: 0.0 | UBR13: 0.0 | UBS13: 0.0 | UBT13: 0.0 | UBU13: 0.0 | UBV13: 0.0 | UBW13: 0.0 | UBX13: 0.0 | UBY13: 0.0 | UBZ13: 0.0 | UCA13: 0.0 | UCB13: 0.0 | UCC13: 0.0 | UCD13: 0.0 | UCE13: 0.0 | UCF13: 0.0 | UCG13: 0.0 | UCH13: 0.0 | UCI13: 0.0 | UCJ13: 0.0 | UCK13: 0.0 | UCL13: 0.0 | UCM13: 0.0 | UCN13: 0.0 | UCO13: 0.0 | UCP13: 0.0 | UCQ13: 0.0 | UCR13: 0.0 | UCS13: 0.0 | UCT13: 0.0 | UCU13: 0.0 | UCV13: 0.0 | UCW13: 0.0 | UCX13: 0.0 | UCY13: 0.0 | UCZ13: 0.0 | UDA13: 0.0 | UDB13: 0.0 | UDC13: 0.0 | UDD13: 0.0 | UDE13: 0.0 | UDF13: 0.0 | UDG13: 0.0 | UDH13: 0.0 | UDI13: 0.0 | UDJ13: 0.0 | UDK13: 0.0 | UDL13: 0.0 | UDM13: 0.0 | UDN13: 0.0 | UDO13: 0.0 | UDP13: 0.0 | UDQ13: 0.0 | UDR13: 0.0 | UDS13: 0.0 | UDT13: 0.0 | UDU13: 0.0 | UDV13: 0.0 | UDW13: 0.0 | UDX13: 0.0 | UDY13: 0.0 | UDZ13: 0.0 | UEA13: 0.0 | UEB13: 0.0 | UEC13: 0.0 | UED13: 0.0 | UEE13: 0.0 | UEF13: 0.0 | UEG13: 0.0 | UEH13: 0.0 | UEI13: 0.0 | UEJ13: 0.0 | UEK13: 0.0 | UEL13: 0.0 | UEM13: 0.0 | UEN13: 0.0 | UEO13: 0.0 | UEP13: 0.0 | UEQ13: 0.0 | UER13: 0.0 | UES13: 0.0 | UET13: 0.0 | UEU13: 0.0 | UEV13: 0.0 | UEW13: 0.0 | UEX13: 0.0 | UEY13: 0.0 | UEZ13: 0.0 | UFA13: 0.0 | UFB13: 0.0 | UFC13: 0.0 | UFD13: 0.0 | UFE13: 0.0 | UFF13: 0.0 | UFG13: 0.0 | UFH13: 0.0 | UFI13: 0.0 | UFJ13: 0.0 | UFK13: 0.0 | UFL13: 0.0 | UFM13: 0.0 | UFN13: 0.0 | UFO13: 0.0 | UFP13: 0.0 | UFQ13: 0.0 | UFR13: 0.0 | UFS13: 0.0 | UFT13: 0.0 | UFU13: 0.0 | UFV13: 0.0 | UFW13: 0.0 | UFX13: 0.0 | UFY13: 0.0 | UFZ13: 0.0 | UGA13: 0.0 | UGB13: 0.0 | UGC13: 0.0 | UGD13: 0.0 | UGE13: 0.0 | UGF13: 0.0 | UGG13: 0.0 | UGH13: 0.0 | UGI13: 0.0 | UGJ13: 0.0 | UGK13: 0.0 | UGL13: 0.0 | UGM13: 0.0 | UGN13: 0.0 | UGO13: 0.0 | UGP13: 0.0 | UGQ13: 0.0 | UGR13: 0.0 | UGS13: 0.0 | UGT13: 0.0 | UGU13: 0.0 | UGV13: 0.0 | UGW13: 0.0 | UGX13: 0.0 | UGY13: 0.0 | UGZ13: 0.0 | UHA13: 0.0 | UHB13: 0.0 | UHC13: 0.0 | UHD13: 0.0 | UHE13: 0.0 | UHF13: 0.0 | UHG13: 0.0 | UHH13: 0.0 | UHI13: 0.0 | UHJ13: 0.0 | UHK13: 0.0 | UHL13: 0.0 | UHM13: 0.0 | UHN13: 0.0 | UHO13: 0.0 | UHP13: 0.0 | UHQ13: 0.0 | UHR13: 0.0 | UHS13: 0.0 | UHT13: 0.0 | UHU13: 0.0 | UHV13: 0.0 | UHW13: 0.0 | UHX13: 0.0 | UHY13: 0.0 | UHZ13: 0.0 | UIA13: 0.0 | UIB13: 0.0 | UIC13: 0.0 | UID13: 0.0 | UIE13: 0.0 | UIF13: 0.0 | UIG13: 0.0 | UIH13: 0.0 | UII13: 0.0 | UIJ13: 0.0 | UIK13: 0.0 | UIL13: 0.0 | UIM13: 0.0 | UIN13: 0.0 | UIO13: 0.0 | UIP13: 0.0 | UIQ13: 0.0 | UIR13: 0.0 | UIS13: 0.0 | UIT13: 0.0 | UIU13: 0.0 | UIV13: 0.0 | UIW13: 0.0 | UIX13: 0.0 | UIY13: 0.0 | UIZ13: 0.0 | UJA13: 0.0 | UJB13: 0.0 | UJC13: 0.0 | UJD13: 0.0 | UJE13: 0.0 | UJF13: 0.0 | UJG13: 0.0 | UJH13: 0.0 | UJI13: 0.0 | UJJ13: 0.0 | UJK13: 0.0 | UJL13: 0.0 | UJM13: 0.0 | UJN13: 0.0 | UJO13: 0.0 | UJP13: 0.0 | UJQ13: 0.0 | UJR13: 0.0 | UJS13: 0.0 | UJT13: 0.0 | UJU13: 0.0 | UJV13: 0.0 | UJW13: 0.0 | UJX13: 0.0 | UJY13: 0.0 | UJZ13: 0.0 | UKA13: 0.0 | UKB13: 0.0 | UKC13: 0.0 | UKD13: 0.0 | UKE13: 0.0 | UKF13: 0.0 | UKG13: 0.0 | UKH13: 0.0 | UKI13: 0.0 | UKJ13: 0.0 | UKK13: 0.0 | UKL13: 0.0 | UKM13: 0.0 | UKN13: 0.0 | UKO13: 0.0 | UKP13: 0.0 | UKQ13: 0.0 | UKR13: 0.0 | UKS13: 0.0 | UKT13: 0.0 | UKU13: 0.0 | UKV13: 0.0 | UKW13: 0.0 | UKX13: 0.0 | UKY13: 0.0 | UKZ13: 0.0 | ULA13: 0.0 | ULB13: 0.0 | ULC13: 0.0 | ULD13: 0.0 | ULE13: 0.0 | ULF13: 0.0 | ULG13: 0.0 | ULH13: 0.0 | ULI13: 0.0 | ULJ13: 0.0 | ULK13: 0.0 | ULL13: 0.0 | ULM13: 0.0 | ULN13: 0.0 | ULO13: 0.0 | ULP13: 0.0 | ULQ13: 0.0 | ULR13: 0.0 | ULS13: 0.0 | ULT13: 0.0 | ULU13: 0.0 | ULV13: 0.0 | ULW13: 0.0 | ULX13: 0.0 | ULY13: 0.0 | ULZ13: 0.0 | UMA13: 0.0 | UMB13: 0.0 | UMC13: 0.0 | UMD13: 0.0 | UME13: 0.0 | UMF13: 0.0 | UMG13: 0.0 | UMH13: 0.0 | UMI13: 0.0 | UMJ13: 0.0 | UMK13: 0.0 | UML13: 0.0 | UMM13: 0.0 | UMN13: 0.0 | UMO13: 0.0 | UMP13: 0.0 | UMQ13: 0.0 | UMR13: 0.0 | UMS13: 0.0 | UMT13: 0.0 | UMU13: 0.0 | UMV13: 0.0 | UMW13: 0.0 | UMX13: 0.0 | UMY13: 0.0 | UMZ13: 0.0 | UNA13: 0.0 | UNB13: 0.0 | UNC13: 0.0 | UND13: 0.0 | UNE13: 0.0 | UNF13: 0.0 | UNG13: 0.0 | UNH13: 0.0 | UNI13: 0.0 | UNJ13: 0.0 | UNK13: 0.0 | UNL13: 0.0 | UNM13: 0.0 | UNN13: 0.0 | UNO13: 0.0 | UNP13: 0.0 | UNQ13: 0.0 | UNR13: 0.0 | UNS13: 0.0 | UNT13: 0.0 | UNU13: 0.0 | UNV13: 0.0 | UNW13: 0.0 | UNX13: 0.0 | UNY13: 0.0 | UNZ13: 0.0 | UOA13: 0.0 | UOB13: 0.0 | UOC13: 0.0 | UOD13: 0.0 | UOE13: 0.0 | UOF13: 0.0 | UOG13: 0.0 | UOH13: 0.0 | UOI13: 0.0 | UOJ13: 0.0 | UOK13: 0.0 | UOL13: 0.0 | UOM13: 0.0 | UON13: 0.0 | UOO13: 0.0 | UOP13: 0.0 | UOQ13: 0.0 | UOR13: 0.0 | UOS13: 0.0 | UOT13: 0.0 | UOU13: 0.0 | UOV13: 0.0 | UOW13: 0.0 | UOX13: 0.0 | UOY13: 0.0 | UOZ13: 0.0 | UPA13: 0.0 | UPB13: 0.0 | UPC13: 0.0 | UPD13: 0.0 | UPE13: 0.0 | UPF13: 0.0 | UPG13: 0.0 | UPH13: 0.0 | UPI13: 0.0 | UPJ13: 0.0 | UPK13: 0.0 | UPL13: 0.0 | UPM13: 0.0 | UPN13: 0.0 | UPO13: 0.0 | UPP13: 0.0 | UPQ13: 0.0 | UPR13: 0.0 | UPS13: 0.0 | UPT13: 0.0 | UPU13: 0.0 | UPV13: 0.0 | UPW13: 0.0 | UPX13: 0.0 | UPY13: 0.0 | UPZ13: 0.0 | UQA13: 0.0 | UQB13: 0.0 | UQC13: 0.0 | UQD13: 0.0 | UQE13: 0.0 | UQF13: 0.0 | UQG13: 0.0 | UQH13: 0.0 | UQI13: 0.0 | UQJ13: 0.0 | UQK13: 0.0 | UQL13: 0.0 | UQM13: 0.0 | UQN13: 0.0 | UQO13: 0.0 | UQP13: 0.0 | UQQ13: 0.0 | UQR13: 0.0 | UQS13: 0.0 | UQT13: 0.0 | UQU13: 0.0 | UQV13: 0.0 | UQW13: 0.0 | UQX13: 0.0 | UQY13: 0.0 | UQZ13: 0.0 | URA13: 0.0 | URB13: 0.0 | URC13: 0.0 | URD13: 0.0 | URE13: 0.0 | URF13: 0.0 | URG13: 0.0 | URH13: 0.0 | URI13: 0.0 | URJ13: 0.0 | URK13: 0.0 | URL13: 0.0 | URM13: 0.0 | URN13: 0.0 | URO13: 0.0 | URP13: 0.0 | URQ13: 0.0 | URR13: 0.0 | URS13: 0.0 | URT13: 0.0 | URU13: 0.0 | URV13: 0.0 | URW13: 0.0 | URX13: 0.0 | URY13: 0.0 | URZ13: 0.0 | USA13: 0.0 | USB13: 0.0 | USC13: 0.0 | USD13: 0.0 | USE13: 0.0 | USF13: 0.0 | USG13: 0.0 | USH13: 0.0 | USI13: 0.0 | USJ13: 0.0 | USK13: 0.0 | USL13: 0.0 | USM13: 0.0 | USN13: 0.0 | USO13: 0.0 | USP13: 0.0 | USQ13: 0.0 | USR13: 0.0 | USS13: 0.0 | UST13: 0.0 | USU13: 0.0 | USV13: 0.0 | USW13: 0.0 | USX13: 0.0 | USY13: 0.0 | USZ13: 0.0 | UTA13: 0.0 | UTB13: 0.0 | UTC13: 0.0 | UTD13: 0.0 | UTE13: 0.0 | UTF13: 0.0 | UTG13: 0.0 | UTH13: 0.0 | UTI13: 0.0 | UTJ13: 0.0 | UTK13: 0.0 | UTL13: 0.0 | UTM13: 0.0 | UTN13: 0.0 | UTO13: 0.0 | UTP13: 0.0 | UTQ13: 0.0 | UTR13: 0.0 | UTS13: 0.0 | UTT13: 0.0 | UTU13: 0.0 | UTV13: 0.0 | UTW13: 0.0 | UTX13: 0.0 | UTY13: 0.0 | UTZ13: 0.0 | UUA13: 0.0 | UUB13: 0.0 | UUC13: 0.0 | UUD13: 0.0 | UUE13: 0.0 | UUF13: 0.0 | UUG13: 0.0 | UUH13: 0.0 | UUI13: 0.0 | UUJ13: 0.0 | UUK13: 0.0 | UUL13: 0.0 | UUM13: 0.0 | UUN13: 0.0 | UUO13: 0.0 | UUP13: 0.0 | UUQ13: 0.0 | UUR13: 0.0 | UUS13: 0.0 | UUT13: 0.0 | UUU13: 0.0 | UUV13: 0.0 | UUW13: 0.0 | UUX13: 0.0 | UUY13: 0.0 | UUZ13: 0.0 | UVA13: 0.0 | UVB13: 0.0 | UVC13: 0.0 | UVD13: 0.0 | UVE13: 0.0 | UVF13: 0.0 | UVG13: 0.0 | UVH13: 0.0 | UVI13: 0.0 | UVJ13: 0.0 | UVK13: 0.0 | UVL13: 0.0 | UVM13: 0.0 | UVN13: 0.0 | UVO13: 0.0 | UVP13: 0.0 | UVQ13: 0.0 | UVR13: 0.0 | UVS13: 0.0 | UVT13: 0.0 | UVU13: 0.0 | UVV13: 0.0 | UVW13: 0.0 | UVX13: 0.0 | UVY13: 0.0 | UVZ13: 0.0 | UWA13: 0.0 | UWB13: 0.0 | UWC13: 0.0 | UWD13: 0.0 | UWE13: 0.0 | UWF13: 0.0 | UWG13: 0.0 | UWH13: 0.0 | UWI13: 0.0 | UWJ13: 0.0 | UWK13: 0.0 | UWL13: 0.0 | UWM13: 0.0 | UWN13: 0.0 | UWO13: 0.0 | UWP13: 0.0 | UWQ13: 0.0 | UWR13: 0.0 | UWS13: 0.0 | UWT13: 0.0 | UWU13: 0.0 | UWV13: 0.0 | UWW13: 0.0 | UWX13: 0.0 | UWY13: 0.0 | UWZ13: 0.0 | UXA13: 0.0 | UXB13: 0.0 | UXC13: 0.0 | UXD13: 0.0 | UXE13: 0.0 | UXF13: 0.0 | UXG13: 0.0 | UXH13: 0.0 | UXI13: 0.0 | UXJ13: 0.0 | UXK13: 0.0 | UXL13: 0.0 | UXM13: 0.0 | UXN13: 0.0 | UXO13: 0.0 | UXP13: 0.0 | UXQ13: 0.0 | UXR13: 0.0 | UXS13: 0.0 | UXT13: 0.0 | UXU13: 0.0 | UXV13: 0.0 | UXW13: 0.0 | UXX13: 0.0 | UXY13: 0.0 | UXZ13: 0.0 | UYA13: 0.0 | UYB13: 0.0 | UYC13: 0.0 | UYD13: 0.0 | UYE13: 0.0 | UYF13: 0.0 | UYG13: 0.0 | UYH13: 0.0 | UYI13: 0.0 | UYJ13: 0.0 | UYK13: 0.0 | UYL13: 0.0 | UYM13: 0.0 | UYN13: 0.0 | UYO13: 0.0 | UYP13: 0.0 | UYQ13: 0.0 | UYR13: 0.0 | UYS13: 0.0 | UYT13: 0.0 | UYU13: 0.0 | UYV13: 0.0 | UYW13: 0.0 | UYX13: 0.0 | UYY13: 0.0 | UYZ13: 0.0 | UZA13: 0.0 | UZB13: 0.0 | UZC13: 0.0 | UZD13: 0.0 | UZE13: 0.0 | UZF13: 0.0 | UZG13: 0.0 | UZH13: 0.0 | UZI13: 0.0 | UZJ13: 0.0 | UZK13: 0.0 | UZL13: 0.0 | UZM13: 0.0 | UZN13: 0.0 | UZO13: 0.0 | UZP13: 0.0 | UZQ13: 0.0 | UZR13: 0.0 | UZS13: 0.0 | UZT13: 0.0 | UZU13: 0.0 | UZV13: 0.0 | UZW13: 0.0 | UZX13: 0.0 | UZY13: 0.0 | UZZ13: 0.0 | VAA13: 0.0 | VAB13: 0.0 | VAC13: 0.0 | VAD13: 0.0 | VAE13: 0.0 | VAF13: 0.0 | VAG13: 0.0 | VAH13: 0.0 | VAI13: 0.0 | VAJ13: 0.0 | VAK13: 0.0 | VAL13: 0.0 | VAM13: 0.0 | VAN13: 0.0 | VAO13: 0.0 | VAP13: 0.0 | VAQ13: 0.0 | VAR13: 0.0 | VAS13: 0.0 | VAT13: 0.0 | VAU13: 0.0 | VAV13: 0.0 | VAW13: 0.0 | VAX13: 0.0 | VAY13: 0.0 | VAZ13: 0.0 | VBA13: 0.0 | VBB13: 0.0 | VBC13: 0.0 | VBD13: 0.0 | VBE13: 0.0 | VBF13: 0.0 | VBG13: 0.0 | VBH13: 0.0 | VBI13: 0.0 | VBJ13: 0.0 | VBK13: 0.0 | VBL13: 0.0 | VBM13: 0.0 | VBN13: 0.0 | VBO13: 0.0 | VBP13: 0.0 | VBQ13: 0.0 | VBR13: 0.0 | VBS13: 0.0 | VBT13: 0.0 | VBU13: 0.0 | VBV13: 0.0 | VBW13: 0.0 | VBX13: 0.0 | VBY13: 0.0 | VBZ13: 0.0 | VCA13: 0.0 | VCB13: 0.0 | VCC13: 0.0 | VCD13: 0.0 | VCE13: 0.0 | VCF13: 0.0 | VCG13: 0.0 | VCH13: 0.0 | VCI13: 0.0 | VCJ13: 0.0 | VCK13: 0.0 | VCL13: 0.0 | VCM13: 0.0 | VCN13: 0.0 | VCO13: 0.0 | VCP13: 0.0 | VCQ13: 0.0 | VCR13: 0.0 | VCS13: 0.0 | VCT13: 0.0 | VCU13: 0.0 | VCV13: 0.0 | VCW13: 0.0 | VCX13: 0.0 | VCY13: 0.0 | VCZ13: 0.0 | VDA13: 0.0 | VDB13: 0.0 | VDC13: 0.0 | VDD13: 0.0 | VDE13: 0.0 | VDF13: 0.0 | VDG13: 0.0 | VDH13: 0.0 | VDI13: 0.0 | VDJ13: 0.0 | VDK13: 0.0 | VDL13: 0.0 | VDM13: 0.0 | VDN13: 0.0 | VDO13: 0.0 | VDP13: 0.0 | VDQ13: 0.0 | VDR13: 0.0 | VDS13: 0.0 | VDT13: 0.0 | VDU13: 0.0 | VDV13: 0.0 | VDW13: 0.0 | VDX13: 0.0 | VDY13: 0.0 | VDZ13: 0.0 | VEA13: 0.0 | VEB13: 0.0 | VEC13: 0.0 | VED13: 0.0 | VEE13: 0.0 | VEF13: 0.0 | VEG13: 0.0 | VEH13: 0.0 | VEI13: 0.0 | VEJ13: 0.0 | VEK13: 0.0 | VEL13: 0.0 | VEM13: 0.0 | VEN13: 0.0 | VEO13: 0.0 | VEP13: 0.0 | VEQ13: 0.0 | VER13: 0.0 | VES13: 0.0 | VET13: 0.0 | VEU13: 0.0 | VEV13: 0.0 | VEW13: 0.0 | VEX13: 0.0 | VEY13: 0.0 | VEZ13: 0.0 | VFA13: 0.0 | VFB13: 0.0 | VFC13: 0.0 | VFD13: 0.0 | VFE13: 0.0 | VFF13: 0.0 | VFG13: 0.0 | VFH13: 0.0 | VFI13: 0.0 | VFJ13: 0.0 | VFK13: 0.0 | VFL13: 0.0 | VFM13: 0.0 | VFN13: 0.0 | VFO13: 0.0 | VFP13: 0.0 | VFQ13: 0.0 | VFR13: 0.0 | VFS13: 0.0 | VFT13: 0.0 | VFU13: 0.0 | VFV13: 0.0 | VFW13: 0.0 | VFX13: 0.0 | VFY13: 0.0 | VFZ13: 0.0 | VGA13: 0.0 | VGB13: 0.0 | VGC13: 0.0 | VGD13: 0.0 | VGE13: 0.0 | VGF13: 0.0 | VGG13: 0.0 | VGH13: 0.0 | VGI13: 0.0 | VGJ13: 0.0 | VGK13: 0.0 | VGL13: 0.0 | VGM13: 0.0 | VGN13: 0.0 | VGO13: 0.0 | VGP13: 0.0 | VGQ13: 0.0 | VGR13: 0.0 | VGS13: 0.0 | VGT13: 0.0 | VGU13: 0.0 | VGV13: 0.0 | VGW13: 0.0 | VGX13: 0.0 | VGY13: 0.0 | VGZ13: 0.0 | VHA13: 0.0 | VHB13: 0.0 | VHC13: 0.0 | VHD13: 0.0 | VHE13: 0.0 | VHF13: 0.0 | VHG13: 0.0 | VHH13: 0.0 | VHI13: 0.0 | VHJ13: 0.0 | VHK13: 0.0 | VHL13: 0.0 | VHM13: 0.0 | VHN13: 0.0 | VHO13: 0.0 | VHP13: 0.0 | VHQ13: 0.0 | VHR13: 0.0 | VHS13: 0.0 | VHT13: 0.0 | VHU13: 0.0 | VHV13: 0.0 | VHW13: 0.0 | VHX13: 0.0 | VHY13: 0.0 | VHZ13: 0.0 | VIA13: 0.0 | VIB13: 0.0 | VIC13: 0.0 | VID13: 0.0 | VIE13: 0.0 | VIF13: 0.0 | VIG13: 0.0 | VIH13: 0.0 | VII13: 0.0 | VIJ13: 0.0 | VIK13: 0.0 | VIL13: 0.0 | VIM13: 0.0 | VIN13: 0.0 | VIO13: 0.0 | VIP13: 0.0 | VIQ13: 0.0 | VIR13: 0.0 | VIS13: 0.0 | VIT13: 0.0 | VIU13: 0.0 | VIV13: 0.0 | VIW13: 0.0 | VIX13: 0.0 | VIY13: 0.0 | VIZ13: 0.0 | VJA13: 0.0 | VJB13: 0.0 | VJC13: 0.0 | VJD13: 0.0 | VJE13: 0.0 | VJF13: 0.0 | VJG13: 0.0 | VJH13: 0.0 | VJI13: 0.0 | VJJ13: 0.0 | VJK13: 0.0 | VJL13: 0.0 | VJM13: 0.0 | VJN13: 0.0 | VJO13: 0.0 | VJP13: 0.0 | VJQ13: 0.0 | VJR13: 0.0 | VJS13: 0.0 | VJT13: 0.0 | VJU13: 0.0 | VJV13: 0.0 | VJW13: 0.0 | VJX13: 0.0 | VJY13: 0.0 | VJZ13: 0.0 | VKA13: 0.0 | VKB13: 0.0 | VKC13: 0.0 | VKD13: 0.0 | VKE13: 0.0 | VKF13: 0.0 | VKG13: 0.0 | VKH13: 0.0 | VKI13: 0.0 | VKJ13: 0.0 | VKK13: 0.0 | VKL13: 0.0 | VKM13: 0.0 | VKN13: 0.0 | VKO13: 0.0 | VKP13: 0.0 | VKQ13: 0.0 | VKR13: 0.0 | VKS13: 0.0 | VKT13: 0.0 | VKU13: 0.0 | VKV13: 0.0 | VKW13: 0.0 | VKX13: 0.0 | VKY13: 0.0 | VKZ13: 0.0 | VLA13: 0.0 | VLB13: 0.0 | VLC13: 0.0 | VLD13: 0.0 | VLE13: 0.0 | VLF13: 0.0 | VLG13: 0.0 | VLH13: 0.0 | VLI13: 0.0 | VLJ13: 0.0 | VLK13: 0.0 | VLL13: 0.0 | VLM13: 0.0 | VLN13: 0.0 | VLO13: 0.0 | VLP13: 0.0 | VLQ13: 0.0 | VLR13: 0.0 | VLS13: 0.0 | VLT13: 0.0 | VLU13: 0.0 | VLV13: 0.0 | VLW13: 0.0 | VLX13: 0.0 | VLY13: 0.0 | VLZ13: 0.0 | VMA13: 0.0 | VMB13: 0.0 | VMC13: 0.0 | VMD13: 0.0 | VME13: 0.0 | VMF13: 0.0 | VMG13: 0.0 | VMH13: 0.0 | VMI13: 0.0 | VMJ13: 0.0 | VMK13: 0.0 | VML13: 0.0 | VMM13: 0.0 | VMN13: 0.0 | VMO13: 0.0 | VMP13: 0.0 | VMQ13: 0.0 | VMR13: 0.0 | VMS13: 0.0 | VMT13: 0.0 | VMU13: 0.0 | VMV13: 0.0 | VMW13: 0.0 | VMX13: 0.0 | VMY13: 0.0 | VMZ13: 0.0 | VNA13: 0.0 | VNB13: 0.0 | VNC13: 0.0 | VND13: 0.0 | VNE13: 0.0 | VNF13: 0.0 | VNG13: 0.0 | VNH13: 0.0 | VNI13: 0.0 | VNJ13: 0.0 | VNK13: 0.0 | VNL13: 0.0 | VNM13: 0.0 | VNN13: 0.0 | VNO13: 0.0 | VNP13: 0.0 | VNQ13: 0.0 | VNR13: 0.0 | VNS13: 0.0 | VNT13: 0.0 | VNU13: 0.0 | VNV13: 0.0 | VNW13: 0.0 | VNX13: 0.0 | VNY13: 0.0 | VNZ13: 0.0 | VOA13: 0.0 | VOB13: 0.0 | VOC13: 0.0 | VOD13: 0.0 | VOE13: 0.0 | VOF13: 0.0 | VOG13: 0.0 | VOH13: 0.0 | VOI13: 0.0 | VOJ13: 0.0 | VOK13: 0.0 | VOL13: 0.0 | VOM13: 0.0 | VON13: 0.0 | VOO13: 0.0 | VOP13: 0.0 | VOQ13: 0.0 | VOR13: 0.0 | VOS13: 0.0 | VOT13: 0.0 | VOU13: 0.0 | VOV13: 0.0 | VOW13: 0.0 | VOX13: 0.0 | VOY13: 0.0 | VOZ13: 0.0 | VPA13: 0.0 | VPB13: 0.0 | VPC13: 0.0 | VPD13: 0.0 | VPE13: 0.0 | VPF13: 0.0 | VPG13: 0.0 | VPH13: 0.0 | VPI13: 0.0 | VPJ13: 0.0 | VPK13: 0.0 | VPL13: 0.0 | VPM13: 0.0 | VPN13: 0.0 | VPO13: 0.0 | VPP13: 0.0 | VPQ13: 0.0 | VPR13: 0.0 | VPS13: 0.0 | VPT13: 0.0 | VPU13: 0.0 | VPV13: 0.0 | VPW13: 0.0 | VPX13: 0.0 | VPY13: 0.0 | VPZ13: 0.0 | VQA13: 0.0 | VQB13: 0.0 | VQC13: 0.0 | VQD13: 0.0 | VQE13: 0.0 | VQF13: 0.0 | VQG13: 0.0 | VQH13: 0.0 | VQI13: 0.0 | VQJ13: 0.0 | VQK13: 0.0 | VQL13: 0.0 | VQM13: 0.0 | VQN13: 0.0 | VQO13: 0.0 | VQP13: 0.0 | VQQ13: 0.0 | VQR13: 0.0 | VQS13: 0.0 | VQT13: 0.0 | VQU13: 0.0 | VQV13: 0.0 | VQW13: 0.0 | VQX13: 0.0 | VQY13: 0.0 | VQZ13: 0.0 | VRA13: 0.0 | VRB13: 0.0 | VRC13: 0.0 | VRD13: 0.0 | VRE13: 0.0 | VRF13: 0.0 | VRG13: 0.0 | VRH13: 0.0 | VRI13: 0.0 | VRJ13: 0.0 | VRK13: 0.0 | VRL13: 0.0 | VRM13: 0.0 | VRN13: 0.0 | VRO13: 0.0 | VRP13: 0.0 | VRQ13: 0.0 | VRR13: 0.0 | VRS13: 0.0 | VRT13: 0.0 | VRU13: 0.0 | VRV13: 0.0 | VRW13: 0.0 | VRX13: 0.0 | VRY13: 0.0 | VRZ13: 0.0 | VSA13: 0.0 | VSB13: 0.0 | VSC13: 0.0 | VSD13: 0.0 | VSE13: 0.0 | VSF13: 0.0 | VSG13: 0.0 | VSH13: 0.0 | VSI13: 0.0 | VSJ13: 0.0 | VSK13: 0.0 | VSL13: 0.0 | VSM13: 0.0 | VSN13: 0.0 | VSO13: 0.0 | VSP13: 0.0 | VSQ13: 0.0 | VSR13: 0.0 | VSS13: 0.0 | VST13: 0.0 | VSU13: 0.0 | VSV13: 0.0 | VSW13: 0.0 | VSX13: 0.0 | VSY13: 0.0 | VSZ13: 0.0 | VTA13: 0.0 | VTB13: 0.0 | VTC13: 0.0 | VTD13: 0.0 | VTE13: 0.0 | VTF13: 0.0 | VTG13: 0.0 | VTH13: 0.0 | VTI13: 0.0 | VTJ13: 0.0 | VTK13: 0.0 | VTL13: 0.0 | VTM13: 0.0 | VTN13: 0.0 | VTO13: 0.0 | VTP13: 0.0 | VTQ13: 0.0 | VTR13: 0.0 | VTS13: 0.0 | VTT13: 0.0 | VTU13: 0.0 | VTV13: 0.0 | VTW13: 0.0 | VTX13: 0.0 | VTY13: 0.0 | VTZ13: 0.0 | VUA13: 0.0 | VUB13: 0.0 | VUC13: 0.0 | VUD13: 0.0 | VUE13: 0.0 | VUF13: 0.0 | VUG13: 0.0 | VUH13: 0.0 | VUI13: 0.0 | VUJ13: 0.0 | VUK13: 0.0 | VUL13: 0.0 | VUM13: 0.0 | VUN13: 0.0 | VUO13: 0.0 | VUP13: 0.0 | VUQ13: 0.0 | VUR13: 0.0 | VUS13: 0.0 | VUT13: 0.0 | VUU13: 0.0 | VUV13: 0.0 | VUW13: 0.0 | VUX13: 0.0 | VUY13: 0.0 | VUZ13: 0.0 | VVA13: 0.0 | VVB13: 0.0 | VVC13: 0.0 | VVD13: 0.0 | VVE13: 0.0 | VVF13: 0.0 | VVG13: 0.0 | VVH13: 0.0 | VVI13: 0.0 | VVJ13: 0.0 | VVK13: 0.0 | VVL13: 0.0 | VVM13: 0.0 | VVN13: 0.0 | VVO13: 0.0 | VVP13: 0.0 | VVQ13: 0.0 | VVR13: 0.0 | VVS13: 0.0 | VVT13: 0.0 | VVU13: 0.0 | VVV13: 0.0 | VVW13: 0.0 | VVX13: 0.0 | VVY13: 0.0 | VVZ13: 0.0 | VWA13: 0.0 | VWB13: 0.0 | VWC13: 0.0 | VWD13: 0.0 | VWE13: 0.0 | VWF13: 0.0 | VWG13: 0.0 | VWH13: 0.0 | VWI13: 0.0 | VWJ13: 0.0 | VWK13: 0.0 | VWL13: 0.0 | VWM13: 0.0 | VWN13: 0.0 | VWO13: 0.0 | VWP13: 0.0 | VWQ13: 0.0 | VWR13: 0.0 | VWS13: 0.0 | VWT13: 0.0 | VWU13: 0.0 | VWV13: 0.0 | VWW13: 0.0 | VWX13: 0.0 | VWY13: 0.0 | VWZ13: 0.0 | VXA13: 0.0 | VXB13: 0.0 | VXC13: 0.0 | VXD13: 0.0 | VXE13: 0.0 | VXF13: 0.0 | VXG13: 0.0 | VXH13: 0.0 | VXI13: 0.0 | VXJ13: 0.0 | VXK13: 0.0 | VXL13: 0.0 | VXM13: 0.0 | VXN13: 0.0 | VXO13: 0.0 | VXP13: 0.0 | VXQ13: 0.0 | VXR13: 0.0 | VXS13: 0.0 | VXT13: 0.0 | VXU13: 0.0 | VXV13: 0.0 | VXW13: 0.0 | VXX13: 0.0 | VXY13: 0.0 | VXZ13: 0.0 | VYA13: 0.0 | VYB13: 0.0 | VYC13: 0.0 | VYD13: 0.0 | VYE13: 0.0 | VYF13: 0.0 | VYG13: 0.0 | VYH13: 0.0 | VYI13: 0.0 | VYJ13: 0.0 | VYK13: 0.0 | VYL13: 0.0 | VYM13: 0.0 | VYN13: 0.0 | VYO13: 0.0 | VYP13: 0.0 | VYQ13: 0.0 | VYR13: 0.0 | VYS13: 0.0 | VYT13: 0.0 | VYU13: 0.0 | VYV13: 0.0 | VYW13: 0.0 | VYX13: 0.0 | VYY13: 0.0 | VYZ13: 0.0 | VZA13: 0.0 | VZB13: 0.0 | VZC13: 0.0 | VZD13: 0.0 | VZE13: 0.0 | VZF13: 0.0 | VZG13: 0.0 | VZH13: 0.0 | VZI13: 0.0 | VZJ13: 0.0 | VZK13: 0.0 | VZL13: 0.0 | VZM13: 0.0 | VZN13: 0.0 | VZO13: 0.0 | VZP13: 0.0 | VZQ13: 0.0 | VZR13: 0.0 | VZS13: 0.0 | VZT13: 0.0 | VZU13: 0.0 | VZV13: 0.0 | VZW13: 0.0 | VZX13: 0.0 | VZY13: 0.0 | VZZ13: 0.0 | WAA13: 0.0 | WAB13: 0.0 | WAC13: 0.0 | WAD13: 0.0 | WAE13: 0.0 | WAF13: 0.0 | WAG13: 0.0 | WAH13: 0.0 | WAI13: 0.0 | WAJ13: 0.0 | WAK13: 0.0 | WAL13: 0.0 | WAM13: 0.0 | WAN13: 0.0 | WAO13: 0.0 | WAP13: 0.0 | WAQ13: 0.0 | WAR13: 0.0 | WAS13: 0.0 | WAT13: 0.0 | WAU13: 0.0 | WAV13: 0.0 | WAW13: 0.0 | WAX13: 0.0 | WAY13: 0.0 | WAZ13: 0.0 | WBA13: 0.0 | WBB13: 0.0 | WBC13: 0.0 | WBD13: 0.0 | WBE13: 0.0 | WBF13: 0.0 | WBG13: 0.0 | WBH13: 0.0 | WBI13: 0.0 | WBJ13: 0.0 | WBK13: 0.0 | WBL13: 0.0 | WBM13: 0.0 | WBN13: 0.0 | WBO13: 0.0 | WBP13: 0.0 | WBQ13: 0.0 | WBR13: 0.0 | WBS13: 0.0 | WBT13: 0.0 | WBU13: 0.0 | WBV13: 0.0 | WBW13: 0.0 | WBX13: 0.0 | WBY13: 0.0 | WBZ13: 0.0 | WCA13: 0.0 | WCB13: 0.0 | WCC13: 0.0 | WCD13: 0.0 | WCE13: 0.0 | WCF13: 0.0 | WCG13: 0.0 | WCH13: 0.0 | WCI13: 0.0 | WCJ13: 0.0 | WCK13: 0.0 | WCL13: 0.0 | WCM13: 0.0 | WCN13: 0.0 | WCO13: 0.0 | WCP13: 0.0 | WCQ13: 0.0 | WCR13: 0.0 | WCS13: 0.0 | WCT13: 0.0 | WCU13: 0.0 | WCV13: 0.0 | WCW13: 0.0 | WCX13: 0.0 | WCY13: 0.0 | WCZ13: 0.0 | WDA13: 0.0 | WDB13: 0.0 | WDC13: 0.0 | WDD13: 0.0 | WDE13: 0.0 | WDF13: 0.0 | WDG13: 0.0 | WDH13: 0.0 | WDI13: 0.0 | WDJ13: 0.0 | WDK13: 0.0 | WDL13: 0.0 | WDM13: 0.0 | WDN13: 0.0 | WDO13: 0.0 | WDP13: 0.0 | WDQ13: 0.0 | WDR13: 0.0 | WDS13: 0.0 | WDT13: 0.0 | WDU13: 0.0 | WDV13: 0.0 | WDW13: 0.0 | WDX13: 0.0 | WDY13: 0.0 | WDZ13: 0.0 | WEA13: 0.0 | WEB13: 0.0 | WEC13: 0.0 | WED13: 0.0 | WEE13: 0.0 | WEF13: 0.0 | WEG13: 0.0 | WEH13: 0.0 | WEI13: 0.0 | WEJ13: 0.0 | WEK13: 0.0 | WEL13: 0.0 | WEM13: 0.0 | WEN13: 0.0 | WEO13: 0.0 | WEP13: 0.0 | WEQ13: 0.0 | WER13: 0.0 | WES13: 0.0 | WET13: 0.0 | WEU13: 0.0 | WEV13: 0.0 | WEW13: 0.0 | WEX13: 0.0 | WEY13: 0.0 | WEZ13: 0.0 | WFA13: 0.0 | WFB13: 0.0 | WFC13: 0.0 | WFD13: 0.0 | WFE13: 0.0 | WFF13: 0.0 | WFG13: 0.0 | WFH13: 0.0 | WFI13: 0.0 | WFJ13: 0.0 | WFK13: 0.0 | WFL13: 0.0 | WFM13: 0.0 | WFN13: 0.0 | WFO13: 0.0 | WFP13: 0.0 | WFQ13: 0.0 | WFR13: 0.0 | WFS13: 0.0 | WFT13: 0.0 | WFU13: 0.0 | WFV13: 0.0 | WFW13: 0.0 | WFX13: 0.0 | WFY13: 0.0 | WFZ13: 0.0 | WGA13: 0.0 | WGB13: 0.0 | WGC13: 0.0 | WGD13: 0.0 | WGE13: 0.0 | WGF13: 0.0 | WGG13: 0.0 | WGH13: 0.0 | WGI13: 0.0 | WGJ13: 0.0 | WGK13: 0.0 | WGL13: 0.0 | WGM13: 0.0 | WGN13: 0.0 | WGO13: 0.0 | WGP13: 0.0 | WGQ13: 0.0 | WGR13: 0.0 | WGS13: 0.0 | WGT13: 0.0 | WGU13: 0.0 | WGV13: 0.0 | WGW13: 0.0 | WGX13: 0.0 | WGY13: 0.0 | WGZ13: 0.0 | WHA13: 0.0 | WHB13: 0.0 | WHC13: 0.0 | WHD13: 0.0 | WHE13: 0.0 | WHF13: 0.0 | WHG13: 0.0 | WHH13: 0.0 | WHI13: 0.0 | WHJ13: 0.0 | WHK13: 0.0 | WHL13: 0.0 | WHM13: 0.0 | WHN13: 0.0 | WHO13: 0.0 | WHP13: 0.0 | WHQ13: 0.0 | WHR13: 0.0 | WHS13: 0.0 | WHT13: 0.0 | WHU13: 0.0 | WHV13: 0.0 | WHW13: 0.0 | WHX13: 0.0 | WHY13: 0.0 | WHZ13: 0.0 | WIA13: 0.0 | WIB13: 0.0 | WIC13: 0.0 | WID13: 0.0 | WIE13: 0.0 | WIF13: 0.0 | WIG13: 0.0 | WIH13: 0.0 | WII13: 0.0 | WIJ13: 0.0 | WIK13: 0.0 | WIL13: 0.0 | WIM13: 0.0 | WIN13: 0.0 | WIO13: 0.0 | WIP13: 0.0 | WIQ13: 0.0 | WIR13: 0.0 | WIS13: 0.0 | WIT13: 0.0 | WIU13: 0.0 | WIV13: 0.0 | WIW13: 0.0 | WIX13: 0.0 | WIY13: 0.0 | WIZ13: 0.0 | WJA13: 0.0 | WJB13: 0.0 | WJC13: 0.0 | WJD13: 0.0 | WJE13: 0.0 | WJF13: 0.0 | WJG13: 0.0 | WJH13: 0.0 | WJI13: 0.0 | WJJ13: 0.0 | WJK13: 0.0 | WJL13: 0.0 | WJM13: 0.0 | WJN13: 0.0 | WJO13: 0.0 | WJP13: 0.0 | WJQ13: 0.0 | WJR13: 0.0 | WJS13: 0.0 | WJT13: 0.0 | WJU13: 0.0 | WJV13: 0.0 | WJW13: 0.0 | WJX13: 0.0 | WJY13: 0.0 | WJZ13: 0.0 | WKA13: 0.0 | WKB13: 0.0 | WKC13: 0.0 | WKD13: 0.0 | WKE13: 0.0 | WKF13: 0.0 | WKG13: 0.0 | WKH13: 0.0 | WKI13: 0.0 | WKJ13: 0.0 | WKK13: 0.0 | WKL13: 0.0 | WKM13: 0.0 | WKN13: 0.0 | WKO13: 0.0 | WKP13: 0.0 | WKQ13: 0.0 | WKR13: 0.0 | WKS13: 0.0 | WKT13: 0.0 | WKU13: 0.0 | WKV13: 0.0 | WKW13: 0.0 | WKX13: 0.0 | WKY13: 0.0 | WKZ13: 0.0 | WLA13: 0.0 | WLB13: 0.0 | WLC13: 0.0 | WLD13: 0.0 | WLE13: 0.0 | WLF13: 0.0 | WLG13: 0.0 | WLH13: 0.0 | WLI13: 0.0 | WLJ13: 0.0 | WLK13: 0.0 | WLL13: 0.0 | WLM13: 0.0 | WLN13: 0.0 | WLO13: 0.0 | WLP13: 0.0 | WLQ13: 0.0 | WLR13: 0.0 | WLS13: 0.0 | WLT13: 0.0 | WLU13: 0.0 | WLV13: 0.0 | WLW13: 0.0 | WLX13: 0.0 | WLY13: 0.0 | WLZ13: 0.0 | WMA13: 0.0 | WMB13: 0.0 | WMC13: 0.0 | WMD13: 0.0 | WME13: 0.0 | WMF13: 0.0 | WMG13: 0.0 | WMH13: 0.0 | WMI13: 0.0 | WMJ13: 0.0 | WMK13: 0.0 | WML13: 0.0 | WMM13: 0.0 | WMN13: 0.0 | WMO13: 0.0 | WMP13: 0.0 | WMQ13: 0.0 | WMR13: 0.0 | WMS13: 0.0 | WMT13: 0.0 | WMU13: 0.0 | WMV13: 0.0 | WMW13: 0.0 | WMX13: 0.0 | WMY13: 0.0 | WMZ13: 0.0 | WNA13: 0.0 | WNB13: 0.0 | WNC13: 0.0 | WND13: 0.0 | WNE13: 0.0 | WNF13: 0.0 | WNG13: 0.0 | WNH13: 0.0 | WNI13: 0.0 | WNJ13: 0.0 | WNK13: 0.0 | WNL13: 0.0 | WNM13: 0.0 | WNN13: 0.0 | WNO13: 0.0 | WNP13: 0.0 | WNQ13: 0.0 | WNR13: 0.0 | WNS13: 0.0 | WNT13: 0.0 | WNU13: 0.0 | WNV13: 0.0 | WNW13: 0.0 | WNX13: 0.0 | WNY13: 0.0 | WNZ13: 0.0 | WOA13: 0.0 | WOB13: 0.0 | WOC13: 0.0 | WOD13: 0.0 | WOE13: 0.0 | WOF13: 0.0 | WOG13: 0.0 | WOH13: 0.0 | WOI13: 0.0 | WOJ13: 0.0 | WOK13: 0.0 | WOL13: 0.0 | WOM13: 0.0 | WON13: 0.0 | WOO13: 0.0 | WOP13: 0.0 | WOQ13: 0.0 | WOR13: 0.0 | WOS13: 0.0 | WOT13: 0.0 | WOU13: 0.0 | WOV13: 0.0 | WOW13: 0.0 | WOX13: 0.0 | WOY13: 0.0 | WOZ13: 0.0 | WPA13: 0.0 | WPB13: 0.0 | WPC13: 0.0 | WPD13: 0.0 | WPE13: 0.0 | WPF13: 0.0 | WPG13: 0.0 | WPH13: 0.0 | WPI13: 0.0 | WPJ13: 0.0 | WPK13: 0.0 | WPL13: 0.0 | WPM13: 0.0 | WPN13: 0.0 | WPO13: 0.0 | WPP13: 0.0 | WPQ13: 0.0 | WPR13: 0.0 | WPS13: 0.0 | WPT13: 0.0 | WPU13: 0.0 | WPV13: 0.0 | WPW13: 0.0 | WPX13: 0.0 | WPY13: 0.0 | WPZ13: 0.0 | WQA13: 0.0 | WQB13: 0.0 | WQC13: 0.0 | WQD13: 0.0 | WQE13: 0.0 | WQF13: 0.0 | WQG13: 0.0 | WQH13: 0.0 | WQI13: 0.0 | WQJ13: 0.0 | WQK13: 0.0 | WQL13: 0.0 | WQM13: 0.0 | WQN13: 0.0 | WQO13: 0.0 | WQP13: 0.0 | WQQ13: 0.0 | WQR13: 0.0 | WQS13: 0.0 | WQT13: 0.0 | WQU13: 0.0 | WQV13: 0.0 | WQW13: 0.0 | WQX13: 0.0 | WQY13: 0.0 | WQZ13: 0.0 | WRA13: 0.0 | WRB13: 0.0 | WRC13: 0.0 | WRD13: 0.0 | WRE13: 0.0 | WRF13: 0.0 | WRG13: 0.0 | WRH13: 0.0 | WRI13: 0.0 | WRJ13: 0.0 | WRK13: 0.0 | WRL13: 0.0 | WRM13: 0.0 | WRN13: 0.0 | WRO13: 0.0 | WRP13: 0.0 | WRQ13: 0.0 | WRR13: 0.0 | WRS13: 0.0 | WRT13: 0.0 | WRU13: 0.0 | WRV13: 0.0 | WRW13: 0.0 | WRX13: 0.0 | WRY13: 0.0 | WRZ13: 0.0 | WSA13: 0.0 | WSB13: 0.0 | WSC13: 0.0 | WSD13: 0.0 | WSE13: 0.0 | WSF13: 0.0 | WSG13: 0.0 | WSH13: 0.0 | WSI13: 0.0 | WSJ13: 0.0 | WSK13: 0.0 | WSL13: 0.0 | WSM13: 0.0 | WSN13: 0.0 | WSO13: 0.0 | WSP13: 0.0 | WSQ13: 0.0 | WSR13: 0.0 | WSS13: 0.0 | WST13: 0.0 | WSU13: 0.0 | WSV13: 0.0 | WSW13: 0.0 | WSX13: 0.0 | WSY13: 0.0 | WSZ13: 0.0 | WTA13: 0.0 | WTB13: 0.0 | WTC13: 0.0 | WTD13: 0.0 | WTE13: 0.0 | WTF13: 0.0 | WTG13: 0.0 | WTH13: 0.0 | WTI13: 0.0 | WTJ13: 0.0 | WTK13: 0.0 | WTL13: 0.0 | WTM13: 0.0 | WTN13: 0.0 | WTO13: 0.0 | WTP13: 0.0 | WTQ13: 0.0 | WTR13: 0.0 | WTS13: 0.0 | WTT13: 0.0 | WTU13: 0.0 | WTV13: 0.0 | WTW13: 0.0 | WTX13: 0.0 | WTY13: 0.0 | WTZ13: 0.0 | WUA13: 0.0 | WUB13: 0.0 | WUC13: 0.0 | WUD13: 0.0 | WUE13: 0.0 | WUF13: 0.0 | WUG13: 0.0 | WUH13: 0.0 | WUI13: 0.0 | WUJ13: 0.0 | WUK13: 0.0 | WUL13: 0.0 | WUM13: 0.0 | WUN13: 0.0 | WUO13: 0.0 | WUP13: 0.0 | WUQ13: 0.0 | WUR13: 0.0 | WUS13: 0.0 | WUT13: 0.0 | WUU13: 0.0 | WUV13: 0.0 | WUW13: 0.0 | WUX13: 0.0 | WUY13: 0.0 | WUZ13: 0.0 | WVA13: 0.0 | WVB13: 0.0 | WVC13: 0.0 | WVD13: 0.0 | WVE13: 0.0 | WVF13: 0.0 | WVG13: 0.0 | WVH13: 0.0 | WVI13: 0.0 | WVJ13: 0.0 | WVK13: 0.0 | WVL13: 0.0 | WVM13: 0.0 | WVN13: 0.0 | WVO13: 0.0 | WVP13: 0.0 | WVQ13: 0.0 | WVR13: 0.0 | WVS13: 0.0 | WVT13: 0.0 | WVU13: 0.0 | WVV13: 0.0 | WVW13: 0.0 | WVX13: 0.0 | WVY13: 0.0 | WVZ13: 0.0 | WWA13: 0.0 | WWB13: 0.0 | WWC13: 0.0 | WWD13: 0.0 | WWE13: 0.0 | WWF13: 0.0 | WWG13: 0.0 | WWH13: 0.0 | WWI13: 0.0 | WWJ13: 0.0 | WWK13: 0.0 | WWL13: 0.0 | WWM13: 0.0 | WWN13: 0.0 | WWO13: 0.0 | WWP13: 0.0 | WWQ13: 0.0 | WWR13: 0.0 | WWS13: 0.0 | WWT13: 0.0 | WWU13: 0.0 | WWV13: 0.0 | WWW13: 0.0 | WWX13: 0.0 | WWY13: 0.0 | WWZ13: 0.0 | WXA13: 0.0 | WXB13: 0.0 | WXC13: 0.0 | WXD13: 0.0 | WXE13: 0.0 | WXF13: 0.0 | WXG13: 0.0 | WXH13: 0.0 | WXI13: 0.0 | WXJ13: 0.0 | WXK13: 0.0 | WXL13: 0.0 | WXM13: 0.0 | WXN13: 0.0 | WXO13: 0.0 | WXP13: 0.0 | WXQ13: 0.0 | WXR13: 0.0 | WXS13: 0.0 | WXT13: 0.0 | WXU13: 0.0 | WXV13: 0.0 | WXW13: 0.0 | WXX13: 0.0 | WXY13: 0.0 | WXZ13: 0.0 | WYA13: 0.0 | WYB13: 0.0 | WYC13: 0.0 | WYD13: 0.0 | WYE13: 0.0 | WYF13: 0.0 | WYG13: 0.0 | WYH13: 0.0 | WYI13: 0.0 | WYJ13: 0.0 | WYK13: 0.0 | WYL13: 0.0 | WYM13: 0.0 | WYN13: 0.0 | WYO13: 0.0 | WYP13: 0.0 | WYQ13: 0.0 | WYR13: 0.0 | WYS13: 0.0 | WYT13: 0.0 | WYU13: 0.0 | WYV13: 0.0 | WYW13: 0.0 | WYX13: 0.0 | WYY13: 0.0 | WYZ13: 0.0 | WZA13: 0.0 | WZB13: 0.0 | WZC13: 0.0 | WZD13: 0.0 | WZE13: 0.0 | WZF13: 0.0 | WZG13: 0.0 | WZH13: 0.0 | WZI13: 0.0 | WZJ13: 0.0 | WZK13: 0.0 | WZL13: 0.0 | WZM13: 0.0 | WZN13: 0.0 | WZO13: 0.0 | WZP13: 0.0 | WZQ13: 0.0 | WZR13: 0.0 | WZS13: 0.0 | WZT13: 0.0 | WZU13: 0.0 | WZV13: 0.0 | WZW13: 0.0 | WZX13: 0.0 | WZY13: 0.0 | WZZ13: 0.0 | XAA13: 0.0 | XAB13: 0.0 | XAC13: 0.0 | XAD13: 0.0 | XAE13: 0.0 | XAF13: 0.0 | XAG13: 0.0 | XAH13: 0.0 | XAI13: 0.0 | XAJ13: 0.0 | XAK13: 0.0 | XAL13: 0.0 | XAM13: 0.0 | XAN13: 0.0 | XAO13: 0.0 | XAP13: 0.0 | XAQ13: 0.0 | XAR13: 0.0 | XAS13: 0.0 | XAT13: 0.0 | XAU13: 0.0 | XAV13: 0.0 | XAW13: 0.0 | XAX13: 0.0 | XAY13: 0.0 | XAZ13: 0.0 | XBA13: 0.0 | XBB13: 0.0 | XBC13: 0.0 | XBD13: 0.0 | XBE13: 0.0 | XBF13: 0.0 | XBG13: 0.0 | XBH13: 0.0 | XBI13: 0.0 | XBJ13: 0.0 | XBK13: 0.0 | XBL13: 0.0 | XBM13: 0.0 | XBN13: 0.0 | XBO13: 0.0 | XBP13: 0.0 | XBQ13: 0.0 | XBR13: 0.0 | XBS13: 0.0 | XBT13: 0.0 | XBU13: 0.0 | XBV13: 0.0 | XBW13: 0.0 | XBX13: 0.0 | XBY13: 0.0 | XBZ13: 0.0 | XCA13: 0.0 | XCB13: 0.0 | XCC13: 0.0 | XCD13: 0.0 | XCE13: 0.0 | XCF13: 0.0 | XCG13: 0.0 | XCH13: 0.0 | XCI13: 0.0 | XCJ13: 0.0 | XCK13: 0.0 | XCL13: 0.0 | XCM13: 0.0 | XCN13: 0.0 | XCO13: 0.0 | XCP13: 0.0 | XCQ13: 0.0 | XCR13: 0.0 | XCS13: 0.0 | XCT13: 0.0 | XCU13: 0.0 | XCV13: 0.0 | XCW13: 0.0 | XCX13: 0.0 | XCY13: 0.0 | XCZ13: 0.0 | XDA13: 0.0 | XDB13: 0.0 | XDC13: 0.0 | XDD13: 0.0 | XDE13: 0.0 | XDF13: 0.0 | XDG13: 0.0 | XDH13: 0.0 | XDI13: 0.0 | XDJ13: 0.0 | XDK13: 0.0 | XDL13: 0.0 | XDM13: 0.0 | XDN13: 0.0 | XDO13: 0.0 | XDP13: 0.0 | XDQ13: 0.0 | XDR13: 0.0 | XDS13: 0.0 | XDT13: 0.0 | XDU13: 0.0 | XDV13: 0.0 | XDW13: 0.0 | XDX13: 0.0 | XDY13: 0.0 | XDZ13: 0.0 | XEA13: 0.0 | XEB13: 0.0 | XEC13: 0.0 | XED13: 0.0 | XEE13: 0.0 | XEF13: 0.0 | XEG13: 0.0 | XEH13: 0.0 | XEI13: 0.0 | XEJ13: 0.0 | XEK13: 0.0 | XEL13: 0.0 | XEM13: 0.0 | XEN13: 0.0 | XEO13: 0.0 | XEP13: 0.0 | XEQ13: 0.0 | XER13: 0.0 | XES13: 0.0 | XET13: 0.0 | XEU13: 0.0 | XEV13: 0.0 | XEW13: 0.0 | XEX13: 0.0 | XEY13: 0.0 | XEZ13: 0.0 | XFA13: 0.0 | XFB13: 0.0 | XFC13: 0.0 | XFD13: 0.0
C14: Koszty bez VAT | D14: PLN | F14: 2,439,024.39 | G14: 2,439,024.39 | H14: 3,252,032.52 | I14: 0.00 | J14: 0.00 | K14: 0.00 | L14: 0.00 | M14: 0.00 | N14: 0.00 | O14: 0.00
C15: VAT(nieodzyskiwalny, kwalifikowalny wg GBER) | D15: PLN | F15: =+F14*0.23 -> 560,975.61 | G15: =+G14*0.23 -> 560,975.61 | H15: =+H14*0.23 -> 747,967.48 | I15: =+I14*0.23 -> 0.00 | J15: 0.00 | K15: 0.00 | L15: 0.00 | M15: 0.00 | N15: 0.00 | O15: 0.00
C16: VAT (odzyskiwalny, niekwlifikowalny wg GBER) | D16: PLN | F16: 0.00 | G16: 0.00 | H16: 0.00 | I16: 0.00 | J16: =+J15*0.23 -> 0.00 | K16: 0.00 | L16: 0.00 | M16: 0.00 | N16: 0.00 | O16: 0.00
C19: Obliczenie Zysku Operacyjnego | E19: NPV
C20: Przychody | D20: PLN | E20: =NPV($F$12,G20:AS20)+F20 -> 1,199,875.57 | F20: 0.00 | G20: 50,000.00 | H20: 90,000.00 | I20: 180,000.00 | J20: 180,000.00 | K20: 180,000.00 | L20: 180,000.00 | M20: 180,000.00 | N20: 180,000.00 | O20: 180,000.00
C21: Koszty Operacyjne | D21: PLN | E21: =NPV($F$12,G21:AS21)+F21 -> 1,045,947.33 | F21: 0.00 | G21: 55,000.00 | H21: 110,000.00 | I21: 150,000.00 | J21: 150,000.00 | K21: 150,000.00 | L21: 150,000.00 | M21: 150,000.00 | N21: 150,000.00 | O21: 150,000.00
C22: Zysk Operacyjny | D22: PLN | E22: =NPV($F$12,G22:AS22)+F22 -> 153,928.24 | F22: =+F20-F21 -> 0.00 | G22: =+G20-G21 -> -5,000.00 | H22: -20,000.00 | I22: 30,000.00 | J22: 30,000.00 | K22: 30,000.00 | L22: 30,000.00 | M22: 30,000.00 | N22: 30,000.00 | O22: 30,000.00 | AU22: 200,000.0
AU23: 150,000.0
